Workbook

Sheet Explications
B2: Je suis le gestionnaire d'un concours photo, composé de 7 défis. Les défis s'étalent de Novembre à Mai pour une durée d'un mois.
B4: Chaque auteur ne peut participar qu'avec une seule photo dans un même défi. Les photos sont jugées par 3 juges. Après chaque jugement je récupère un fichier de notation.
B6: Les fichiers de notations sont insérées dans ce classeur manuellement dans des onglets nommés de Défi-1 à Défi-7.
B9: Chaque auteur est identifié par le un numéro, de 12 chiffres, qui se trouve dans la colonne "fichier". Il a la forme suivante 131353000101. il se décomose de la manière suivante : - Les deux premiers chiffres 13 corresponds au N° de l'UR. - Les quatre suivantes 1353 correspondent au N° du club. - les quatres suivante 0001 correspondent au N° d'adhérent. - Les deux derniers 01 correspondent au N° d'ordre.
B16: Deux classement sont effectués après chaque défi. - Un classement auteur qui s'obtient par totalisation des notes obtenues par un auteur dans chacun des défis auquel il a participé. Ce classement se fait sur la totalité du N° de fichier.La participation à tous les défis n'est pas obligatoire. - Un classement club obtenu par addition des trois meilleures photos d'un même club dans un défi. Ce classement doit se faire sur les quatre chiffres vert. On ne classe que les club ayant au moins trois auteurs. Avec 1 ou 2 auteur le club n'est pas classé.
B24: Ce que je souhaiterais faire, c'est qu'après chaque défi et après avoir inséré le fichier de notation, dans l'onglet correspondant à un défi, soit effectué automatiquement le classement auteur et le classement club.
B28: J'arrive à le faire manuellement, mais je suis incapable d'écrire les macros permettant d'effectuer automatiquement ces deux classements. Je suis à votre disposition pour toutes autres précisions. Merci d'avance pour votre aide.

Sheet Classement auteurs
A2: Place | B2: Fichier | C2: Nom du Club | D2: Nom de l'auteur | E2: Défi-1 | F2: Défi-2 | G2: Défi-3 | H2: Défi-4 | I2: Défi-5 | J2: Défi-6 | K2: Défi-7 | L2: Total
A3: 16 | B3: 131824001901 | C3: =IFERROR(VLOOKUP($B3,'Liste des adhérents'!$B$2:$D$2000,2,FALSE),"") -> Photo Club IBM La Gaude | D3: =IFERROR(VLOOKUP($B3,'Liste des adhérents'!$B$2:$D$2000,3,FALSE),"") -> Prénom&Nom1217 | E3: 52 | F3: 40 | G3: 45 | H3: 48 | I3: 44 | J3: 52 | K3: 45 | L3: =SUM($E3:K3) -> 326
A4: 19 | B4: 131110000901 | C4: =IFERROR(VLOOKUP($B4,'Liste des adhérents'!$B$2:$D$2000,2,FALSE),"") -> Ciné Photo Club de Peymeinade | D4: =IFERROR(VLOOKUP($B4,'Liste des adhérents'!$B$2:$D$2000,3,FALSE),"") -> Prénom&Nom606 | E4: 51 | F4: 45 | G4: 56 | H4: 43 | I4: 41 | J4: 43 | K4: 36 | L4: =SUM($E4:K4) -> 315
A5: 67 | B5: 130987024201 | C5: =IFERROR(VLOOKUP($B5,'Liste des adhérents'!$B$2:$D$2000,2,FALSE),"") -> Cl, Phot'Azur Six Fours les plages | D5: =IFERROR(VLOOKUP($B5,'Liste des adhérents'!$B$2:$D$2000,3,FALSE),"") -> Prénom&Nom504 | E5: 46 | F5: 43 | G5: 48 | H5: 45 | I5: 39 | J5: 48 | K5: 43 | L5: =SUM($E5:K5) -> 312
A6: 42 | B6: 131683006301 | C6: =IFERROR(VLOOKUP($B6,'Liste des adhérents'!$B$2:$D$2000,2,FALSE),"") -> Marius St Mitre Les Remparts | D6: =IFERROR(VLOOKUP($B6,'Liste des adhérents'!$B$2:$D$2000,3,FALSE),"") -> Prénom&Nom1086 | E6: 57 | F6: 36 | G6: 34 | H6: 47 | I6: 45 | J6: 57 | K6: 36 | L6: =SUM($E6:K6) -> 312
A7: 39 | B7: 132193000301 | C7: =IFERROR(VLOOKUP($B7,'Liste des adhérents'!$B$2:$D$2000,2,FALSE),"") -> Antibes Photo Club | D7: =IFERROR(VLOOKUP($B7,'Liste des adhérents'!$B$2:$D$2000,3,FALSE),"") -> Prénom&Nom1800 | E7: 48 | F7: 37 | G7: 40 | H7: 45 | I7: 38 | J7: 48 | K7: 55 | L7: =SUM($E7:K7) -> 311
A8: 36 | B8: 130987015701 | C8: =IFERROR(VLOOKUP($B8,'Liste des adhérents'!$B$2:$D$2000,2,FALSE),"") -> Cl. Phot'Azur Six Fours Plages | D8: =IFERROR(VLOOKUP($B8,'Liste des adhérents'!$B$2:$D$2000,3,FALSE),"") -> Prénom&Nom425 | E8: 48 | F8: 39 | G8: 34 | H8: 41 | I8: 46 | J8: 48 | K8: 52 | L8: =SUM($E8:K8) -> 308
A9: 4 | B9: 131376018301 | C9: =IFERROR(VLOOKUP($B9,'Liste des adhérents'!$B$2:$D$2000,2,FALSE),"") -> PHOCAL | D9: =IFERROR(VLOOKUP($B9,'Liste des adhérents'!$B$2:$D$2000,3,FALSE),"") -> Prénom&Nom753 | E9: 31 | F9: 34 | G9: 57 | H9: 41 | I9: 44 | J9: 57 | K9: 42 | L9: =SUM($E9:K9) -> 306
A10: 110 | B10: 130527009401 | C10: =IFERROR(VLOOKUP($B10,'Liste des adhérents'!$B$2:$D$2000,2,FALSE),"") -> Photo Club de Martigues | D10: =IFERROR(VLOOKUP($B10,'Liste des adhérents'!$B$2:$D$2000,3,FALSE),"") -> Prénom&Nom164 | E10: 50 | F10: 53 | G10: 46 | H10: 50 | I10: 51 | K10: 49 | L10: =SUM($E10:K10) -> 299
A11: 46 | B11: 131499006801 | C11: =IFERROR(VLOOKUP($B11,'Liste des adhérents'!$B$2:$D$2000,2,FALSE),"") -> Images Expressions - Cagnes sur Mer | D11: =IFERROR(VLOOKUP($B11,'Liste des adhérents'!$B$2:$D$2000,3,FALSE),"") -> Prénom&Nom938 | E11: 35 | F11: 39 | G11: 48 | H11: 52 | I11: 42 | J11: 42 | K11: 36 | L11: =SUM($E11:K11) -> 294
A12: 73 | B12: 130987019701 | C12: =IFERROR(VLOOKUP($B12,'Liste des adhérents'!$B$2:$D$2000,2,FALSE),"") -> Cl. Phot'Azur Six Fours Plages | D12: =IFERROR(VLOOKUP($B12,'Liste des adhérents'!$B$2:$D$2000,3,FALSE),"") -> Prénom&Nom465 | E12: 51 | F12: 40 | G12: 40 | H12: 39 | I12: 37 | J12: 51 | K12: 33 | L12: =SUM($E12:K12) -> 291
A13: 56 | B13: 131353000101 | C13: =IFERROR(VLOOKUP($B13,'Liste des adhérents'!$B$2:$D$2000,2,FALSE),"") -> Photo Club de La Crau | D13: =IFERROR(VLOOKUP($B13,'Liste des adhérents'!$B$2:$D$2000,3,FALSE),"") -> Prénom&Nom657 | E13: 45 | F13: 36 | G13: 46 | H13: 47 | I13: 57 | K13: 56 | L13: =SUM($E13:K13) -> 287
A14: 47 | B14: 131879000801 | C14: =IFERROR(VLOOKUP($B14,'Liste des adhérents'!$B$2:$D$2000,2,FALSE),"") -> Association Sportive Berroise | D14: =IFERROR(VLOOKUP($B14,'Liste des adhérents'!$B$2:$D$2000,3,FALSE),"") -> Prénom&Nom1419 | E14: 50 | G14: 58 | H14: 40 | I14: 36 | J14: 58 | K14: 44 | L14: =SUM($E14:K14) -> 286
A15: 94 | B15: 131683005101 | C15: =IFERROR(VLOOKUP($B15,'Liste des adhérents'!$B$2:$D$2000,2,FALSE),"") -> Marius St Mitre Les Remparts | D15: =IFERROR(VLOOKUP($B15,'Liste des adhérents'!$B$2:$D$2000,3,FALSE),"") -> Prénom&Nom1074 | E15: 36 | F15: 33 | G15: 41 | H15: 44 | I15: 49 | J15: 44 | K15: 38 | L15: =SUM($E15:K15) -> 285
A16: 146 | B16: 131683007901 | C16: =IFERROR(VLOOKUP($B16,'Liste des adhérents'!$B$2:$D$2000,2,FALSE),"") -> Marius St Mitre Les Remparts | D16: =IFERROR(VLOOKUP($B16,'Liste des adhérents'!$B$2:$D$2000,3,FALSE),"") -> Prénom&Nom1093 | E16: 54 | F16: 39 | G16: 38 | H16: 51 | I16: 58 | K16: 42 | L16: =SUM($E16:K16) -> 282
A17: 107 | B17: 131823004901 | C17: =IFERROR(VLOOKUP($B17,'Liste des adhérents'!$B$2:$D$2000,2,FALSE),"") -> Photo Club Mouansois | D17: =IFERROR(VLOOKUP($B17,'Liste des adhérents'!$B$2:$D$2000,3,FALSE),"") -> Prénom&Nom1178 | E17: 44 | F17: 25 | G17: 43 | H17: 39 | I17: 41 | J17: 43 | K17: 43 | L17: =SUM($E17:K17) -> 278
A18: 127 | B18: 131619004501 | C18: =IFERROR(VLOOKUP($B18,'Liste des adhérents'!$B$2:$D$2000,2,FALSE),"") -> Optique Diaporama Marseille | D18: =IFERROR(VLOOKUP($B18,'Liste des adhérents'!$B$2:$D$2000,3,FALSE),"") -> Prénom&Nom1033 | E18: 51 | F18: 48 | G18: 48 | H18: 46 | I18: 37 | K18: 47 | L18: =SUM($E18:K18) -> 277
A19: 71 | B19: 130925007701 | C19: =IFERROR(VLOOKUP($B19,'Liste des adhérents'!$B$2:$D$2000,2,FALSE),"") -> A.S.L.P.S. Photo Fos-sur-Mer | D19: =IFERROR(VLOOKUP($B19,'Liste des adhérents'!$B$2:$D$2000,3,FALSE),"") -> Prénom&Nom333 | E19: 46 | F19: 50 | G19: 48 | H19: 44 | I19: 37 | J19: 50 | L19: =SUM($E19:K19) -> 275
A20: 116 | B20: 131862002201 | C20: =IFERROR(VLOOKUP($B20,'Liste des adhérents'!$B$2:$D$2000,2,FALSE),"") -> Déclic et des Claps - Roquefort les Pins | D20: =IFERROR(VLOOKUP($B20,'Liste des adhérents'!$B$2:$D$2000,3,FALSE),"") -> Prénom&Nom1360 | E20: 41 | F20: 35 | G20: 44 | H20: 27 | I20: 43 | J20: 44 | K20: 37 | L20: =SUM($E20:K20) -> 271
A21: 135 | B21: 132060001701 | C21: =IFERROR(VLOOKUP($B21,'Liste des adhérents'!$B$2:$D$2000,2,FALSE),"") -> Image Club Gardéen | D21: =IFERROR(VLOOKUP($B21,'Liste des adhérents'!$B$2:$D$2000,3,FALSE),"") -> Prénom&Nom1711 | E21: 37 | F21: 45 | G21: 33 | H21: 37 | I21: 37 | J21: 45 | K21: 35 | L21: =SUM($E21:K21) -> 269
A22: 81 | B22: 130878014101 | C22: =IFERROR(VLOOKUP($B22,'Liste des adhérents'!$B$2:$D$2000,2,FALSE),"") -> PC Antoine Santoru-Port de Bouc | D22: =IFERROR(VLOOKUP($B22,'Liste des adhérents'!$B$2:$D$2000,3,FALSE),"") -> Prénom&Nom268 | E22: 36 | F22: 37 | G22: 44 | H22: 18 | I22: 56 | J22: 44 | K22: 33 | L22: =SUM($E22:K22) -> 268
A23: 177 | B23: 131353000701 | C23: =IFERROR(VLOOKUP($B23,'Liste des adhérents'!$B$2:$D$2000,2,FALSE),"") -> Photo Club de La Crau | D23: =IFERROR(VLOOKUP($B23,'Liste des adhérents'!$B$2:$D$2000,3,FALSE),"") -> Prénom&Nom659 | E23: 48 | F23: 42 | G23: 39 | H23: 57 | I23: 41 | K23: 41 | L23: =SUM($E23:K23) -> 268
A24: 184 | B24: 131956004501 | C24: =IFERROR(VLOOKUP($B24,'Liste des adhérents'!$B$2:$D$2000,2,FALSE),"") -> Photo Contact Puyricard | D24: =IFERROR(VLOOKUP($B24,'Liste des adhérents'!$B$2:$D$2000,3,FALSE),"") -> Prénom&Nom1521 | E24: 38 | F24: 38 | G24: 35 | H24: 37 | I24: 39 | J24: 38 | K24: 42 | L24: =SUM($E24:K24) -> 267
A25: 69 | B25: 131376014701 | C25: =IFERROR(VLOOKUP($B25,'Liste des adhérents'!$B$2:$D$2000,2,FALSE),"") -> PHOCAL | D25: =IFERROR(VLOOKUP($B25,'Liste des adhérents'!$B$2:$D$2000,3,FALSE),"") -> Prénom&Nom721 | E25: 43 | F25: 23 | G25: 39 | H25: 41 | I25: 44 | J25: 43 | K25: 33 | L25: =SUM($E25:K25) -> 266
A26: 51 | B26: 131499005201 | C26: =IFERROR(VLOOKUP($B26,'Liste des adhérents'!$B$2:$D$2000,2,FALSE),"") -> Images Expressions - Cagnes sur Mer | D26: =IFERROR(VLOOKUP($B26,'Liste des adhérents'!$B$2:$D$2000,3,FALSE),"") -> Prénom&Nom922 | E26: 44 | F26: 31 | G26: 49 | H26: 37 | I26: 39 | J26: 31 | K26: 34 | L26: =SUM($E26:K26) -> 265
A27: 155 | B27: 131956004601 | C27: =IFERROR(VLOOKUP($B27,'Liste des adhérents'!$B$2:$D$2000,2,FALSE),"") -> Photo Contact Puyricard | D27: =IFERROR(VLOOKUP($B27,'Liste des adhérents'!$B$2:$D$2000,3,FALSE),"") -> Prénom&Nom1522 | F27: 47 | G27: 50 | H27: 38 | I27: 27 | J27: 47 | K27: 52 | L27: =SUM($E27:K27) -> 261
A28: 70 | B28: 130987013801 | C28: =IFERROR(VLOOKUP($B28,'Liste des adhérents'!$B$2:$D$2000,2,FALSE),"") -> Cl. Phot'Azur Six Fours Plages | D28: =IFERROR(VLOOKUP($B28,'Liste des adhérents'!$B$2:$D$2000,3,FALSE),"") -> Prénom&Nom406 | E28: 38 | G28: 45 | H28: 42 | I28: 42 | J28: 42 | K28: 51 | L28: =SUM($E28:K28) -> 260
A29: 199 | B29: 130000020401 | C29: =IFERROR(VLOOKUP($B29,'Liste des adhérents'!$B$2:$D$2000,2,FALSE),"") -> Individuel | D29: =IFERROR(VLOOKUP($B29,'Liste des adhérents'!$B$2:$D$2000,3,FALSE),"") -> Prénom&Nom70A | E29: 31 | F29: 37 | G29: 35 | H29: 35 | I29: 43 | J29: 37 | K29: 41 | L29: =SUM($E29:K29) -> 259
A30: 17 | B30: 130987019601 | C30: =IFERROR(VLOOKUP($B30,'Liste des adhérents'!$B$2:$D$2000,2,FALSE),"") -> Cl. Phot'Azur Six Fours Plages | D30: =IFERROR(VLOOKUP($B30,'Liste des adhérents'!$B$2:$D$2000,3,FALSE),"") -> Prénom&Nom464 | E30: 39 | F30: 37 | G30: 36 | H30: 44 | I30: 34 | J30: 39 | K30: 29 | L30: =SUM($E30:K30) -> 258
A31: 26 | B31: 131499008701 | C31: =IFERROR(VLOOKUP($B31,'Liste des adhérents'!$B$2:$D$2000,2,FALSE),"") ->  | D31: =IFERROR(VLOOKUP($B31,'Liste des adhérents'!$B$2:$D$2000,3,FALSE),"") ->  | E31: 44 | F31: 29 | G31: 39 | H31: 33 | I31: 34 | J31: 44 | K31: 34 | L31: =SUM($E31:K31) -> 257
A32: 40 | B32: 130000019901 | C32: =IFERROR(VLOOKUP($B32,'Liste des adhérents'!$B$2:$D$2000,2,FALSE),"") ->  | D32: =IFERROR(VLOOKUP($B32,'Liste des adhérents'!$B$2:$D$2000,3,FALSE),"") ->  | E32: 32 | F32: 41 | G32: 44 | H32: 24 | I32: 37 | J32: 41 | K32: 37 | L32: =SUM($E32:K32) -> 256
A33: 132 | B33: 131110001001 | C33: =IFERROR(VLOOKUP($B33,'Liste des adhérents'!$B$2:$D$2000,2,FALSE),"") ->  | D33: =IFERROR(VLOOKUP($B33,'Liste des adhérents'!$B$2:$D$2000,3,FALSE),"") ->  | E33: 41 | F33: 41 | G33: 40 | H33: 47 | I33: 35 | J33: 47 | L33: =SUM($E33:K33) -> 251
A34: 32 | B34: 130987024101 | C34: =IFERROR(VLOOKUP($B34,'Liste des adhérents'!$B$2:$D$2000,2,FALSE),"") -> Cl. Phot'Azur Six Fours Plages | D34: =IFERROR(VLOOKUP($B34,'Liste des adhérents'!$B$2:$D$2000,3,FALSE),"") -> Prénom&Nom503 | E34: 40 | F34: 39 | G34: 36 | H34: 46 | I34: 44 | K34: 39 | L34: =SUM($E34:K34) -> 244
A35: 171 | B35: 131845001401 | C35: =IFERROR(VLOOKUP($B35,'Liste des adhérents'!$B$2:$D$2000,2,FALSE),"") -> Photo Club Carqueirannais | D35: =IFERROR(VLOOKUP($B35,'Liste des adhérents'!$B$2:$D$2000,3,FALSE),"") -> Prénom&Nom1238 | E35: 41 | F35: 34 | G35: 48 | H35: 39 | I35: 43 | K35: 37 | L35: =SUM($E35:K35) -> 242
A36: 37 | B36: 131956002601 | C36: =IFERROR(VLOOKUP($B36,'Liste des adhérents'!$B$2:$D$2000,2,FALSE),"") -> Photo Contact Puyricard | D36: =IFERROR(VLOOKUP($B36,'Liste des adhérents'!$B$2:$D$2000,3,FALSE),"") -> Prénom&Nom1504 | F36: 44 | G36: 44 | H36: 34 | I36: 30 | J36: 44 | K36: 43 | L36: =SUM($E36:K36) -> 239
A37: 156 | B37: 131353000201 | C37: =IFERROR(VLOOKUP($B37,'Liste des adhérents'!$B$2:$D$2000,2,FALSE),"") -> Photo Club de La Crau | D37: =IFERROR(VLOOKUP($B37,'Liste des adhérents'!$B$2:$D$2000,3,FALSE),"") -> Prénom&Nom658 | E37: 33 | F37: 37 | G37: 25 | H37: 36 | I37: 37 | J37: 36 | K37: 34 | L37: =SUM($E37:K37) -> 238
A38: 55 | B38: 131879000501 | C38: =IFERROR(VLOOKUP($B38,'Liste des adhérents'!$B$2:$D$2000,2,FALSE),"") -> Association Sportive Berroise | D38: =IFERROR(VLOOKUP($B38,'Liste des adhérents'!$B$2:$D$2000,3,FALSE),"") -> Prénom&Nom1416 | E38: 38 | F38: 39 | G38: 40 | H38: 41 | I38: 39 | J38: 41 | L38: =SUM($E38:K38) -> 238
A39: 38 | B39: 132084001701 | C39: =IFERROR(VLOOKUP($B39,'Liste des adhérents'!$B$2:$D$2000,2,FALSE),"") -> Azur Photo Passion | D39: =IFERROR(VLOOKUP($B39,'Liste des adhérents'!$B$2:$D$2000,3,FALSE),"") -> Prénom&Nom1742 | E39: 45 | F39: 36 | G39: 40 | I39: 41 | J39: 45 | K39: 31 | L39: =SUM($E39:K39) -> 238
A40: 15 | B40: 132086002301 | C40: =IFERROR(VLOOKUP($B40,'Liste des adhérents'!$B$2:$D$2000,2,FALSE),"") ->  | D40: =IFERROR(VLOOKUP($B40,'Liste des adhérents'!$B$2:$D$2000,3,FALSE),"") ->  | E40: 36 | F40: 31 | G40: 35 | H40: 35 | I40: 32 | J40: 36 | K40: 33 | L40: =SUM($E40:K40) -> 238
A41: 41 | B41: 131353004301 | C41: =IFERROR(VLOOKUP($B41,'Liste des adhérents'!$B$2:$D$2000,2,FALSE),"") -> Photo Club de La Crau | D41: =IFERROR(VLOOKUP($B41,'Liste des adhérents'!$B$2:$D$2000,3,FALSE),"") -> Prénom&Nom666 | E41: 18 | F41: 28 | G41: 35 | H41: 47 | I41: 24 | J41: 47 | K41: 38 | L41: =SUM($E41:K41) -> 237
A42: 129 | B42: 131845000101 | C42: =IFERROR(VLOOKUP($B42,'Liste des adhérents'!$B$2:$D$2000,2,FALSE),"") -> Photo Club Carqueirannais | D42: =IFERROR(VLOOKUP($B42,'Liste des adhérents'!$B$2:$D$2000,3,FALSE),"") -> Prénom&Nom1225 | E42: 42 | G42: 41 | H42: 18 | I42: 41 | J42: 42 | K42: 50 | L42: =SUM($E42:K42) -> 234
A43: 118 | B43: 131683008001 | C43: =IFERROR(VLOOKUP($B43,'Liste des adhérents'!$B$2:$D$2000,2,FALSE),"") -> Marius St Mitre Les Remparts | D43: =IFERROR(VLOOKUP($B43,'Liste des adhérents'!$B$2:$D$2000,3,FALSE),"") -> Prénom&Nom1094 | E43: 48 | F43: 47 | G43: 47 | H43: 39 | I43: 52 | L43: =SUM($E43:K43) -> 233
A44: 123 | B44: 132084004001 | C44: =IFERROR(VLOOKUP($B44,'Liste des adhérents'!$B$2:$D$2000,2,FALSE),"") ->  | D44: =IFERROR(VLOOKUP($B44,'Liste des adhérents'!$B$2:$D$2000,3,FALSE),"") ->  | F44: 40 | G44: 32 | H44: 40 | I44: 42 | J44: 42 | K44: 36 | L44: =SUM($E44:K44) -> 232
A45: 134 | B45: 130925009801 | C45: =IFERROR(VLOOKUP($B45,'Liste des adhérents'!$B$2:$D$2000,2,FALSE),"") -> A.S.L.P.S. Photo Fos-sur-Mer | D45: =IFERROR(VLOOKUP($B45,'Liste des adhérents'!$B$2:$D$2000,3,FALSE),"") -> Prénom&Nom351 | E45: 44 | F45: 36 | G45: 41 | H45: 34 | I45: 40 | J45: 36 | L45: =SUM($E45:K45) -> 231
A46: 101 | B46: 131879000601 | C46: =IFERROR(VLOOKUP($B46,'Liste des adhérents'!$B$2:$D$2000,2,FALSE),"") -> Association Sportive Berroise | D46: =IFERROR(VLOOKUP($B46,'Liste des adhérents'!$B$2:$D$2000,3,FALSE),"") -> Prénom&Nom1417 | E46: 47 | F46: 37 | G46: 34 | H46: 31 | J46: 47 | K46: 35 | L46: =SUM($E46:K46) -> 231
A47: 162 | B47: 131879001301 | C47: =IFERROR(VLOOKUP($B47,'Liste des adhérents'!$B$2:$D$2000,2,FALSE),"") -> Association Sportive Berroise | D47: =IFERROR(VLOOKUP($B47,'Liste des adhérents'!$B$2:$D$2000,3,FALSE),"") -> Prénom&Nom1424 | E47: 42 | F47: 30 | G47: 46 | I47: 42 | J47: 42 | K47: 29 | L47: =SUM($E47:K47) -> 231
A48: 57 | B48: 131879000101 | C48: =IFERROR(VLOOKUP($B48,'Liste des adhérents'!$B$2:$D$2000,2,FALSE),"") -> Association Sportive Berroise | D48: =IFERROR(VLOOKUP($B48,'Liste des adhérents'!$B$2:$D$2000,3,FALSE),"") -> Prénom&Nom1412 | E48: 41 | F48: 41 | G48: 38 | I48: 28 | J48: 41 | K48: 40 | L48: =SUM($E48:K48) -> 229
A49: 75 | B49: 131845004001 | C49: =IFERROR(VLOOKUP($B49,'Liste des adhérents'!$B$2:$D$2000,2,FALSE),"") ->  | D49: =IFERROR(VLOOKUP($B49,'Liste des adhérents'!$B$2:$D$2000,3,FALSE),"") ->  | E49: 40 | F49: 33 | G49: 42 | H49: 39 | I49: 41 | J49: 33 | L49: =SUM($E49:K49) -> 228
A50: 8 | B50: 130527012401 | C50: =IFERROR(VLOOKUP($B50,'Liste des adhérents'!$B$2:$D$2000,2,FALSE),"") -> Photo Club de Martigues | D50: =IFERROR(VLOOKUP($B50,'Liste des adhérents'!$B$2:$D$2000,3,FALSE),"") -> Prénom&Nom192 | E50: 41 | F50: 36 | G50: 18 | H50: 47 | J50: 47 | K50: 38 | L50: =SUM($E50:K50) -> 227
A51: 60 | B51: 130878013001 | C51: =IFERROR(VLOOKUP($B51,'Liste des adhérents'!$B$2:$D$2000,2,FALSE),"") -> PC Antoine Santoru-Port de Bouc | D51: =IFERROR(VLOOKUP($B51,'Liste des adhérents'!$B$2:$D$2000,3,FALSE),"") -> Prénom&Nom259 | E51: 41 | G51: 39 | H51: 40 | I51: 26 | J51: 41 | K51: 39 | L51: =SUM($E51:K51) -> 226
A52: 102 | B52: 132060000701 | C52: =IFERROR(VLOOKUP($B52,'Liste des adhérents'!$B$2:$D$2000,2,FALSE),"") -> Image Club Gardéen | D52: =IFERROR(VLOOKUP($B52,'Liste des adhérents'!$B$2:$D$2000,3,FALSE),"") -> Prénom&Nom1706 | E52: 38 | F52: 29 | G52: 31 | H52: 25 | I52: 36 | J52: 38 | K52: 28 | L52: =SUM($E52:K52) -> 225
A53: 131 | B53: 131956002401 | C53: =IFERROR(VLOOKUP($B53,'Liste des adhérents'!$B$2:$D$2000,2,FALSE),"") -> Photo Contact Puyricard | D53: =IFERROR(VLOOKUP($B53,'Liste des adhérents'!$B$2:$D$2000,3,FALSE),"") -> Prénom&Nom1502 | E53: 28 | F53: 36 | G53: 40 | H53: 35 | I53: 43 | K53: 42 | L53: =SUM($E53:K53) -> 224
A54: 269 | B54: 131353006101 | C54: =IFERROR(VLOOKUP($B54,'Liste des adhérents'!$B$2:$D$2000,2,FALSE),"") -> Photo Club de La Crau | D54: =IFERROR(VLOOKUP($B54,'Liste des adhérents'!$B$2:$D$2000,3,FALSE),"") -> Prénom&Nom681 | F54: 41 | G54: 36 | H54: 38 | I54: 36 | J54: 36 | K54: 35 | L54: =SUM($E54:K54) -> 222
A55: 27 | B55: 131494000201 | C55: =IFERROR(VLOOKUP($B55,'Liste des adhérents'!$B$2:$D$2000,2,FALSE),"") -> Photo-Club du Brianconnais | D55: =IFERROR(VLOOKUP($B55,'Liste des adhérents'!$B$2:$D$2000,3,FALSE),"") -> Prénom&Nom861 | E55: 39 | F55: 34 | G55: 42 | H55: 35 | I55: 37 | J55: 35 | L55: =SUM($E55:K55) -> 222
A56: 44 | B56: 130878007201 | C56: =IFERROR(VLOOKUP($B56,'Liste des adhérents'!$B$2:$D$2000,2,FALSE),"") -> PC Antoine Santoru-Port de Bouc | D56: =IFERROR(VLOOKUP($B56,'Liste des adhérents'!$B$2:$D$2000,3,FALSE),"") -> Prénom&Nom254 | E56: 36 | G56: 37 | H56: 32 | I56: 35 | J56: 36 | K56: 44 | L56: =SUM($E56:K56) -> 220
A57: 140 | B57: 132060001801 | C57: =IFERROR(VLOOKUP($B57,'Liste des adhérents'!$B$2:$D$2000,2,FALSE),"") ->  | D57: =IFERROR(VLOOKUP($B57,'Liste des adhérents'!$B$2:$D$2000,3,FALSE),"") ->  | E57: 38 | F57: 38 | G57: 40 | H57: 22 | I57: 47 | K57: 35 | L57: =SUM($E57:K57) -> 220
A58: 58 | B58: 130987024001 | C58: =IFERROR(VLOOKUP($B58,'Liste des adhérents'!$B$2:$D$2000,2,FALSE),"") ->  | D58: =IFERROR(VLOOKUP($B58,'Liste des adhérents'!$B$2:$D$2000,3,FALSE),"") ->  | E58: 46 | F58: 44 | G58: 44 | J58: 46 | K58: 37 | L58: =SUM($E58:K58) -> 217
A59: 96 | B59: 131110001101 | C59: =IFERROR(VLOOKUP($B59,'Liste des adhérents'!$B$2:$D$2000,2,FALSE),"") ->  | D59: =IFERROR(VLOOKUP($B59,'Liste des adhérents'!$B$2:$D$2000,3,FALSE),"") ->  | E59: 36 | F59: 24 | G59: 38 | H59: 36 | I59: 45 | J59: 36 | L59: =SUM($E59:K59) -> 215
A60: 178 | B60: 131499006901 | C60: =IFERROR(VLOOKUP($B60,'Liste des adhérents'!$B$2:$D$2000,2,FALSE),"") -> Images Expressions - Cagnes sur Mer | D60: =IFERROR(VLOOKUP($B60,'Liste des adhérents'!$B$2:$D$2000,3,FALSE),"") -> Prénom&Nom939 | E60: 42 | F60: 45 | G60: 43 | H60: 39 | I60: 46 | L60: =SUM($E60:K60) -> 215
A61: 253 | B61: 131823008301 | C61: =IFERROR(VLOOKUP($B61,'Liste des adhérents'!$B$2:$D$2000,2,FALSE),"") -> Photo Club Mouansois | D61: =IFERROR(VLOOKUP($B61,'Liste des adhérents'!$B$2:$D$2000,3,FALSE),"") -> Prénom&Nom1202 | F61: 40 | G61: 48 | I61: 42 | J61: 48 | K61: 36 | L61: =SUM($E61:K61) -> 214
A62: 12 | B62: 131353003001 | C62: =IFERROR(VLOOKUP($B62,'Liste des adhérents'!$B$2:$D$2000,2,FALSE),"") -> Photo Club de La Crau | D62: =IFERROR(VLOOKUP($B62,'Liste des adhérents'!$B$2:$D$2000,3,FALSE),"") -> Prénom&Nom662 | E62: 45 | F62: 30 | G62: 37 | I62: 35 | J62: 30 | K62: 36 | L62: =SUM($E62:K62) -> 213
A63: 260 | B63: 130925007601 | C63: =IFERROR(VLOOKUP($B63,'Liste des adhérents'!$B$2:$D$2000,2,FALSE),"") -> A.S.L.P.S. Photo Fos-sur-Mer | D63: =IFERROR(VLOOKUP($B63,'Liste des adhérents'!$B$2:$D$2000,3,FALSE),"") -> Prénom&Nom332 | F63: 44 | G63: 43 | H63: 39 | I63: 41 | J63: 44 | L63: =SUM($E63:K63) -> 211
A64: 125 | B64: 131499010001 | C64: =IFERROR(VLOOKUP($B64,'Liste des adhérents'!$B$2:$D$2000,2,FALSE),"") ->  | D64: =IFERROR(VLOOKUP($B64,'Liste des adhérents'!$B$2:$D$2000,3,FALSE),"") ->  | E64: 42 | F64: 42 | G64: 43 | H64: 42 | I64: 42 | L64: =SUM($E64:K64) -> 211
A65: 53 | B65: 130987023901 | C65: =IFERROR(VLOOKUP($B65,'Liste des adhérents'!$B$2:$D$2000,2,FALSE),"") ->  | D65: =IFERROR(VLOOKUP($B65,'Liste des adhérents'!$B$2:$D$2000,3,FALSE),"") ->  | E65: 40 | F65: 30 | G65: 40 | H65: 35 | I65: 30 | K65: 34 | L65: =SUM($E65:K65) -> 209
A66: 23 | B66: 131992000301 | C66: =IFERROR(VLOOKUP($B66,'Liste des adhérents'!$B$2:$D$2000,2,FALSE),"") -> Photo Club Velauxien - Clin d'Œil | D66: =IFERROR(VLOOKUP($B66,'Liste des adhérents'!$B$2:$D$2000,3,FALSE),"") -> Prénom&Nom1616 | E66: 40 | F66: 33 | G66: 32 | I66: 31 | J66: 40 | K66: 33 | L66: =SUM($E66:K66) -> 209
A67: 180 | B67: 131499009801 | C67: =IFERROR(VLOOKUP($B67,'Liste des adhérents'!$B$2:$D$2000,2,FALSE),"") -> Images Expressions - Cagnes sur Mer | D67: =IFERROR(VLOOKUP($B67,'Liste des adhérents'!$B$2:$D$2000,3,FALSE),"") -> Prénom&Nom955 | E67: 42 | G67: 35 | H67: 54 | I67: 42 | J67: 35 | L67: =SUM($E67:K67) -> 208
A68: 80 | B68: 130527002501 | C68: =IFERROR(VLOOKUP($B68,'Liste des adhérents'!$B$2:$D$2000,2,FALSE),"") -> Photo Club de Martigues | D68: =IFERROR(VLOOKUP($B68,'Liste des adhérents'!$B$2:$D$2000,3,FALSE),"") -> Prénom&Nom155 | E68: 41 | F68: 37 | G68: 38 | H68: 30 | I68: 32 | K68: 29 | L68: =SUM($E68:K68) -> 207
A69: 252 | B69: 130527017001 | C69: =IFERROR(VLOOKUP($B69,'Liste des adhérents'!$B$2:$D$2000,2,FALSE),"") -> Photo Club de Martigues | D69: =IFERROR(VLOOKUP($B69,'Liste des adhérents'!$B$2:$D$2000,3,FALSE),"") -> Prénom&Nom238 | E69: 55 | F69: 40 | G69: 31 | H69: 29 | I69: 51 | L69: =SUM($E69:K69) -> 206
A70: 77 | B70: 130925010201 | C70: =IFERROR(VLOOKUP($B70,'Liste des adhérents'!$B$2:$D$2000,2,FALSE),"") -> A.S.L.P.S. Photo Fos-sur-Mer | D70: =IFERROR(VLOOKUP($B70,'Liste des adhérents'!$B$2:$D$2000,3,FALSE),"") -> Prénom&Nom355 | E70: 46 | F70: 30 | G70: 31 | H70: 33 | J70: 31 | K70: 35 | L70: =SUM($E70:K70) -> 206
A71: 254 | B71: 131879002001 | C71: =IFERROR(VLOOKUP($B71,'Liste des adhérents'!$B$2:$D$2000,2,FALSE),"") -> Association Sportive Berroise | D71: =IFERROR(VLOOKUP($B71,'Liste des adhérents'!$B$2:$D$2000,3,FALSE),"") -> Prénom&Nom1426 | F71: 47 | G71: 42 | H71: 41 | I71: 38 | J71: 38 | L71: =SUM($E71:K71) -> 206
A72: 20 | B72: 130987007401 | C72: =IFERROR(VLOOKUP($B72,'Liste des adhérents'!$B$2:$D$2000,2,FALSE),"") -> Cl. Phot'Azur Six Fours Plages | D72: =IFERROR(VLOOKUP($B72,'Liste des adhérents'!$B$2:$D$2000,3,FALSE),"") -> Prénom&Nom373 | E72: 31 | F72: 32 | G72: 28 | H72: 38 | I72: 37 | J72: 37 | L72: =SUM($E72:K72) -> 203
A73: 161 | B73: 131376012601 | C73: =IFERROR(VLOOKUP($B73,'Liste des adhérents'!$B$2:$D$2000,2,FALSE),"") -> PHOCAL | D73: =IFERROR(VLOOKUP($B73,'Liste des adhérents'!$B$2:$D$2000,3,FALSE),"") -> Prénom&Nom712 | E73: 31 | F73: 29 | G73: 40 | I73: 34 | J73: 34 | K73: 33 | L73: =SUM($E73:K73) -> 201
A74: 170 | B74: 131499010501 | C74: =IFERROR(VLOOKUP($B74,'Liste des adhérents'!$B$2:$D$2000,2,FALSE),"") ->  | D74: =IFERROR(VLOOKUP($B74,'Liste des adhérents'!$B$2:$D$2000,3,FALSE),"") ->  | E74: 35 | F74: 41 | G74: 47 | H74: 41 | I74: 36 | L74: =SUM($E74:K74) -> 200
A75: 35 | B75: 130878014301 | C75: =IFERROR(VLOOKUP($B75,'Liste des adhérents'!$B$2:$D$2000,2,FALSE),"") -> PC Antoine Santoru-Port de Bouc | D75: =IFERROR(VLOOKUP($B75,'Liste des adhérents'!$B$2:$D$2000,3,FALSE),"") -> Prénom&Nom270 | E75: 38 | F75: 23 | G75: 52 | H75: 18 | I75: 29 | J75: 38 | L75: =SUM($E75:K75) -> 198
A76: 114 | B76: 131499003901 | C76: =IFERROR(VLOOKUP($B76,'Liste des adhérents'!$B$2:$D$2000,2,FALSE),"") -> Images Expressions - Cagnes sur Mer | D76: =IFERROR(VLOOKUP($B76,'Liste des adhérents'!$B$2:$D$2000,3,FALSE),"") -> Prénom&Nom909 | E76: 42 | G76: 40 | H76: 45 | I76: 39 | K76: 32 | L76: =SUM($E76:K76) -> 198
A77: 145 | B77: 131683006601 | C77: =IFERROR(VLOOKUP($B77,'Liste des adhérents'!$B$2:$D$2000,2,FALSE),"") -> Marius St Mitre Les Remparts | D77: =IFERROR(VLOOKUP($B77,'Liste des adhérents'!$B$2:$D$2000,3,FALSE),"") -> Prénom&Nom1089 | E77: 40 | F77: 26 | G77: 42 | I77: 49 | K77: 41 | L77: =SUM($E77:K77) -> 198
A78: 152 | B78: 132060001201 | C78: =IFERROR(VLOOKUP($B78,'Liste des adhérents'!$B$2:$D$2000,2,FALSE),"") ->  | D78: =IFERROR(VLOOKUP($B78,'Liste des adhérents'!$B$2:$D$2000,3,FALSE),"") ->  | E78: 46 | G78: 39 | H78: 40 | I78: 39 | K78: 33 | L78: =SUM($E78:K78) -> 197
A79: 24 | B79: 130987028401 | C79: =IFERROR(VLOOKUP($B79,'Liste des adhérents'!$B$2:$D$2000,2,FALSE),"") ->  | D79: =IFERROR(VLOOKUP($B79,'Liste des adhérents'!$B$2:$D$2000,3,FALSE),"") ->  | E79: 32 | F79: 38 | G79: 27 | H79: 27 | I79: 36 | J79: 36 | L79: =SUM($E79:K79) -> 196
A80: 28 | B80: 131499008201 | C80: =IFERROR(VLOOKUP($B80,'Liste des adhérents'!$B$2:$D$2000,2,FALSE),"") -> Images Expressions - Cagnes sur Mer | D80: =IFERROR(VLOOKUP($B80,'Liste des adhérents'!$B$2:$D$2000,3,FALSE),"") -> Prénom&Nom952 | E80: 45 | F80: 41 | H80: 41 | I80: 49 | K80: 20 | L80: =SUM($E80:K80) -> 196
A81: 144 | B81: 131499010601 | C81: =IFERROR(VLOOKUP($B81,'Liste des adhérents'!$B$2:$D$2000,2,FALSE),"") ->  | D81: =IFERROR(VLOOKUP($B81,'Liste des adhérents'!$B$2:$D$2000,3,FALSE),"") ->  | E81: 46 | F81: 40 | G81: 37 | H81: 32 | I81: 39 | L81: =SUM($E81:K81) -> 194
A82: 52 | B82: 131956005701 | C82: =IFERROR(VLOOKUP($B82,'Liste des adhérents'!$B$2:$D$2000,2,FALSE),"") ->  | D82: =IFERROR(VLOOKUP($B82,'Liste des adhérents'!$B$2:$D$2000,3,FALSE),"") ->  | E82: 36 | F82: 31 | G82: 34 | H82: 28 | I82: 38 | K82: 27 | L82: =SUM($E82:K82) -> 194
A83: 273 | B83: 131227008601 | C83: =IFERROR(VLOOKUP($B83,'Liste des adhérents'!$B$2:$D$2000,2,FALSE),"") -> Photo Ciné Club Courthezonnais | D83: =IFERROR(VLOOKUP($B83,'Liste des adhérents'!$B$2:$D$2000,3,FALSE),"") -> Prénom&Nom656 | G83: 53 | H83: 44 | I83: 42 | J83: 53 | L83: =SUM($E83:K83) -> 192
A84: 183 | B84: 131992000401 | C84: =IFERROR(VLOOKUP($B84,'Liste des adhérents'!$B$2:$D$2000,2,FALSE),"") -> Photo Club Velauxien - Clin d'Œil | D84: =IFERROR(VLOOKUP($B84,'Liste des adhérents'!$B$2:$D$2000,3,FALSE),"") -> Prénom&Nom1617 | F84: 39 | G84: 32 | H84: 20 | I84: 45 | J84: 32 | K84: 24 | L84: =SUM($E84:K84) -> 192
A85: 65 | B85: 132086001401 | C85: =IFERROR(VLOOKUP($B85,'Liste des adhérents'!$B$2:$D$2000,2,FALSE),"") -> Objectif Image Nice | D85: =IFERROR(VLOOKUP($B85,'Liste des adhérents'!$B$2:$D$2000,3,FALSE),"") -> Prénom&Nom1773 | E85: 33 | F85: 41 | G85: 37 | H85: 46 | I85: 34 | L85: =SUM($E85:K85) -> 191
A86: 115 | B86: 130878013401 | C86: =IFERROR(VLOOKUP($B86,'Liste des adhérents'!$B$2:$D$2000,2,FALSE),"") -> PC Antoine Santoru-Port de Bouc | D86: =IFERROR(VLOOKUP($B86,'Liste des adhérents'!$B$2:$D$2000,3,FALSE),"") -> Prénom&Nom261 | F86: 30 | G86: 36 | H86: 35 | I86: 30 | J86: 30 | K86: 28 | L86: =SUM($E86:K86) -> 189
A87: 225 | B87: 131499003601 | C87: =IFERROR(VLOOKUP($B87,'Liste des adhérents'!$B$2:$D$2000,2,FALSE),"") -> Images Expressions - Cagnes sur Mer | D87: =IFERROR(VLOOKUP($B87,'Liste des adhérents'!$B$2:$D$2000,3,FALSE),"") -> Prénom&Nom906 | E87: 34 | F87: 33 | G87: 35 | I87: 50 | K87: 36 | L87: =SUM($E87:K87) -> 188
A88: 50 | B88: 132084002301 | C88: =IFERROR(VLOOKUP($B88,'Liste des adhérents'!$B$2:$D$2000,2,FALSE),"") -> Azur Photo Passion | D88: =IFERROR(VLOOKUP($B88,'Liste des adhérents'!$B$2:$D$2000,3,FALSE),"") -> Prénom&Nom1748 | F88: 37 | G88: 54 | H88: 43 | J88: 54 | L88: =SUM($E88:K88) -> 188
A89: 97 | B89: 130527015501 | C89: =IFERROR(VLOOKUP($B89,'Liste des adhérents'!$B$2:$D$2000,2,FALSE),"") -> Photo Club de Martigues | D89: =IFERROR(VLOOKUP($B89,'Liste des adhérents'!$B$2:$D$2000,3,FALSE),"") -> Prénom&Nom223 | E89: 46 | G89: 45 | H89: 31 | I89: 32 | K89: 32 | L89: =SUM($E89:K89) -> 186
A90: 261 | B90: 131956001401 | C90: =IFERROR(VLOOKUP($B90,'Liste des adhérents'!$B$2:$D$2000,2,FALSE),"") -> Photo Contact Puyricard | D90: =IFERROR(VLOOKUP($B90,'Liste des adhérents'!$B$2:$D$2000,3,FALSE),"") -> Prénom&Nom1492 | F90: 32 | G90: 38 | H90: 18 | I90: 35 | J90: 32 | K90: 31 | L90: =SUM($E90:K90) -> 186
A91: 45 | B91: 132193000401 | C91: =IFERROR(VLOOKUP($B91,'Liste des adhérents'!$B$2:$D$2000,2,FALSE),"") ->  | D91: =IFERROR(VLOOKUP($B91,'Liste des adhérents'!$B$2:$D$2000,3,FALSE),"") ->  | E91: 41 | F91: 37 | I91: 33 | J91: 37 | K91: 37 | L91: =SUM($E91:K91) -> 185
A92: 54 | B92: 131376017701 | C92: =IFERROR(VLOOKUP($B92,'Liste des adhérents'!$B$2:$D$2000,2,FALSE),"") -> PHOCAL | D92: =IFERROR(VLOOKUP($B92,'Liste des adhérents'!$B$2:$D$2000,3,FALSE),"") -> Prénom&Nom750 | E92: 51 | G92: 48 | H92: 18 | J92: 18 | K92: 47 | L92: =SUM($E92:K92) -> 182
A93: 106 | B93: 130925008401 | C93: =IFERROR(VLOOKUP($B93,'Liste des adhérents'!$B$2:$D$2000,2,FALSE),"") -> A.S.L.P.S. Photo Fos-sur-Mer | D93: =IFERROR(VLOOKUP($B93,'Liste des adhérents'!$B$2:$D$2000,3,FALSE),"") -> Prénom&Nom337 | E93: 51 | F93: 39 | G93: 40 | I93: 51 | L93: =SUM($E93:K93) -> 181
A94: 258 | B94: 132084003601 | C94: =IFERROR(VLOOKUP($B94,'Liste des adhérents'!$B$2:$D$2000,2,FALSE),"") -> Azur Photo Passion | D94: =IFERROR(VLOOKUP($B94,'Liste des adhérents'!$B$2:$D$2000,3,FALSE),"") -> Prénom&Nom1758 | F94: 33 | H94: 55 | I94: 35 | J94: 55 | L94: =SUM($E94:K94) -> 178
A95: 211 | B95: 131683007601 | C95: =IFERROR(VLOOKUP($B95,'Liste des adhérents'!$B$2:$D$2000,2,FALSE),"") ->  | D95: =IFERROR(VLOOKUP($B95,'Liste des adhérents'!$B$2:$D$2000,3,FALSE),"") ->  | F95: 42 | G95: 31 | H95: 42 | I95: 32 | K95: 29 | L95: =SUM($E95:K95) -> 176
A96: 251 | B96: 132060000401 | C96: =IFERROR(VLOOKUP($B96,'Liste des adhérents'!$B$2:$D$2000,2,FALSE),"") -> Image Club Gardéen | D96: =IFERROR(VLOOKUP($B96,'Liste des adhérents'!$B$2:$D$2000,3,FALSE),"") -> Prénom&Nom1703 | E96: 18 | G96: 43 | H96: 36 | I96: 40 | K96: 39 | L96: =SUM($E96:K96) -> 176
A97: 93 | B97: 130987001601 | C97: =IFERROR(VLOOKUP($B97,'Liste des adhérents'!$B$2:$D$2000,2,FALSE),"") -> Cl. Phot'Azur Six Fours Plages | D97: =IFERROR(VLOOKUP($B97,'Liste des adhérents'!$B$2:$D$2000,3,FALSE),"") -> Prénom&Nom363 | E97: 35 | F97: 36 | G97: 35 | H97: 32 | I97: 37 | L97: =SUM($E97:K97) -> 175
A98: 164 | B98: 131353006201 | C98: =IFERROR(VLOOKUP($B98,'Liste des adhérents'!$B$2:$D$2000,2,FALSE),"") -> Photo Club de La Crau | D98: =IFERROR(VLOOKUP($B98,'Liste des adhérents'!$B$2:$D$2000,3,FALSE),"") -> Prénom&Nom682 | F98: 31 | G98: 39 | H98: 35 | I98: 37 | K98: 31 | L98: =SUM($E98:K98) -> 173
A99: 196 | B99: 130462001101 | C99: =IFERROR(VLOOKUP($B99,'Liste des adhérents'!$B$2:$D$2000,2,FALSE),"") -> Eurocopter Image 2000 | D99: =IFERROR(VLOOKUP($B99,'Liste des adhérents'!$B$2:$D$2000,3,FALSE),"") -> Prénom&Nom81 | G99: 38 | H99: 45 | I99: 43 | J99: 45 | L99: =SUM($E99:K99) -> 171
A100: 91 | B100: 130925009901 | C100: =IFERROR(VLOOKUP($B100,'Liste des adhérents'!$B$2:$D$2000,2,FALSE),"") -> A.S.L.P.S. Photo Fos-sur-Mer | D100: =IFERROR(VLOOKUP($B100,'Liste des adhérents'!$B$2:$D$2000,3,FALSE),"") -> Prénom&Nom352 | E100: 30 | F100: 38 | G100: 34 | H100: 32 | I100: 37 | L100: =SUM($E100:K100) -> 171
A101: 181 | B101: 131683008101 | C101: =IFERROR(VLOOKUP($B101,'Liste des adhérents'!$B$2:$D$2000,2,FALSE),"") -> Marius St Mitre Les Remparts | D101: =IFERROR(VLOOKUP($B101,'Liste des adhérents'!$B$2:$D$2000,3,FALSE),"") -> Prénom&Nom1095 | G101: 37 | I101: 43 | J101: 43 | K101: 48 | L101: =SUM($E101:K101) -> 171
A102: 264 | B102: 131956000201 | C102: =IFERROR(VLOOKUP($B102,'Liste des adhérents'!$B$2:$D$2000,2,FALSE),"") -> Photo Contact Puyricard | D102: =IFERROR(VLOOKUP($B102,'Liste des adhérents'!$B$2:$D$2000,3,FALSE),"") -> Prénom&Nom1480 | F102: 47 | G102: 44 | H102: 41 | I102: 39 | L102: =SUM($E102:K102) -> 171
A103: 104 | B103: 130527013301 | C103: =IFERROR(VLOOKUP($B103,'Liste des adhérents'!$B$2:$D$2000,2,FALSE),"") -> Photo Club de Martigues | D103: =IFERROR(VLOOKUP($B103,'Liste des adhérents'!$B$2:$D$2000,3,FALSE),"") -> Prénom&Nom201 | E103: 47 | F103: 39 | G103: 40 | H103: 44 | L103: =SUM($E103:K103) -> 170
A104: 126 | B104: 131956002901 | C104: =IFERROR(VLOOKUP($B104,'Liste des adhérents'!$B$2:$D$2000,2,FALSE),"") -> Photo Contact Puyricard | D104: =IFERROR(VLOOKUP($B104,'Liste des adhérents'!$B$2:$D$2000,3,FALSE),"") -> Prénom&Nom1507 | E104: 43 | G104: 40 | H104: 28 | I104: 28 | J104: 28 | L104: =SUM($E104:K104) -> 167
A105: 256 | B105: 132084003501 | C105: =IFERROR(VLOOKUP($B105,'Liste des adhérents'!$B$2:$D$2000,2,FALSE),"") ->  | D105: =IFERROR(VLOOKUP($B105,'Liste des adhérents'!$B$2:$D$2000,3,FALSE),"") ->  | F105: 43 | H105: 40 | I105: 38 | J105: 43 | L105: =SUM($E105:K105) -> 164
A106: 133 | B106: 132103002301 | C106: =IFERROR(VLOOKUP($B106,'Liste des adhérents'!$B$2:$D$2000,2,FALSE),"") ->  | D106: =IFERROR(VLOOKUP($B106,'Liste des adhérents'!$B$2:$D$2000,3,FALSE),"") ->  | E106: 46 | F106: 43 | G106: 43 | K106: 31 | L106: =SUM($E106:K106) -> 163
A107: 151 | B107: 132193001201 | C107: =IFERROR(VLOOKUP($B107,'Liste des adhérents'!$B$2:$D$2000,2,FALSE),"") ->  | D107: =IFERROR(VLOOKUP($B107,'Liste des adhérents'!$B$2:$D$2000,3,FALSE),"") ->  | F107: 34 | H107: 37 | I107: 37 | J107: 37 | K107: 18 | L107: =SUM($E107:K107) -> 163
A108: 79 | B108: 131499010401 | C108: =IFERROR(VLOOKUP($B108,'Liste des adhérents'!$B$2:$D$2000,2,FALSE),"") ->  | D108: =IFERROR(VLOOKUP($B108,'Liste des adhérents'!$B$2:$D$2000,3,FALSE),"") ->  | E108: 37 | G108: 43 | H108: 41 | I108: 41 | L108: =SUM($E108:K108) -> 162
A109: 62 | B109: 130878015201 | C109: =IFERROR(VLOOKUP($B109,'Liste des adhérents'!$B$2:$D$2000,2,FALSE),"") -> PC Antoine Santoru-Port de Bouc | D109: =IFERROR(VLOOKUP($B109,'Liste des adhérents'!$B$2:$D$2000,3,FALSE),"") -> Prénom&Nom279 | E109: 43 | H109: 18 | I109: 42 | J109: 18 | K109: 39 | L109: =SUM($E109:K109) -> 160
A110: 3 | B110: 131619004601 | C110: =IFERROR(VLOOKUP($B110,'Liste des adhérents'!$B$2:$D$2000,2,FALSE),"") -> Optique Diaporama Marseille | D110: =IFERROR(VLOOKUP($B110,'Liste des adhérents'!$B$2:$D$2000,3,FALSE),"") -> Prénom&Nom1034 | E110: 35 | G110: 39 | I110: 43 | K110: 43 | L110: =SUM($E110:K110) -> 160
A111: 124 | B111: 132060000901 | C111: =IFERROR(VLOOKUP($B111,'Liste des adhérents'!$B$2:$D$2000,2,FALSE),"") -> Image Club Gardéen | D111: =IFERROR(VLOOKUP($B111,'Liste des adhérents'!$B$2:$D$2000,3,FALSE),"") -> Prénom&Nom1708 | E111: 35 | F111: 28 | H111: 38 | I111: 30 | K111: 29 | L111: =SUM($E111:K111) -> 160
A112: 10 | B112: 131845004101 | C112: =IFERROR(VLOOKUP($B112,'Liste des adhérents'!$B$2:$D$2000,2,FALSE),"") ->  | D112: =IFERROR(VLOOKUP($B112,'Liste des adhérents'!$B$2:$D$2000,3,FALSE),"") ->  | E112: 29 | F112: 34 | G112: 34 | H112: 26 | I112: 36 | L112: =SUM($E112:K112) -> 159
A113: 11 | B113: 132060000101 | C113: =IFERROR(VLOOKUP($B113,'Liste des adhérents'!$B$2:$D$2000,2,FALSE),"") -> Image Club Gardéen | D113: =IFERROR(VLOOKUP($B113,'Liste des adhérents'!$B$2:$D$2000,3,FALSE),"") -> Prénom&Nom1699 | E113: 29 | G113: 33 | I113: 34 | J113: 34 | K113: 29 | L113: =SUM($E113:K113) -> 159
A114: 83 | B114: 131376011801 | C114: =IFERROR(VLOOKUP($B114,'Liste des adhérents'!$B$2:$D$2000,2,FALSE),"") -> PHOCAL | D114: =IFERROR(VLOOKUP($B114,'Liste des adhérents'!$B$2:$D$2000,3,FALSE),"") -> Prénom&Nom708 | E114: 48 | H114: 18 | I114: 46 | J114: 46 | L114: =SUM($E114:K114) -> 158
A115: 14 | B115: 131683000701 | C115: =IFERROR(VLOOKUP($B115,'Liste des adhérents'!$B$2:$D$2000,2,FALSE),"") -> Marius St Mitre Les Remparts | D115: =IFERROR(VLOOKUP($B115,'Liste des adhérents'!$B$2:$D$2000,3,FALSE),"") -> Prénom&Nom1039 | E115: 32 | F115: 30 | G115: 48 | J115: 48 | L115: =SUM($E115:K115) -> 158
A116: 64 | B116: 131824003101 | C116: =IFERROR(VLOOKUP($B116,'Liste des adhérents'!$B$2:$D$2000,2,FALSE),"") ->  | D116: =IFERROR(VLOOKUP($B116,'Liste des adhérents'!$B$2:$D$2000,3,FALSE),"") ->  | E116: 42 | F116: 33 | G116: 41 | J116: 42 | L116: =SUM($E116:K116) -> 158
A117: 59 | B117: 131845002101 | C117: =IFERROR(VLOOKUP($B117,'Liste des adhérents'!$B$2:$D$2000,2,FALSE),"") -> Photo Club Carqueirannais | D117: =IFERROR(VLOOKUP($B117,'Liste des adhérents'!$B$2:$D$2000,3,FALSE),"") -> Prénom&Nom1245 | E117: 38 | F117: 34 | G117: 42 | I117: 44 | L117: =SUM($E117:K117) -> 158
A118: 263 | B118: 130987002301 | C118: =IFERROR(VLOOKUP($B118,'Liste des adhérents'!$B$2:$D$2000,2,FALSE),"") -> Cl. Phot'Azur Six Fours Plages | D118: =IFERROR(VLOOKUP($B118,'Liste des adhérents'!$B$2:$D$2000,3,FALSE),"") -> Prénom&Nom364 | F118: 44 | G118: 40 | H118: 39 | I118: 34 | L118: =SUM($E118:K118) -> 157
A119: 9 | B119: 130987014001 | C119: =IFERROR(VLOOKUP($B119,'Liste des adhérents'!$B$2:$D$2000,2,FALSE),"") -> Cl. Phot'Azur Six Fours Plages | D119: =IFERROR(VLOOKUP($B119,'Liste des adhérents'!$B$2:$D$2000,3,FALSE),"") -> Prénom&Nom408 | E119: 48 | F119: 37 | G119: 23 | J119: 48 | L119: =SUM($E119:K119) -> 156
A120: 257 | B120: 131353007301 | C120: =IFERROR(VLOOKUP($B120,'Liste des adhérents'!$B$2:$D$2000,2,FALSE),"") ->  | D120: =IFERROR(VLOOKUP($B120,'Liste des adhérents'!$B$2:$D$2000,3,FALSE),"") ->  | F120: 40 | G120: 38 | I120: 38 | J120: 40 | L120: =SUM($E120:K120) -> 156
A121: 112 | B121: 131956003401 | C121: =IFERROR(VLOOKUP($B121,'Liste des adhérents'!$B$2:$D$2000,2,FALSE),"") -> Photo Contact Puyricard | D121: =IFERROR(VLOOKUP($B121,'Liste des adhérents'!$B$2:$D$2000,3,FALSE),"") -> Prénom&Nom1512 | E121: 37 | F121: 24 | G121: 34 | I121: 33 | J121: 24 | L121: =SUM($E121:K121) -> 152
A122: 268 | B122: 131823006401 | C122: =IFERROR(VLOOKUP($B122,'Liste des adhérents'!$B$2:$D$2000,2,FALSE),"") -> Photo Club Mouansois | D122: =IFERROR(VLOOKUP($B122,'Liste des adhérents'!$B$2:$D$2000,3,FALSE),"") -> Prénom&Nom1193 | F122: 38 | G122: 39 | H122: 37 | I122: 37 | L122: =SUM($E122:K122) -> 151
A123: 174 | B123: 131823007601 | C123: =IFERROR(VLOOKUP($B123,'Liste des adhérents'!$B$2:$D$2000,2,FALSE),"") ->  | D123: =IFERROR(VLOOKUP($B123,'Liste des adhérents'!$B$2:$D$2000,3,FALSE),"") ->  | E123: 33 | G123: 40 | I123: 30 | K123: 43 | L123: =SUM($E123:K123) -> 146
A124: 186 | B124: 132147000101 | C124: =IFERROR(VLOOKUP($B124,'Liste des adhérents'!$B$2:$D$2000,2,FALSE),"") ->  | D124: =IFERROR(VLOOKUP($B124,'Liste des adhérents'!$B$2:$D$2000,3,FALSE),"") ->  | H124: 38 | I124: 36 | J124: 36 | K124: 35 | L124: =SUM($E124:K124) -> 145
A125: 78 | B125: 132084000301 | C125: =IFERROR(VLOOKUP($B125,'Liste des adhérents'!$B$2:$D$2000,2,FALSE),"") -> Azur Photo Passion | D125: =IFERROR(VLOOKUP($B125,'Liste des adhérents'!$B$2:$D$2000,3,FALSE),"") -> Prénom&Nom1728 | F125: 39 | G125: 40 | H125: 24 | J125: 39 | L125: =SUM($E125:K125) -> 142
A126: 108 | B126: 132193000501 | C126: =IFERROR(VLOOKUP($B126,'Liste des adhérents'!$B$2:$D$2000,2,FALSE),"") ->  | D126: =IFERROR(VLOOKUP($B126,'Liste des adhérents'!$B$2:$D$2000,3,FALSE),"") ->  | F126: 25 | H126: 21 | I126: 41 | J126: 25 | K126: 30 | L126: =SUM($E126:K126) -> 142
A127: 2 | B127: 131845000801 | C127: =IFERROR(VLOOKUP($B127,'Liste des adhérents'!$B$2:$D$2000,2,FALSE),"") -> Photo Club Carqueirannais | D127: =IFERROR(VLOOKUP($B127,'Liste des adhérents'!$B$2:$D$2000,3,FALSE),"") -> Prénom&Nom1232 | E127: 36 | I127: 34 | J127: 36 | K127: 34 | L127: =SUM($E127:K127) -> 140
A128: 166 | B128: 132086002501 | C128: =IFERROR(VLOOKUP($B128,'Liste des adhérents'!$B$2:$D$2000,2,FALSE),"") ->  | D128: =IFERROR(VLOOKUP($B128,'Liste des adhérents'!$B$2:$D$2000,3,FALSE),"") ->  | E128: 38 | F128: 32 | G128: 38 | J128: 32 | L128: =SUM($E128:K128) -> 140
A129: 98 | B129: 130925008601 | C129: =IFERROR(VLOOKUP($B129,'Liste des adhérents'!$B$2:$D$2000,2,FALSE),"") -> A.S.L.P.S. Photo Fos-sur-Mer | D129: =IFERROR(VLOOKUP($B129,'Liste des adhérents'!$B$2:$D$2000,3,FALSE),"") -> Prénom&Nom339 | E129: 33 | F129: 36 | G129: 34 | J129: 36 | L129: =SUM($E129:K129) -> 139
A130: 6 | B130: 131845002501 | C130: =IFERROR(VLOOKUP($B130,'Liste des adhérents'!$B$2:$D$2000,2,FALSE),"") -> Photo Club Carqueirannais | D130: =IFERROR(VLOOKUP($B130,'Liste des adhérents'!$B$2:$D$2000,3,FALSE),"") -> Prénom&Nom1249 | E130: 30 | F130: 41 | G130: 32 | K130: 36 | L130: =SUM($E130:K130) -> 139
A131: 87 | B131: 131499009301 | C131: =IFERROR(VLOOKUP($B131,'Liste des adhérents'!$B$2:$D$2000,2,FALSE),"") ->  | D131: =IFERROR(VLOOKUP($B131,'Liste des adhérents'!$B$2:$D$2000,3,FALSE),"") ->  | E131: 29 | G131: 35 | J131: 35 | K131: 39 | L131: =SUM($E131:K131) -> 138
A132: 29 | B132: 131823005701 | C132: =IFERROR(VLOOKUP($B132,'Liste des adhérents'!$B$2:$D$2000,2,FALSE),"") -> Photo Club Mouansois | D132: =IFERROR(VLOOKUP($B132,'Liste des adhérents'!$B$2:$D$2000,3,FALSE),"") -> Prénom&Nom1186 | E132: 36 | F132: 28 | G132: 37 | K132: 37 | L132: =SUM($E132:K132) -> 138
A133: 142 | B133: 131353007101 | C133: =IFERROR(VLOOKUP($B133,'Liste des adhérents'!$B$2:$D$2000,2,FALSE),"") ->  | D133: =IFERROR(VLOOKUP($B133,'Liste des adhérents'!$B$2:$D$2000,3,FALSE),"") ->  | E133: 37 | F133: 30 | G133: 33 | I133: 37 | L133: =SUM($E133:K133) -> 137
A134: 49 | B134: 132086002601 | C134: =IFERROR(VLOOKUP($B134,'Liste des adhérents'!$B$2:$D$2000,2,FALSE),"") ->  | D134: =IFERROR(VLOOKUP($B134,'Liste des adhérents'!$B$2:$D$2000,3,FALSE),"") ->  | E134: 32 | F134: 26 | H134: 39 | I134: 40 | L134: =SUM($E134:K134) -> 137
A135: 259 | B135: 130878013601 | C135: =IFERROR(VLOOKUP($B135,'Liste des adhérents'!$B$2:$D$2000,2,FALSE),"") -> PC Antoine Santoru-Port de Bouc | D135: =IFERROR(VLOOKUP($B135,'Liste des adhérents'!$B$2:$D$2000,3,FALSE),"") -> Prénom&Nom263 | F135: 34 | I135: 34 | J135: 34 | K135: 33 | L135: =SUM($E135:K135) -> 135
A136: 169 | B136: 131862000801 | C136: =IFERROR(VLOOKUP($B136,'Liste des adhérents'!$B$2:$D$2000,2,FALSE),"") -> Déclic et des Claps - Roquefort les Pins | D136: =IFERROR(VLOOKUP($B136,'Liste des adhérents'!$B$2:$D$2000,3,FALSE),"") -> Prénom&Nom1346 | E136: 51 | F136: 24 | G136: 36 | J136: 24 | L136: =SUM($E136:K136) -> 135
A137: 31 | B137: 132089000101 | C137: =IFERROR(VLOOKUP($B137,'Liste des adhérents'!$B$2:$D$2000,2,FALSE),"") -> La Farledo Objectif Club | D137: =IFERROR(VLOOKUP($B137,'Liste des adhérents'!$B$2:$D$2000,3,FALSE),"") -> Prénom&Nom1775 | E137: 36 | F137: 29 | I137: 36 | K137: 34 | L137: =SUM($E137:K137) -> 135
A138: 30 | B138: 132060002201 | C138: =IFERROR(VLOOKUP($B138,'Liste des adhérents'!$B$2:$D$2000,2,FALSE),"") ->  | D138: =IFERROR(VLOOKUP($B138,'Liste des adhérents'!$B$2:$D$2000,3,FALSE),"") ->  | E138: 41 | F138: 29 | G138: 36 | K138: 27 | L138: =SUM($E138:K138) -> 133
A139: 179 | B139: 132103000101 | C139: =IFERROR(VLOOKUP($B139,'Liste des adhérents'!$B$2:$D$2000,2,FALSE),"") -> Club Photo St Laurent du Var | D139: =IFERROR(VLOOKUP($B139,'Liste des adhérents'!$B$2:$D$2000,3,FALSE),"") -> Prénom&Nom1786 | F139: 23 | G139: 55 | J139: 55 | L139: =SUM($E139:K139) -> 133
A140: 66 | B140: 132023000101 | C140: =IFERROR(VLOOKUP($B140,'Liste des adhérents'!$B$2:$D$2000,2,FALSE),"") -> Club Art Déclic de l' Argens | D140: =IFERROR(VLOOKUP($B140,'Liste des adhérents'!$B$2:$D$2000,3,FALSE),"") -> Prénom&Nom1654 | F140: 18 | G140: 38 | I140: 36 | J140: 38 | L140: =SUM($E140:K140) -> 130
A141: 63 | B141: 132089000201 | C141: =IFERROR(VLOOKUP($B141,'Liste des adhérents'!$B$2:$D$2000,2,FALSE),"") -> La Farledo Objectif Club | D141: =IFERROR(VLOOKUP($B141,'Liste des adhérents'!$B$2:$D$2000,3,FALSE),"") -> Prénom&Nom1777 | E141: 24 | F141: 31 | G141: 43 | J141: 31 | L141: =SUM($E141:K141) -> 129
A142: 34 | B142: 132060000801 | C142: =IFERROR(VLOOKUP($B142,'Liste des adhérents'!$B$2:$D$2000,2,FALSE),"") -> Image Club Gardéen | D142: =IFERROR(VLOOKUP($B142,'Liste des adhérents'!$B$2:$D$2000,3,FALSE),"") -> Prénom&Nom1707 | E142: 30 | F142: 32 | G142: 33 | H142: 33 | L142: =SUM($E142:K142) -> 128
A143: 159 | B143: 131376017601 | C143: =IFERROR(VLOOKUP($B143,'Liste des adhérents'!$B$2:$D$2000,2,FALSE),"") -> PHOCAL | D143: =IFERROR(VLOOKUP($B143,'Liste des adhérents'!$B$2:$D$2000,3,FALSE),"") -> Prénom&Nom749 | E143: 32 | F143: 24 | H143: 35 | J143: 35 | L143: =SUM($E143:K143) -> 126
A144: 160 | B144: 130987012601 | C144: =IFERROR(VLOOKUP($B144,'Liste des adhérents'!$B$2:$D$2000,2,FALSE),"") -> Cl. Phot'Azur Six Fours Plages | D144: =IFERROR(VLOOKUP($B144,'Liste des adhérents'!$B$2:$D$2000,3,FALSE),"") -> Prénom&Nom394 | F144: 41 | G144: 42 | J144: 42 | L144: =SUM($E144:K144) -> 125
A145: 278 | B145: 132203000701 | C145: =IFERROR(VLOOKUP($B145,'Liste des adhérents'!$B$2:$D$2000,2,FALSE),"") ->  | D145: =IFERROR(VLOOKUP($B145,'Liste des adhérents'!$B$2:$D$2000,3,FALSE),"") ->  | G145: 40 | H145: 45 | I145: 40 | L145: =SUM($E145:K145) -> 125
A146: 191 | B146: 131619005001 | C146: =IFERROR(VLOOKUP($B146,'Liste des adhérents'!$B$2:$D$2000,2,FALSE),"") ->  | D146: =IFERROR(VLOOKUP($B146,'Liste des adhérents'!$B$2:$D$2000,3,FALSE),"") ->  | F146: 39 | I146: 45 | J146: 39 | L146: =SUM($E146:K146) -> 123
A147: 25 | B147: 131845003401 | C147: =IFERROR(VLOOKUP($B147,'Liste des adhérents'!$B$2:$D$2000,2,FALSE),"") -> Photo Club Carqueirannais | D147: =IFERROR(VLOOKUP($B147,'Liste des adhérents'!$B$2:$D$2000,3,FALSE),"") -> Prénom&Nom1258 | E147: 28 | F147: 27 | I147: 40 | J147: 28 | L147: =SUM($E147:K147) -> 123
A148: 206 | B148: 130993012301 | C148: =IFERROR(VLOOKUP($B148,'Liste des adhérents'!$B$2:$D$2000,2,FALSE),"") -> P.C. La Garde - Marseille | D148: =IFERROR(VLOOKUP($B148,'Liste des adhérents'!$B$2:$D$2000,3,FALSE),"") -> Prénom&Nom560 | H148: 40 | I148: 41 | J148: 41 | L148: =SUM($E148:K148) -> 122
A149: 204 | B149: 131499008601 | C149: =IFERROR(VLOOKUP($B149,'Liste des adhérents'!$B$2:$D$2000,2,FALSE),"") ->  | D149: =IFERROR(VLOOKUP($B149,'Liste des adhérents'!$B$2:$D$2000,3,FALSE),"") ->  | G149: 40 | I149: 41 | J149: 40 | L149: =SUM($E149:K149) -> 121
A150: 173 | B150: 131353007401 | C150: =IFERROR(VLOOKUP($B150,'Liste des adhérents'!$B$2:$D$2000,2,FALSE),"") ->  | D150: =IFERROR(VLOOKUP($B150,'Liste des adhérents'!$B$2:$D$2000,3,FALSE),"") ->  | F150: 38 | G150: 40 | I150: 41 | L150: =SUM($E150:K150) -> 119
A151: 147 | B151: 130527009201 | C151: =IFERROR(VLOOKUP($B151,'Liste des adhérents'!$B$2:$D$2000,2,FALSE),"") -> Photo Club de Martigues | D151: =IFERROR(VLOOKUP($B151,'Liste des adhérents'!$B$2:$D$2000,3,FALSE),"") -> Prénom&Nom163 | F151: 35 | H151: 40 | J151: 40 | L151: =SUM($E151:K151) -> 115
A152: 137 | B152: 130987028201 | C152: =IFERROR(VLOOKUP($B152,'Liste des adhérents'!$B$2:$D$2000,2,FALSE),"") ->  | D152: =IFERROR(VLOOKUP($B152,'Liste des adhérents'!$B$2:$D$2000,3,FALSE),"") ->  | E152: 42 | H152: 31 | J152: 42 | L152: =SUM($E152:K152) -> 115
A153: 1 | B153: 131862001001 | C153: =IFERROR(VLOOKUP($B153,'Liste des adhérents'!$B$2:$D$2000,2,FALSE),"") -> Déclic et des Claps - Roquefort les Pins | D153: =IFERROR(VLOOKUP($B153,'Liste des adhérents'!$B$2:$D$2000,3,FALSE),"") -> Prénom&Nom1348 | F153: 39 | G153: 36 | J153: 39 | L153: =SUM($E153:K153) -> 114
A154: 68 | B154: 131956005901 | C154: =IFERROR(VLOOKUP($B154,'Liste des adhérents'!$B$2:$D$2000,2,FALSE),"") ->  | D154: =IFERROR(VLOOKUP($B154,'Liste des adhérents'!$B$2:$D$2000,3,FALSE),"") ->  | E154: 43 | H154: 33 | I154: 37 | L154: =SUM($E154:K154) -> 113
A155: 43 | B155: 130925008701 | C155: =IFERROR(VLOOKUP($B155,'Liste des adhérents'!$B$2:$D$2000,2,FALSE),"") -> A.S.L.P.S. Photo Fos-sur-Mer | D155: =IFERROR(VLOOKUP($B155,'Liste des adhérents'!$B$2:$D$2000,3,FALSE),"") -> Prénom&Nom340 | F155: 34 | G155: 39 | H155: 37 | L155: =SUM($E155:K155) -> 110
A156: 149 | B156: 131823008701 | C156: =IFERROR(VLOOKUP($B156,'Liste des adhérents'!$B$2:$D$2000,2,FALSE),"") ->  | D156: =IFERROR(VLOOKUP($B156,'Liste des adhérents'!$B$2:$D$2000,3,FALSE),"") ->  | F156: 41 | G156: 28 | J156: 41 | L156: =SUM($E156:K156) -> 110
A157: 185 | B157: 130987025001 | C157: =IFERROR(VLOOKUP($B157,'Liste des adhérents'!$B$2:$D$2000,2,FALSE),"") ->  | D157: =IFERROR(VLOOKUP($B157,'Liste des adhérents'!$B$2:$D$2000,3,FALSE),"") ->  | F157: 39 | H157: 30 | I157: 40 | L157: =SUM($E157:K157) -> 109
A158: 192 | B158: 130987026701 | C158: =IFERROR(VLOOKUP($B158,'Liste des adhérents'!$B$2:$D$2000,2,FALSE),"") ->  | D158: =IFERROR(VLOOKUP($B158,'Liste des adhérents'!$B$2:$D$2000,3,FALSE),"") ->  | G158: 32 | H158: 37 | I158: 40 | L158: =SUM($E158:K158) -> 109
A159: 5 | B159: 131494002301 | C159: =IFERROR(VLOOKUP($B159,'Liste des adhérents'!$B$2:$D$2000,2,FALSE),"") -> Photo-Club du Brianconnais | D159: =IFERROR(VLOOKUP($B159,'Liste des adhérents'!$B$2:$D$2000,3,FALSE),"") -> Prénom&Nom864 | F159: 35 | G159: 32 | I159: 42 | L159: =SUM($E159:K159) -> 109
A160: 276 | B160: 131956006501 | C160: =IFERROR(VLOOKUP($B160,'Liste des adhérents'!$B$2:$D$2000,2,FALSE),"") ->  | D160: =IFERROR(VLOOKUP($B160,'Liste des adhérents'!$B$2:$D$2000,3,FALSE),"") ->  | G160: 34 | H160: 39 | I160: 36 | L160: =SUM($E160:K160) -> 109
A161: 157 | B161: 131956006201 | C161: =IFERROR(VLOOKUP($B161,'Liste des adhérents'!$B$2:$D$2000,2,FALSE),"") ->  | D161: =IFERROR(VLOOKUP($B161,'Liste des adhérents'!$B$2:$D$2000,3,FALSE),"") ->  | F161: 25 | G161: 39 | K161: 44 | L161: =SUM($E161:K161) -> 108
A162: 109 | B162: 130527011601 | C162: =IFERROR(VLOOKUP($B162,'Liste des adhérents'!$B$2:$D$2000,2,FALSE),"") -> Photo Club de Martigues | D162: =IFERROR(VLOOKUP($B162,'Liste des adhérents'!$B$2:$D$2000,3,FALSE),"") -> Prénom&Nom184 | E162: 39 | G162: 37 | K162: 31 | L162: =SUM($E162:K162) -> 107
A163: 270 | B163: 131494003201 | C163: =IFERROR(VLOOKUP($B163,'Liste des adhérents'!$B$2:$D$2000,2,FALSE),"") -> Photo-Club du Brianconnais | D163: =IFERROR(VLOOKUP($B163,'Liste des adhérents'!$B$2:$D$2000,3,FALSE),"") -> Prénom&Nom869 | G163: 39 | H163: 29 | J163: 39 | L163: =SUM($E163:K163) -> 107
A164: 167 | B164: 130987016601 | C164: =IFERROR(VLOOKUP($B164,'Liste des adhérents'!$B$2:$D$2000,2,FALSE),"") -> Cl. Phot'Azur Six Fours Plages | D164: =IFERROR(VLOOKUP($B164,'Liste des adhérents'!$B$2:$D$2000,3,FALSE),"") -> Prénom&Nom434 | H164: 38 | I164: 30 | J164: 38 | L164: =SUM($E164:K164) -> 106
A165: 208 | B165: 131879001101 | C165: =IFERROR(VLOOKUP($B165,'Liste des adhérents'!$B$2:$D$2000,2,FALSE),"") -> Association Sportive Berroise | D165: =IFERROR(VLOOKUP($B165,'Liste des adhérents'!$B$2:$D$2000,3,FALSE),"") -> Prénom&Nom1422 | H165: 29 | I165: 38 | J165: 38 | L165: =SUM($E165:K165) -> 105
A166: 136 | B166: 130993015101 | C166: =IFERROR(VLOOKUP($B166,'Liste des adhérents'!$B$2:$D$2000,2,FALSE),"") -> P.C. La Garde - Marseille | D166: =IFERROR(VLOOKUP($B166,'Liste des adhérents'!$B$2:$D$2000,3,FALSE),"") -> Prénom&Nom588 | E166: 18 | H166: 43 | J166: 43 | L166: =SUM($E166:K166) -> 104
A167: 85 | B167: 130993015401 | C167: =IFERROR(VLOOKUP($B167,'Liste des adhérents'!$B$2:$D$2000,2,FALSE),"") ->  | D167: =IFERROR(VLOOKUP($B167,'Liste des adhérents'!$B$2:$D$2000,3,FALSE),"") ->  | E167: 42 | I167: 31 | J167: 31 | L167: =SUM($E167:K167) -> 104
A168: 92 | B168: 131499010101 | C168: =IFERROR(VLOOKUP($B168,'Liste des adhérents'!$B$2:$D$2000,2,FALSE),"") ->  | D168: =IFERROR(VLOOKUP($B168,'Liste des adhérents'!$B$2:$D$2000,3,FALSE),"") ->  | E168: 37 | H168: 31 | I168: 34 | L168: =SUM($E168:K168) -> 102
A169: 130 | B169: 131956005101 | C169: =IFERROR(VLOOKUP($B169,'Liste des adhérents'!$B$2:$D$2000,2,FALSE),"") ->  | D169: =IFERROR(VLOOKUP($B169,'Liste des adhérents'!$B$2:$D$2000,3,FALSE),"") ->  | E169: 34 | F169: 34 | J169: 34 | L169: =SUM($E169:K169) -> 102
A170: 84 | B170: 131862005801 | C170: =IFERROR(VLOOKUP($B170,'Liste des adhérents'!$B$2:$D$2000,2,FALSE),"") -> Déclic et des Claps - Roquefort les Pins | D170: =IFERROR(VLOOKUP($B170,'Liste des adhérents'!$B$2:$D$2000,3,FALSE),"") -> Prénom&Nom1391 | F170: 34 | G170: 33 | J170: 34 | L170: =SUM($E170:K170) -> 101
A171: 121 | B171: 131862001101 | C171: =IFERROR(VLOOKUP($B171,'Liste des adhérents'!$B$2:$D$2000,2,FALSE),"") -> Déclic et des Claps - Roquefort les Pins | D171: =IFERROR(VLOOKUP($B171,'Liste des adhérents'!$B$2:$D$2000,3,FALSE),"") -> Prénom&Nom1349 | E171: 29 | F171: 30 | G171: 41 | L171: =SUM($E171:K171) -> 100
A172: 172 | B172: 130878015801 | C172: =IFERROR(VLOOKUP($B172,'Liste des adhérents'!$B$2:$D$2000,2,FALSE),"") -> PC Antoine Santoru-Port de Bouc | D172: =IFERROR(VLOOKUP($B172,'Liste des adhérents'!$B$2:$D$2000,3,FALSE),"") -> Prénom&Nom285 | I172: 49 | J172: 49 | L172: =SUM($E172:K172) -> 98
A173: 120 | B173: 132060002401 | C173: =IFERROR(VLOOKUP($B173,'Liste des adhérents'!$B$2:$D$2000,2,FALSE),"") ->  | D173: =IFERROR(VLOOKUP($B173,'Liste des adhérents'!$B$2:$D$2000,3,FALSE),"") ->  | E173: 35 | F173: 31 | G173: 32 | L173: =SUM($E173:K173) -> 98
A174: 117 | B174: 131823004201 | C174: =IFERROR(VLOOKUP($B174,'Liste des adhérents'!$B$2:$D$2000,2,FALSE),"") -> Photo Club Mouansois | D174: =IFERROR(VLOOKUP($B174,'Liste des adhérents'!$B$2:$D$2000,3,FALSE),"") -> Prénom&Nom1171 | G174: 34 | H174: 29 | I174: 34 | L174: =SUM($E174:K174) -> 97
A175: 279 | B175: 130993013301 | C175: =IFERROR(VLOOKUP($B175,'Liste des adhérents'!$B$2:$D$2000,2,FALSE),"") -> P.C. La Garde - Marseille | D175: =IFERROR(VLOOKUP($B175,'Liste des adhérents'!$B$2:$D$2000,3,FALSE),"") -> Prénom&Nom570 | H175: 47 | J175: 47 | L175: =SUM($E175:K175) -> 94
A176: 90 | B176: 131499011001 | C176: =IFERROR(VLOOKUP($B176,'Liste des adhérents'!$B$2:$D$2000,2,FALSE),"") -> Images Expressions - Cagnes sur Mer | D176: =IFERROR(VLOOKUP($B176,'Liste des adhérents'!$B$2:$D$2000,3,FALSE),"") -> Prénom&Nom957 | H176: 42 | I176: 51 | L176: =SUM($E176:K176) -> 93
A177: 266 | B177: 131683002601 | C177: =IFERROR(VLOOKUP($B177,'Liste des adhérents'!$B$2:$D$2000,2,FALSE),"") -> Marius St Mitre Les Remparts | D177: =IFERROR(VLOOKUP($B177,'Liste des adhérents'!$B$2:$D$2000,3,FALSE),"") -> Prénom&Nom1050 | F177: 37 | H177: 56 | L177: =SUM($E177:K177) -> 93
A178: 267 | B178: 131683006501 | C178: =IFERROR(VLOOKUP($B178,'Liste des adhérents'!$B$2:$D$2000,2,FALSE),"") -> Marius St Mitre Les Remparts | D178: =IFERROR(VLOOKUP($B178,'Liste des adhérents'!$B$2:$D$2000,3,FALSE),"") -> Prénom&Nom1088 | F178: 28 | G178: 34 | H178: 30 | L178: =SUM($E178:K178) -> 92
A179: 33 | B179: 131683006901 | C179: =IFERROR(VLOOKUP($B179,'Liste des adhérents'!$B$2:$D$2000,2,FALSE),"") -> Marius St Mitre Les Remparts | D179: =IFERROR(VLOOKUP($B179,'Liste des adhérents'!$B$2:$D$2000,3,FALSE),"") -> Prénom&Nom1092 | G179: 51 | I179: 41 | L179: =SUM($E179:K179) -> 92
A180: 203 | B180: 132023002201 | C180: =IFERROR(VLOOKUP($B180,'Liste des adhérents'!$B$2:$D$2000,2,FALSE),"") -> Club Art Déclic de l' Argens | D180: =IFERROR(VLOOKUP($B180,'Liste des adhérents'!$B$2:$D$2000,3,FALSE),"") -> Prénom&Nom1670 | H180: 49 | I180: 43 | L180: =SUM($E180:K180) -> 92
A181: 88 | B181: 132089000301 | C181: =IFERROR(VLOOKUP($B181,'Liste des adhérents'!$B$2:$D$2000,2,FALSE),"") -> La Farledo Objectif Club | D181: =IFERROR(VLOOKUP($B181,'Liste des adhérents'!$B$2:$D$2000,3,FALSE),"") -> Prénom&Nom1778 | E181: 31 | G181: 31 | H181: 30 | L181: =SUM($E181:K181) -> 92
A182: 103 | B182: 131956006001 | C182: =IFERROR(VLOOKUP($B182,'Liste des adhérents'!$B$2:$D$2000,2,FALSE),"") -> Photo Contact Puyricard | D182: =IFERROR(VLOOKUP($B182,'Liste des adhérents'!$B$2:$D$2000,3,FALSE),"") -> Prénom&Nom1523 | E182: 50 | K182: 39 | L182: =SUM($E182:K182) -> 89
A183: 271 | B183: 132193000601 | C183: =IFERROR(VLOOKUP($B183,'Liste des adhérents'!$B$2:$D$2000,2,FALSE),"") ->  | D183: =IFERROR(VLOOKUP($B183,'Liste des adhérents'!$B$2:$D$2000,3,FALSE),"") ->  | G183: 44 | J183: 44 | L183: =SUM($E183:K183) -> 88
A184: 128 | B184: 130925010501 | C184: =IFERROR(VLOOKUP($B184,'Liste des adhérents'!$B$2:$D$2000,2,FALSE),"") ->  | D184: =IFERROR(VLOOKUP($B184,'Liste des adhérents'!$B$2:$D$2000,3,FALSE),"") ->  | G184: 46 | H184: 41 | L184: =SUM($E184:K184) -> 87
A185: 193 | B185: 131494002101 | C185: =IFERROR(VLOOKUP($B185,'Liste des adhérents'!$B$2:$D$2000,2,FALSE),"") -> Photo-Club du Brianconnais | D185: =IFERROR(VLOOKUP($B185,'Liste des adhérents'!$B$2:$D$2000,3,FALSE),"") -> Prénom&Nom862 | F185: 29 | H185: 25 | J185: 25 | L185: =SUM($E185:K185) -> 79
A186: 233 | B186: 130993013801 | C186: =IFERROR(VLOOKUP($B186,'Liste des adhérents'!$B$2:$D$2000,2,FALSE),"") -> P.C. La Garde - Marseille | D186: =IFERROR(VLOOKUP($B186,'Liste des adhérents'!$B$2:$D$2000,3,FALSE),"") -> Prénom&Nom575 | I186: 38 | J186: 38 | L186: =SUM($E186:K186) -> 76
A187: 48 | B187: 131376018001 | C187: =IFERROR(VLOOKUP($B187,'Liste des adhérents'!$B$2:$D$2000,2,FALSE),"") ->  | D187: =IFERROR(VLOOKUP($B187,'Liste des adhérents'!$B$2:$D$2000,3,FALSE),"") ->  | E187: 38 | F187: 38 | L187: =SUM($E187:K187) -> 76
A188: 232 | B188: 131845000201 | C188: =IFERROR(VLOOKUP($B188,'Liste des adhérents'!$B$2:$D$2000,2,FALSE),"") -> Photo Club Carqueirannais | D188: =IFERROR(VLOOKUP($B188,'Liste des adhérents'!$B$2:$D$2000,3,FALSE),"") -> Prénom&Nom1226 | H188: 18 | I188: 40 | J188: 18 | L188: =SUM($E188:K188) -> 76
A189: 200 | B189: 132084000201 | C189: =IFERROR(VLOOKUP($B189,'Liste des adhérents'!$B$2:$D$2000,2,FALSE),"") -> Azur Photo Passion | D189: =IFERROR(VLOOKUP($B189,'Liste des adhérents'!$B$2:$D$2000,3,FALSE),"") -> Prénom&Nom1727 | I189: 38 | J189: 38 | L189: =SUM($E189:K189) -> 76
A190: 89 | B190: 131956000401 | C190: =IFERROR(VLOOKUP($B190,'Liste des adhérents'!$B$2:$D$2000,2,FALSE),"") -> Photo Contact Puyricard | D190: =IFERROR(VLOOKUP($B190,'Liste des adhérents'!$B$2:$D$2000,3,FALSE),"") -> Prénom&Nom1482 | E190: 33 | K190: 41 | L190: =SUM($E190:K190) -> 74
A191: 187 | B191: 131956005401 | C191: =IFERROR(VLOOKUP($B191,'Liste des adhérents'!$B$2:$D$2000,2,FALSE),"") ->  | D191: =IFERROR(VLOOKUP($B191,'Liste des adhérents'!$B$2:$D$2000,3,FALSE),"") ->  | G191: 34 | K191: 40 | L191: =SUM($E191:K191) -> 74
A192: 21 | B192: 131376015801 | C192: =IFERROR(VLOOKUP($B192,'Liste des adhérents'!$B$2:$D$2000,2,FALSE),"") -> PHOCAL | D192: =IFERROR(VLOOKUP($B192,'Liste des adhérents'!$B$2:$D$2000,3,FALSE),"") -> Prénom&Nom731 | E192: 36 | H192: 37 | L192: =SUM($E192:K192) -> 73
A193: 153 | B193: 131845001101 | C193: =IFERROR(VLOOKUP($B193,'Liste des adhérents'!$B$2:$D$2000,2,FALSE),"") -> Photo Club Carqueirannais | D193: =IFERROR(VLOOKUP($B193,'Liste des adhérents'!$B$2:$D$2000,3,FALSE),"") -> Prénom&Nom1235 | E193: 41 | I193: 32 | L193: =SUM($E193:K193) -> 73
A194: 274 | B194: 131879000901 | C194: =IFERROR(VLOOKUP($B194,'Liste des adhérents'!$B$2:$D$2000,2,FALSE),"") -> Association Sportive Berroise | D194: =IFERROR(VLOOKUP($B194,'Liste des adhérents'!$B$2:$D$2000,3,FALSE),"") -> Prénom&Nom1420 | G194: 44 | I194: 29 | L194: =SUM($E194:K194) -> 73
A195: 216 | B195: 130878013301 | C195: =IFERROR(VLOOKUP($B195,'Liste des adhérents'!$B$2:$D$2000,2,FALSE),"") -> PC Antoine Santoru-Port de Bouc | D195: =IFERROR(VLOOKUP($B195,'Liste des adhérents'!$B$2:$D$2000,3,FALSE),"") -> Prénom&Nom260 | H195: 36 | J195: 36 | L195: =SUM($E195:K195) -> 72
A196: 22 | B196: 130987028801 | C196: =IFERROR(VLOOKUP($B196,'Liste des adhérents'!$B$2:$D$2000,2,FALSE),"") ->  | D196: =IFERROR(VLOOKUP($B196,'Liste des adhérents'!$B$2:$D$2000,3,FALSE),"") ->  | E196: 36 | J196: 36 | L196: =SUM($E196:K196) -> 72
A197: 61 | B197: 131845000301 | C197: =IFERROR(VLOOKUP($B197,'Liste des adhérents'!$B$2:$D$2000,2,FALSE),"") -> Photo Club Carqueirannais | D197: =IFERROR(VLOOKUP($B197,'Liste des adhérents'!$B$2:$D$2000,3,FALSE),"") -> Prénom&Nom1227 | E197: 36 | J197: 36 | L197: =SUM($E197:K197) -> 72
A198: 215 | B198: 131227008301 | C198: =IFERROR(VLOOKUP($B198,'Liste des adhérents'!$B$2:$D$2000,2,FALSE),"") ->  | D198: =IFERROR(VLOOKUP($B198,'Liste des adhérents'!$B$2:$D$2000,3,FALSE),"") ->  | H198: 37 | I198: 34 | L198: =SUM($E198:K198) -> 71
A199: 119 | B199: 131499010801 | C199: =IFERROR(VLOOKUP($B199,'Liste des adhérents'!$B$2:$D$2000,2,FALSE),"") ->  | D199: =IFERROR(VLOOKUP($B199,'Liste des adhérents'!$B$2:$D$2000,3,FALSE),"") ->  | F199: 30 | H199: 41 | L199: =SUM($E199:K199) -> 71
A200: 255 | B200: 130993016501 | C200: =IFERROR(VLOOKUP($B200,'Liste des adhérents'!$B$2:$D$2000,2,FALSE),"") ->  | D200: =IFERROR(VLOOKUP($B200,'Liste des adhérents'!$B$2:$D$2000,3,FALSE),"") ->  | F200: 35 | J200: 35 | L200: =SUM($E200:K200) -> 70
A201: 262 | B201: 131956005501 | C201: =IFERROR(VLOOKUP($B201,'Liste des adhérents'!$B$2:$D$2000,2,FALSE),"") ->  | D201: =IFERROR(VLOOKUP($B201,'Liste des adhérents'!$B$2:$D$2000,3,FALSE),"") ->  | F201: 33 | K201: 37 | L201: =SUM($E201:K201) -> 70
... 101 more rows

Sheet Classement clubs
A2: Place | B2: N° de club | C2: Nom | D2: Défi-1 | E2: Défi-2 | F2: Défi-3 | G2: Défi-4 | H2: Défi-5 | I2: Défi-6 | J2: Défi-7 | K2: Total
A3: =ROW()-2 -> 1 | B3: 1683 | C3: Marius Saint-Mitre-les-Remparts | D3: 159 | E3: 128 | F3: 146 | G3: 160 | H3: 159 | I3: 149 | J3: 147 | K3: =SUM($D3:J3) -> 1048
A4: 2 | B4: 987 | C4: Cl. Phot’Azur Six-Fours-les-Plages | D4: 147 | E4: 131 | F4: 137 | G4: 135 | H4: 132 | I4: 147 | J4: 146 | K4: =SUM($D4:J4) -> 975
A5: 3 | B5: 1353 | C5: Photo Club de La Crau | D5: 138 | E5: 123 | F5: 125 | G5: 151 | H5: 139 | I5: 135 | J5: 135 | K5: =SUM($D5:J5) -> 946
A6: 4 | B6: 1499 | C6: Images Expressions – Cagnes sur Mer | D6: 135 | E6: 128 | F6: 144 | G6: 151 | H6: 151 | I6: 126 | J6: 111 | K6: =SUM($D6:J6) -> 946
A7: 5 | B7: 1956 | C7: Photo Contact Puyricard | D7: 136 | E7: 138 | F7: 138 | G7: 118 | H7: 124 | I7: 129 | J7: 139 | K7: =SUM($D7:J7) -> 922
A8: 6 | B8: 1879 | C8: Association Sportive de Berre | D8: 139 | E8: 127 | F8: 148 | G8: 122 | H8: 119 | I8: 147 | J8: 119 | K8: =SUM($D8:J8) -> 921
A9: 7 | B9: 1376 | C9: PHOCAL | D9: 142 | E9: 101 | F9: 145 | G9: 119 | H9: 134 | I9: 146 | J9: 122 | K9: =SUM($D9:J9) -> 909
A10: 8 | B10: 878 | C10: PC Antoine Santoru-Port de Bouc | D10: 122 | E10: 101 | F10: 135 | G10: 111 | H10: 147 | I10: 134 | J10: 122 | K10: =SUM($D10:J10) -> 872
A11: 9 | B11: 1823 | C11: Photo Club Mouansois | D11: 113 | E11: 119 | F11: 131 | G11: 105 | H11: 120 | I11: 132 | J11: 123 | K11: =SUM($D11:J11) -> 843
A12: 10 | B12: 1845 | C12: Photo Club Carqueirannais | D12: 124 | E12: 109 | F12: 132 | G12: 104 | H12: 128 | I12: 114 | J12: 132 | K12: =SUM($D12:J12) -> 843
A13: 11 | B13: 2060 | C13: Image Club Gardéen | D13: 130 | E13: 115 | F13: 122 | G13: 115 | H13: 126 | I13: 117 | J13: 115 | K13: =SUM($D13:J13) -> 840
A14: 12 | B14: 527 | C14: Photo Club de Martigues | D14: 152 | E14: 132 | F14: 131 | G14: 141 | H14: 134 | J14: 119 | K14: =SUM($D14:J14) -> 809
A15: 13 | B15: 925 | C15: A.S.L.P.S. Photo Fos-sur-Mer | D15: 143 | E15: 133 | F15: 137 | G15: 124 | H15: 132 | I15: 130 | K15: =SUM($D15:J15) -> 799
A16: 14 | B16: 2084 | C16: Azur Photo Passion | E16: 122 | F16: 134 | G16: 138 | H16: 121 | I16: 154 | J16: 111 | K16: =SUM($D16:J16) -> 780
A17: 15 | B17: 1110 | C17: Ciné Photo Club de Peymeinade | D17: 128 | E17: 110 | F17: 134 | G17: 126 | H17: 121 | I17: 126 | K17: =SUM($D17:J17) -> 745
A18: 16 | B18: 2193 | C18: Antibes Photo Club | E18: 108 | G18: 103 | H18: 118 | I18: 129 | J18: 129 | K18: =SUM($D18:J18) -> 587
A19: 17 | B19: 1862 | C19: Déclic et des Claps – Roquefort les Pins | D19: 121 | E19: 108 | F19: 121 | I19: 117 | J19: 116 | K19: =SUM($D19:J19) -> 583
A20: 18 | B20: 2086 | C20: Objectif Image Nice | D20: 107 | E20: 104 | F20: 110 | G20: 120 | H20: 106 | K20: =SUM($D20:J20) -> 547
A21: 19 | B21: 1494 | C21: Photo-Club du Brianconnais | E21: 98 | F21: 113 | G21: 89 | H21: 103 | I21: 99 | K21: =SUM($D21:J21) -> 502
A22: 20 | B22: 993 | C22: P.C. La Garde – Marseille | G22: 132 | H22: 110 | I22: 131 | K22: =SUM($D22:J22) -> 373
A23: 21 | B23: 1619 | C23: Optique Diaporama Marseille | D23: 104 | H23: 131 | J23: 124 | K23: =SUM($D23:J23) -> 359
A24: 22 | B24: 2203 | C24: Club Photo de Saignon | F24: 114 | H24: 103 | K24: =SUM($D24:J24) -> 217
A25: 23 | B25: 2089 | C25: La Farledo Objectif Club | D25: 91 | E25: 99 | K25: =SUM($D25:J25) -> 190
A26: 24 | B26: 2103 | C26: Club Photo St Laurent du Var | F26: 142 | K26: =SUM($D26:J26) -> 142
A27: 25 | B27: 2023 | C27: Club Art Déclic de l’ Argens | H27: 117 | K27: =SUM($D27:J27) -> 117
A28: 26 | B28: 1992 | C28: Photo Club Velauxien – Clin d’Œil | J28: 97 | K28: =SUM($D28:J28) -> 97
A29: 27 | B29: 435 | C29: Beausoleil Ciné Photo Club | K29: =SUM($D29:J29) -> 0
A30: 28 | B30: 462 | C30: Image 2000 | K30: =SUM($D30:J30) -> 0
A31: 29 | B31: 921 | C31: Photo Club M.P.T. Vitrolles | K31: =SUM($D31:J31) -> 0
A32: 30 | B32: 1227 | C32: Photo Ciné Club Courthezonnais | K32: =SUM($D32:J32) -> 0
A33: 31 | B33: 1426 | C33: Diaphragme et Lumière Var – Ollioules | K33: =SUM($D33:J33) -> 0
A34: 32 | B34: 1441 | C34: Club mage Monaco | K34: =SUM($D34:J34) -> 0
A35: =ROW()-2 -> 33 | B35: 1450 | C35: Arc Images- Rousset | K35: =SUM($D35:J35) -> 0
A36: 34 | B36: 1601 | C36: Club Pugetois de L’image | K36: =SUM($D36:J36) -> 0
A37: 35 | B37: 1777 | C37: Club Photo et Vidéo Plan de La Tour | K37: =SUM($D37:J37) -> 0
A38: 36 | B38: 1796 | C38: Ciné Caméra Club de Cannes | K38: =SUM($D38:J38) -> 0
A39: 37 | B39: 1824 | C39: Photo Club IBM Cote d’Azur | K39: =SUM($D39:J39) -> 0
A40: 38 | B40: 1867 | C40: PhotoMenton | K40: =SUM($D40:J40) -> 0
A41: 39 | B41: 1899 | C41: Club de l’Image | K41: =SUM($D41:J41) -> 0
A42: 40 | B42: 1969 | C42: Mission Photo – Cannes la Bocca | K42: =SUM($D42:J42) -> 0
A43: 41 | B43: 1985 | C43: Rognonas Image Regard Espace | K43: =SUM($D43:J43) -> 0
A44: 42 | B44: 2003 | C44: Photo Club Moriérois | K44: =SUM($D44:J44) -> 0
A45: 43 | B45: 2028 | C45: Association Regards du Sud | K45: =SUM($D45:J45) -> 0
A46: 44 | B46: 2147 | C46: Club Photo Saint Savournin | K46: =SUM($D46:J46) -> 0
A47: 45 | B47: 2158 | C47: Café Photo Marseille | K47: =SUM($D47:J47) -> 0
A48: 46 | B48: 2180 | C48: Photo Club Carry Côte Bleue | K48: =SUM($D48:J48) -> 0
A49: 47 | B49: 2211 | C49: Club Photo UAICF de Gap | K49: =SUM($D49:J49) -> 0
A50: 48 | B50: 2217 | C50: ADSB – Club Photo Bouc Bel Air | K50: =SUM($D50:J50) -> 0
A51: 49 | B51: 2222 | C51: Association Culturelle Photo Club de Neffes | K51: =SUM($D51:J51) -> 0
A52: 50
A53: =ROW()-2 -> 51
A54: =ROW()-2 -> 52
A55: =ROW()-2 -> 53
A56: =ROW()-2 -> 54
A57: =ROW()-2 -> 55
A58: =ROW()-2 -> 56
A59: =ROW()-2 -> 57
A60: =ROW()-2 -> 58
A61: =ROW()-2 -> 59
A62: =ROW()-2 -> 60

Sheet Défi-1
A1: colis | B1: photologic | C1: fichier | D1: titre | E1: note1 | F1: note2 | G1: note3 | H1: note4 | I1: note5 | J1: total | K1: place | L1: passage | M1: statut | N1: medaille | O1: retenue | Q1: 0=absent 1=présent | S1: fichier | T1: total | AJ1: colis | AK1: photologic | AL1: fichier | AM1: titre | AN1: note1 | AO1: note2 | AP1: note3 | AQ1: note4 | AR1: note5 | AS1: total | AT1: place | AU1: passage | AV1: statut | AW1: medaille | AX1: retenue
A2: 13 | B2: 1 | C2: 131845003401 | D2: Avant la régate | E2: 9 | F2: 7 | G2: 12 | H2: 0 | I2: 0 | J2: =SUM(E2:I2) -> 28 | K2: 0 | L2: 31 | M2: 0 | O2: 0 | Q2: =COUNTIF('Classement auteurs'!B:B,C2) -> 1 | S2: 130527017001 | T2: =(MID(S2,3,4)*1) -> 527 | U2: 152 | V2: =IF(U2=VLOOKUP($T2,'Classement clubs'!$B$2:$K$52,3,FALSE),"OK","KO") -> OK | AI2: 13 | AJ2: 48 | AK2: 130000019901 | AL2: La vie en rose | AM2: 10 | AN2: 10 | AO2: 12 | AP2: 0 | AQ2: 0 | AR2: =SUM(AM2:AQ2) -> 32 | AS2: 0 | AT2: 99 | AU2: 6 | AW2: 0
A3: 13 | B3: 4 | C3: 130987015701 | D3: Rêve de Mérous | E3: 14 | F3: 17 | G3: 17 | H3: 0 | I3: 0 | J3: =SUM(E3:I3) -> 48 | K3: 0 | L3: 109 | M3: 0 | O3: 0 | Q3: =COUNTIF('Classement auteurs'!B:B,C3) -> 1 | S3: 130878015201 | T3: 878 | U3: 122 | V3: =IF(U3=VLOOKUP($T3,'Classement clubs'!$B$2:$K$52,3,FALSE),"OK","KO") -> OK | AI3: 13 | AJ3: 86 | AK3: 130000020401 | AL3: Je t'ai à l'oeil | AM3: 8 | AN3: 11 | AO3: 12 | AP3: 0 | AQ3: 0 | AR3: 31 | AS3: 0 | AT3: 13 | AU3: 6 | AW3: 0
A4: 13 | B4: 5 | C4: 131845000801 | D4: Le soleil se lève | E4: 13 | F4: 12 | G4: 11 | H4: 0 | I4: 0 | J4: 36 | K4: 0 | L4: 136 | M4: 0 | O4: 0 | Q4: =COUNTIF('Classement auteurs'!B:B,C4) -> 1 | S4: 130925008401 | T4: 925 | U4: 143 | V4: =IF(U4=VLOOKUP($T4,'Classement clubs'!$B$2:$K$52,3,FALSE),"OK","KO") -> OK | Z4: ATTENTION : | AI4: 13 | AJ4: 110 | AK4: 130000020801 | AL4: Un soir sur la Saône | AM4: 13 | AN4: 13 | AO4: 14 | AP4: 0 | AQ4: 0 | AR4: 40 | AS4: 0 | AT4: 34 | AU4: 6 | AW4: 0
A5: 13 | B5: 6 | C5: 131845000101 | D5: Skate Park | E5: 12 | F5: 12 | G5: 18 | H5: 0 | I5: 0 | J5: 42 | K5: 0 | L5: 132 | M5: 0 | O5: 0 | Q5: =COUNTIF('Classement auteurs'!B:B,C5) -> 1 | S5: 130987019701 | T5: 987 | U5: 147 | V5: =IF(U5=VLOOKUP($T5,'Classement clubs'!$B$2:$K$52,3,FALSE),"OK","KO") -> OK | Z5: Le total des notes est fait sur chaque onglet après insertion. | AI5: 13 | AJ5: 93 | AK5: 130527002501 | AL5: Parapluies | AM5: 14 | AN5: 15 | AO5: 12 | AP5: 0 | AQ5: 0 | AR5: 41 | AS5: 0 | AT5: 63 | AU5: 0 | AW5: 0
A6: 13 | B6: 7 | C6: 130987028201 | D6: Water selfie | E6: 13 | F6: 14 | G6: 15 | H6: 0 | I6: 0 | J6: 42 | K6: 0 | L6: 117 | M6: 0 | O6: 0 | Q6: =COUNTIF('Classement auteurs'!B:B,C6) -> 1 | S6: 131110000901 | T6: 1110 | U6: 128 | V6: =IF(U6=VLOOKUP($T6,'Classement clubs'!$B$2:$K$52,3,FALSE),"OK","KO") -> OK | AI6: 13 | AJ6: 90 | AK6: 130527006401 | AL6: Bleu, blanc, noir | AM6: 6 | AN6: 16 | AO6: 14 | AP6: 0 | AQ6: 0 | AR6: 36 | AS6: 0 | AT6: 71 | AU6: 0 | AW6: 0
A7: 13 | B7: 9 | C7: 130987007401 | D7: Adrien | E7: 10 | F7: 11 | G7: 10 | H7: 0 | I7: 0 | J7: 31 | K7: 0 | L7: 79 | M7: 0 | O7: 0 | Q7: =COUNTIF('Classement auteurs'!B:B,C7) -> 1 | S7: 131353000701 | T7: 1353 | U7: 138 | V7: =IF(U7=VLOOKUP($T7,'Classement clubs'!$B$2:$K$52,3,FALSE),"OK","KO") -> OK | Z7: L'architecture du fichier notation est toujours la même. | AI7: 13 | AJ7: 150 | AK7: 130527009401 | AL7: Chez l'artiste ... | AM7: 16 | AN7: 18 | AO7: 16 | AP7: 0 | AQ7: 0 | AR7: 50 | AS7: 0 | AT7: 50 | AU7: 0 | AW7: 0
A8: 13 | B8: 10 | C8: 131845000301 | D8: Variation d'ocres | E8: 9 | F8: 13 | G8: 14 | H8: 0 | I8: 0 | J8: 36 | K8: 0 | L8: 53 | M8: 0 | O8: 0 | Q8: =COUNTIF('Classement auteurs'!B:B,C8) -> 1 | S8: 131376017701 | T8: 1376 | U8: 142 | V8: =IF(U8=VLOOKUP($T8,'Classement clubs'!$B$2:$K$52,3,FALSE),"OK","KO") -> OK | AI8: 13 | AJ8: 60 | AK8: 130527011601 | AL8: Repos | AM8: 11 | AN8: 14 | AO8: 14 | AP8: 0 | AQ8: 0 | AR8: 39 | AS8: 0 | AT8: 55 | AU8: 0 | AW8: 0
A9: 13 | B9: 12 | C9: 131683008001 | D9: Transparences | E9: 19 | F9: 13 | G9: 16 | H9: 0 | I9: 0 | J9: 48 | K9: 0 | L9: 59 | M9: 0 | O9: 0 | Q9: =COUNTIF('Classement auteurs'!B:B,C9) -> 1 | S9: 131499010601 | T9: 1499 | U9: 135 | V9: =IF(U9=VLOOKUP($T9,'Classement clubs'!$B$2:$K$52,3,FALSE),"OK","KO") -> OK | Z9: La colonne Q permet de verifier laprésence de l'auteur dans le classement auteur. | AI9: 13 | AJ9: 82 | AK9: 130527012401 | AL9: Mistral | AM9: 12 | AN9: 12 | AO9: 17 | AP9: 0 | AQ9: 0 | AR9: 41 | AS9: 0 | AT9: 12 | AU9: 0 | AW9: 0
A10: 13 | B10: 14 | C10: 131499008701 | D10: Geisha | E10: 15 | F10: 14 | G10: 15 | H10: 0 | I10: 0 | J10: 44 | K10: 0 | L10: 43 | M10: 0 | O10: 0 | Q10: =COUNTIF('Classement auteurs'!B:B,C10) -> 1 | S10: 131619004201 | T10: 1619 | U10: 104 | V10: =IF(U10=VLOOKUP($T10,'Classement clubs'!$B$2:$K$52,3,FALSE),"OK","KO") -> OK | AI10: 13 | AJ10: 89 | AK10: 130527013301 | AL10: Rue de Cuba | AM10: 13 | AN10: 14 | AO10: 20 | AP10: 0 | AQ10: 0 | AR10: 47 | AS10: 0 | AT10: 97 | AU10: 0 | AW10: 0
A11: 13 | B11: 15 | C11: 130878013001 | D11: Perle de rose | E11: 11 | F11: 15 | G11: 15 | H11: 0 | I11: 0 | J11: 41 | K11: 0 | L11: 83 | M11: 0 | O11: 0 | Q11: =COUNTIF('Classement auteurs'!B:B,C11) -> 1 | S11: 131683006301 | T11: 1683 | U11: 159 | V11: =IF(U11=VLOOKUP($T11,'Classement clubs'!$B$2:$K$52,3,FALSE),"OK","KO") -> OK | AI11: 13 | AJ11: 104 | AK11: 130527015501 | AL11: Roses | AM11: 14 | AN11: 19 | AO11: 13 | AP11: 0 | AQ11: 0 | AR11: 46 | AS11: 0 | AT11: 32 | AU11: 0 | AW11: 0
A12: 13 | B12: 18 | C12: 130987024101 | D12: L'Andine | E12: 12 | F12: 12 | G12: 16 | H12: 0 | I12: 0 | J12: 40 | K12: 0 | L12: 114 | M12: 0 | O12: 0 | Q12: =COUNTIF('Classement auteurs'!B:B,C12) -> 1 | S12: 131823004901 | T12: =(MID(S12,3,4)*1) -> 1823 | U12: 113 | V12: =IF(U12=VLOOKUP($T12,'Classement clubs'!$B$2:$K$52,3,FALSE),"OK","KO") -> OK | AI12: 13 | AJ12: 144 | AK12: 130527017001 | AL12: Les mots envolés. | AM12: 20 | AN12: 15 | AO12: 20 | AP12: 0 | AQ12: 0 | AR12: 55 | AS12: 0 | AT12: 6 | AU12: 0 | AW12: 0
A13: 13 | B13: 19 | C13: 131992000301 | D13: Le tatoueur de Madurai. | E13: 12 | F13: 12 | G13: 16 | H13: 0 | I13: 0 | J13: 40 | K13: 0 | L13: 25 | M13: 0 | O13: 0 | Q13: =COUNTIF('Classement auteurs'!B:B,C13) -> 1 | S13: 131845000101 | T13: =(MID(S13,3,4)*1) -> 1845 | U13: 124 | V13: =IF(U13=VLOOKUP($T13,'Classement clubs'!$B$2:$K$52,3,FALSE),"OK","KO") -> OK | AI13: 13 | AJ13: 33 | AK13: 130878007201 | AL13: Abri multicolore | AM13: 13 | AN13: 8 | AO13: 15 | AP13: 0 | AQ13: 0 | AR13: 36 | AS13: 0 | AT13: 57 | AU13: 0 | AW13: 0
A14: 13 | B14: 20 | C14: 130993015101 | D14: Criquet vert | E14: 6 | F14: 6 | G14: 6 | H14: 0 | I14: 0 | J14: 18 | K14: 0 | L14: 125 | M14: 0 | O14: 0 | Q14: =COUNTIF('Classement auteurs'!B:B,C14) -> 1 | S14: 131862000801 | T14: =(MID(S14,3,4)*1) -> 1862 | U14: 121 | V14: =IF(U14=VLOOKUP($T14,'Classement clubs'!$B$2:$K$52,3,FALSE),"OK","KO") -> OK | AI14: 13 | AJ14: 15 | AK14: 130878013001 | AL14: Perle de rose | AM14: 11 | AN14: 15 | AO14: 15 | AP14: 0 | AQ14: 0 | AR14: 41 | AS14: 0 | AT14: 83 | AU14: 0 | AW14: 0
A15: 13 | B15: 21 | C15: 131879000601 | D15: Hong Kong la nuit | E15: 15 | F15: 17 | G15: 15 | H15: 0 | I15: 0 | J15: 47 | K15: 0 | L15: 4 | M15: 0 | O15: 0 | Q15: =COUNTIF('Classement auteurs'!B:B,C15) -> 1 | S15: 131879000801 | T15: =(MID(S15,3,4)*1) -> 1879 | U15: 139 | V15: =IF(U15=VLOOKUP($T15,'Classement clubs'!$B$2:$K$52,3,FALSE),"OK","KO") -> OK | AI15: 13 | AJ15: 53 | AK15: 130878014101 | AL15: Tag | AM15: 12 | AN15: 14 | AO15: 10 | AP15: 0 | AQ15: 0 | AR15: 36 | AS15: 0 | AT15: 92 | AU15: 0 | AW15: 0
A16: 13 | B16: 22 | C16: 131879000101 | D16: Tangueros | E16: 12 | F16: 16 | G16: 13 | H16: 0 | I16: 0 | J16: 41 | K16: 0 | L16: 67 | M16: 0 | O16: 0 | Q16: =COUNTIF('Classement auteurs'!B:B,C16) -> 1 | S16: 131956006001 | T16: =(MID(S16,3,4)*1) -> 1956 | U16: 136 | V16: =IF(U16=VLOOKUP($T16,'Classement clubs'!$B$2:$K$52,3,FALSE),"OK","KO") -> OK | AI16: 13 | AJ16: 38 | AK16: 130878014301 | AL16: La souffreuse | AM16: 12 | AN16: 12 | AO16: 14 | AP16: 0 | AQ16: 0 | AR16: 38 | AS16: 0 | AT16: 131 | AU16: 0 | AW16: 0
A17: 13 | B17: 24 | C17: 130987024001 | D17: Dorures d'autonne | E17: 16 | F17: 15 | G17: 15 | H17: 0 | I17: 0 | J17: 46 | K17: 0 | L17: 42 | M17: 0 | O17: 0 | Q17: =COUNTIF('Classement auteurs'!B:B,C17) -> 1 | S17: 132060001201 | T17: =(MID(S17,3,4)*1) -> 2060 | U17: 130 | V17: =IF(U17=VLOOKUP($T17,'Classement clubs'!$B$2:$K$52,3,FALSE),"OK","KO") -> OK | AI17: 13 | AJ17: 119 | AK17: 130878015201 | AL17: Magie des lumières | AM17: 13 | AN17: 14 | AO17: 16 | AP17: 0 | AQ17: 0 | AR17: 43 | AS17: 0 | AT17: 122 | AU17: 0 | AW17: 0
A18: 13 | B18: 25 | C18: 130987013801 | D18: Maréchal-ferrant | E18: 12 | F18: 12 | G18: 14 | H18: 0 | I18: 0 | J18: 38 | K18: 0 | L18: 58 | M18: 0 | O18: 0 | Q18: =COUNTIF('Classement auteurs'!B:B,C18) -> 1 | S18: 132086002501 | T18: =(MID(S18,3,4)*1) -> 2086 | U18: 107 | V18: =IF(U18=VLOOKUP($T18,'Classement clubs'!$B$2:$K$52,3,FALSE),"OK","KO") -> OK | AI18: 13 | AJ18: 123 | AK18: 130925007701 | AL18: Arbres pétrifiés | AM18: 15 | AN18: 13 | AO18: 18 | AP18: 0 | AQ18: 0 | AR18: 46 | AS18: 0 | AT18: 37 | AU18: 0 | AW18: 0
A19: 13 | B19: 27 | C19: 131879000501 | D19: Barques | E19: 12 | F19: 12 | G19: 14 | H19: 0 | I19: 0 | J19: 38 | K19: 0 | L19: 127 | M19: 0 | O19: 0 | Q19: =COUNTIF('Classement auteurs'!B:B,C19) -> 1 | S19: 132089000101 | T19: =(MID(S19,3,4)*1) -> 2089 | U19: 91 | V19: =IF(U19=VLOOKUP($T19,'Classement clubs'!$B$2:$K$52,3,FALSE),"OK","KO") -> OK | AI19: 13 | AJ19: 101 | AK19: 130925008401 | AL19: Chorégraphie | AM19: 16 | AN19: 16 | AO19: 19 | AP19: 0 | AQ19: 0 | AR19: 51 | AS19: 0 | AT19: 76 | AU19: 0 | AW19: 0
A20: 13 | B20: 28 | C20: 131376012601 | D20: Utopie | E20: 11 | F20: 12 | G20: 8 | H20: 0 | I20: 0 | J20: 31 | K20: 0 | L20: 60 | M20: 0 | O20: 0 | Q20: =COUNTIF('Classement auteurs'!B:B,C20) -> 1 | AJ20: 13 | AK20: 106 | AL20: 130925008601 | AM20: Rouge | AN20: 13 | AO20: 7 | AP20: 13 | AQ20: 0 | AR20: 0 | AS20: =SUM(AN20:AR20) -> 33 | AT20: 0 | AU20: 66 | AV20: 0 | AX20: 0
A21: 13 | B21: 29 | C21: 130987024201 | D21: Planet Caraïbes | E21: 14 | F21: 13 | G21: 19 | H21: 0 | I21: 0 | J21: 46 | K21: 0 | L21: 7 | M21: 0 | O21: 0 | Q21: =COUNTIF('Classement auteurs'!B:B,C21) -> 1 | AJ21: 13 | AK21: 130 | AL21: 130925009801 | AM21: Vite ! | AN21: 14 | AO21: 14 | AP21: 16 | AQ21: 0 | AR21: 0 | AS21: 44 | AT21: 0 | AU21: 18 | AV21: 0 | AX21: 0
A22: 13 | B22: 30 | C22: 131824003101 | D22: Ice attack | E22: 12 | F22: 13 | G22: 17 | H22: 0 | I22: 0 | J22: 42 | K22: 0 | L22: 89 | M22: 0 | O22: 0 | Q22: =COUNTIF('Classement auteurs'!B:B,C22) -> 1 | AJ22: 13 | AK22: 153 | AL22: 130925009901 | AM22: Belles coiffes | AN22: 10 | AO22: 9 | AP22: 11 | AQ22: 0 | AR22: 0 | AS22: 30 | AT22: 0 | AU22: 119 | AV22: 0 | AX22: 0
A23: 13 | B23: 31 | C23: 130987019601 | D23: Fraîcheur | E23: 12 | F23: 14 | G23: 13 | H23: 0 | I23: 0 | J23: 39 | K23: 0 | L23: 1 | M23: 0 | O23: 0 | Q23: =COUNTIF('Classement auteurs'!B:B,C23) -> 1 | AJ23: 13 | AK23: 57 | AL23: 130925010201 | AM23: Mae | AN23: 12 | AO23: 15 | AP23: 19 | AQ23: 0 | AR23: 0 | AS23: 46 | AT23: 0 | AU23: 91 | AV23: 0 | AX23: 0
A24: 13 | B24: 32 | C24: 130987019701 | D24: Sommet | E24: 15 | F24: 16 | G24: 20 | H24: 0 | I24: 0 | J24: 51 | K24: 0 | L24: 54 | M24: 0 | O24: 0 | Q24: =COUNTIF('Classement auteurs'!B:B,C24) -> 1 | AJ24: 13 | AK24: 155 | AL24: 130987001601 | AM24: Envol | AN24: 11 | AO24: 11 | AP24: 13 | AQ24: 0 | AR24: 0 | AS24: 35 | AT24: 0 | AU24: 106 | AV24: 0 | AX24: 0
A25: 13 | B25: 33 | C25: 130878007201 | D25: Abri multicolore | E25: 13 | F25: 8 | G25: 15 | H25: 0 | I25: 0 | J25: 36 | K25: 0 | L25: 57 | M25: 0 | O25: 0 | Q25: =COUNTIF('Classement auteurs'!B:B,C25) -> 1 | AJ25: 13 | AK25: 9 | AL25: 130987007401 | AM25: Adrien | AN25: 10 | AO25: 11 | AP25: 10 | AQ25: 0 | AR25: 0 | AS25: 31 | AT25: 0 | AU25: 79 | AV25: 0 | AX25: 0
A26: 13 | B26: 34 | C26: 132193000301 | D26: Ambiance New York | E26: 12 | F26: 18 | G26: 18 | H26: 0 | I26: 0 | J26: 48 | K26: 0 | L26: 69 | M26: 0 | O26: 0 | Q26: =COUNTIF('Classement auteurs'!B:B,C26) -> 1 | AJ26: 13 | AK26: 25 | AL26: 130987013801 | AM26: Maréchal-ferrant | AN26: 12 | AO26: 12 | AP26: 14 | AQ26: 0 | AR26: 0 | AS26: 38 | AT26: 0 | AU26: 58 | AV26: 0 | AX26: 0
A27: 13 | B27: 35 | C27: 131683006301 | D27: Avant l'orage | E27: 18 | F27: 19 | G27: 20 | H27: 0 | I27: 0 | J27: 57 | K27: 0 | L27: 93 | M27: 0 | O27: 0 | Q27: =COUNTIF('Classement auteurs'!B:B,C27) -> 1 | AJ27: 13 | AK27: 37 | AL27: 130987014001 | AM27: Le coeur dans les nuages | AN27: 14 | AO27: 15 | AP27: 19 | AQ27: 0 | AR27: 0 | AS27: 48 | AT27: 0 | AU27: 61 | AV27: 0 | AX27: 0
A28: 13 | B28: 36 | C28: 132060000101 | D28: Signature artistique | E28: 6 | F28: 16 | G28: 7 | H28: 0 | I28: 0 | J28: 29 | K28: 0 | L28: 26 | M28: 0 | O28: 0 | Q28: =COUNTIF('Classement auteurs'!B:B,C28) -> 1 | AJ28: 13 | AK28: 4 | AL28: 130987015701 | AM28: Rêve de Mérous | AN28: 14 | AO28: 17 | AP28: 17 | AQ28: 0 | AR28: 0 | AS28: 48 | AT28: 0 | AU28: 109 | AV28: 0 | AX28: 0
A29: 13 | B29: 37 | C29: 130987014001 | D29: Le coeur dans les nuages | E29: 14 | F29: 15 | G29: 19 | H29: 0 | I29: 0 | J29: 48 | K29: 0 | L29: 61 | M29: 0 | O29: 0 | Q29: =COUNTIF('Classement auteurs'!B:B,C29) -> 1 | AJ29: 13 | AK29: 31 | AL29: 130987019601 | AM29: Fraîcheur | AN29: 12 | AO29: 14 | AP29: 13 | AQ29: 0 | AR29: 0 | AS29: 39 | AT29: 0 | AU29: 1 | AV29: 0 | AX29: 0
A30: 13 | B30: 38 | C30: 130878014301 | D30: La souffreuse | E30: 12 | F30: 12 | G30: 14 | H30: 0 | I30: 0 | J30: 38 | K30: 0 | L30: 131 | M30: 0 | O30: 0 | Q30: =COUNTIF('Classement auteurs'!B:B,C30) -> 1 | AJ30: 13 | AK30: 32 | AL30: 130987019701 | AM30: Sommet | AN30: 15 | AO30: 16 | AP30: 20 | AQ30: 0 | AR30: 0 | AS30: 51 | AT30: 0 | AU30: 54 | AV30: 0 | AX30: 0
A31: 13 | B31: 39 | C31: 132086002301 | D31: Parade en rose | E31: 11 | F31: 13 | G31: 12 | H31: 0 | I31: 0 | J31: 36 | K31: 0 | L31: 29 | M31: 0 | O31: 0 | Q31: =COUNTIF('Classement auteurs'!B:B,C31) -> 1 | AJ31: 13 | AK31: 99 | AL31: 130987023901 | AM31: Street Painting | AN31: 10 | AO31: 15 | AP31: 15 | AQ31: 0 | AR31: 0 | AS31: 40 | AT31: 0 | AU31: 27 | AV31: 0 | AX31: 0
A32: 13 | B32: 40 | C32: 132060000701 | D32: Paris La Défense | E32: 13 | F32: 11 | G32: 14 | H32: 0 | I32: 0 | J32: 38 | K32: 0 | L32: 73 | M32: 0 | O32: 0 | Q32: =COUNTIF('Classement auteurs'!B:B,C32) -> 1 | AJ32: 13 | AK32: 24 | AL32: 130987024001 | AM32: Dorures d'autonne | AN32: 16 | AO32: 15 | AP32: 15 | AQ32: 0 | AR32: 0 | AS32: 46 | AT32: 0 | AU32: 42 | AV32: 0 | AX32: 0
A33: 13 | B33: 41 | C33: 131376018301 | D33: Rêve d'Orient | E33: 12 | F33: 9 | G33: 10 | H33: 0 | I33: 0 | J33: 31 | K33: 0 | L33: 111 | M33: 0 | O33: 0 | Q33: =COUNTIF('Classement auteurs'!B:B,C33) -> 1 | AJ33: 13 | AK33: 18 | AL33: 130987024101 | AM33: L'Andine | AN33: 12 | AO33: 12 | AP33: 16 | AQ33: 0 | AR33: 0 | AS33: 40 | AT33: 0 | AU33: 114 | AV33: 0 | AX33: 0
A34: 13 | B34: 42 | C34: 130987028801 | D34: Feu Art | E34: 11 | F34: 10 | G34: 15 | H34: 0 | I34: 0 | J34: 36 | K34: 0 | L34: 113 | M34: 0 | O34: 0 | Q34: =COUNTIF('Classement auteurs'!B:B,C34) -> 1 | AJ34: 13 | AK34: 29 | AL34: 130987024201 | AM34: Planet Caraïbes | AN34: 14 | AO34: 13 | AP34: 19 | AQ34: 0 | AR34: 0 | AS34: 46 | AT34: 0 | AU34: 7 | AV34: 0 | AX34: 0
A35: 13 | B35: 43 | C35: 131683000701 | D35: SAYONARA | E35: 10 | F35: 11 | G35: 11 | H35: 0 | I35: 0 | J35: 32 | K35: 0 | L35: 2 | M35: 0 | O35: 0 | Q35: =COUNTIF('Classement auteurs'!B:B,C35) -> 1 | AJ35: 13 | AK35: 7 | AL35: 130987028201 | AM35: Water selfie | AN35: 13 | AO35: 14 | AP35: 15 | AQ35: 0 | AR35: 0 | AS35: 42 | AT35: 0 | AU35: 117 | AV35: 0 | AX35: 0
A36: 13 | B36: 44 | C36: 131376014701 | D36: Enfant sous la pluie | E36: 14 | F36: 13 | G36: 16 | H36: 0 | I36: 0 | J36: 43 | K36: 0 | L36: 75 | M36: 0 | O36: 0 | Q36: =COUNTIF('Classement auteurs'!B:B,C36) -> 1 | AJ36: 13 | AK36: 58 | AL36: 130987028401 | AM36: Marée verte | AN36: 6 | AO36: 12 | AP36: 14 | AQ36: 0 | AR36: 0 | AS36: 32 | AT36: 0 | AU36: 22 | AV36: 0 | AX36: 0
A37: 13 | B37: 45 | C37: 131824001901 | D37: Juste une éclaircie | E37: 20 | F37: 14 | G37: 18 | H37: 0 | I37: 0 | J37: 52 | K37: 0 | L37: 126 | M37: 0 | O37: 0 | Q37: =COUNTIF('Classement auteurs'!B:B,C37) -> 1 | AJ37: 13 | AK37: 42 | AL37: 130987028801 | AM37: Feu Art | AN37: 11 | AO37: 10 | AP37: 15 | AQ37: 0 | AR37: 0 | AS37: 36 | AT37: 0 | AU37: 113 | AV37: 0 | AX37: 0
A38: 13 | B38: 46 | C38: 131956005101 | D38: Litter Litter | E38: 9 | F38: 8 | G38: 17 | H38: 0 | I38: 0 | J38: 34 | K38: 0 | L38: 15 | M38: 0 | O38: 0 | Q38: =COUNTIF('Classement auteurs'!B:B,C38) -> 1 | AJ38: 13 | AK38: 20 | AL38: 130993015101 | AM38: Criquet vert | AN38: 6 | AO38: 6 | AP38: 6 | AQ38: 0 | AR38: 0 | AS38: 18 | AT38: 0 | AU38: 125 | AV38: 0 | AX38: 0
A39: 13 | B39: 47 | C39: 131353000201 | D39: Fleur | E39: 9 | F39: 11 | G39: 13 | H39: 0 | I39: 0 | J39: 33 | K39: 0 | L39: 41 | M39: 0 | O39: 0 | Q39: =COUNTIF('Classement auteurs'!B:B,C39) -> 1 | AJ39: 13 | AK39: 62 | AL39: 130993015401 | AM39: J'étais la plus belle | AN39: 13 | AO39: 15 | AP39: 14 | AQ39: 0 | AR39: 0 | AS39: 42 | AT39: 0 | AU39: 33 | AV39: 0 | AX39: 0
A40: 13 | B40: 48 | C40: 130000019901 | D40: La vie en rose | E40: 10 | F40: 10 | G40: 12 | H40: 0 | I40: 0 | J40: 32 | K40: 0 | L40: 99 | M40: 6 | O40: 0 | Q40: =COUNTIF('Classement auteurs'!B:B,C40) -> 1 | AJ40: 13 | AK40: 73 | AL40: 131110000901 | AM40: Dune | AN40: 16 | AO40: 17 | AP40: 18 | AQ40: 0 | AR40: 0 | AS40: 51 | AT40: 0 | AU40: 130 | AV40: 0 | AX40: 0
A41: 13 | B41: 50 | C41: 132084001701 | D41: Champs d'ail | E41: 11 | F41: 18 | G41: 16 | H41: 0 | I41: 0 | J41: 45 | K41: 0 | L41: 129 | M41: 0 | O41: 0 | Q41: =COUNTIF('Classement auteurs'!B:B,C41) -> 1 | AJ41: 13 | AK41: 134 | AL41: 131110001001 | AM41: Transhumance | AN41: 13 | AO41: 14 | AP41: 14 | AQ41: 0 | AR41: 0 | AS41: 41 | AT41: 0 | AU41: 77 | AV41: 0 | AX41: 0
A42: 13 | B42: 51 | C42: 132060002201 | D42: Collégiennes à Londres | E42: 14 | F42: 11 | G42: 16 | H42: 0 | I42: 0 | J42: 41 | K42: 0 | L42: 88 | M42: 0 | O42: 0 | Q42: =COUNTIF('Classement auteurs'!B:B,C42) -> 1 | AJ42: 13 | AK42: 111 | AL42: 131110001101 | AM42: Lotus au petit matin | AN42: 11 | AO42: 12 | AP42: 13 | AQ42: 0 | AR42: 0 | AS42: 36 | AT42: 0 | AU42: 134 | AV42: 0 | AX42: 0
A43: 13 | B43: 53 | C43: 130878014101 | D43: Tag | E43: 12 | F43: 14 | G43: 10 | H43: 0 | I43: 0 | J43: 36 | K43: 0 | L43: 92 | M43: 0 | O43: 0 | Q43: =COUNTIF('Classement auteurs'!B:B,C43) -> 1 | AJ43: 13 | AK43: 159 | AL43: 131353000101 | AM43: Ambiance automnale | AN43: 14 | AO43: 14 | AP43: 17 | AQ43: 0 | AR43: 0 | AS43: 45 | AT43: 0 | AU43: 110 | AV43: 0 | AX43: 0
A44: 13 | B44: 55 | C44: 131499010101 | D44: Tout l'océan est à eux | E44: 8 | F44: 10 | G44: 19 | H44: 0 | I44: 0 | J44: 37 | K44: 0 | L44: 108 | M44: 0 | O44: 0 | Q44: =COUNTIF('Classement auteurs'!B:B,C44) -> 1 | AJ44: 13 | AK44: 47 | AL44: 131353000201 | AM44: Fleur | AN44: 9 | AO44: 11 | AP44: 13 | AQ44: 0 | AR44: 0 | AS44: 33 | AT44: 0 | AU44: 41 | AV44: 0 | AX44: 0
A45: 13 | B45: 56 | C45: 131499005201 | D45: Rèverie | E45: 13 | F45: 16 | G45: 15 | H45: 0 | I45: 0 | J45: 44 | K45: 0 | L45: 39 | M45: 0 | O45: 0 | Q45: =COUNTIF('Classement auteurs'!B:B,C45) -> 1 | AJ45: 13 | AK45: 158 | AL45: 131353000701 | AM45: Cellulose du Rhône | AN45: 14 | AO45: 20 | AP45: 14 | AQ45: 0 | AR45: 0 | AS45: 48 | AT45: 0 | AU45: 24 | AV45: 0 | AX45: 0
A46: 13 | B46: 57 | C46: 130925010201 | D46: Mae | E46: 12 | F46: 15 | G46: 19 | H46: 0 | I46: 0 | J46: 46 | K46: 0 | L46: 91 | M46: 0 | O46: 0 | Q46: =COUNTIF('Classement auteurs'!B:B,C46) -> 1 | AJ46: 13 | AK46: 63 | AL46: 131353003001 | AM46: Pas facile | AN46: 17 | AO46: 11 | AP46: 17 | AQ46: 0 | AR46: 0 | AS46: 45 | AT46: 0 | AU46: 105 | AV46: 0 | AX46: 0
A47: 13 | B47: 58 | C47: 130987028401 | D47: Marée verte | E47: 6 | F47: 12 | G47: 14 | H47: 0 | I47: 0 | J47: 32 | K47: 0 | L47: 22 | M47: 0 | O47: 0 | Q47: =COUNTIF('Classement auteurs'!B:B,C47) -> 1 | AJ47: 13 | AK47: 107 | AL47: 131353004301 | AM47: Vert et rouge | AN47: 6 | AO47: 6 | AP47: 6 | AQ47: 0 | AR47: 0 | AS47: 18 | AT47: 0 | AU47: 90 | AV47: 0 | AX47: 0
A48: 13 | B48: 59 | C48: 132193000401 | D48: Multicolore | E48: 12 | F48: 14 | G48: 15 | H48: 0 | I48: 0 | J48: 41 | K48: 0 | L48: 82 | M48: 0 | O48: 0 | Q48: =COUNTIF('Classement auteurs'!B:B,C48) -> 1 | AJ48: 13 | AK48: 64 | AL48: 131353007101 | AM48: Street art | AN48: 11 | AO48: 13 | AP48: 13 | AQ48: 0 | AR48: 0 | AS48: 37 | AT48: 0 | AU48: 116 | AV48: 0 | AX48: 0
A49: 13 | B49: 60 | C49: 130527011601 | D49: Repos | E49: 11 | F49: 14 | G49: 14 | H49: 0 | I49: 0 | J49: 39 | K49: 0 | L49: 55 | M49: 0 | O49: 0 | Q49: =COUNTIF('Classement auteurs'!B:B,C49) -> 1 | AJ49: 13 | AK49: 108 | AL49: 131376011801 | AM49: BAMBINS HIMBAS | AN49: 14 | AO49: 16 | AP49: 18 | AQ49: 0 | AR49: 0 | AS49: 48 | AT49: 0 | AU49: 85 | AV49: 7 | AX49: 0
A50: 13 | B50: 61 | C50: 131845004101 | D50: Clair et foncé | E50: 7 | F50: 13 | G50: 9 | H50: 0 | I50: 0 | J50: 29 | K50: 0 | L50: 38 | M50: 0 | O50: 0 | Q50: =COUNTIF('Classement auteurs'!B:B,C50) -> 1 | AJ50: 13 | AK50: 28 | AL50: 131376012601 | AM50: Utopie | AN50: 11 | AO50: 12 | AP50: 8 | AQ50: 0 | AR50: 0 | AS50: 31 | AT50: 0 | AU50: 60 | AV50: 0 | AX50: 0
A51: 13 | B51: 62 | C51: 130993015401 | D51: J'étais la plus belle | E51: 13 | F51: 15 | G51: 14 | H51: 0 | I51: 0 | J51: 42 | K51: 0 | L51: 33 | M51: 0 | O51: 0 | Q51: =COUNTIF('Classement auteurs'!B:B,C51) -> 1 | AJ51: 13 | AK51: 44 | AL51: 131376014701 | AM51: Enfant sous la pluie | AN51: 14 | AO51: 13 | AP51: 16 | AQ51: 0 | AR51: 0 | AS51: 43 | AT51: 0 | AU51: 75 | AV51: 0 | AX51: 0
A52: 13 | B52: 63 | C52: 131353003001 | D52: Pas facile | E52: 17 | F52: 11 | G52: 17 | H52: 0 | I52: 0 | J52: 45 | K52: 0 | L52: 105 | M52: 0 | O52: 0 | Q52: =COUNTIF('Classement auteurs'!B:B,C52) -> 1 | AJ52: 13 | AK52: 136 | AL52: 131376015801 | AM52: Quiétude | AN52: 13 | AO52: 12 | AP52: 11 | AQ52: 0 | AR52: 0 | AS52: =SUM(AN52:AR52) -> 36 | AT52: 0 | AU52: 49 | AV52: 0 | AX52: 0
A53: 13 | B53: 64 | C53: 131353007101 | D53: Street art | E53: 11 | F53: 13 | G53: 13 | H53: 0 | I53: 0 | J53: 37 | K53: 0 | L53: 116 | M53: 0 | O53: 0 | Q53: =COUNTIF('Classement auteurs'!B:B,C53) -> 1 | AJ53: 13 | AK53: 124 | AL53: 131376017601 | AM53: Au fond de mon verre | AN53: 11 | AO53: 9 | AP53: 12 | AQ53: 0 | AR53: 0 | AS53: 32 | AT53: 0 | AU53: 120 | AV53: 0 | AX53: 0
A54: 13 | B54: 65 | C54: 132089000101 | D54: Les Cinq Terres | E54: 11 | F54: 13 | G54: 12 | H54: 0 | I54: 0 | J54: 36 | K54: 0 | L54: 94 | M54: 0 | O54: 0 | Q54: =COUNTIF('Classement auteurs'!B:B,C54) -> 1 | AJ54: 13 | AK54: 66 | AL54: 131376017701 | AM54: Dragster | AN54: 17 | AO54: 16 | AP54: 18 | AQ54: 0 | AR54: 0 | AS54: 51 | AT54: 0 | AU54: 20 | AV54: 0 | AX54: 0
A55: 13 | B55: 66 | C55: 131376017701 | D55: Dragster | E55: 17 | F55: 16 | G55: 18 | H55: 0 | I55: 0 | J55: 51 | K55: 0 | L55: 20 | M55: 0 | O55: 0 | Q55: =COUNTIF('Classement auteurs'!B:B,C55) -> 1 | AJ55: 13 | AK55: 132 | AL55: 131376018001 | AM55: DemonstrationTimesSquare | AN55: 11 | AO55: 13 | AP55: 14 | AQ55: 0 | AR55: 0 | AS55: 38 | AT55: 0 | AU55: 9 | AV55: 0 | AX55: 0
A56: 13 | B56: 67 | C56: 131879000801 | D56: La fille au chapeau | E56: 17 | F56: 16 | G56: 17 | H56: 0 | I56: 0 | J56: 50 | K56: 0 | L56: 115 | M56: 0 | O56: 0 | Q56: =COUNTIF('Classement auteurs'!B:B,C56) -> 1 | AJ56: 13 | AK56: 41 | AL56: 131376018301 | AM56: Rêve d'Orient | AN56: 12 | AO56: 9 | AP56: 10 | AQ56: 0 | AR56: 0 | AS56: 31 | AT56: 0 | AU56: 111 | AV56: 0 | AX56: 0
A57: 13 | B57: 68 | C57: 131499010401 | D57: En course | E57: 11 | F57: 12 | G57: 14 | H57: 0 | I57: 0 | J57: 37 | K57: 0 | L57: 56 | M57: 0 | O57: 0 | Q57: =COUNTIF('Classement auteurs'!B:B,C57) -> 1 | AJ57: 13 | AK57: 113 | AL57: 131494000201 | AM57: Vélo d'enfer | AN57: 13 | AO57: 10 | AP57: 16 | AQ57: 0 | AR57: 0 | AS57: 39 | AT57: 0 | AU57: 78 | AV57: 0 | AX57: 0
A58: 13 | B58: 69 | C58: 131823004901 | D58: Flamenco à Gorbio | E58: 16 | F58: 14 | G58: 14 | H58: 0 | I58: 0 | J58: 44 | K58: 0 | L58: 64 | M58: 0 | O58: 0 | Q58: =COUNTIF('Classement auteurs'!B:B,C58) -> 1 | AJ58: 13 | AK58: 129 | AL58: 131499003601 | AM58: Casquettes | AN58: 9 | AO58: 10 | AP58: 15 | AQ58: 0 | AR58: 0 | AS58: 34 | AT58: 0 | AU58: 102 | AV58: 0 | AX58: 0
A59: 13 | B59: 70 | C59: 131956004501 | D59: Paganello | E59: 13 | F59: 14 | G59: 11 | H59: 0 | I59: 0 | J59: 38 | K59: 0 | L59: 3 | M59: 0 | O59: 0 | Q59: =COUNTIF('Classement auteurs'!B:B,C59) -> 1 | AJ59: 13 | AK59: 75 | AL59: 131499003901 | AM59: Ablution | AN59: 15 | AO59: 14 | AP59: 13 | AQ59: 0 | AR59: 0 | AS59: 42 | AT59: 0 | AU59: 107 | AV59: 0 | AX59: 0
A60: 13 | B60: 71 | C60: 131956003401 | D60: Feerie | E60: 11 | F60: 15 | G60: 11 | H60: 0 | I60: 0 | J60: 37 | K60: 0 | L60: 68 | M60: 0 | O60: 0 | Q60: =COUNTIF('Classement auteurs'!B:B,C60) -> 1 | AJ60: 13 | AK60: 56 | AL60: 131499005201 | AM60: Rèverie | AN60: 13 | AO60: 16 | AP60: 15 | AQ60: 0 | AR60: 0 | AS60: 44 | AT60: 0 | AU60: 39 | AV60: 0 | AX60: 0
A61: 13 | B61: 72 | C61: 131683007901 | D61: Regard perçant | E61: 18 | F61: 16 | G61: 20 | H61: 0 | I61: 0 | J61: 54 | K61: 0 | L61: 70 | M61: 0 | O61: 0 | Q61: =COUNTIF('Classement auteurs'!B:B,C61) -> 1 | AJ61: 13 | AK61: 117 | AL61: 131499006801 | AM61: Reflets sur St Honorat | AN61: 13 | AO61: 8 | AP61: 14 | AQ61: 0 | AR61: 0 | AS61: 35 | AT61: 0 | AU61: 45 | AV61: 0 | AX61: 0
A62: 13 | B62: 73 | C62: 131110000901 | D62: Dune | E62: 16 | F62: 17 | G62: 18 | H62: 0 | I62: 0 | J62: 51 | K62: 0 | L62: 130 | M62: 0 | O62: 0 | Q62: =COUNTIF('Classement auteurs'!B:B,C62) -> 1 | AJ62: 13 | AK62: 140 | AL62: 131499006901 | AM62: Florence | AN62: 10 | AO62: 16 | AP62: 16 | AQ62: 0 | AR62: 0 | AS62: 42 | AT62: 0 | AU62: 81 | AV62: 0 | AX62: 0
A63: 13 | B63: 74 | C63: 132086001401 | D63: TEMPS DE PAUSE | E63: 10 | F63: 12 | G63: 11 | H63: 0 | I63: 0 | J63: 33 | K63: 0 | L63: 121 | M63: 0 | O63: 0 | Q63: =COUNTIF('Classement auteurs'!B:B,C63) -> 1 | AJ63: 13 | AK63: 131 | AL63: 131499008201 | AM63: Champ jaune et vert | AN63: 12 | AO63: 17 | AP63: 16 | AQ63: 0 | AR63: 0 | AS63: 45 | AT63: 0 | AU63: 35 | AV63: 0 | AX63: 0
A64: 13 | B64: 75 | C64: 131499003901 | D64: Ablution | E64: 15 | F64: 14 | G64: 13 | H64: 0 | I64: 0 | J64: 42 | K64: 0 | L64: 107 | M64: 0 | O64: 0 | Q64: =COUNTIF('Classement auteurs'!B:B,C64) -> 1 | AJ64: 13 | AK64: 14 | AL64: 131499008701 | AM64: Geisha | AN64: 15 | AO64: 14 | AP64: 15 | AQ64: 0 | AR64: 0 | AS64: 44 | AT64: 0 | AU64: 43 | AV64: 0 | AX64: 0
A65: 13 | B65: 76 | C65: 132060001701 | D65: Luminaires | E65: 11 | F65: 14 | G65: 12 | H65: 0 | I65: 0 | J65: 37 | K65: 0 | L65: 101 | M65: 0 | O65: 0 | Q65: =COUNTIF('Classement auteurs'!B:B,C65) -> 1 | AJ65: 13 | AK65: 114 | AL65: 131499009301 | AM65: Lights | AN65: 8 | AO65: 14 | AP65: 7 | AQ65: 0 | AR65: 0 | AS65: 29 | AT65: 0 | AU65: 80 | AV65: 0 | AX65: 0
A66: 13 | B66: 77 | C66: 132103002301 | D66: Couleurs du Japon | E66: 12 | F66: 16 | G66: 18 | H66: 0 | I66: 0 | J66: 46 | K66: 0 | L66: 17 | M66: 0 | O66: 0 | Q66: =COUNTIF('Classement auteurs'!B:B,C66) -> 1 | AJ66: 13 | AK66: 102 | AL66: 131499009801 | AM66: Mystère | AN66: 10 | AO66: 15 | AP66: 17 | AQ66: 0 | AR66: 0 | AS66: 42 | AT66: 0 | AU66: 10 | AV66: 0 | AX66: 0
A67: 13 | B67: 78 | C67: 132089000201 | D67: CD en MACRO | E67: 7 | F67: 8 | G67: 9 | H67: 0 | I67: 0 | J67: =SUM(E67:I67) -> 24 | K67: 0 | L67: 23 | M67: 0 | O67: 0 | Q67: =COUNTIF('Classement auteurs'!B:B,C67) -> 1 | AJ67: 13 | AK67: 100 | AL67: 131499010001 | AM67: Une jolie voix de Cassel | AN67: 11 | AO67: 15 | AP67: 16 | AQ67: 0 | AR67: 0 | AS67: 42 | AT67: 0 | AU67: 100 | AV67: 0 | AX67: 0
A68: 13 | B68: 79 | C68: 131862002201 | D68: Automne | E68: 15 | F68: 13 | G68: 13 | H68: 0 | I68: 0 | J68: 41 | K68: 0 | L68: 135 | M68: 0 | O68: 0 | Q68: =COUNTIF('Classement auteurs'!B:B,C68) -> 1 | AJ68: 13 | AK68: 55 | AL68: 131499010101 | AM68: Tout l'océan est à eux | AN68: 8 | AO68: 10 | AP68: 19 | AQ68: 0 | AR68: 0 | AS68: 37 | AT68: 0 | AU68: 108 | AV68: 0 | AX68: 0
A69: 13 | B69: 81 | C69: 131956000401 | D69: Gourmandise | E69: 12 | F69: 9 | G69: 12 | H69: 0 | I69: 0 | J69: 33 | K69: 0 | L69: 112 | M69: 0 | O69: 0 | Q69: =COUNTIF('Classement auteurs'!B:B,C69) -> 1 | AJ69: 13 | AK69: 68 | AL69: 131499010401 | AM69: En course | AN69: 11 | AO69: 12 | AP69: 14 | AQ69: 0 | AR69: 0 | AS69: 37 | AT69: 0 | AU69: 56 | AV69: 0 | AX69: 0
A70: 13 | B70: 82 | C70: 130527012401 | D70: Mistral | E70: 12 | F70: 12 | G70: 17 | H70: 0 | I70: 0 | J70: 41 | K70: 0 | L70: 12 | M70: 0 | O70: 0 | Q70: =COUNTIF('Classement auteurs'!B:B,C70) -> 1 | AJ70: 13 | AK70: 96 | AL70: 131499010501 | AM70: Au musée | AN70: 9 | AO70: 13 | AP70: 13 | AQ70: 0 | AR70: 0 | AS70: 35 | AT70: 0 | AU70: 95 | AV70: 0 | AX70: 0
A71: 13 | B71: 83 | C71: 131683005101 | D71: La Crau un autre désert | E71: 9 | F71: 12 | G71: 15 | H71: 0 | I71: 0 | J71: 36 | K71: 0 | L71: 84 | M71: 0 | O71: 0 | Q71: =COUNTIF('Classement auteurs'!B:B,C71) -> 1 | AJ71: 13 | AK71: 97 | AL71: 131499010601 | AM71: Petits navires ... | AN71: 14 | AO71: 15 | AP71: 17 | AQ71: 0 | AR71: 0 | AS71: 46 | AT71: 0 | AU71: 47 | AV71: 0 | AX71: 0
A72: 13 | B72: 84 | C72: 131956006001 | D72: Light under the milky way | E72: 16 | F72: 17 | G72: 17 | H72: 0 | I72: 0 | J72: 50 | K72: 0 | L72: 104 | M72: 0 | O72: 0 | Q72: =COUNTIF('Classement auteurs'!B:B,C72) -> 1 | AJ72: 13 | AK72: 88 | AL72: 131619004201 | AM72: DEMOISELLE | AN72: 6 | AO72: 6 | AP72: 6 | AQ72: 0 | AR72: 0 | AS72: 18 | AT72: 0 | AU72: 86 | AV72: 0 | AX72: 0
A73: 13 | B73: 85 | C73: 132060002001 | D73: Bleu, blanc, rouge | E73: 12 | F73: 15 | G73: 16 | H73: 0 | I73: 0 | J73: 43 | K73: 0 | L73: 137 | M73: 0 | O73: 0 | Q73: =COUNTIF('Classement auteurs'!B:B,C73) -> 1 | AJ73: 13 | AK73: 137 | AL73: 131619004501 | AM73: Foncouverte | AN73: 19 | AO73: 14 | AP73: 18 | AQ73: 0 | AR73: 0 | AS73: 51 | AT73: 0 | AU73: 133 | AV73: 0 | AX73: 0
A74: 13 | B74: 86 | C74: 130000020401 | D74: Je t'ai à l'oeil | E74: 8 | F74: 11 | G74: 12 | H74: 0 | I74: 0 | J74: 31 | K74: 0 | L74: 13 | M74: 6 | O74: 0 | Q74: =COUNTIF('Classement auteurs'!B:B,C74) -> 1 | AJ74: 13 | AK74: 109 | AL74: 131619004601 | AM74: Balle au nez | AN74: 9 | AO74: 12 | AP74: 14 | AQ74: 0 | AR74: 0 | AS74: 35 | AT74: 0 | AU74: 44 | AV74: 0 | AX74: 0
A75: 13 | B75: 88 | C75: 131619004201 | D75: DEMOISELLE | E75: 6 | F75: 6 | G75: 6 | H75: 0 | I75: 0 | J75: 18 | K75: 0 | L75: 86 | M75: 0 | O75: 0 | Q75: =COUNTIF('Classement auteurs'!B:B,C75) -> 1 | AJ75: 13 | AK75: 43 | AL75: 131683000701 | AM75: SAYONARA | AN75: 10 | AO75: 11 | AP75: 11 | AQ75: 0 | AR75: 0 | AS75: 32 | AT75: 0 | AU75: 2 | AV75: 0 | AX75: 0
A76: 13 | B76: 89 | C76: 130527013301 | D76: Rue de Cuba | E76: 13 | F76: 14 | G76: 20 | H76: 0 | I76: 0 | J76: 47 | K76: 0 | L76: 97 | M76: 0 | O76: 0 | Q76: =COUNTIF('Classement auteurs'!B:B,C76) -> 1 | AJ76: 13 | AK76: 83 | AL76: 131683005101 | AM76: La Crau un autre désert | AN76: 9 | AO76: 12 | AP76: 15 | AQ76: 0 | AR76: 0 | AS76: 36 | AT76: 0 | AU76: 84 | AV76: 0 | AX76: 0
A77: 13 | B77: 90 | C77: 130527006401 | D77: Bleu, blanc, noir | E77: 6 | F77: 16 | G77: 14 | H77: 0 | I77: 0 | J77: 36 | K77: 0 | L77: 71 | M77: 0 | O77: 0 | Q77: =COUNTIF('Classement auteurs'!B:B,C77) -> 1 | AJ77: 13 | AK77: 35 | AL77: 131683006301 | AM77: Avant l'orage | AN77: 18 | AO77: 19 | AP77: 20 | AQ77: 0 | AR77: 0 | AS77: 57 | AT77: 0 | AU77: 93 | AV77: 0 | AX77: 0
A78: 13 | B78: 91 | C78: 131879001301 | D78: Le chat | E78: 12 | F78: 15 | G78: 15 | H78: 0 | I78: 0 | J78: 42 | K78: 0 | L78: 118 | M78: 0 | O78: 0 | Q78: =COUNTIF('Classement auteurs'!B:B,C78) -> 1 | AJ78: 13 | AK78: 126 | AL78: 131683006601 | AM78: La fillette et sa glace | AN78: 13 | AO78: 11 | AP78: 16 | AQ78: 0 | AR78: 0 | AS78: 40 | AT78: 0 | AU78: 21 | AV78: 0 | AX78: 0
A79: 13 | B79: 92 | C79: 132060002401 | D79: Orchidées incandescents | E79: 7 | F79: 14 | G79: 14 | H79: 0 | I79: 0 | J79: 35 | K79: 0 | L79: 51 | M79: 0 | O79: 0 | Q79: =COUNTIF('Classement auteurs'!B:B,C79) -> 1 | AJ79: 13 | AK79: 72 | AL79: 131683007901 | AM79: Regard perçant | AN79: 18 | AO79: 16 | AP79: 20 | AQ79: 0 | AR79: 0 | AS79: 54 | AT79: 0 | AU79: 70 | AV79: 0 | AX79: 0
A80: 13 | B80: 93 | C80: 130527002501 | D80: Parapluies | E80: 14 | F80: 15 | G80: 12 | H80: 0 | I80: 0 | J80: 41 | K80: 0 | L80: 63 | M80: 0 | O80: 0 | Q80: =COUNTIF('Classement auteurs'!B:B,C80) -> 1 | AJ80: 13 | AK80: 12 | AL80: 131683008001 | AM80: Transparences | AN80: 19 | AO80: 13 | AP80: 16 | AQ80: 0 | AR80: 0 | AS80: 48 | AT80: 0 | AU80: 59 | AV80: 0 | AX80: 0
A81: 13 | B81: 94 | C81: 132060000901 | D81: Face au mur | E81: 13 | F81: 9 | G81: 13 | H81: 0 | I81: 0 | J81: 35 | K81: 0 | L81: 30 | M81: 0 | O81: 0 | Q81: =COUNTIF('Classement auteurs'!B:B,C81) -> 1 | AJ81: 13 | AK81: 69 | AL81: 131823004901 | AM81: Flamenco à Gorbio | AN81: 16 | AO81: 14 | AP81: 14 | AQ81: 0 | AR81: 0 | AS81: 44 | AT81: 0 | AU81: 64 | AV81: 0 | AX81: 0
A82: 13 | B82: 95 | C82: 132060001801 | D82: No limit | E82: 10 | F82: 13 | G82: 15 | H82: 0 | I82: 0 | J82: 38 | K82: 0 | L82: 74 | M82: 0 | O82: 0 | Q82: =COUNTIF('Classement auteurs'!B:B,C82) -> 1 | AJ82: 13 | AK82: 120 | AL82: 131823005701 | AM82: Cannes régates royales | AN82: 10 | AO82: 11 | AP82: 15 | AQ82: 0 | AR82: 0 | AS82: 36 | AT82: 0 | AU82: 124 | AV82: 0 | AX82: 0
A83: 13 | B83: 96 | C83: 131499010501 | D83: Au musée | E83: 9 | F83: 13 | G83: 13 | H83: 0 | I83: 0 | J83: 35 | K83: 0 | L83: 95 | M83: 0 | O83: 0 | Q83: =COUNTIF('Classement auteurs'!B:B,C83) -> 1 | AJ83: 13 | AK83: 143 | AL83: 131823007601 | AM83: Orange Grassoise | AN83: 8 | AO83: 11 | AP83: 14 | AQ83: 0 | AR83: 0 | AS83: 33 | AT83: 0 | AU83: 46 | AV83: 0 | AX83: 0
A84: 13 | B84: 97 | C84: 131499010601 | D84: Petits navires ... | E84: 14 | F84: 15 | G84: 17 | H84: 0 | I84: 0 | J84: 46 | K84: 0 | L84: 47 | M84: 0 | O84: 0 | Q84: =COUNTIF('Classement auteurs'!B:B,C84) -> 1 | AJ84: 13 | AK84: 115 | AL84: 131823007801 | AM84: Eucalyptus | AN84: 8 | AO84: 10 | AP84: 12 | AQ84: 0 | AR84: 0 | AS84: =SUM(AN84:AR84) -> 30 | AT84: 0 | AU84: 11 | AV84: 0 | AX84: 0
A85: 13 | B85: 98 | C85: 131862001101 | D85: Le guitariste | E85: 10 | F85: 9 | G85: 10 | H85: 0 | I85: 0 | J85: 29 | K85: 0 | L85: 72 | M85: 0 | O85: 0 | Q85: =COUNTIF('Classement auteurs'!B:B,C85) -> 1 | AJ85: 13 | AK85: 45 | AL85: 131824001901 | AM85: Juste une éclaircie | AN85: 20 | AO85: 14 | AP85: 18 | AQ85: 0 | AR85: 0 | AS85: 52 | AT85: 0 | AU85: 126 | AV85: 0 | AX85: 0
A86: 13 | B86: 99 | C86: 130987023901 | D86: Street Painting | E86: 10 | F86: 15 | G86: 15 | H86: 0 | I86: 0 | J86: 40 | K86: 0 | L86: 27 | M86: 0 | O86: 0 | Q86: =COUNTIF('Classement auteurs'!B:B,C86) -> 1 | AJ86: 13 | AK86: 30 | AL86: 131824003101 | AM86: Ice attack | AN86: 12 | AO86: 13 | AP86: 17 | AQ86: 0 | AR86: 0 | AS86: 42 | AT86: 0 | AU86: 89 | AV86: 0 | AX86: 0
A87: 13 | B87: 100 | C87: 131499010001 | D87: Une jolie voix de Cassel | E87: 11 | F87: 15 | G87: 16 | H87: 0 | I87: 0 | J87: 42 | K87: 0 | L87: 100 | M87: 0 | O87: 0 | Q87: =COUNTIF('Classement auteurs'!B:B,C87) -> 1 | AJ87: 13 | AK87: 6 | AL87: 131845000101 | AM87: Skate Park | AN87: 12 | AO87: 12 | AP87: 18 | AQ87: 0 | AR87: 0 | AS87: 42 | AT87: 0 | AU87: 132 | AV87: 0 | AX87: 0
A88: 13 | B88: 101 | C88: 130925008401 | D88: Chorégraphie | E88: 16 | F88: 16 | G88: 19 | H88: 0 | I88: 0 | J88: 51 | K88: 0 | L88: 76 | M88: 0 | O88: 0 | Q88: =COUNTIF('Classement auteurs'!B:B,C88) -> 1 | AJ88: 13 | AK88: 149 | AL88: 131845001101 | AM88: ...vers la culture | AN88: 14 | AO88: 13 | AP88: 14 | AQ88: 0 | AR88: 0 | AS88: 41 | AT88: 0 | AU88: 28 | AV88: 0 | AX88: 0
A89: 13 | B89: 102 | C89: 131499009801 | D89: Mystère | E89: 10 | F89: 15 | G89: 17 | H89: 0 | I89: 0 | J89: 42 | K89: 0 | L89: 10 | M89: 0 | O89: 0 | Q89: =COUNTIF('Classement auteurs'!B:B,C89) -> 1 | AJ89: 13 | AK89: 118 | AL89: 131845001401 | AM89: Seul au monde | AN89: 11 | AO89: 13 | AP89: 17 | AQ89: 0 | AR89: 0 | AS89: 41 | AT89: 0 | AU89: 19 | AV89: 0 | AX89: 0
A90: 13 | B90: 104 | C90: 130527015501 | D90: Roses | E90: 14 | F90: 19 | G90: 13 | H90: 0 | I90: 0 | J90: 46 | K90: 0 | L90: 32 | M90: 0 | O90: 0 | Q90: =COUNTIF('Classement auteurs'!B:B,C90) -> 1 | AJ90: 13 | AK90: 122 | AL90: 131845004001 | AM90: Le cheval de cirque | AN90: 7 | AO90: 16 | AP90: 17 | AQ90: 0 | AR90: 0 | AS90: 40 | AT90: 0 | AU90: 103 | AV90: 0 | AX90: 0
A91: 13 | B91: 105 | C91: 132060001501 | D91: Profitons vite | E91: 9 | F91: 12 | G91: 14 | H91: 0 | I91: 0 | J91: 35 | K91: 0 | L91: 96 | M91: 0 | O91: 0 | Q91: =COUNTIF('Classement auteurs'!B:B,C91) -> 1 | AJ91: 13 | AK91: 148 | AL91: 131845002101 | AM91: Abandon | AN91: 9 | AO91: 13 | AP91: 16 | AQ91: 0 | AR91: 0 | AS91: 38 | AT91: 0 | AU91: 87 | AV91: 0 | AX91: 0
A92: 13 | B92: 106 | C92: 130925008601 | D92: Rouge | E92: 13 | F92: 7 | G92: 13 | H92: 0 | I92: 0 | J92: 33 | K92: 0 | L92: 66 | M92: 0 | O92: 0 | Q92: =COUNTIF('Classement auteurs'!B:B,C92) -> 1 | AJ92: 13 | AK92: 10 | AL92: 131845000301 | AM92: Variation d'ocres | AN92: 9 | AO92: 13 | AP92: 14 | AQ92: 0 | AR92: 0 | AS92: 36 | AT92: 0 | AU92: 53 | AV92: 0 | AX92: 0
A93: 13 | B93: 107 | C93: 131353004301 | D93: Vert et rouge | E93: 6 | F93: 6 | G93: 6 | H93: 0 | I93: 0 | J93: 18 | K93: 0 | L93: 90 | M93: 0 | O93: 0 | Q93: =COUNTIF('Classement auteurs'!B:B,C93) -> 1 | AJ93: 13 | AK93: 5 | AL93: 131845000801 | AM93: Le soleil se lève | AN93: 13 | AO93: 12 | AP93: 11 | AQ93: 0 | AR93: 0 | AS93: 36 | AT93: 0 | AU93: 136 | AV93: 0 | AX93: 0
A94: 13 | B94: 108 | C94: 131376011801 | D94: BAMBINS HIMBAS | E94: 14 | F94: 16 | G94: 18 | H94: 0 | I94: 0 | J94: 48 | K94: 0 | L94: 85 | M94: 7 | O94: 0 | Q94: =COUNTIF('Classement auteurs'!B:B,C94) -> 1 | AJ94: 13 | AK94: 116 | AL94: 131845002501 | AM94: Avenue de Tayac | AN94: 7 | AO94: 13 | AP94: 10 | AQ94: 0 | AR94: 0 | AS94: 30 | AT94: 0 | AU94: 98 | AV94: 0 | AX94: 0
A95: 13 | B95: 109 | C95: 131619004601 | D95: Balle au nez | E95: 9 | F95: 12 | G95: 14 | H95: 0 | I95: 0 | J95: 35 | K95: 0 | L95: 44 | M95: 0 | O95: 0 | Q95: =COUNTIF('Classement auteurs'!B:B,C95) -> 1 | AJ95: 13 | AK95: 61 | AL95: 131845004101 | AM95: Clair et foncé | AN95: 7 | AO95: 13 | AP95: 9 | AQ95: 0 | AR95: 0 | AS95: 29 | AT95: 0 | AU95: 38 | AV95: 0 | AX95: 0
A96: 13 | B96: 110 | C96: 130000020801 | D96: Un soir sur la Saône | E96: 13 | F96: 13 | G96: 14 | H96: 0 | I96: 0 | J96: 40 | K96: 0 | L96: 34 | M96: 6 | O96: 0 | Q96: =COUNTIF('Classement auteurs'!B:B,C96) -> 1 | AJ96: 13 | AK96: 1 | AL96: 131845003401 | AM96: Avant la régate | AN96: 9 | AO96: 7 | AP96: 12 | AQ96: 0 | AR96: 0 | AS96: 28 | AT96: 0 | AU96: 31 | AV96: 0 | AX96: 0
A97: 13 | B97: 111 | C97: 131110001101 | D97: Lotus au petit matin | E97: 11 | F97: 12 | G97: 13 | H97: 0 | I97: 0 | J97: 36 | K97: 0 | L97: 134 | M97: 0 | O97: 0 | Q97: =COUNTIF('Classement auteurs'!B:B,C97) -> 1 | AJ97: 13 | AK97: 127 | AL97: 131862000801 | AM97: Bleu de nice | AN97: 15 | AO97: 17 | AP97: 19 | AQ97: 0 | AR97: 0 | AS97: 51 | AT97: 0 | AU97: 8 | AV97: 0 | AX97: 0
A98: 13 | B98: 113 | C98: 131494000201 | D98: Vélo d'enfer | E98: 13 | F98: 10 | G98: 16 | H98: 0 | I98: 0 | J98: 39 | K98: 0 | L98: 78 | M98: 0 | O98: 0 | Q98: =COUNTIF('Classement auteurs'!B:B,C98) -> 1 | AJ98: 13 | AK98: 98 | AL98: 131862001101 | AM98: Le guitariste | AN98: 10 | AO98: 9 | AP98: 10 | AQ98: 0 | AR98: 0 | AS98: 29 | AT98: 0 | AU98: 72 | AV98: 0 | AX98: 0
A99: 13 | B99: 114 | C99: 131499009301 | D99: Lights | E99: 8 | F99: 14 | G99: 7 | H99: 0 | I99: 0 | J99: 29 | K99: 0 | L99: 80 | M99: 0 | O99: 0 | Q99: =COUNTIF('Classement auteurs'!B:B,C99) -> 1 | AJ99: 13 | AK99: 79 | AL99: 131862002201 | AM99: Automne | AN99: 15 | AO99: 13 | AP99: 13 | AQ99: 0 | AR99: 0 | AS99: 41 | AT99: 0 | AU99: 135 | AV99: 0 | AX99: 0
A100: 13 | B100: 115 | C100: 131823007801 | D100: Eucalyptus | E100: 8 | F100: 10 | G100: 12 | H100: 0 | I100: 0 | J100: 30 | K100: 0 | L100: 11 | M100: 0 | O100: 0 | Q100: =COUNTIF('Classement auteurs'!B:B,C100) -> 1 | AJ100: 13 | AK100: 22 | AL100: 131879000101 | AM100: Tangueros | AN100: 12 | AO100: 16 | AP100: 13 | AQ100: 0 | AR100: 0 | AS100: 41 | AT100: 0 | AU100: 67 | AV100: 0 | AX100: 0
A101: 13 | B101: 116 | C101: 131845002501 | D101: Avenue de Tayac | E101: 7 | F101: 13 | G101: 10 | H101: 0 | I101: 0 | J101: 30 | K101: 0 | L101: 98 | M101: 0 | O101: 0 | Q101: =COUNTIF('Classement auteurs'!B:B,C101) -> 1 | AJ101: 13 | AK101: 27 | AL101: 131879000501 | AM101: Barques | AN101: 12 | AO101: 12 | AP101: 14 | AQ101: 0 | AR101: 0 | AS101: 38 | AT101: 0 | AU101: 127 | AV101: 0 | AX101: 0
A102: 13 | B102: 117 | C102: 131499006801 | D102: Reflets sur St Honorat | E102: 13 | F102: 8 | G102: 14 | H102: 0 | I102: 0 | J102: 35 | K102: 0 | L102: 45 | M102: 0 | O102: 0 | Q102: =COUNTIF('Classement auteurs'!B:B,C102) -> 1 | AJ102: 13 | AK102: 21 | AL102: 131879000601 | AM102: Hong Kong la nuit | AN102: 15 | AO102: 17 | AP102: 15 | AQ102: 0 | AR102: 0 | AS102: 47 | AT102: 0 | AU102: 4 | AV102: 0 | AX102: 0
A103: 13 | B103: 118 | C103: 131845001401 | D103: Seul au monde | E103: 11 | F103: 13 | G103: 17 | H103: 0 | I103: 0 | J103: 41 | K103: 0 | L103: 19 | M103: 0 | O103: 0 | Q103: =COUNTIF('Classement auteurs'!B:B,C103) -> 1 | AJ103: 13 | AK103: 67 | AL103: 131879000801 | AM103: La fille au chapeau | AN103: 17 | AO103: 16 | AP103: 17 | AQ103: 0 | AR103: 0 | AS103: 50 | AT103: 0 | AU103: 115 | AV103: 0 | AX103: 0
A104: 13 | B104: 119 | C104: 130878015201 | D104: Magie des lumières | E104: 13 | F104: 14 | G104: 16 | H104: 0 | I104: 0 | J104: 43 | K104: 0 | L104: 122 | M104: 0 | O104: 0 | Q104: =COUNTIF('Classement auteurs'!B:B,C104) -> 1 | AJ104: 13 | AK104: 91 | AL104: 131879001301 | AM104: Le chat | AN104: 12 | AO104: 15 | AP104: 15 | AQ104: 0 | AR104: 0 | AS104: 42 | AT104: 0 | AU104: 118 | AV104: 0 | AX104: 0
A105: 13 | B105: 120 | C105: 131823005701 | D105: Cannes régates royales | E105: 10 | F105: 11 | G105: 15 | H105: 0 | I105: 0 | J105: 36 | K105: 0 | L105: 124 | M105: 0 | O105: 0 | Q105: =COUNTIF('Classement auteurs'!B:B,C105) -> 1 | AJ105: 13 | AK105: 81 | AL105: 131956000401 | AM105: Gourmandise | AN105: 12 | AO105: 9 | AP105: 12 | AQ105: 0 | AR105: 0 | AS105: 33 | AT105: 0 | AU105: 112 | AV105: 0 | AX105: 0
A106: 13 | B106: 121 | C106: 132060003301 | D106: Floraison | E106: 7 | F106: 11 | G106: 10 | H106: 0 | I106: 0 | J106: 28 | K106: 0 | L106: 128 | M106: 7 | O106: 0 | Q106: =COUNTIF('Classement auteurs'!B:B,C106) -> 1 | AJ106: 13 | AK106: 151 | AL106: 131956002401 | AM106: Chut Silence | AN106: 8 | AO106: 11 | AP106: 9 | AQ106: 0 | AR106: 0 | AS106: 28 | AT106: 0 | AU106: 16 | AV106: 0 | AX106: 0
A107: 13 | B107: 122 | C107: 131845004001 | D107: Le cheval de cirque | E107: 7 | F107: 16 | G107: 17 | H107: 0 | I107: 0 | J107: 40 | K107: 0 | L107: 103 | M107: 0 | O107: 0 | Q107: =COUNTIF('Classement auteurs'!B:B,C107) -> 1 | AJ107: 13 | AK107: 152 | AL107: 131956002901 | AM107: Rouge salant | AN107: 14 | AO107: 14 | AP107: 15 | AQ107: 0 | AR107: 0 | AS107: 43 | AT107: 0 | AU107: 5 | AV107: 0 | AX107: 0
A108: 13 | B108: 123 | C108: 130925007701 | D108: Arbres pétrifiés | E108: 15 | F108: 13 | G108: 18 | H108: 0 | I108: 0 | J108: 46 | K108: 0 | L108: 37 | M108: 0 | O108: 0 | Q108: =COUNTIF('Classement auteurs'!B:B,C108) -> 1 | AJ108: 13 | AK108: 71 | AL108: 131956003401 | AM108: Feerie | AN108: 11 | AO108: 15 | AP108: 11 | AQ108: 0 | AR108: 0 | AS108: 37 | AT108: 0 | AU108: 68 | AV108: 0 | AX108: 0
A109: 13 | B109: 124 | C109: 131376017601 | D109: Au fond de mon verre | E109: 11 | F109: 9 | G109: 12 | H109: 0 | I109: 0 | J109: 32 | K109: 0 | L109: 120 | M109: 0 | O109: 0 | Q109: =COUNTIF('Classement auteurs'!B:B,C109) -> 1 | AJ109: 13 | AK109: 70 | AL109: 131956004501 | AM109: Paganello | AN109: 13 | AO109: 14 | AP109: 11 | AQ109: 0 | AR109: 0 | AS109: 38 | AT109: 0 | AU109: 3 | AV109: 0 | AX109: 0
A110: 13 | B110: 126 | C110: 131683006601 | D110: La fillette et sa glace | E110: 13 | F110: 11 | G110: 16 | H110: 0 | I110: 0 | J110: 40 | K110: 0 | L110: 21 | M110: 0 | O110: 0 | Q110: =COUNTIF('Classement auteurs'!B:B,C110) -> 1 | AJ110: 13 | AK110: 46 | AL110: 131956005101 | AM110: Litter Litter | AN110: 9 | AO110: 8 | AP110: 17 | AQ110: 0 | AR110: 0 | AS110: 34 | AT110: 0 | AU110: 15 | AV110: 0 | AX110: 0
A111: 13 | B111: 127 | C111: 131862000801 | D111: Bleu de nice | E111: 15 | F111: 17 | G111: 19 | H111: 0 | I111: 0 | J111: 51 | K111: 0 | L111: 8 | M111: 0 | O111: 0 | Q111: =COUNTIF('Classement auteurs'!B:B,C111) -> 1 | AJ111: 13 | AK111: 156 | AL111: 131956005701 | AM111: Solitudes | AN111: 11 | AO111: 12 | AP111: 13 | AQ111: 0 | AR111: 0 | AS111: 36 | AT111: 0 | AU111: 62 | AV111: 0 | AX111: 0
A112: 13 | B112: 128 | C112: 132089000301 | D112: Festirun | E112: 10 | F112: 10 | G112: 11 | H112: 0 | I112: 0 | J112: 31 | K112: 0 | L112: 40 | M112: 0 | O112: 0 | Q112: =COUNTIF('Classement auteurs'!B:B,C112) -> 1 | AJ112: 13 | AK112: 138 | AL112: 131956005901 | AM112: Couleurs de Montréal | AN112: 10 | AO112: 15 | AP112: 18 | AQ112: 0 | AR112: 0 | AS112: 43 | AT112: 0 | AU112: 52 | AV112: 0 | AX112: 0
A113: 13 | B113: 129 | C113: 131499003601 | D113: Casquettes | E113: 9 | F113: 10 | G113: 15 | H113: 0 | I113: 0 | J113: 34 | K113: 0 | L113: 102 | M113: 0 | O113: 0 | Q113: =COUNTIF('Classement auteurs'!B:B,C113) -> 1 | AJ113: 13 | AK113: 84 | AL113: 131956006001 | AM113: Light under the milky way | AN113: 16 | AO113: 17 | AP113: 17 | AQ113: 0 | AR113: 0 | AS113: 50 | AT113: 0 | AU113: 104 | AV113: 0 | AX113: 0
A114: 13 | B114: 130 | C114: 130925009801 | D114: Vite ! | E114: 14 | F114: 14 | G114: 16 | H114: 0 | I114: 0 | J114: 44 | K114: 0 | L114: 18 | M114: 0 | O114: 0 | Q114: =COUNTIF('Classement auteurs'!B:B,C114) -> 1 | AJ114: 13 | AK114: 19 | AL114: 131992000301 | AM114: Le tatoueur de Madurai. | AN114: 12 | AO114: 12 | AP114: 16 | AQ114: 0 | AR114: 0 | AS114: 40 | AT114: 0 | AU114: 25 | AV114: 0 | AX114: 0
A115: 13 | B115: 131 | C115: 131499008201 | D115: Champ jaune et vert | E115: 12 | F115: 17 | G115: 16 | H115: 0 | I115: 0 | J115: 45 | K115: 0 | L115: 35 | M115: 0 | O115: 0 | Q115: =COUNTIF('Classement auteurs'!B:B,C115) -> 1 | AJ115: 13 | AK115: 36 | AL115: 132060000101 | AM115: Signature artistique | AN115: 6 | AO115: 16 | AP115: 7 | AQ115: 0 | AR115: 0 | AS115: 29 | AT115: 0 | AU115: 26 | AV115: 0 | AX115: 0
A116: 13 | B116: 132 | C116: 131376018001 | D116: DemonstrationTimesSquare | E116: 11 | F116: 13 | G116: 14 | H116: 0 | I116: 0 | J116: 38 | K116: 0 | L116: 9 | M116: 0 | O116: 0 | Q116: =COUNTIF('Classement auteurs'!B:B,C116) -> 1 | AJ116: 13 | AK116: 139 | AL116: 132060000401 | AM116: Butineuse au travail | AN116: 6 | AO116: 6 | AP116: 6 | AQ116: 0 | AR116: 0 | AS116: =SUM(AN116:AR116) -> 18 | AT116: 0 | AU116: 65 | AV116: 0 | AX116: 0
A117: 13 | B117: 134 | C117: 131110001001 | D117: Transhumance | E117: 13 | F117: 14 | G117: 14 | H117: 0 | I117: 0 | J117: 41 | K117: 0 | L117: 77 | M117: 0 | O117: 0 | Q117: =COUNTIF('Classement auteurs'!B:B,C117) -> 1 | AJ117: 13 | AK117: 40 | AL117: 132060000701 | AM117: Paris La Défense | AN117: 13 | AO117: 11 | AP117: 14 | AQ117: 0 | AR117: 0 | AS117: 38 | AT117: 0 | AU117: 73 | AV117: 0 | AX117: 0
A118: 13 | B118: 136 | C118: 131376015801 | D118: Quiétude | E118: 13 | F118: 12 | G118: 11 | H118: 0 | I118: 0 | J118: 36 | K118: 0 | L118: 49 | M118: 0 | O118: 0 | Q118: =COUNTIF('Classement auteurs'!B:B,C118) -> 1 | AJ118: 13 | AK118: 142 | AL118: 132060000801 | AM118: Entre ciel et terre | AN118: 7 | AO118: 10 | AP118: 13 | AQ118: 0 | AR118: 0 | AS118: 30 | AT118: 0 | AU118: 14 | AV118: 0 | AX118: 0
A119: 13 | B119: 137 | C119: 131619004501 | D119: Foncouverte | E119: 19 | F119: 14 | G119: 18 | H119: 0 | I119: 0 | J119: 51 | K119: 0 | L119: 133 | M119: 0 | O119: 0 | Q119: =COUNTIF('Classement auteurs'!B:B,C119) -> 1 | AJ119: 13 | AK119: 94 | AL119: 132060000901 | AM119: Face au mur | AN119: 13 | AO119: 9 | AP119: 13 | AQ119: 0 | AR119: 0 | AS119: 35 | AT119: 0 | AU119: 30 | AV119: 0 | AX119: 0
A120: 13 | B120: 138 | C120: 131956005901 | D120: Couleurs de Montréal | E120: 10 | F120: 15 | G120: 18 | H120: 0 | I120: 0 | J120: 43 | K120: 0 | L120: 52 | M120: 0 | O120: 0 | Q120: =COUNTIF('Classement auteurs'!B:B,C120) -> 1 | AJ120: 13 | AK120: 154 | AL120: 132060001201 | AM120: Atomes | AN120: 15 | AO120: 16 | AP120: 15 | AQ120: 0 | AR120: 0 | AS120: 46 | AT120: 0 | AU120: 36 | AV120: 0 | AX120: 0
A121: 13 | B121: 139 | C121: 132060000401 | D121: Butineuse au travail | E121: 6 | F121: 6 | G121: 6 | H121: 0 | I121: 0 | J121: 18 | K121: 0 | L121: 65 | M121: 0 | O121: 0 | Q121: =COUNTIF('Classement auteurs'!B:B,C121) -> 1 | AJ121: 13 | AK121: 105 | AL121: 132060001501 | AM121: Profitons vite | AN121: 9 | AO121: 12 | AP121: 14 | AQ121: 0 | AR121: 0 | AS121: 35 | AT121: 0 | AU121: 96 | AV121: 0 | AX121: 0
A122: 13 | B122: 140 | C122: 131499006901 | D122: Florence | E122: 10 | F122: 16 | G122: 16 | H122: 0 | I122: 0 | J122: 42 | K122: 0 | L122: 81 | M122: 0 | O122: 0 | Q122: =COUNTIF('Classement auteurs'!B:B,C122) -> 1 | AJ122: 13 | AK122: 76 | AL122: 132060001701 | AM122: Luminaires | AN122: 11 | AO122: 14 | AP122: 12 | AQ122: 0 | AR122: 0 | AS122: 37 | AT122: 0 | AU122: 101 | AV122: 0 | AX122: 0
A123: 13 | B123: 141 | C123: 132086002601 | D123: Fluidité arborescente | E123: 8 | F123: 15 | G123: 9 | H123: 0 | I123: 0 | J123: 32 | K123: 0 | L123: 48 | M123: 0 | O123: 0 | Q123: =COUNTIF('Classement auteurs'!B:B,C123) -> 1 | AJ123: 13 | AK123: 95 | AL123: 132060001801 | AM123: No limit | AN123: 10 | AO123: 13 | AP123: 15 | AQ123: 0 | AR123: 0 | AS123: 38 | AT123: 0 | AU123: 74 | AV123: 0 | AX123: 0
A124: 13 | B124: 142 | C124: 132060000801 | D124: Entre ciel et terre | E124: 7 | F124: 10 | G124: 13 | H124: 0 | I124: 0 | J124: 30 | K124: 0 | L124: 14 | M124: 0 | O124: 0 | Q124: =COUNTIF('Classement auteurs'!B:B,C124) -> 1 | AJ124: 13 | AK124: 85 | AL124: 132060002001 | AM124: Bleu, blanc, rouge | AN124: 12 | AO124: 15 | AP124: 16 | AQ124: 0 | AR124: 0 | AS124: 43 | AT124: 0 | AU124: 137 | AV124: 0 | AX124: 0
A125: 13 | B125: 143 | C125: 131823007601 | D125: Orange Grassoise | E125: 8 | F125: 11 | G125: 14 | H125: 0 | I125: 0 | J125: 33 | K125: 0 | L125: 46 | M125: 0 | O125: 0 | Q125: =COUNTIF('Classement auteurs'!B:B,C125) -> 1 | AJ125: 13 | AK125: 51 | AL125: 132060002201 | AM125: Collégiennes à Londres | AN125: 14 | AO125: 11 | AP125: 16 | AQ125: 0 | AR125: 0 | AS125: 41 | AT125: 0 | AU125: 88 | AV125: 0 | AX125: 0
A126: 13 | B126: 144 | C126: 130527017001 | D126: Les mots envolés. | E126: 20 | F126: 15 | G126: 20 | H126: 0 | I126: 0 | J126: 55 | K126: 0 | L126: 6 | M126: 0 | O126: 0 | Q126: =COUNTIF('Classement auteurs'!B:B,C126) -> 1 | AJ126: 13 | AK126: 92 | AL126: 132060002401 | AM126: Orchidées incandescents | AN126: 7 | AO126: 14 | AP126: 14 | AQ126: 0 | AR126: 0 | AS126: 35 | AT126: 0 | AU126: 51 | AV126: 0 | AX126: 0
A127: 13 | B127: 146 | C127: 132086002501 | D127: Retour du marché | E127: 8 | F127: 13 | G127: 17 | H127: 0 | I127: 0 | J127: 38 | K127: 0 | L127: 123 | M127: 0 | O127: 0 | Q127: =COUNTIF('Classement auteurs'!B:B,C127) -> 1 | AJ127: 13 | AK127: 121 | AL127: 132060003301 | AM127: Floraison | AN127: 7 | AO127: 11 | AP127: 10 | AQ127: 0 | AR127: 0 | AS127: 28 | AT127: 0 | AU127: 128 | AV127: 7 | AX127: 0
A128: 13 | B128: 148 | C128: 131845002101 | D128: Abandon | E128: 9 | F128: 13 | G128: 16 | H128: 0 | I128: 0 | J128: 38 | K128: 0 | L128: 87 | M128: 0 | O128: 0 | Q128: =COUNTIF('Classement auteurs'!B:B,C128) -> 1 | AJ128: 13 | AK128: 50 | AL128: 132084001701 | AM128: Champs d'ail | AN128: 11 | AO128: 18 | AP128: 16 | AQ128: 0 | AR128: 0 | AS128: 45 | AT128: 0 | AU128: 129 | AV128: 0 | AX128: 0
A129: 13 | B129: 149 | C129: 131845001101 | D129: ...vers la culture | E129: 14 | F129: 13 | G129: 14 | H129: 0 | I129: 0 | J129: 41 | K129: 0 | L129: 28 | M129: 0 | O129: 0 | Q129: =COUNTIF('Classement auteurs'!B:B,C129) -> 1 | AJ129: 13 | AK129: 74 | AL129: 132086001401 | AM129: TEMPS DE PAUSE | AN129: 10 | AO129: 12 | AP129: 11 | AQ129: 0 | AR129: 0 | AS129: 33 | AT129: 0 | AU129: 121 | AV129: 0 | AX129: 0
A130: 13 | B130: 150 | C130: 130527009401 | D130: Chez l'artiste ... | E130: 16 | F130: 18 | G130: 16 | H130: 0 | I130: 0 | J130: 50 | K130: 0 | L130: 50 | M130: 0 | O130: 0 | Q130: =COUNTIF('Classement auteurs'!B:B,C130) -> 1 | AJ130: 13 | AK130: 39 | AL130: 132086002301 | AM130: Parade en rose | AN130: 11 | AO130: 13 | AP130: 12 | AQ130: 0 | AR130: 0 | AS130: 36 | AT130: 0 | AU130: 29 | AV130: 0 | AX130: 0
A131: 13 | B131: 151 | C131: 131956002401 | D131: Chut Silence | E131: 8 | F131: 11 | G131: 9 | H131: 0 | I131: 0 | J131: =SUM(E131:I131) -> 28 | K131: 0 | L131: 16 | M131: 0 | O131: 0 | Q131: =COUNTIF('Classement auteurs'!B:B,C131) -> 1 | AJ131: 13 | AK131: 146 | AL131: 132086002501 | AM131: Retour du marché | AN131: 8 | AO131: 13 | AP131: 17 | AQ131: 0 | AR131: 0 | AS131: 38 | AT131: 0 | AU131: 123 | AV131: 0 | AX131: 0
A132: 13 | B132: 152 | C132: 131956002901 | D132: Rouge salant | E132: 14 | F132: 14 | G132: 15 | H132: 0 | I132: 0 | J132: 43 | K132: 0 | L132: 5 | M132: 0 | O132: 0 | Q132: =COUNTIF('Classement auteurs'!B:B,C132) -> 1 | AJ132: 13 | AK132: 141 | AL132: 132086002601 | AM132: Fluidité arborescente | AN132: 8 | AO132: 15 | AP132: 9 | AQ132: 0 | AR132: 0 | AS132: 32 | AT132: 0 | AU132: 48 | AV132: 0 | AX132: 0
A133: 13 | B133: 153 | C133: 130925009901 | D133: Belles coiffes | E133: 10 | F133: 9 | G133: 11 | H133: 0 | I133: 0 | J133: 30 | K133: 0 | L133: 119 | M133: 0 | O133: 0 | Q133: =COUNTIF('Classement auteurs'!B:B,C133) -> 1 | AJ133: 13 | AK133: 65 | AL133: 132089000101 | AM133: Les Cinq Terres | AN133: 11 | AO133: 13 | AP133: 12 | AQ133: 0 | AR133: 0 | AS133: 36 | AT133: 0 | AU133: 94 | AV133: 0 | AX133: 0
A134: 13 | B134: 154 | C134: 132060001201 | D134: Atomes | E134: 15 | F134: 16 | G134: 15 | H134: 0 | I134: 0 | J134: 46 | K134: 0 | L134: 36 | M134: 0 | O134: 0 | Q134: =COUNTIF('Classement auteurs'!B:B,C134) -> 1 | AJ134: 13 | AK134: 78 | AL134: 132089000201 | AM134: CD en MACRO | AN134: 7 | AO134: 8 | AP134: 9 | AQ134: 0 | AR134: 0 | AS134: 24 | AT134: 0 | AU134: 23 | AV134: 0 | AX134: 0
A135: 13 | B135: 155 | C135: 130987001601 | D135: Envol | E135: 11 | F135: 11 | G135: 13 | H135: 0 | I135: 0 | J135: 35 | K135: 0 | L135: 106 | M135: 0 | O135: 0 | Q135: =COUNTIF('Classement auteurs'!B:B,C135) -> 1 | AJ135: 13 | AK135: 128 | AL135: 132089000301 | AM135: Festirun | AN135: 10 | AO135: 10 | AP135: 11 | AQ135: 0 | AR135: 0 | AS135: 31 | AT135: 0 | AU135: 40 | AV135: 0 | AX135: 0
A136: 13 | B136: 156 | C136: 131956005701 | D136: Solitudes | E136: 11 | F136: 12 | G136: 13 | H136: 0 | I136: 0 | J136: 36 | K136: 0 | L136: 62 | M136: 0 | O136: 0 | Q136: =COUNTIF('Classement auteurs'!B:B,C136) -> 1 | AJ136: 13 | AK136: 77 | AL136: 132103002301 | AM136: Couleurs du Japon | AN136: 12 | AO136: 16 | AP136: 18 | AQ136: 0 | AR136: 0 | AS136: 46 | AT136: 0 | AU136: 17 | AV136: 0 | AX136: 0
A137: 13 | B137: 158 | C137: 131353000701 | D137: Cellulose du Rhône | E137: 14 | F137: 20 | G137: 14 | H137: 0 | I137: 0 | J137: 48 | K137: 0 | L137: 24 | M137: 0 | O137: 0 | Q137: =COUNTIF('Classement auteurs'!B:B,C137) -> 1 | AJ137: 13 | AK137: 34 | AL137: 132193000301 | AM137: Ambiance New York | AN137: 12 | AO137: 18 | AP137: 18 | AQ137: 0 | AR137: 0 | AS137: 48 | AT137: 0 | AU137: 69 | AV137: 0 | AX137: 0
A138: 13 | B138: 159 | C138: 131353000101 | D138: Ambiance automnale | E138: 14 | F138: 14 | G138: 17 | H138: 0 | I138: 0 | J138: 45 | K138: 0 | L138: 110 | M138: 0 | O138: 0 | Q138: =COUNTIF('Classement auteurs'!B:B,C138) -> 1 | AJ138: 13 | AK138: 59 | AL138: 132193000401 | AM138: Multicolore | AN138: 12 | AO138: 14 | AP138: 15 | AQ138: 0 | AR138: 0 | AS138: 41 | AT138: 0 | AU138: 82 | AV138: 0 | AX138: 0

Sheet Défi-2
A1: colis | B1: photologic | C1: fichier | D1: titre | E1: note1 | F1: note2 | G1: note3 | H1: note4 | I1: note5 | J1: total | K1: place | L1: passage | M1: statut | N1: medaille | O1: retenue | Q1: 0=absent 1=présent | S1: fichier | U1: total
A2: 13 | B2: 1 | C2: 131499010201 | D2: Edsel 1958 Cuba | E2: 12 | F2: 10 | G2: 8 | H2: 0 | I2: 0 | J2: =SUM(E2:I2) -> 30 | K2: 0 | L2: 132 | M2: 0 | O2: 0 | Q2: =COUNTIF('Classement auteurs'!B:B,C2) -> 1 | S2: 130527009401 | T2: =(MID($S2,3,4)*1) -> 527 | U2: 132 | V2: =IF(U2=VLOOKUP($T2,'Classement clubs'!$B$2:$K$52,4,FALSE),"OK","KO") -> OK
A3: 13 | B3: 2 | C3: 131862001101 | D3: Le V | E3: 11 | F3: 10 | G3: 9 | H3: 0 | I3: 0 | J3: =SUM(E3:I3) -> 30 | K3: 0 | L3: 57 | M3: 0 | O3: 0 | Q3: =COUNTIF('Classement auteurs'!B:B,C3) -> 1 | S3: 130878013401 | T3: =(MID($S3,3,4)*1) -> 878 | U3: 101 | V3: =IF(U3=VLOOKUP($T3,'Classement clubs'!$B$2:$K$52,4,FALSE),"OK","KO") -> OK
A4: 13 | B4: 4 | C4: 131683000701 | D4: L'ARBRE DE VIE | E4: 12 | F4: 10 | G4: 8 | H4: 0 | I4: 0 | J4: 30 | K4: 0 | L4: 35 | M4: 0 | O4: 0 | Q4: =COUNTIF('Classement auteurs'!B:B,C4) -> 1 | S4: 130925007701 | T4: 925 | U4: 133 | V4: =IF(U4=VLOOKUP($T4,'Classement clubs'!$B$2:$K$52,4,FALSE),"OK","KO") -> OK
A5: 13 | B5: 5 | C5: 132193000301 | D5: Peuple Uros lac Titicaca | E5: 12 | F5: 12 | G5: 13 | H5: 0 | I5: 0 | J5: 37 | K5: 0 | L5: 101 | M5: 7 | O5: 0 | Q5: =COUNTIF('Classement auteurs'!B:B,C5) -> 1 | S5: 130987002301 | T5: 987 | U5: 131 | V5: =IF(U5=VLOOKUP($T5,'Classement clubs'!$B$2:$K$52,4,FALSE),"OK","KO") -> OK
A6: 13 | B6: 6 | C6: 130987024201 | D6: La nuit des Sans | E6: 15 | F6: 12 | G6: 16 | H6: 0 | I6: 0 | J6: 43 | K6: 0 | L6: 141 | M6: 0 | O6: 0 | Q6: =COUNTIF('Classement auteurs'!B:B,C6) -> 1 | S6: 131110000901 | T6: 1110 | U6: 110 | V6: =IF(U6=VLOOKUP($T6,'Classement clubs'!$B$2:$K$52,4,FALSE),"OK","KO") -> OK
A7: 13 | B7: 7 | C7: 130987024101 | D7: Ado Himba | E7: 12 | F7: 12 | G7: 15 | H7: 0 | I7: 0 | J7: 39 | K7: 0 | L7: 87 | M7: 0 | O7: 0 | Q7: =COUNTIF('Classement auteurs'!B:B,C7) -> 1 | S7: 131353000701 | T7: 1353 | U7: 123 | V7: =IF(U7=VLOOKUP($T7,'Classement clubs'!$B$2:$K$52,4,FALSE),"OK","KO") -> OK
A8: 13 | B8: 8 | C8: 132203000901 | D8: Femme Ousbèque | E8: 14 | F8: 16 | G8: 18 | H8: 0 | I8: 0 | J8: 48 | K8: 0 | L8: 5 | M8: 0 | O8: 0 | Q8: =COUNTIF('Classement auteurs'!B:B,C8) -> 1 | S8: 131376018001 | T8: 1376 | U8: 101 | V8: =IF(U8=VLOOKUP($T8,'Classement clubs'!$B$2:$K$52,4,FALSE),"OK","KO") -> OK
A9: 13 | B9: 9 | C9: 131879000101 | D9: Fille Akha | E9: 14 | F9: 10 | G9: 17 | H9: 0 | I9: 0 | J9: 41 | K9: 0 | L9: 95 | M9: 0 | O9: 0 | Q9: =COUNTIF('Classement auteurs'!B:B,C9) -> 1 | S9: 131494000201 | T9: 1494 | U9: 98 | V9: =IF(U9=VLOOKUP($T9,'Classement clubs'!$B$2:$K$52,4,FALSE),"OK","KO") -> OK
A10: 13 | B10: 10 | C10: 131376018301 | D10: Holi | E10: 11 | F10: 11 | G10: 12 | H10: 0 | I10: 0 | J10: 34 | K10: 0 | L10: 38 | M10: 0 | O10: 0 | Q10: =COUNTIF('Classement auteurs'!B:B,C10) -> 1 | S10: 131499006901 | T10: 1499 | U10: 128 | V10: =IF(U10=VLOOKUP($T10,'Classement clubs'!$B$2:$K$52,4,FALSE),"OK","KO") -> OK
A11: 13 | B11: 11 | C11: 131992000301 | D11: Famille Tamoul. | E11: 11 | F11: 10 | G11: 12 | H11: 0 | I11: 0 | J11: 33 | K11: 0 | L11: 91 | M11: 0 | O11: 0 | Q11: =COUNTIF('Classement auteurs'!B:B,C11) -> 1 | S11: 131683008001 | T11: 1683 | U11: 128 | V11: =IF(U11=VLOOKUP($T11,'Classement clubs'!$B$2:$K$52,4,FALSE),"OK","KO") -> OK
A12: 13 | B12: 12 | C12: 131683007601 | D12: Don sacré | E12: 13 | F12: 14 | G12: 15 | H12: 0 | I12: 0 | J12: 42 | K12: 0 | L12: 13 | M12: 0 | O12: 0 | Q12: =COUNTIF('Classement auteurs'!B:B,C12) -> 1 | S12: 131823008701 | T12: 1823 | U12: 119 | V12: =IF(U12=VLOOKUP($T12,'Classement clubs'!$B$2:$K$52,4,FALSE),"OK","KO") -> OK
A13: 13 | B13: 13 | C13: 130527013301 | D13: New york 1 | E13: 13 | F13: 11 | G13: 15 | H13: 0 | I13: 0 | J13: 39 | K13: 0 | L13: 18 | M13: 0 | O13: 0 | Q13: =COUNTIF('Classement auteurs'!B:B,C13) -> 1 | S13: 131845002501 | T13: 1845 | U13: 109 | V13: =IF(U13=VLOOKUP($T13,'Classement clubs'!$B$2:$K$52,4,FALSE),"OK","KO") -> OK
A14: 13 | B14: 14 | C14: 131823004901 | D14: Pas de doute | E14: 11 | F14: 6 | G14: 8 | H14: 0 | I14: 0 | J14: 25 | K14: 0 | L14: 74 | M14: 0 | O14: 0 | Q14: =COUNTIF('Classement auteurs'!B:B,C14) -> 1 | S14: 131862001001 | T14: 1862 | U14: 108 | V14: =IF(U14=VLOOKUP($T14,'Classement clubs'!$B$2:$K$52,4,FALSE),"OK","KO") -> OK
A15: 13 | B15: 15 | C15: 131494002101 | D15: Retour à la bergerie | E15: 11 | F15: 9 | G15: 9 | H15: 0 | I15: 0 | J15: 29 | K15: 0 | L15: 1 | M15: 0 | O15: 0 | Q15: =COUNTIF('Classement auteurs'!B:B,C15) -> 1 | S15: 131879002001 | T15: 1879 | U15: 127 | V15: =IF(U15=VLOOKUP($T15,'Classement clubs'!$B$2:$K$52,4,FALSE),"OK","KO") -> OK
A16: 13 | B16: 17 | C16: 130925010201 | D16: Tempête sur l'Angleterre | E16: 11 | F16: 11 | G16: 8 | H16: 0 | I16: 0 | J16: 30 | K16: 0 | L16: 82 | M16: 0 | O16: 0 | Q16: =COUNTIF('Classement auteurs'!B:B,C16) -> 1 | S16: 131956000201 | T16: 1956 | U16: 138 | V16: =IF(U16=VLOOKUP($T16,'Classement clubs'!$B$2:$K$52,4,FALSE),"OK","KO") -> OK
A17: 13 | B17: 18 | C17: 130987024001 | D17: Tre Cime | E17: 13 | F17: 12 | G17: 19 | H17: 0 | I17: 0 | J17: 44 | K17: 0 | L17: 129 | M17: 0 | O17: 0 | Q17: =COUNTIF('Classement auteurs'!B:B,C17) -> 1 | S17: 132060001701 | T17: 2060 | U17: 115 | V17: =IF(U17=VLOOKUP($T17,'Classement clubs'!$B$2:$K$52,4,FALSE),"OK","KO") -> OK
A18: 13 | B18: 19 | C18: 131110001001 | D18: étudiant birman | E18: 12 | F18: 11 | G18: 18 | H18: 0 | I18: 0 | J18: 41 | K18: 0 | L18: 86 | M18: 0 | O18: 0 | Q18: =COUNTIF('Classement auteurs'!B:B,C18) -> 1 | S18: 132084003501 | T18: 2084 | U18: 122 | V18: =IF(U18=VLOOKUP($T18,'Classement clubs'!$B$2:$K$52,4,FALSE),"OK","KO") -> OK
A19: 13 | B19: 20 | C19: 131376012601 | D19: Festival des cultures | E19: 12 | F19: 9 | G19: 8 | H19: 0 | I19: 0 | J19: 29 | K19: 0 | L19: 17 | M19: 0 | O19: 0 | Q19: =COUNTIF('Classement auteurs'!B:B,C19) -> 1 | S19: 132086001401 | T19: 2086 | U19: 104 | V19: =IF(U19=VLOOKUP($T19,'Classement clubs'!$B$2:$K$52,4,FALSE),"OK","KO") -> OK
A20: 13 | B20: 21 | C20: 131683008001 | D20: Les tanneurs de Fes | E20: 12 | F20: 16 | G20: 19 | H20: 0 | I20: 0 | J20: 47 | K20: 0 | L20: 135 | M20: 0 | O20: 0 | Q20: =COUNTIF('Classement auteurs'!B:B,C20) -> 1 | S20: 132089000101 | T20: 2089 | U20: 99 | V20: =IF(U20=VLOOKUP($T20,'Classement clubs'!$B$2:$K$52,4,FALSE),"OK","KO") -> OK
A21: 13 | B21: 22 | C21: 130987028401 | D21: Pêche traditionnelle | E21: 13 | F21: 13 | G21: 12 | H21: 0 | I21: 0 | J21: 38 | K21: 0 | L21: 133 | M21: 0 | O21: 0 | Q21: =COUNTIF('Classement auteurs'!B:B,C21) -> 1 | S21: 132193000301 | T21: 2193 | U21: 108 | V21: =IF(U21=VLOOKUP($T21,'Classement clubs'!$B$2:$K$52,4,FALSE),"OK","KO") -> OK
A22: 13 | B22: 23 | C22: 131353000201 | D22: Arc en ciel | E22: 13 | F22: 13 | G22: 11 | H22: 0 | I22: 0 | J22: 37 | K22: 0 | L22: 84 | M22: 0 | O22: 0 | Q22: =COUNTIF('Classement auteurs'!B:B,C22) -> 1
A23: 13 | B23: 24 | C23: 131879001301 | D23: Inde | E23: 11 | F23: 12 | G23: 7 | H23: 0 | I23: 0 | J23: 30 | K23: 0 | L23: 36 | M23: 0 | O23: 0 | Q23: =COUNTIF('Classement auteurs'!B:B,C23) -> 1
A24: 13 | B24: 25 | C24: 131499008701 | D24: Si vaste et si fragile... | E24: 10 | F24: 7 | G24: 12 | H24: 0 | I24: 0 | J24: 29 | K24: 0 | L24: 112 | M24: 0 | O24: 0 | Q24: =COUNTIF('Classement auteurs'!B:B,C24) -> 1
A25: 13 | B25: 27 | C25: 132084004001 | D25: La vache et le soldat | E25: 12 | F25: 10 | G25: 18 | H25: 0 | I25: 0 | J25: 40 | K25: 0 | L25: 106 | M25: 0 | O25: 0 | Q25: =COUNTIF('Classement auteurs'!B:B,C25) -> 1
A26: 13 | B26: 28 | C26: 131823008801 | D26: Mais pourquoi ? | E26: 11 | F26: 8 | G26: 9 | H26: 0 | I26: 0 | J26: 28 | K26: 0 | L26: 61 | M26: 0 | O26: 0 | Q26: =COUNTIF('Classement auteurs'!B:B,C26) -> 1
A27: 13 | B27: 29 | C27: 130987019701 | D27: Venezia | E27: 13 | F27: 11 | G27: 16 | H27: 0 | I27: 0 | J27: 40 | K27: 0 | L27: 69 | M27: 0 | O27: 0 | Q27: =COUNTIF('Classement auteurs'!B:B,C27) -> 1
A28: 13 | B28: 30 | C28: 130987019601 | D28: Padaung Karen | E28: 12 | F28: 10 | G28: 15 | H28: 0 | I28: 0 | J28: 37 | K28: 0 | L28: 40 | M28: 0 | O28: 0 | Q28: =COUNTIF('Classement auteurs'!B:B,C28) -> 1
A29: 13 | B29: 31 | C29: 131845004101 | D29: Regard réprobateur | E29: 11 | F29: 8 | G29: 15 | H29: 0 | I29: 0 | J29: 34 | K29: 0 | L29: 24 | M29: 0 | O29: 0 | Q29: =COUNTIF('Classement auteurs'!B:B,C29) -> 1
A30: 13 | B30: 32 | C30: 131992000401 | D30: Regard envoutant | E30: 13 | F30: 10 | G30: 16 | H30: 0 | I30: 0 | J30: 39 | K30: 0 | L30: 21 | M30: 0 | O30: 0 | Q30: =COUNTIF('Classement auteurs'!B:B,C30) -> 1
A31: 13 | B31: 33 | C31: 131879002001 | D31: La faiseuse de briques | E31: 14 | F31: 13 | G31: 20 | H31: 0 | I31: 0 | J31: 47 | K31: 0 | L31: 26 | M31: 0 | O31: 0 | Q31: =COUNTIF('Classement auteurs'!B:B,C31) -> 1
A32: 13 | B32: 35 | C32: 131353004301 | D32: Mucem 2016 | E32: 11 | F32: 7 | G32: 10 | H32: 0 | I32: 0 | J32: 28 | K32: 0 | L32: 32 | M32: 0 | O32: 0 | Q32: =COUNTIF('Classement auteurs'!B:B,C32) -> 1
A33: 13 | B33: 36 | C33: 130987007401 | D33: Florence | E33: 11 | F33: 13 | G33: 8 | H33: 0 | I33: 0 | J33: 32 | K33: 0 | L33: 105 | M33: 0 | O33: 0 | Q33: =COUNTIF('Classement auteurs'!B:B,C33) -> 1
A34: 13 | B34: 37 | C34: 131956005101 | D34: L'Égypte à Madrid | E34: 12 | F34: 11 | G34: 11 | H34: 0 | I34: 0 | J34: 34 | K34: 0 | L34: 16 | M34: 0 | O34: 0 | Q34: =COUNTIF('Classement auteurs'!B:B,C34) -> 1
A35: 13 | B35: 38 | C35: 130987014001 | D35: Sourire de Bahia | E35: 12 | F35: 10 | G35: 15 | H35: 0 | I35: 0 | J35: 37 | K35: 0 | L35: 47 | M35: 0 | O35: 0 | Q35: =COUNTIF('Classement auteurs'!B:B,C35) -> 1
A36: 13 | B36: 39 | C36: 132084001701 | D36: Venise | E36: 12 | F36: 11 | G36: 13 | H36: 0 | I36: 0 | J36: 36 | K36: 0 | L36: 73 | M36: 0 | O36: 0 | Q36: =COUNTIF('Classement auteurs'!B:B,C36) -> 1
A37: 13 | B37: 40 | C37: 132086001401 | D37: Il neige sur Venise | E37: 13 | F37: 13 | G37: 15 | H37: 0 | I37: 0 | J37: 41 | K37: 0 | L37: 102 | M37: 0 | O37: 0 | Q37: =COUNTIF('Classement auteurs'!B:B,C37) -> 1
A38: 13 | B38: 41 | C38: 131823008301 | D38: Afrique | E38: 12 | F38: 10 | G38: 18 | H38: 0 | I38: 0 | J38: 40 | K38: 0 | L38: 92 | M38: 0 | O38: 0 | Q38: =COUNTIF('Classement auteurs'!B:B,C38) -> 1
A39: 13 | B39: 42 | C39: 131824003101 | D39: Croisement de regard | E39: 11 | F39: 13 | G39: 9 | H39: 0 | I39: 0 | J39: 33 | K39: 0 | L39: 131 | M39: 0 | O39: 0 | Q39: =COUNTIF('Classement auteurs'!B:B,C39) -> 1
A40: 13 | B40: 43 | C40: 131499010001 | D40: Dans la cour de l'école | E40: 13 | F40: 15 | G40: 14 | H40: 0 | I40: 0 | J40: 42 | K40: 0 | L40: 44 | M40: 0 | O40: 0 | Q40: =COUNTIF('Classement auteurs'!B:B,C40) -> 1
A41: 13 | B41: 44 | C41: 132023000101 | D41: Mésange à la lune | E41: 6 | F41: 6 | G41: 6 | H41: 0 | I41: 0 | J41: 18 | K41: 0 | L41: 55 | M41: 0 | O41: 0 | Q41: =COUNTIF('Classement auteurs'!B:B,C41) -> 1
A42: 13 | B42: 45 | C42: 131499005201 | D42: Pizzaiolo | E42: 11 | F42: 7 | G42: 13 | H42: 0 | I42: 0 | J42: 31 | K42: 0 | L42: 46 | M42: 0 | O42: 0 | Q42: =COUNTIF('Classement auteurs'!B:B,C42) -> 1
A43: 13 | B43: 46 | C43: 131376017601 | D43: Les touristes | E43: 9 | F43: 6 | G43: 9 | H43: 0 | I43: 0 | J43: 24 | K43: 0 | L43: 64 | M43: 0 | O43: 0 | Q43: =COUNTIF('Classement auteurs'!B:B,C43) -> 1
A44: 13 | B44: 47 | C44: 131683006301 | D44: Regards indiens | E44: 12 | F44: 15 | G44: 9 | H44: 0 | I44: 0 | J44: 36 | K44: 0 | L44: 127 | M44: 0 | O44: 0 | Q44: =COUNTIF('Classement auteurs'!B:B,C44) -> 1
A45: 13 | B45: 48 | C45: 131824001901 | D45: Auprès de mon arbre.... | E45: 13 | F45: 9 | G45: 18 | H45: 0 | I45: 0 | J45: 40 | K45: 0 | L45: 62 | M45: 0 | O45: 0 | Q45: =COUNTIF('Classement auteurs'!B:B,C45) -> 1
A46: 13 | B46: 49 | C46: 130925009801 | D46: Shanghai | E46: 12 | F46: 10 | G46: 14 | H46: 0 | I46: 0 | J46: 36 | K46: 0 | L46: 11 | M46: 0 | O46: 0 | Q46: =COUNTIF('Classement auteurs'!B:B,C46) -> 1
A47: 13 | B47: 50 | C47: 130000020401 | D47: Khiva - La Roue | E47: 13 | F47: 11 | G47: 13 | H47: 0 | I47: 0 | J47: 37 | K47: 0 | L47: 123 | M47: 6 | O47: 0 | Q47: =COUNTIF('Classement auteurs'!B:B,C47) -> 1
A48: 13 | B48: 51 | C48: 132193000501 | D48: Guerrier irlandais | E48: 11 | F48: 7 | G48: 7 | H48: 0 | I48: 0 | J48: 25 | K48: 0 | L48: 41 | M48: 7 | O48: 0 | Q48: =COUNTIF('Classement auteurs'!B:B,C48) -> 1
A49: 13 | B49: 52 | C49: 131956003401 | D49: Regard de la foret | E49: 11 | F49: 6 | G49: 7 | H49: 0 | I49: 0 | J49: 24 | K49: 0 | L49: 56 | M49: 0 | O49: 0 | Q49: =COUNTIF('Classement auteurs'!B:B,C49) -> 1
A50: 13 | B50: 53 | C50: 132086002501 | D50: Le Chianti moderne | E50: 14 | F50: 7 | G50: 11 | H50: 0 | I50: 0 | J50: 32 | K50: 0 | L50: 29 | M50: 0 | O50: 0 | Q50: =COUNTIF('Classement auteurs'!B:B,C50) -> 1
A51: 13 | B51: 54 | C51: 131683005101 | D51: Clarisse | E51: 15 | F51: 6 | G51: 12 | H51: 0 | I51: 0 | J51: 33 | K51: 0 | L51: 126 | M51: 0 | O51: 0 | Q51: =COUNTIF('Classement auteurs'!B:B,C51) -> 1
A52: 13 | B52: 55 | C52: 130987012601 | D52: Taxi à Tokyo. | E52: 12 | F52: 12 | G52: 17 | H52: 0 | I52: 0 | J52: 41 | K52: 0 | L52: 136 | M52: 0 | O52: 0 | Q52: =COUNTIF('Classement auteurs'!B:B,C52) -> 1
A53: 13 | B53: 56 | C53: 130993016501 | D53: Reflet_Asie | E53: 13 | F53: 12 | G53: 10 | H53: 0 | I53: 0 | J53: 35 | K53: 0 | L53: 31 | M53: 0 | O53: 0 | Q53: =COUNTIF('Classement auteurs'!B:B,C53) -> 1
A54: 13 | B54: 57 | C54: 131862001001 | D54: Petite Vietnamienne | E54: 12 | F54: 12 | G54: 15 | H54: 0 | I54: 0 | J54: 39 | K54: 0 | L54: 139 | M54: 0 | O54: 0 | Q54: =COUNTIF('Classement auteurs'!B:B,C54) -> 1
A55: 13 | B55: 58 | C55: 132084003501 | D55: Coiffes Himbas | E55: 14 | F55: 12 | G55: 17 | H55: 0 | I55: 0 | J55: 43 | K55: 0 | L55: 34 | M55: 0 | O55: 0 | Q55: =COUNTIF('Classement auteurs'!B:B,C55) -> 1
A56: 13 | B56: 59 | C56: 132084003601 | D56: Kaokoland airport | E56: 11 | F56: 12 | G56: 10 | H56: 0 | I56: 0 | J56: 33 | K56: 0 | L56: 98 | M56: 0 | O56: 0 | Q56: =COUNTIF('Classement auteurs'!B:B,C56) -> 1
A57: 13 | B57: 60 | C57: 131353007301 | D57: LAGUNA COLORADA BOLIVIE | E57: 14 | F57: 11 | G57: 15 | H57: 0 | I57: 0 | J57: 40 | K57: 0 | L57: 37 | M57: 0 | O57: 0 | Q57: =COUNTIF('Classement auteurs'!B:B,C57) -> 1
A58: 13 | B58: 61 | C58: 130878014301 | D58: L’œil de la terre | E58: 10 | F58: 6 | G58: 7 | H58: 0 | I58: 0 | J58: 23 | K58: 0 | L58: 7 | M58: 0 | O58: 0 | Q58: =COUNTIF('Classement auteurs'!B:B,C58) -> 1
A59: 13 | B59: 62 | C59: 131353003001 | D59: Regard de l'inconnue | E59: 12 | F59: 6 | G59: 12 | H59: 0 | I59: 0 | J59: 30 | K59: 0 | L59: 48 | M59: 0 | O59: 0 | Q59: =COUNTIF('Classement auteurs'!B:B,C59) -> 1
A60: 13 | B60: 63 | C60: 130878014101 | D60: Orientation | E60: 11 | F60: 7 | G60: 19 | H60: 0 | I60: 0 | J60: 37 | K60: 0 | L60: 76 | M60: 0 | O60: 0 | Q60: =COUNTIF('Classement auteurs'!B:B,C60) -> 1
A61: 13 | B61: 64 | C61: 131619005001 | D61: Regard sur le haut atlas | E61: 11 | F61: 15 | G61: 13 | H61: 0 | I61: 0 | J61: 39 | K61: 0 | L61: 77 | M61: 0 | O61: 0 | Q61: =COUNTIF('Classement auteurs'!B:B,C61) -> 1
A62: 13 | B62: 65 | C62: 131879000501 | D62: Tromso | E62: 14 | F62: 14 | G62: 11 | H62: 0 | I62: 0 | J62: 39 | K62: 0 | L62: 142 | M62: 0 | O62: 0 | Q62: =COUNTIF('Classement auteurs'!B:B,C62) -> 1
A63: 13 | B63: 66 | C63: 131956002601 | D63: Berlin | E63: 14 | F63: 14 | G63: 16 | H63: 0 | I63: 0 | J63: 44 | K63: 0 | L63: 68 | M63: 0 | O63: 0 | Q63: =COUNTIF('Classement auteurs'!B:B,C63) -> 1
A64: 13 | B64: 67 | C64: 131823008701 | D64: école en Sulawesi | E64: 12 | F64: 13 | G64: 16 | H64: 0 | I64: 0 | J64: 41 | K64: 0 | L64: 97 | M64: 0 | O64: 0 | Q64: =COUNTIF('Classement auteurs'!B:B,C64) -> 1
A65: 13 | B65: 68 | C65: 130925008601 | D65: Amerique | E65: 13 | F65: 7 | G65: 16 | H65: 0 | I65: 0 | J65: 36 | K65: 0 | L65: 85 | M65: 0 | O65: 0 | Q65: =COUNTIF('Classement auteurs'!B:B,C65) -> 1
A66: 13 | B66: 69 | C66: 130878013601 | D66: L'enfant et le torri | E66: 12 | F66: 9 | G66: 13 | H66: 0 | I66: 0 | J66: 34 | K66: 0 | L66: 72 | M66: 0 | O66: 0 | Q66: =COUNTIF('Classement auteurs'!B:B,C66) -> 1
A67: 13 | B67: 70 | C67: 131845004001 | D67: VIETAMIENNE | E67: 11 | F67: 9 | G67: 13 | H67: 0 | I67: 0 | J67: =SUM(E67:I67) -> 33 | K67: 0 | L67: 66 | M67: 0 | O67: 0 | Q67: =COUNTIF('Classement auteurs'!B:B,C67) -> 1
A68: 13 | B68: 71 | C68: 130925007601 | D68: Famille Himba | E68: 14 | F68: 13 | G68: 17 | H68: 0 | I68: 0 | J68: 44 | K68: 0 | L68: 45 | M68: 0 | O68: 0 | Q68: =COUNTIF('Classement auteurs'!B:B,C68) -> 1
A69: 13 | B69: 72 | C69: 130925007701 | D69: Regards d'enfants | E69: 14 | F69: 17 | G69: 19 | H69: 0 | I69: 0 | J69: 50 | K69: 0 | L69: 119 | M69: 0 | O69: 0 | Q69: =COUNTIF('Classement auteurs'!B:B,C69) -> 1
A70: 13 | B70: 73 | C70: 132060001701 | D70: Enfant gitan de la mer | E70: 14 | F70: 14 | G70: 17 | H70: 0 | I70: 0 | J70: 45 | K70: 0 | L70: 42 | M70: 0 | O70: 0 | Q70: =COUNTIF('Classement auteurs'!B:B,C70) -> 1
A71: 13 | B71: 74 | C71: 131862000801 | D71: Le Chat du Rabin | E71: 11 | F71: 6 | G71: 7 | H71: 0 | I71: 0 | J71: 24 | K71: 0 | L71: 78 | M71: 0 | O71: 0 | Q71: =COUNTIF('Classement auteurs'!B:B,C71) -> 1
A72: 13 | B72: 75 | C72: 132084000301 | D72: Croisère à Kotor | E72: 14 | F72: 11 | G72: 14 | H72: 0 | I72: 0 | J72: 39 | K72: 0 | L72: 120 | M72: 0 | O72: 0 | Q72: =COUNTIF('Classement auteurs'!B:B,C72) -> 1
A73: 13 | B73: 76 | C73: 130000019901 | D73: Recueillement | E73: 13 | F73: 13 | G73: 15 | H73: 0 | I73: 0 | J73: 41 | K73: 0 | L73: 115 | M73: 6 | O73: 0 | Q73: =COUNTIF('Classement auteurs'!B:B,C73) -> 1
A74: 13 | B74: 77 | C74: 132193000401 | D74: Un pont entre 2 mondes | E74: 12 | F74: 12 | G74: 13 | H74: 0 | I74: 0 | J74: 37 | K74: 0 | L74: 93 | M74: 7 | O74: 0 | Q74: =COUNTIF('Classement auteurs'!B:B,C74) -> 1
A75: 13 | B75: 78 | C75: 131956004601 | D75: Regards sur notre galaxie | E75: 13 | F75: 19 | G75: 15 | H75: 0 | I75: 0 | J75: 47 | K75: 0 | L75: 20 | M75: 0 | O75: 0 | Q75: =COUNTIF('Classement auteurs'!B:B,C75) -> 1
A76: 13 | B76: 79 | C76: 130987015701 | D76: Les Falaises de Moher | E76: 14 | F76: 9 | G76: 16 | H76: 0 | I76: 0 | J76: 39 | K76: 0 | L76: 111 | M76: 0 | O76: 0 | Q76: =COUNTIF('Classement auteurs'!B:B,C76) -> 1
A77: 13 | B77: 80 | C77: 131956001401 | D77: Regard Colombien | E77: 11 | F77: 10 | G77: 11 | H77: 0 | I77: 0 | J77: 32 | K77: 0 | L77: 134 | M77: 0 | O77: 0 | Q77: =COUNTIF('Classement auteurs'!B:B,C77) -> 1
A78: 13 | B78: 81 | C78: 131862002201 | D78: Matsumoto. Japon | E78: 12 | F78: 11 | G78: 12 | H78: 0 | I78: 0 | J78: 35 | K78: 0 | L78: 50 | M78: 0 | O78: 0 | Q78: =COUNTIF('Classement auteurs'!B:B,C78) -> 1
A79: 13 | B79: 82 | C79: 132089000201 | D79: Au Radjastan | E79: 10 | F79: 11 | G79: 10 | H79: 0 | I79: 0 | J79: 31 | K79: 0 | L79: 6 | M79: 0 | O79: 0 | Q79: =COUNTIF('Classement auteurs'!B:B,C79) -> 1
A80: 13 | B80: 83 | C80: 131862005801 | D80: Suivez mon regard | E80: 11 | F80: 11 | G80: 12 | H80: 0 | I80: 0 | J80: 34 | K80: 0 | L80: 52 | M80: 0 | O80: 0 | Q80: =COUNTIF('Classement auteurs'!B:B,C80) -> 1
A81: 13 | B81: 84 | C81: 131956004501 | D81: Aquarius | E81: 12 | F81: 14 | G81: 12 | H81: 0 | I81: 0 | J81: 38 | K81: 0 | L81: 54 | M81: 0 | O81: 0 | Q81: =COUNTIF('Classement auteurs'!B:B,C81) -> 1
A82: 13 | B82: 85 | C82: 131110001101 | D82: Le petit guitariste | E82: 11 | F82: 6 | G82: 7 | H82: 0 | I82: 0 | J82: 24 | K82: 0 | L82: 108 | M82: 0 | O82: 0 | Q82: =COUNTIF('Classement auteurs'!B:B,C82) -> 1
A83: 13 | B83: 86 | C83: 132060000701 | D83: Flamenco andalou | E83: 12 | F83: 10 | G83: 7 | H83: 0 | I83: 0 | J83: 29 | K83: 0 | L83: 30 | M83: 0 | O83: 0 | Q83: =COUNTIF('Classement auteurs'!B:B,C83) -> 1
A84: 13 | B84: 87 | C84: 131494002301 | D84: Gondoles | E84: 11 | F84: 10 | G84: 14 | H84: 0 | I84: 0 | J84: 35 | K84: 0 | L84: 113 | M84: 0 | O84: 0 | Q84: =COUNTIF('Classement auteurs'!B:B,C84) -> 1
A85: 13 | B85: 88 | C85: 131494000201 | D85: Enfants Masaï | E85: 14 | F85: 11 | G85: 9 | H85: 0 | I85: 0 | J85: 34 | K85: 0 | L85: 121 | M85: 0 | O85: 0 | Q85: =COUNTIF('Classement auteurs'!B:B,C85) -> 1
A86: 13 | B86: 89 | C86: 131845003401 | D86: Flotte internationale | E86: 11 | F86: 6 | G86: 10 | H86: 0 | I86: 0 | J86: 27 | K86: 0 | L86: 96 | M86: 0 | O86: 0 | Q86: =COUNTIF('Classement auteurs'!B:B,C86) -> 1
A87: 13 | B87: 91 | C87: 132089000501 | D87: Ma Thaïlande | E87: 12 | F87: 14 | G87: 13 | H87: 0 | I87: 0 | J87: 39 | K87: 0 | L87: 125 | M87: 0 | O87: 0 | Q87: =COUNTIF('Classement auteurs'!B:B,C87) -> 1
A88: 13 | B88: 92 | C88: 131845002101 | D88: Baigneuse coréenne | E88: 11 | F88: 10 | G88: 13 | H88: 0 | I88: 0 | J88: 34 | K88: 0 | L88: 117 | M88: 0 | O88: 0 | Q88: =COUNTIF('Classement auteurs'!B:B,C88) -> 1
A89: 13 | B89: 93 | C89: 131956005501 | D89: European flags | E89: 10 | F89: 14 | G89: 9 | H89: 0 | I89: 0 | J89: 33 | K89: 0 | L89: 81 | M89: 0 | O89: 0 | Q89: =COUNTIF('Classement auteurs'!B:B,C89) -> 1
A90: 13 | B90: 94 | C90: 131376014701 | D90: Le cri | E90: 9 | F90: 7 | G90: 7 | H90: 0 | I90: 0 | J90: 23 | K90: 0 | L90: 118 | M90: 0 | O90: 0 | Q90: =COUNTIF('Classement auteurs'!B:B,C90) -> 1
A91: 13 | B91: 95 | C91: 131845002501 | D91: Séville. Place d'Espagne. | E91: 14 | F91: 14 | G91: 13 | H91: 0 | I91: 0 | J91: 41 | K91: 0 | L91: 99 | M91: 0 | O91: 0 | Q91: =COUNTIF('Classement auteurs'!B:B,C91) -> 1
A92: 13 | B92: 96 | C92: 131110000901 | D92: Marcher sur l'eau | E92: 13 | F92: 12 | G92: 20 | H92: 0 | I92: 0 | J92: 45 | K92: 0 | L92: 103 | M92: 0 | O92: 0 | Q92: =COUNTIF('Classement auteurs'!B:B,C92) -> 1
A93: 13 | B93: 97 | C93: 131683006601 | D93: Un kilt assumé | E93: 11 | F93: 8 | G93: 7 | H93: 0 | I93: 0 | J93: 26 | K93: 0 | L93: 39 | M93: 0 | O93: 0 | Q93: =COUNTIF('Classement auteurs'!B:B,C93) -> 1
A94: 13 | B94: 98 | C94: 131499010801 | D94: Hommage de New York | E94: 12 | F94: 9 | G94: 9 | H94: 0 | I94: 0 | J94: 30 | K94: 0 | L94: 51 | M94: 0 | O94: 0 | Q94: =COUNTIF('Classement auteurs'!B:B,C94) -> 1
A95: 13 | B95: 99 | C95: 131353007401 | D95: Regards de Bolivie | E95: 14 | F95: 12 | G95: 12 | H95: 0 | I95: 0 | J95: 38 | K95: 0 | L95: 4 | M95: 0 | O95: 0 | Q95: =COUNTIF('Classement auteurs'!B:B,C95) -> 1
A96: 13 | B96: 100 | C96: 132193001201 | D96: La potion magique | E96: 12 | F96: 12 | G96: 10 | H96: 0 | I96: 0 | J96: 34 | K96: 0 | L96: 130 | M96: 7 | O96: 0 | Q96: =COUNTIF('Classement auteurs'!B:B,C96) -> 1
A97: 13 | B97: 101 | C97: 130878013401 | D97: 01 Globe terreste | E97: 11 | F97: 11 | G97: 8 | H97: 0 | I97: 0 | J97: 30 | K97: 0 | L97: 63 | M97: 0 | O97: 0 | Q97: =COUNTIF('Classement auteurs'!B:B,C97) -> 1
A98: 13 | B98: 102 | C98: 130987023901 | D98: Love in the air | E98: 11 | F98: 8 | G98: 11 | H98: 0 | I98: 0 | J98: 30 | K98: 0 | L98: 8 | M98: 0 | O98: 0 | Q98: =COUNTIF('Classement auteurs'!B:B,C98) -> 1
A99: 13 | B99: 103 | C99: 131956006201 | D99: Larmes de sang | E99: 12 | F99: 6 | G99: 7 | H99: 0 | I99: 0 | J99: 25 | K99: 0 | L99: 109 | M99: 0 | O99: 0 | Q99: =COUNTIF('Classement auteurs'!B:B,C99) -> 1
A100: 13 | B100: 104 | C100: 130527002501 | D100: Internation | E100: 12 | F100: 11 | G100: 14 | H100: 0 | I100: 0 | J100: 37 | K100: 0 | L100: 144 | M100: 0 | O100: 0 | Q100: =COUNTIF('Classement auteurs'!B:B,C100) -> 1
A101: 13 | B101: 105 | C101: 130527012601 | D101: Transport | E101: 12 | F101: 10 | G101: 15 | H101: 0 | I101: 0 | J101: 37 | K101: 0 | L101: 143 | M101: 0 | O101: 0 | Q101: =COUNTIF('Classement auteurs'!B:B,C101) -> 1
A102: 13 | B102: 106 | C102: 132060000801 | D102: Vision cubaine | E102: 11 | F102: 10 | G102: 11 | H102: 0 | I102: 0 | J102: 32 | K102: 0 | L102: 122 | M102: 0 | O102: 0 | Q102: =COUNTIF('Classement auteurs'!B:B,C102) -> 1
A103: 13 | B103: 107 | C103: 132103000101 | D103: Quel vol déja | E103: 8 | F103: 7 | G103: 8 | H103: 0 | I103: 0 | J103: 23 | K103: 0 | L103: 124 | M103: 0 | O103: 0 | Q103: =COUNTIF('Classement auteurs'!B:B,C103) -> 1
A104: 13 | B104: 108 | C104: 132086002301 | D104: Le poids des traditions | E104: 10 | F104: 11 | G104: 10 | H104: 0 | I104: 0 | J104: 31 | K104: 0 | L104: 14 | M104: 0 | O104: 0 | Q104: =COUNTIF('Classement auteurs'!B:B,C104) -> 1
A105: 13 | B105: 109 | C105: 131956000201 | D105: Femme lepcha sikkim inde | E105: 11 | F105: 18 | G105: 18 | H105: 0 | I105: 0 | J105: 47 | K105: 0 | L105: 60 | M105: 0 | O105: 0 | Q105: =COUNTIF('Classement auteurs'!B:B,C105) -> 1
A106: 13 | B106: 110 | C106: 131879000601 | D106: Magique Islande | E106: 12 | F106: 10 | G106: 15 | H106: 0 | I106: 0 | J106: 37 | K106: 0 | L106: 107 | M106: 0 | O106: 0 | Q106: =COUNTIF('Classement auteurs'!B:B,C106) -> 1
A107: 13 | B107: 111 | C107: 131683007901 | D107: Lueur D'espoir | E107: 12 | F107: 7 | G107: 20 | H107: 0 | I107: 0 | J107: 39 | K107: 0 | L107: 128 | M107: 0 | O107: 0 | Q107: =COUNTIF('Classement auteurs'!B:B,C107) -> 1
A108: 13 | B108: 112 | C108: 131862001401 | D108: Vahine | E108: 11 | F108: 9 | G108: 7 | H108: 0 | I108: 0 | J108: 27 | K108: 0 | L108: 49 | M108: 0 | O108: 0 | Q108: =COUNTIF('Classement auteurs'!B:B,C108) -> 1
A109: 13 | B109: 113 | C109: 132086002601 | D109: Regards partagés | E109: 12 | F109: 6 | G109: 8 | H109: 0 | I109: 0 | J109: 26 | K109: 0 | L109: 27 | M109: 0 | O109: 0 | Q109: =COUNTIF('Classement auteurs'!B:B,C109) -> 1
A110: 13 | B110: 114 | C110: 132060002201 | D110: Festival du rire Montréal | E110: 11 | F110: 10 | G110: 8 | H110: 0 | I110: 0 | J110: 29 | K110: 0 | L110: 58 | M110: 0 | O110: 0 | Q110: =COUNTIF('Classement auteurs'!B:B,C110) -> 1
A111: 13 | B111: 115 | C111: 131353007101 | D111: Regads de l'étranger | E111: 11 | F111: 9 | G111: 10 | H111: 0 | I111: 0 | J111: 30 | K111: 0 | L111: 67 | M111: 0 | O111: 0 | Q111: =COUNTIF('Classement auteurs'!B:B,C111) -> 1
A112: 13 | B112: 116 | C112: 131823005701 | D112: Lever-soleil-Suède | E112: 9 | F112: 12 | G112: 7 | H112: 0 | I112: 0 | J112: 28 | K112: 0 | L112: 83 | M112: 0 | O112: 0 | Q112: =COUNTIF('Classement auteurs'!B:B,C112) -> 1
A113: 13 | B113: 117 | C113: 131956005701 | D113: Bancroft way Berkeley | E113: 10 | F113: 12 | G113: 9 | H113: 0 | I113: 0 | J113: 31 | K113: 0 | L113: 116 | M113: 0 | O113: 0 | Q113: =COUNTIF('Classement auteurs'!B:B,C113) -> 1
A114: 13 | B114: 118 | C114: 132060001801 | D114: Jiwa et la femme au betel | E114: 12 | F114: 12 | G114: 14 | H114: 0 | I114: 0 | J114: 38 | K114: 0 | L114: 94 | M114: 0 | O114: 0 | Q114: =COUNTIF('Classement auteurs'!B:B,C114) -> 1
A115: 13 | B115: 119 | C115: 130527009201 | D115: Aki Matsuri | E115: 12 | F115: 12 | G115: 11 | H115: 0 | I115: 0 | J115: 35 | K115: 0 | L115: 2 | M115: 0 | O115: 0 | Q115: =COUNTIF('Classement auteurs'!B:B,C115) -> 1
A116: 13 | B116: 120 | C116: 130987001601 | D116: Marché Gabonais | E116: 10 | F116: 10 | G116: 16 | H116: 0 | I116: 0 | J116: 36 | K116: 0 | L116: 114 | M116: 0 | O116: 0 | Q116: =COUNTIF('Classement auteurs'!B:B,C116) -> 1
A117: 13 | B117: 121 | C117: 132060002401 | D117: Voyage familial | E117: 12 | F117: 12 | G117: 7 | H117: 0 | I117: 0 | J117: 31 | K117: 0 | L117: 75 | M117: 0 | O117: 0 | Q117: =COUNTIF('Classement auteurs'!B:B,C117) -> 1
A118: 13 | B118: 122 | C118: 130527009401 | D118: Bella ciao | E118: 13 | F118: 20 | G118: 20 | H118: 0 | I118: 0 | J118: 53 | K118: 0 | L118: 43 | M118: 0 | O118: 0 | Q118: =COUNTIF('Classement auteurs'!B:B,C118) -> 1
A119: 13 | B119: 123 | C119: 131499006801 | D119: Retour des troupeaux | E119: 13 | F119: 14 | G119: 12 | H119: 0 | I119: 0 | J119: 39 | K119: 0 | L119: 33 | M119: 0 | O119: 0 | Q119: =COUNTIF('Classement auteurs'!B:B,C119) -> 1
A120: 13 | B120: 124 | C120: 130527017001 | D120: Un monde curieux. | E120: 15 | F120: 13 | G120: 12 | H120: 0 | I120: 0 | J120: 40 | K120: 0 | L120: 12 | M120: 0 | O120: 0 | Q120: =COUNTIF('Classement auteurs'!B:B,C120) -> 1
A121: 13 | B121: 125 | C121: 131376018001 | D121: Immigration | E121: 11 | F121: 15 | G121: 12 | H121: 0 | I121: 0 | J121: 38 | K121: 0 | L121: 104 | M121: 0 | O121: 0 | Q121: =COUNTIF('Classement auteurs'!B:B,C121) -> 1
A122: 13 | B122: 127 | C122: 131499008201 | D122: Train à Madagascar | E122: 15 | F122: 11 | G122: 15 | H122: 0 | I122: 0 | J122: 41 | K122: 0 | L122: 138 | M122: 0 | O122: 0 | Q122: =COUNTIF('Classement auteurs'!B:B,C122) -> 1
A123: 13 | B123: 128 | C123: 131845001401 | D123: Voyage | E123: 12 | F123: 6 | G123: 16 | H123: 0 | I123: 0 | J123: 34 | K123: 0 | L123: 70 | M123: 0 | O123: 0 | Q123: =COUNTIF('Classement auteurs'!B:B,C123) -> 1
A124: 13 | B124: 129 | C124: 131499003601 | D124: Gargote japonaise | E124: 11 | F124: 14 | G124: 8 | H124: 0 | I124: 0 | J124: 33 | K124: 0 | L124: 19 | M124: 0 | O124: 0 | Q124: =COUNTIF('Classement auteurs'!B:B,C124) -> 1
A125: 13 | B125: 130 | C125: 130987002301 | D125: Entrez sans frapper | E125: 13 | F125: 13 | G125: 18 | H125: 0 | I125: 0 | J125: 44 | K125: 0 | L125: 88 | M125: 0 | O125: 0 | Q125: =COUNTIF('Classement auteurs'!B:B,C125) -> 1
A126: 13 | B126: 131 | C126: 132089000101 | D126: Milan 2015 | E126: 11 | F126: 10 | G126: 8 | H126: 0 | I126: 0 | J126: 29 | K126: 0 | L126: 100 | M126: 0 | O126: 0 | Q126: =COUNTIF('Classement auteurs'!B:B,C126) -> 1
A127: 13 | B127: 132 | C127: 131499006901 | D127: Les tanneurs de Fès | E127: 14 | F127: 12 | G127: 19 | H127: 0 | I127: 0 | J127: 45 | K127: 0 | L127: 9 | M127: 0 | O127: 0 | Q127: =COUNTIF('Classement auteurs'!B:B,C127) -> 1
A128: 13 | B128: 133 | C128: 130925009901 | D128: Tatouage | E128: 12 | F128: 9 | G128: 17 | H128: 0 | I128: 0 | J128: 38 | K128: 0 | L128: 89 | M128: 0 | O128: 0 | Q128: =COUNTIF('Classement auteurs'!B:B,C128) -> 1
A129: 13 | B129: 134 | C129: 131619004501 | D129: Colisé | E129: 14 | F129: 15 | G129: 19 | H129: 0 | I129: 0 | J129: 48 | K129: 0 | L129: 10 | M129: 0 | O129: 0 | Q129: =COUNTIF('Classement auteurs'!B:B,C129) -> 1
A130: 13 | B130: 135 | C130: 132084002301 | D130: Moaïs | E130: 13 | F130: 9 | G130: 15 | H130: 0 | I130: 0 | J130: 37 | K130: 0 | L130: 137 | M130: 0 | O130: 0 | Q130: =COUNTIF('Classement auteurs'!B:B,C130) -> 1
A131: 13 | B131: 136 | C131: 130925008401 | D131: Temps passé | E131: 15 | F131: 7 | G131: 17 | H131: 0 | I131: 0 | J131: =SUM(E131:I131) -> 39 | K131: 0 | L131: 140 | M131: 0 | O131: 0 | Q131: =COUNTIF('Classement auteurs'!B:B,C131) -> 1
A132: 13 | B132: 137 | C132: 130987025001 | D132: Repos du pêcheur | E132: 13 | F132: 14 | G132: 12 | H132: 0 | I132: 0 | J132: 39 | K132: 0 | L132: 80 | M132: 0 | O132: 0 | Q132: =COUNTIF('Classement auteurs'!B:B,C132) -> 1
A133: 13 | B133: 138 | C133: 131499010601 | D133: Journal birman | E133: 12 | F133: 11 | G133: 17 | H133: 0 | I133: 0 | J133: 40 | K133: 0 | L133: 71 | M133: 0 | O133: 0 | Q133: =COUNTIF('Classement auteurs'!B:B,C133) -> 1
A134: 13 | B134: 139 | C134: 131499010501 | D134: Retour de marché | E134: 12 | F134: 13 | G134: 16 | H134: 0 | I134: 0 | J134: 41 | K134: 0 | L134: 59 | M134: 0 | O134: 0 | Q134: =COUNTIF('Classement auteurs'!B:B,C134) -> 1
A135: 13 | B135: 140 | C135: 130527012401 | D135: Allée de baobabs | E135: 13 | F135: 10 | G135: 13 | H135: 0 | I135: 0 | J135: 36 | K135: 0 | L135: 22 | M135: 0 | O135: 0 | Q135: =COUNTIF('Classement auteurs'!B:B,C135) -> 1
A136: 13 | B136: 141 | C136: 131353006201 | D136: La tour olympique | E136: 11 | F136: 11 | G136: 9 | H136: 0 | I136: 0 | J136: 31 | K136: 0 | L136: 3 | M136: 0 | O136: 0 | Q136: =COUNTIF('Classement auteurs'!B:B,C136) -> 1
A137: 13 | B137: 142 | C137: 131683006501 | D137: A la croix del condor | E137: 11 | F137: 9 | G137: 8 | H137: 0 | I137: 0 | J137: 28 | K137: 0 | L137: 110 | M137: 0 | O137: 0 | Q137: =COUNTIF('Classement auteurs'!B:B,C137) -> 1
A138: 13 | B138: 143 | C138: 131683002601 | D138: Lumière sublime d'Afrique | E138: 14 | F138: 11 | G138: 12 | H138: 0 | I138: 0 | J138: 37 | K138: 0 | L138: 65 | M138: 0 | O138: 0 | Q138: =COUNTIF('Classement auteurs'!B:B,C138) -> 1
A139: 13 | B139: 144 | C139: 131823006401 | D139: Flash sur l'artiste | E139: 12 | F139: 7 | G139: 19 | H139: 0 | I139: 0 | J139: 38 | K139: 0 | L139: 53 | M139: 0 | O139: 0
A140: 13 | B140: 145 | C140: 131353006101 | D140: Santorin | E140: 13 | F140: 11 | G140: 17 | H140: 0 | I140: 0 | J140: 41 | K140: 0 | L140: 15 | M140: 0 | O140: 0
A141: 13 | B141: 146 | C141: 132060000901 | D141: Lever de soleil africain | E141: 12 | F141: 9 | G141: 7 | H141: 0 | I141: 0 | J141: 28 | K141: 0 | L141: 28 | M141: 7 | O141: 0
A142: 13 | B142: 147 | C142: 130925008701 | D142: Derviche tourneur | E142: 13 | F142: 10 | G142: 11 | H142: 0 | I142: 0 | J142: 34 | K142: 0 | L142: 145 | M142: 0 | O142: 0
A143: 13 | B143: 148 | C143: 132103002301 | D143: Les yeux de l'Inde | E143: 13 | F143: 13 | G143: 17 | H143: 0 | I143: 0 | J143: 43 | K143: 0 | L143: 79 | M143: 0 | O143: 0
A144: 13 | B144: 149 | C144: 131956002401 | D144: Réunion au sommet - lima | E144: 12 | F144: 12 | G144: 12 | H144: 0 | I144: 0 | J144: 36 | K144: 0 | L144: 23 | M144: 0 | O144: 0
A145: 13 | B145: 150 | C145: 131353000101 | D145: Travail des rizières | E145: 13 | F145: 11 | G145: 12 | H145: 0 | I145: 0 | J145: 36 | K145: 0 | L145: 25 | M145: 0 | O145: 0
A146: 13 | B146: 151 | C146: 131353000701 | D146: Vietnamese little girls | E146: 12 | F146: 12 | G146: 18 | H146: 0 | I146: 0 | J146: 42 | K146: 0 | L146: 90 | M146: 0 | O146: 0

Sheet Défi-3
A1: colis | B1: photologic | C1: fichier | D1: titre | E1: note1 | F1: note2 | G1: note3 | H1: note4 | I1: note5 | J1: total | K1: place | L1: passage | M1: statut | N1: medaille | O1: retenue | Q1: 0=absent 1=présent | S1: fichier | T1: total
A2: 13 | B2: 1 | C2: 130987024201 | D2: Cracheur de Feu | E2: 17 | F2: 18 | G2: 13 | H2: 0 | I2: 0 | J2: =SUM(E2:I2) -> 48 | K2: 0 | L2: 50 | M2: 0 | O2: 0 | Q2: =COUNTIF('Classement auteurs'!B:B,C2) -> 1 | S2: 130527009401 | T2: 46 | U2: =(MID(S2,3,4)*1) -> 527 | V2: 131 | W2: =IF($V2=VLOOKUP($U2,'Classement clubs'!$B$2:$K$52,5,FALSE),"OK","KO") -> OK
A3: 13 | B3: 2 | C3: 130987024101 | D3: A l'affut | E3: 15 | F3: 11 | G3: 10 | H3: 0 | I3: 0 | J3: =SUM(E3:I3) -> 36 | K3: 0 | L3: 65 | M3: 0 | O3: 0 | Q3: =COUNTIF('Classement auteurs'!B:B,C3) -> 1 | S3: 130878014301 | T3: 52 | U3: =(MID(S3,3,4)*1) -> 878 | V3: 135 | W3: =IF($V3=VLOOKUP($U3,'Classement clubs'!$B$2:$K$52,5,FALSE),"OK","KO") -> OK
A4: 13 | B4: 4 | C4: 130987012601 | D4: Répétition. | E4: 14 | F4: 15 | G4: 13 | H4: 0 | I4: 0 | J4: 42 | K4: 0 | L4: 149 | M4: 0 | O4: 0 | Q4: =COUNTIF('Classement auteurs'!B:B,C4) -> 1 | S4: 130925007701 | T4: 48 | U4: =(MID(S4,3,4)*1) -> 925 | V4: 137 | W4: =IF($V4=VLOOKUP($U4,'Classement clubs'!$B$2:$K$52,5,FALSE),"OK","KO") -> OK
A5: 13 | B5: 5 | C5: 131376018301 | D5: La poursuite | E5: 19 | F5: 18 | G5: 20 | H5: 0 | I5: 0 | J5: 57 | K5: 0 | L5: 132 | M5: 0 | O5: 0 | Q5: =COUNTIF('Classement auteurs'!B:B,C5) -> 1 | S5: 130987024201 | T5: 48 | U5: =(MID(S5,3,4)*1) -> 987 | V5: 137 | W5: =IF($V5=VLOOKUP($U5,'Classement clubs'!$B$2:$K$52,5,FALSE),"OK","KO") -> OK
A6: 13 | B6: 6 | C6: 132193000601 | D6: Proue inversée | E6: 17 | F6: 14 | G6: 13 | H6: 0 | I6: 0 | J6: 44 | K6: 0 | L6: 26 | M6: 0 | O6: 0 | Q6: =COUNTIF('Classement auteurs'!B:B,C6) -> 1 | S6: 131110000901 | T6: 56 | U6: =(MID(S6,3,4)*1) -> 1110 | V6: 134 | W6: =IF($V6=VLOOKUP($U6,'Classement clubs'!$B$2:$K$52,5,FALSE),"OK","KO") -> OK
A7: 13 | B7: 7 | C7: 131683008001 | D7: Espiègle | E7: 16 | F7: 19 | G7: 12 | H7: 0 | I7: 0 | J7: 47 | K7: 0 | L7: 153 | M7: 0 | O7: 0 | Q7: =COUNTIF('Classement auteurs'!B:B,C7) -> 1 | S7: 131353000101 | T7: 46 | U7: =(MID(S7,3,4)*1) -> 1353 | V7: 125 | W7: =IF($V7=VLOOKUP($U7,'Classement clubs'!$B$2:$K$52,5,FALSE),"OK","KO") -> OK
A8: 13 | B8: 8 | C8: 131823008301 | D8: Portrait de rue | E8: 16 | F8: 18 | G8: 14 | H8: 0 | I8: 0 | J8: 48 | K8: 0 | L8: 12 | M8: 0 | O8: 0 | Q8: =COUNTIF('Classement auteurs'!B:B,C8) -> 1 | S8: 131376018301 | T8: 57 | U8: =(MID(S8,3,4)*1) -> 1376 | V8: 145 | W8: =IF($V8=VLOOKUP($U8,'Classement clubs'!$B$2:$K$52,5,FALSE),"OK","KO") -> OK
A9: 13 | B9: 9 | C9: 132103000101 | D9: Prendre de le temps | E9: 19 | F9: 19 | G9: 17 | H9: 0 | I9: 0 | J9: 55 | K9: 0 | L9: 152 | M9: 0 | O9: 0 | Q9: =COUNTIF('Classement auteurs'!B:B,C9) -> 1 | S9: 131494000201 | T9: 42 | U9: =(MID(S9,3,4)*1) -> 1494 | V9: 113 | W9: =IF($V9=VLOOKUP($U9,'Classement clubs'!$B$2:$K$52,5,FALSE),"OK","KO") -> OK
A10: 13 | B10: 10 | C10: 131494003201 | D10: Jeans | E10: 15 | F10: 13 | G10: 11 | H10: 0 | I10: 0 | J10: 39 | K10: 0 | L10: 64 | M10: 0 | O10: 0 | Q10: =COUNTIF('Classement auteurs'!B:B,C10) -> 1 | S10: 131499003601 | T10: 35 | U10: =(MID(S10,3,4)*1) -> 1499 | V10: 144 | W10: =IF($V10=VLOOKUP($U10,'Classement clubs'!$B$2:$K$52,5,FALSE),"OK","KO") -> OK
A11: 13 | B11: 11 | C11: 130000021001 | D11: Un voyage à LONDRES | E11: 7 | F11: 6 | G11: 8 | H11: 0 | I11: 0 | J11: 21 | K11: 0 | L11: 137 | M11: 6 | O11: 0 | Q11: =COUNTIF('Classement auteurs'!B:B,C11) -> 1 | S11: 131683006901 | T11: 51 | U11: =(MID(S11,3,4)*1) -> 1683 | V11: 146 | W11: =IF($V11=VLOOKUP($U11,'Classement clubs'!$B$2:$K$52,5,FALSE),"OK","KO") -> OK
A12: 13 | B12: 12 | C12: 130987029901 | D12: Rodin.jpg | E12: 9 | F12: 11 | G12: 11 | H12: 0 | I12: 0 | J12: 31 | K12: 0 | L12: 113 | M12: 0 | O12: 0 | Q12: =COUNTIF('Classement auteurs'!B:B,C12) -> 1 | S12: 131823008301 | T12: 48 | U12: =(MID(S12,3,4)*1) -> 1823 | V12: 131 | W12: =IF($V12=VLOOKUP($U12,'Classement clubs'!$B$2:$K$52,5,FALSE),"OK","KO") -> OK
A13: 13 | B13: 13 | C13: 131683007601 | D13: Maillot jaune | E13: 11 | F13: 10 | G13: 10 | H13: 0 | I13: 0 | J13: 31 | K13: 0 | L13: 20 | M13: 0 | O13: 0 | Q13: =COUNTIF('Classement auteurs'!B:B,C13) -> 1 | S13: 131845001401 | T13: 48 | U13: =(MID(S13,3,4)*1) -> 1845 | V13: 132 | W13: =IF($V13=VLOOKUP($U13,'Classement clubs'!$B$2:$K$52,5,FALSE),"OK","KO") -> OK
A14: 13 | B14: 14 | C14: 131823004901 | D14: Ça chauffe | E14: 14 | F14: 16 | G14: 13 | H14: 0 | I14: 0 | J14: 43 | K14: 0 | L14: 48 | M14: 0 | O14: 0 | Q14: =COUNTIF('Classement auteurs'!B:B,C14) -> 1 | S14: 131862002201 | T14: 44 | U14: =(MID(S14,3,4)*1) -> 1862 | V14: 121 | W14: =IF($V14=VLOOKUP($U14,'Classement clubs'!$B$2:$K$52,5,FALSE),"OK","KO") -> OK
A15: 13 | B15: 15 | C15: 131683005001 | D15: Rêverie | E15: 14 | F15: 13 | G15: 12 | H15: 0 | I15: 0 | J15: 39 | K15: 0 | L15: 31 | M15: 0 | O15: 0 | Q15: =COUNTIF('Classement auteurs'!B:B,C15) -> 1 | S15: 131879000801 | T15: 58 | U15: =(MID(S15,3,4)*1) -> 1879 | V15: 148 | W15: =IF($V15=VLOOKUP($U15,'Classement clubs'!$B$2:$K$52,5,FALSE),"OK","KO") -> OK
A16: 13 | B16: 16 | C16: 131499008701 | D16: Suivre notre chemin... | E16: 13 | F16: 14 | G16: 12 | H16: 0 | I16: 0 | J16: 39 | K16: 0 | L16: 158 | M16: 0 | O16: 0 | Q16: =COUNTIF('Classement auteurs'!B:B,C16) -> 1 | S16: 131956004601 | T16: 50 | U16: =(MID(S16,3,4)*1) -> 1956 | V16: 138 | W16: =IF($V16=VLOOKUP($U16,'Classement clubs'!$B$2:$K$52,5,FALSE),"OK","KO") -> OK
A17: 13 | B17: 17 | C17: 132193000301 | D17: Salsa | E17: 20 | F17: 7 | G17: 13 | H17: 0 | I17: 0 | J17: 40 | K17: 0 | L17: 4 | M17: 0 | O17: 0 | Q17: =COUNTIF('Classement auteurs'!B:B,C17) -> 1 | S17: 132060000401 | T17: 43 | U17: =(MID(S17,3,4)*1) -> 2060 | V17: 122 | W17: =IF($V17=VLOOKUP($U17,'Classement clubs'!$B$2:$K$52,5,FALSE),"OK","KO") -> OK
A18: 13 | B18: 18 | C18: 131823008701 | D18: Jusqu'au ciel | E18: 8 | F18: 10 | G18: 10 | H18: 0 | I18: 0 | J18: 28 | K18: 0 | L18: 115 | M18: 0 | O18: 0 | Q18: =COUNTIF('Classement auteurs'!B:B,C18) -> 1 | S18: 132084002301 | T18: 54 | U18: =(MID(S18,3,4)*1) -> 2084 | V18: 134 | W18: =IF($V18=VLOOKUP($U18,'Classement clubs'!$B$2:$K$52,5,FALSE),"OK","KO") -> OK
A19: 13 | B19: 20 | C19: 130987028401 | D19: Sensibilité de Granit | E19: 11 | F19: 7 | G19: 9 | H19: 0 | I19: 0 | J19: 27 | K19: 0 | L19: 93 | M19: 0 | O19: 0 | Q19: =COUNTIF('Classement auteurs'!B:B,C19) -> 1 | S19: 132086001401 | T19: 37 | U19: =(MID(S19,3,4)*1) -> 2086 | V19: 110 | W19: =IF($V19=VLOOKUP($U19,'Classement clubs'!$B$2:$K$52,5,FALSE),"OK","KO") -> OK
A20: 13 | B20: 21 | C20: 131824001901 | D20: Terre Secrete Mâconnaise | E20: 17 | F20: 14 | G20: 14 | H20: 0 | I20: 0 | J20: 45 | K20: 0 | L20: 66 | M20: 0 | O20: 0 | Q20: =COUNTIF('Classement auteurs'!B:B,C20) -> 1 | S20: 132103000101 | T20: 55 | U20: =(MID(S20,3,4)*1) -> 2103 | V20: 142 | W20: =IF($V20=VLOOKUP($U20,'Classement clubs'!$B$2:$K$52,5,FALSE),"OK","KO") -> OK
A21: 13 | B21: 22 | C21: 130878013001 | D21: La plage | E21: 15 | F21: 12 | G21: 12 | H21: 0 | I21: 0 | J21: 39 | K21: 0 | L21: 80 | M21: 0 | O21: 0 | Q21: =COUNTIF('Classement auteurs'!B:B,C21) -> 1 | S21: 132203000501 | T21: 30 | U21: =(MID(S21,3,4)*1) -> 2203 | V21: 114 | W21: =IF($V21=VLOOKUP($U21,'Classement clubs'!$B$2:$K$52,5,FALSE),"OK","KO") -> OK
A22: 13 | B22: 23 | C22: 132084002301 | D22: Les petits hommes | E22: 19 | F22: 18 | G22: 17 | H22: 0 | I22: 0 | J22: 54 | K22: 0 | L22: 8 | M22: 0 | O22: 0 | Q22: =COUNTIF('Classement auteurs'!B:B,C22) -> 1
A23: 13 | B23: 24 | C23: 131683006301 | D23: Graphisme rural | E23: 11 | F23: 13 | G23: 10 | H23: 0 | I23: 0 | J23: 34 | K23: 0 | L23: 118 | M23: 0 | O23: 0 | Q23: =COUNTIF('Classement auteurs'!B:B,C23) -> 1
A24: 13 | B24: 25 | C24: 131862002201 | D24: Les fiancés | E24: 18 | F24: 12 | G24: 14 | H24: 0 | I24: 0 | J24: 44 | K24: 0 | L24: 144 | M24: 0 | O24: 0 | Q24: =COUNTIF('Classement auteurs'!B:B,C24) -> 1
A25: 13 | B25: 26 | C25: 130462001101 | D25: Oeuvre 1-mucem | E25: 13 | F25: 11 | G25: 14 | H25: 0 | I25: 0 | J25: 38 | K25: 0 | L25: 161 | M25: 0 | O25: 0 | Q25: =COUNTIF('Classement auteurs'!B:B,C25) -> 1
A26: 13 | B26: 27 | C26: 130987024001 | D26: Ambiance nordique | E26: 15 | F26: 15 | G26: 14 | H26: 0 | I26: 0 | J26: 44 | K26: 0 | L26: 121 | M26: 0 | O26: 0 | Q26: =COUNTIF('Classement auteurs'!B:B,C26) -> 1
A27: 13 | B27: 28 | C27: 131683000701 | D27: MARIE | E27: 18 | F27: 13 | G27: 17 | H27: 0 | I27: 0 | J27: 48 | K27: 0 | L27: 40 | M27: 0 | O27: 0 | Q27: =COUNTIF('Classement auteurs'!B:B,C27) -> 1
A28: 13 | B28: 29 | C28: 131879000801 | D28: Harmonie | E28: 19 | F28: 19 | G28: 20 | H28: 0 | I28: 0 | J28: 58 | K28: 0 | L28: 99 | M28: 0 | O28: 0 | Q28: =COUNTIF('Classement auteurs'!B:B,C28) -> 1
A29: 13 | B29: 30 | C29: 131499009301 | D29: Les parasols | E29: 11 | F29: 11 | G29: 13 | H29: 0 | I29: 0 | J29: 35 | K29: 0 | L29: 96 | M29: 0 | O29: 0 | Q29: =COUNTIF('Classement auteurs'!B:B,C29) -> 1
A30: 13 | B30: 31 | C30: 131879000101 | D30: Shinkansen-japon | E30: 13 | F30: 15 | G30: 10 | H30: 0 | I30: 0 | J30: 38 | K30: 0 | L30: 74 | M30: 0 | O30: 0 | Q30: =COUNTIF('Classement auteurs'!B:B,C30) -> 1
A31: 13 | B31: 32 | C31: 131824003101 | D31: Encre du Japon | E31: 15 | F31: 12 | G31: 14 | H31: 0 | I31: 0 | J31: 41 | K31: 0 | L31: 104 | M31: 0 | O31: 0 | Q31: =COUNTIF('Classement auteurs'!B:B,C31) -> 1
A32: 13 | B32: 33 | C32: 131353006101 | D32: Mains d'Argile | E32: 15 | F32: 11 | G32: 10 | H32: 0 | I32: 0 | J32: 36 | K32: 0 | L32: 63 | M32: 0 | O32: 0 | Q32: =COUNTIF('Classement auteurs'!B:B,C32) -> 1
A33: 13 | B33: 34 | C33: 131499009801 | D33: Bella musica | E33: 13 | F33: 10 | G33: 12 | H33: 0 | I33: 0 | J33: 35 | K33: 0 | L33: 82 | M33: 0 | O33: 0 | Q33: =COUNTIF('Classement auteurs'!B:B,C33) -> 1
A34: 13 | B34: 35 | C34: 132023000101 | D34: L'homme au damier | E34: 16 | F34: 8 | G34: 14 | H34: 0 | I34: 0 | J34: 38 | K34: 0 | L34: 92 | M34: 0 | O34: 0 | Q34: =COUNTIF('Classement auteurs'!B:B,C34) -> 1
A35: 13 | B35: 36 | C35: 130987015701 | D35: Douceur | E35: 12 | F35: 9 | G35: 13 | H35: 0 | I35: 0 | J35: 34 | K35: 0 | L35: 147 | M35: 0 | O35: 0 | Q35: =COUNTIF('Classement auteurs'!B:B,C35) -> 1
A36: 13 | B36: 38 | C36: 131499008601 | D36: Il potassait... | E36: 14 | F36: 11 | G36: 15 | H36: 0 | I36: 0 | J36: 40 | K36: 0 | L36: 159 | M36: 0 | O36: 0 | Q36: =COUNTIF('Classement auteurs'!B:B,C36) -> 1
A37: 13 | B37: 39 | C37: 131992000401 | D37: Fantôme de Noel | E37: 12 | F37: 9 | G37: 11 | H37: 0 | I37: 0 | J37: 32 | K37: 0 | L37: 138 | M37: 0 | O37: 0 | Q37: =COUNTIF('Classement auteurs'!B:B,C37) -> 1
A38: 13 | B38: 40 | C38: 130925010201 | D38: Arles | E38: 10 | F38: 11 | G38: 10 | H38: 0 | I38: 0 | J38: 31 | K38: 0 | L38: 15 | M38: 0 | O38: 0 | Q38: =COUNTIF('Classement auteurs'!B:B,C38) -> 1
A39: 13 | B39: 41 | C39: 131227008601 | D39: Après la pluie | E39: 20 | F39: 17 | G39: 16 | H39: 0 | I39: 0 | J39: 53 | K39: 0 | L39: 2 | M39: 0 | O39: 0 | Q39: =COUNTIF('Classement auteurs'!B:B,C39) -> 1
A40: 13 | B40: 42 | C40: 130878014101 | D40: Voilier echoué | E40: 15 | F40: 13 | G40: 16 | H40: 0 | I40: 0 | J40: 44 | K40: 0 | L40: 35 | M40: 0 | O40: 0 | Q40: =COUNTIF('Classement auteurs'!B:B,C40) -> 1
A41: 13 | B41: 44 | C41: 130000020401 | D41: The Camps | E41: 12 | F41: 11 | G41: 12 | H41: 0 | I41: 0 | J41: 35 | K41: 0 | L41: 131 | M41: 6 | O41: 0 | Q41: =COUNTIF('Classement auteurs'!B:B,C41) -> 1
A42: 13 | B42: 46 | C42: 131499005201 | D42: James | E42: 18 | F42: 14 | G42: 17 | H42: 0 | I42: 0 | J42: 49 | K42: 0 | L42: 28 | M42: 0 | O42: 0 | Q42: =COUNTIF('Classement auteurs'!B:B,C42) -> 1
A43: 13 | B43: 47 | C43: 131376014701 | D43: Trompette | E43: 13 | F43: 13 | G43: 13 | H43: 0 | I43: 0 | J43: 39 | K43: 0 | L43: 95 | M43: 0 | O43: 0 | Q43: =COUNTIF('Classement auteurs'!B:B,C43) -> 1
A44: 13 | B44: 48 | C44: 131956001401 | D44: Escalier Iranien | E44: 14 | F44: 9 | G44: 15 | H44: 0 | I44: 0 | J44: 38 | K44: 0 | L44: 105 | M44: 0 | O44: 0 | Q44: =COUNTIF('Classement auteurs'!B:B,C44) -> 1
A45: 13 | B45: 49 | C45: 131879000501 | D45: Rencontre | E45: 12 | F45: 13 | G45: 15 | H45: 0 | I45: 0 | J45: 40 | K45: 0 | L45: 85 | M45: 0 | O45: 0 | Q45: =COUNTIF('Classement auteurs'!B:B,C45) -> 1
A46: 13 | B46: 50 | C46: 130987013801 | D46: Massilia 2017 | E46: 16 | F46: 14 | G46: 15 | H46: 0 | I46: 0 | J46: 45 | K46: 0 | L46: 11 | M46: 0 | O46: 0 | Q46: =COUNTIF('Classement auteurs'!B:B,C46) -> 1
A47: 13 | B47: 51 | C47: 132060000801 | D47: Ramasseurs de coquillages | E47: 15 | F47: 7 | G47: 11 | H47: 0 | I47: 0 | J47: 33 | K47: 0 | L47: 17 | M47: 0 | O47: 0 | Q47: =COUNTIF('Classement auteurs'!B:B,C47) -> 1
A48: 13 | B48: 52 | C48: 132084000301 | D48: Fuir la cité maudite | E48: 14 | F48: 14 | G48: 12 | H48: 0 | I48: 0 | J48: 40 | K48: 0 | L48: 108 | M48: 0 | O48: 0 | Q48: =COUNTIF('Classement auteurs'!B:B,C48) -> 1
A49: 13 | B49: 53 | C49: 131376012601 | D49: Ecume des mers | E49: 13 | F49: 13 | G49: 14 | H49: 0 | I49: 0 | J49: 40 | K49: 0 | L49: 3 | M49: 0 | O49: 0 | Q49: =COUNTIF('Classement auteurs'!B:B,C49) -> 1
A50: 13 | B50: 54 | C50: 130987019601 | D50: La photographe | E50: 11 | F50: 12 | G50: 13 | H50: 0 | I50: 0 | J50: 36 | K50: 0 | L50: 19 | M50: 0 | O50: 0 | Q50: =COUNTIF('Classement auteurs'!B:B,C50) -> 1
A51: 13 | B51: 55 | C51: 130987019701 | D51: Big Ben | E51: 12 | F51: 16 | G51: 12 | H51: 0 | I51: 0 | J51: 40 | K51: 0 | L51: 33 | M51: 0 | O51: 0 | Q51: =COUNTIF('Classement auteurs'!B:B,C51) -> 1
A52: 13 | B52: 56 | C52: 130925008601 | D52: Silhouette | E52: 15 | F52: 8 | G52: 11 | H52: 0 | I52: 0 | J52: 34 | K52: 0 | L52: 155 | M52: 0 | O52: 0 | Q52: =COUNTIF('Classement auteurs'!B:B,C52) -> 1
A53: 13 | B53: 57 | C53: 130878007201 | D53: Marlène | E53: 13 | F53: 11 | G53: 13 | H53: 0 | I53: 0 | J53: 37 | K53: 0 | L53: 112 | M53: 0 | O53: 0 | Q53: =COUNTIF('Classement auteurs'!B:B,C53) -> 1
A54: 13 | B54: 58 | C54: 131845004001 | D54: John peter | E54: 17 | F54: 11 | G54: 14 | H54: 0 | I54: 0 | J54: 42 | K54: 0 | L54: 72 | M54: 0 | O54: 0 | Q54: =COUNTIF('Classement auteurs'!B:B,C54) -> 1
A55: 13 | B55: 59 | C55: 132084001701 | D55: Au bout... la mer | E55: 14 | F55: 12 | G55: 14 | H55: 0 | I55: 0 | J55: 40 | K55: 0 | L55: 27 | M55: 0 | O55: 0 | Q55: =COUNTIF('Classement auteurs'!B:B,C55) -> 1
A56: 13 | B56: 60 | C56: 132060001701 | D56: Artiste dans l'atelier | E56: 14 | F56: 8 | G56: 11 | H56: 0 | I56: 0 | J56: 33 | K56: 0 | L56: 55 | M56: 0 | O56: 0 | Q56: =COUNTIF('Classement auteurs'!B:B,C56) -> 1
A57: 13 | B57: 61 | C57: 131862001001 | D57: Brume et Givre | E57: 13 | F57: 10 | G57: 13 | H57: 0 | I57: 0 | J57: 36 | K57: 0 | L57: 49 | M57: 0 | O57: 0 | Q57: =COUNTIF('Classement auteurs'!B:B,C57) -> 1
A58: 13 | B58: 62 | C58: 132103002301 | D58: Nobody... nowhere | E58: 13 | F58: 16 | G58: 14 | H58: 0 | I58: 0 | J58: 43 | K58: 0 | L58: 89 | M58: 0 | O58: 0 | Q58: =COUNTIF('Classement auteurs'!B:B,C58) -> 1
A59: 13 | B59: 63 | C59: 132217000101 | D59: Dans le vent | E59: 9 | F59: 8 | G59: 13 | H59: 0 | I59: 0 | J59: 30 | K59: 0 | L59: 22 | M59: 0 | O59: 0 | Q59: =COUNTIF('Classement auteurs'!B:B,C59) -> 1
A60: 13 | B60: 64 | C60: 131353006201 | D60: Cairn à Quiberon | E60: 12 | F60: 14 | G60: 13 | H60: 0 | I60: 0 | J60: 39 | K60: 0 | L60: 46 | M60: 0 | O60: 0 | Q60: =COUNTIF('Classement auteurs'!B:B,C60) -> 1
A61: 13 | B61: 65 | C61: 132084004001 | D61: Village Diola | E61: 13 | F61: 8 | G61: 11 | H61: 0 | I61: 0 | J61: 32 | K61: 0 | L61: 71 | M61: 0 | O61: 0 | Q61: =COUNTIF('Classement auteurs'!B:B,C61) -> 1
A62: 13 | B62: 66 | C62: 132103000201 | D62: La femme du village | E62: 14 | F62: 18 | G62: 12 | H62: 0 | I62: 0 | J62: 44 | K62: 0 | L62: 51 | M62: 0 | O62: 0 | Q62: =COUNTIF('Classement auteurs'!B:B,C62) -> 1
A63: 13 | B63: 68 | C63: 130527013301 | D63: New york | E63: 12 | F63: 14 | G63: 14 | H63: 0 | I63: 0 | J63: 40 | K63: 0 | L63: 62 | M63: 0 | O63: 0 | Q63: =COUNTIF('Classement auteurs'!B:B,C63) -> 1
A64: 13 | B64: 69 | C64: 130527011601 | D64: THE BIG APPLE | E64: 12 | F64: 11 | G64: 14 | H64: 0 | I64: 0 | J64: 37 | K64: 0 | L64: 7 | M64: 0 | O64: 0 | Q64: =COUNTIF('Classement auteurs'!B:B,C64) -> 1
A65: 13 | B65: 70 | C65: 131494002301 | D65: Vagues à l'âme | E65: 11 | F65: 9 | G65: 12 | H65: 0 | I65: 0 | J65: 32 | K65: 0 | L65: 116 | M65: 0 | O65: 0 | Q65: =COUNTIF('Classement auteurs'!B:B,C65) -> 1
A66: 13 | B66: 71 | C66: 130987001601 | D66: Il chante!!! | E66: 14 | F66: 7 | G66: 14 | H66: 0 | I66: 0 | J66: 35 | K66: 0 | L66: 111 | M66: 0 | O66: 0 | Q66: =COUNTIF('Classement auteurs'!B:B,C66) -> 1
A67: 13 | B67: 72 | C67: 131823005701 | D67: L'ange | E67: 13 | F67: 12 | G67: 12 | H67: 0 | I67: 0 | J67: =SUM(E67:I67) -> 37 | K67: 0 | L67: 45 | M67: 0 | O67: 0 | Q67: =COUNTIF('Classement auteurs'!B:B,C67) -> 1
A68: 13 | B68: 73 | C68: 130987014001 | D68: Prière | E68: 8 | F68: 7 | G68: 8 | H68: 0 | I68: 0 | J68: 23 | K68: 0 | L68: 76 | M68: 0 | O68: 0 | Q68: =COUNTIF('Classement auteurs'!B:B,C68) -> 1
A69: 13 | B69: 74 | C69: 131845002501 | D69: Spartan à St Tropez | E69: 11 | F69: 11 | G69: 10 | H69: 0 | I69: 0 | J69: 32 | K69: 0 | L69: 87 | M69: 0 | O69: 0 | Q69: =COUNTIF('Classement auteurs'!B:B,C69) -> 1
A70: 13 | B70: 75 | C70: 130878013401 | D70: Prison | E70: 14 | F70: 9 | G70: 13 | H70: 0 | I70: 0 | J70: 36 | K70: 0 | L70: 162 | M70: 0 | O70: 0 | Q70: =COUNTIF('Classement auteurs'!B:B,C70) -> 1
A71: 13 | B71: 76 | C71: 130878014301 | D71: L'homme | E71: 19 | F71: 16 | G71: 17 | H71: 0 | I71: 0 | J71: 52 | K71: 0 | L71: 107 | M71: 0 | O71: 0 | Q71: =COUNTIF('Classement auteurs'!B:B,C71) -> 1
A72: 13 | B72: 77 | C72: 131879001301 | D72: Rue | E72: 17 | F72: 16 | G72: 13 | H72: 0 | I72: 0 | J72: 46 | K72: 0 | L72: 14 | M72: 0 | O72: 0 | Q72: =COUNTIF('Classement auteurs'!B:B,C72) -> 1
A73: 13 | B73: 78 | C73: 130527015501 | D73: Amaryllis | E73: 14 | F73: 19 | G73: 12 | H73: 0 | I73: 0 | J73: 45 | K73: 0 | L73: 140 | M73: 0 | O73: 0 | Q73: =COUNTIF('Classement auteurs'!B:B,C73) -> 1
A74: 13 | B74: 79 | C74: 131823006401 | D74: Solitude | E74: 16 | F74: 10 | G74: 13 | H74: 0 | I74: 0 | J74: 39 | K74: 0 | L74: 23 | M74: 0 | O74: 0 | Q74: =COUNTIF('Classement auteurs'!B:B,C74) -> 1
A75: 13 | B75: 81 | C75: 131683006601 | D75: Escaliers | E75: 13 | F75: 15 | G75: 14 | H75: 0 | I75: 0 | J75: 42 | K75: 0 | L75: 110 | M75: 0 | O75: 0 | Q75: =COUNTIF('Classement auteurs'!B:B,C75) -> 1
A76: 13 | B76: 82 | C76: 132060001801 | D76: Est-ce la bonne direction ? | E76: 17 | F76: 11 | G76: 12 | H76: 0 | I76: 0 | J76: 40 | K76: 0 | L76: 44 | M76: 0 | O76: 0 | Q76: =COUNTIF('Classement auteurs'!B:B,C76) -> 1
A77: 13 | B77: 83 | C77: 130527019601 | D77: Flatiron building | E77: 9 | F77: 10 | G77: 10 | H77: 0 | I77: 0 | J77: 29 | K77: 0 | L77: 91 | M77: 0 | O77: 0 | Q77: =COUNTIF('Classement auteurs'!B:B,C77) -> 1
A78: 13 | B78: 84 | C78: 130527012401 | D78: En vallée d'Aspe | E78: 6 | F78: 6 | G78: 6 | H78: 0 | I78: 0 | J78: 18 | K78: 0 | L78: 136 | M78: 0 | O78: 0 | Q78: =COUNTIF('Classement auteurs'!B:B,C78) -> 1
A79: 13 | B79: 85 | C79: 130925008701 | D79: Cimetière | E79: 18 | F79: 9 | G79: 12 | H79: 0 | I79: 0 | J79: 39 | K79: 0 | L79: 43 | M79: 0 | O79: 0 | Q79: =COUNTIF('Classement auteurs'!B:B,C79) -> 1
A80: 13 | B80: 86 | C80: 131823007601 | D80: Cha NB | E80: 14 | F80: 13 | G80: 13 | H80: 0 | I80: 0 | J80: 40 | K80: 0 | L80: 67 | M80: 0 | O80: 0 | Q80: =COUNTIF('Classement auteurs'!B:B,C80) -> 1
A81: 13 | B81: 87 | C81: 130987026701 | D81: Tamaris Le Matin_ St Mandrier _26.08.17 | E81: 12 | F81: 12 | G81: 8 | H81: 0 | I81: 0 | J81: 32 | K81: 0 | L81: 84 | M81: 0 | O81: 0 | Q81: =COUNTIF('Classement auteurs'!B:B,C81) -> 1
A82: 13 | B82: 88 | C82: 132086001401 | D82: Rêverie | E82: 15 | F82: 10 | G82: 12 | H82: 0 | I82: 0 | J82: 37 | K82: 0 | L82: 37 | M82: 0 | O82: 0 | Q82: =COUNTIF('Classement auteurs'!B:B,C82) -> 1
A83: 13 | B83: 89 | C83: 130527002501 | D83: Méfiance | E83: 17 | F83: 11 | G83: 10 | H83: 0 | I83: 0 | J83: 38 | K83: 0 | L83: 25 | M83: 0 | O83: 0 | Q83: =COUNTIF('Classement auteurs'!B:B,C83) -> 1
A84: 13 | B84: 90 | C84: 132203000501 | D84: L'embarras du choix | E84: 10 | F84: 9 | G84: 11 | H84: 0 | I84: 0 | J84: 30 | K84: 0 | L84: 117 | M84: 0 | O84: 0 | Q84: =COUNTIF('Classement auteurs'!B:B,C84) -> 1
A85: 13 | B85: 91 | C85: 131992000301 | D85: Petit matin dans la mare | E85: 10 | F85: 12 | G85: 10 | H85: 0 | I85: 0 | J85: 32 | K85: 0 | L85: 160 | M85: 0 | O85: 0 | Q85: =COUNTIF('Classement auteurs'!B:B,C85) -> 1
A86: 13 | B86: 92 | C86: 132086002301 | D86: Elle part | E86: 17 | F86: 7 | G86: 11 | H86: 0 | I86: 0 | J86: 35 | K86: 0 | L86: 54 | M86: 0 | O86: 0 | Q86: =COUNTIF('Classement auteurs'!B:B,C86) -> 1
A87: 13 | B87: 93 | C87: 131499010401 | D87: Salins | E87: 18 | F87: 11 | G87: 14 | H87: 0 | I87: 0 | J87: 43 | K87: 0 | L87: 109 | M87: 0 | O87: 0 | Q87: =COUNTIF('Classement auteurs'!B:B,C87) -> 1
A88: 13 | B88: 94 | C88: 131683005101 | D88: Regard sur la rue | E88: 13 | F88: 15 | G88: 13 | H88: 0 | I88: 0 | J88: 41 | K88: 0 | L88: 39 | M88: 0 | O88: 0 | Q88: =COUNTIF('Classement auteurs'!B:B,C88) -> 1
A89: 13 | B89: 95 | C89: 130987023901 | D89: Infiniment petit dans l'infiniment grand | E89: 12 | F89: 14 | G89: 14 | H89: 0 | I89: 0 | J89: 40 | K89: 0 | L89: 129 | M89: 0 | O89: 0 | Q89: =COUNTIF('Classement auteurs'!B:B,C89) -> 1
A90: 13 | B90: 96 | C90: 130000019901 | D90: Arles | E90: 17 | F90: 12 | G90: 15 | H90: 0 | I90: 0 | J90: 44 | K90: 0 | L90: 34 | M90: 6 | O90: 0 | Q90: =COUNTIF('Classement auteurs'!B:B,C90) -> 1
A91: 13 | B91: 97 | C91: 132060002401 | D91: La force Polynésienne | E91: 13 | F91: 8 | G91: 11 | H91: 0 | I91: 0 | J91: 32 | K91: 0 | L91: 47 | M91: 0 | O91: 0 | Q91: =COUNTIF('Classement auteurs'!B:B,C91) -> 1
A92: 13 | B92: 98 | C92: 130925008401 | D92: Exploration | E92: 16 | F92: 13 | G92: 11 | H92: 0 | I92: 0 | J92: 40 | K92: 0 | L92: 42 | M92: 0 | O92: 0 | Q92: =COUNTIF('Classement auteurs'!B:B,C92) -> 1
A93: 13 | B93: 99 | C93: 131862001101 | D93: Fabrice Bistoni à Opio | E93: 13 | F93: 13 | G93: 15 | H93: 0 | I93: 0 | J93: 41 | K93: 0 | L93: 24 | M93: 0 | O93: 0 | Q93: =COUNTIF('Classement auteurs'!B:B,C93) -> 1
A94: 13 | B94: 100 | C94: 131879002001 | D94: Brume hivernale | E94: 17 | F94: 12 | G94: 13 | H94: 0 | I94: 0 | J94: 42 | K94: 0 | L94: 16 | M94: 0 | O94: 0 | Q94: =COUNTIF('Classement auteurs'!B:B,C94) -> 1
A95: 13 | B95: 101 | C95: 131110001101 | D95: Jeu d'ombres | E95: 12 | F95: 10 | G95: 16 | H95: 0 | I95: 0 | J95: 38 | K95: 0 | L95: 101 | M95: 0 | O95: 0 | Q95: =COUNTIF('Classement auteurs'!B:B,C95) -> 1
A96: 13 | B96: 102 | C96: 131683008101 | D96: L'alchimiste | E96: 13 | F96: 12 | G96: 12 | H96: 0 | I96: 0 | J96: 37 | K96: 0 | L96: 146 | M96: 0 | O96: 0 | Q96: =COUNTIF('Classement auteurs'!B:B,C96) -> 1
A97: 13 | B97: 103 | C97: 131499010001 | D97: Continue ! | E97: 16 | F97: 13 | G97: 14 | H97: 0 | I97: 0 | J97: 43 | K97: 0 | L97: 139 | M97: 0 | O97: 0 | Q97: =COUNTIF('Classement auteurs'!B:B,C97) -> 1
A98: 13 | B98: 104 | C98: 131683007901 | D98: Caresse de lumière | E98: 13 | F98: 12 | G98: 13 | H98: 0 | I98: 0 | J98: 38 | K98: 0 | L98: 88 | M98: 0 | O98: 0 | Q98: =COUNTIF('Classement auteurs'!B:B,C98) -> 1
A99: 13 | B99: 105 | C99: 130925009801 | D99: Le signe | E99: 15 | F99: 9 | G99: 17 | H99: 0 | I99: 0 | J99: 41 | K99: 0 | L99: 32 | M99: 0 | O99: 0 | Q99: =COUNTIF('Classement auteurs'!B:B,C99) -> 1
A100: 13 | B100: 107 | C100: 131879000901 | D100: Clip | E100: 14 | F100: 16 | G100: 14 | H100: 0 | I100: 0 | J100: 44 | K100: 0 | L100: 143 | M100: 0 | O100: 0 | Q100: =COUNTIF('Classement auteurs'!B:B,C100) -> 1
A101: 13 | B101: 108 | C101: 131110000901 | D101: Pecheur Intha | E101: 18 | F101: 20 | G101: 18 | H101: 0 | I101: 0 | J101: 56 | K101: 0 | L101: 83 | M101: 0 | O101: 0 | Q101: =COUNTIF('Classement auteurs'!B:B,C101) -> 1
A102: 13 | B102: 109 | C102: 130925009901 | D102: Tchatche | E102: 15 | F102: 7 | G102: 12 | H102: 0 | I102: 0 | J102: 34 | K102: 0 | L102: 97 | M102: 0 | O102: 0 | Q102: =COUNTIF('Classement auteurs'!B:B,C102) -> 1
A103: 13 | B103: 110 | C103: 131110001001 | D103: Le chemin | E103: 13 | F103: 15 | G103: 12 | H103: 0 | I103: 0 | J103: 40 | K103: 0 | L103: 122 | M103: 0 | O103: 0 | Q103: =COUNTIF('Classement auteurs'!B:B,C103) -> 1
A104: 13 | B104: 111 | C104: 131956002401 | D104: Haut alpin bienveillant | E104: 14 | F104: 15 | G104: 11 | H104: 0 | I104: 0 | J104: 40 | K104: 0 | L104: 150 | M104: 0 | O104: 0 | Q104: =COUNTIF('Classement auteurs'!B:B,C104) -> 1
A105: 13 | B105: 112 | C105: 131845000101 | D105: Tempête du 11 décembre 2017 | E105: 14 | F105: 14 | G105: 13 | H105: 0 | I105: 0 | J105: 41 | K105: 0 | L105: 120 | M105: 0 | O105: 0 | Q105: =COUNTIF('Classement auteurs'!B:B,C105) -> 1
A106: 13 | B106: 113 | C106: 131494000201 | D106: Lucy | E106: 14 | F106: 13 | G106: 15 | H106: 0 | I106: 0 | J106: 42 | K106: 0 | L106: 18 | M106: 0 | O106: 0 | Q106: =COUNTIF('Classement auteurs'!B:B,C106) -> 1
A107: 13 | B107: 114 | C107: 131956004501 | D107: Sète | E107: 16 | F107: 9 | G107: 10 | H107: 0 | I107: 0 | J107: 35 | K107: 0 | L107: 77 | M107: 0 | O107: 0 | Q107: =COUNTIF('Classement auteurs'!B:B,C107) -> 1
A108: 13 | B108: 115 | C108: 130987007401 | D108: Venise | E108: 10 | F108: 7 | G108: 11 | H108: 0 | I108: 0 | J108: 28 | K108: 0 | L108: 145 | M108: 0 | O108: 0 | Q108: =COUNTIF('Classement auteurs'!B:B,C108) -> 1
A109: 13 | B109: 116 | C109: 132084005001 | D109: Quand vient la fin de l'été | E109: 15 | F109: 11 | G109: 13 | H109: 0 | I109: 0 | J109: 39 | K109: 0 | L109: 128 | M109: 0 | O109: 0 | Q109: =COUNTIF('Classement auteurs'!B:B,C109) -> 1
A110: 13 | B110: 117 | C110: 131956006501 | D110: LA SOUPE DE BOGOTA | E110: 13 | F110: 10 | G110: 11 | H110: 0 | I110: 0 | J110: 34 | K110: 0 | L110: 124 | M110: 0 | O110: 0 | Q110: =COUNTIF('Classement auteurs'!B:B,C110) -> 1
A111: 13 | B111: 118 | C111: 130925010501 | D111: Nathalie | E111: 18 | F111: 10 | G111: 18 | H111: 0 | I111: 0 | J111: 46 | K111: 0 | L111: 103 | M111: 0 | O111: 0 | Q111: =COUNTIF('Classement auteurs'!B:B,C111) -> 1
A112: 13 | B112: 119 | C112: 132089000301 | D112: Vieux Cabanon | E112: 12 | F112: 10 | G112: 9 | H112: 0 | I112: 0 | J112: 31 | K112: 0 | L112: 36 | M112: 0 | O112: 0 | Q112: =COUNTIF('Classement auteurs'!B:B,C112) -> 1
A113: 13 | B113: 120 | C113: 132089000201 | D113: Demoiselle d'Honneur | E113: 14 | F113: 16 | G113: 13 | H113: 0 | I113: 0 | J113: 43 | K113: 0 | L113: 81 | M113: 0 | O113: 0 | Q113: =COUNTIF('Classement auteurs'!B:B,C113) -> 1
A114: 13 | B114: 121 | C114: 132203000701 | D114: Sortir de l'ombre | E114: 18 | F114: 10 | G114: 12 | H114: 0 | I114: 0 | J114: 40 | K114: 0 | L114: 141 | M114: 0 | O114: 0 | Q114: =COUNTIF('Classement auteurs'!B:B,C114) -> 1
A115: 13 | B115: 122 | C115: 132103000501 | D115: Arrosage Municipal | E115: 13 | F115: 10 | G115: 14 | H115: 0 | I115: 0 | J115: 37 | K115: 0 | L115: 1 | M115: 0 | O115: 0 | Q115: =COUNTIF('Classement auteurs'!B:B,C115) -> 1
A116: 13 | B116: 123 | C116: 131353004301 | D116: Rencontre | E116: 12 | F116: 13 | G116: 10 | H116: 0 | I116: 0 | J116: 35 | K116: 0 | L116: 100 | M116: 0 | O116: 0 | Q116: =COUNTIF('Classement auteurs'!B:B,C116) -> 1
A117: 13 | B117: 124 | C117: 132060000701 | D117: Vertige | E117: 11 | F117: 9 | G117: 11 | H117: 0 | I117: 0 | J117: 31 | K117: 0 | L117: 90 | M117: 0 | O117: 0 | Q117: =COUNTIF('Classement auteurs'!B:B,C117) -> 1
A118: 13 | B118: 125 | C118: 131353003001 | D118: Sur le chemin de Saint-Jacques | E118: 12 | F118: 13 | G118: 12 | H118: 0 | I118: 0 | J118: 37 | K118: 0 | L118: 5 | M118: 0 | O118: 0 | Q118: =COUNTIF('Classement auteurs'!B:B,C118) -> 1
A119: 13 | B119: 126 | C119: 131353007101 | D119: Du blanc ou du rouge? | E119: 13 | F119: 7 | G119: 13 | H119: 0 | I119: 0 | J119: 33 | K119: 0 | L119: 102 | M119: 0 | O119: 0 | Q119: =COUNTIF('Classement auteurs'!B:B,C119) -> 1
A120: 13 | B120: 127 | C120: 131376017701 | D120: Echec et Mat? | E120: 19 | F120: 15 | G120: 14 | H120: 0 | I120: 0 | J120: 48 | K120: 0 | L120: 114 | M120: 0 | O120: 0 | Q120: =COUNTIF('Classement auteurs'!B:B,C120) -> 1
A121: 13 | B121: 128 | C121: 131845004101 | D121: Petite fille au parapluie | E121: 11 | F121: 10 | G121: 13 | H121: 0 | I121: 0 | J121: 34 | K121: 0 | L121: 134 | M121: 0 | O121: 0 | Q121: =COUNTIF('Classement auteurs'!B:B,C121) -> 1
A122: 13 | B122: 129 | C122: 131862000801 | D122: Cosmos 1999 | E122: 12 | F122: 11 | G122: 13 | H122: 0 | I122: 0 | J122: 36 | K122: 0 | L122: 79 | M122: 0 | O122: 0 | Q122: =COUNTIF('Classement auteurs'!B:B,C122) -> 1
A123: 13 | B123: 130 | C123: 131862005801 | D123: Dentelle métallique | E123: 13 | F123: 9 | G123: 11 | H123: 0 | I123: 0 | J123: 33 | K123: 0 | L123: 148 | M123: 0 | O123: 0 | Q123: =COUNTIF('Classement auteurs'!B:B,C123) -> 1
A124: 13 | B124: 131 | C124: 131823004201 | D124: Nature orfèvre | E124: 16 | F124: 10 | G124: 8 | H124: 0 | I124: 0 | J124: 34 | K124: 0 | L124: 69 | M124: 0 | O124: 0 | Q124: =COUNTIF('Classement auteurs'!B:B,C124) -> 1
A125: 13 | B125: 132 | C125: 132203001101 | D125: Bouton de tournesol | E125: 15 | F125: 16 | G125: 13 | H125: 0 | I125: 0 | J125: 44 | K125: 0 | L125: 127 | M125: 0 | O125: 0 | Q125: =COUNTIF('Classement auteurs'!B:B,C125) -> 1
A126: 13 | B126: 133 | C126: 132060002201 | D126: Feu d'artifice | E126: 13 | F126: 11 | G126: 12 | H126: 0 | I126: 0 | J126: 36 | K126: 0 | L126: 135 | M126: 0 | O126: 0 | Q126: =COUNTIF('Classement auteurs'!B:B,C126) -> 1
A127: 13 | B127: 134 | C127: 131499006801 | D127: Complicité | E127: 18 | F127: 16 | G127: 14 | H127: 0 | I127: 0 | J127: 48 | K127: 0 | L127: 156 | M127: 0 | O127: 0 | Q127: =COUNTIF('Classement auteurs'!B:B,C127) -> 1
A128: 13 | B128: 135 | C128: 132060000101 | D128: Bien à l'Ombre | E128: 11 | F128: 11 | G128: 11 | H128: 0 | I128: 0 | J128: 33 | K128: 0 | L128: 70 | M128: 0 | O128: 0 | Q128: =COUNTIF('Classement auteurs'!B:B,C128) -> 1
A129: 13 | B129: 136 | C129: 131956000201 | D129: Solitude urbaine | E129: 16 | F129: 14 | G129: 14 | H129: 0 | I129: 0 | J129: 44 | K129: 0 | L129: 9 | M129: 0 | O129: 0 | Q129: =COUNTIF('Classement auteurs'!B:B,C129) -> 1
A130: 13 | B130: 137 | C130: 131619004501 | D130: Suivez la digue | E130: 15 | F130: 18 | G130: 15 | H130: 0 | I130: 0 | J130: 48 | K130: 0 | L130: 78 | M130: 0 | O130: 0 | Q130: =COUNTIF('Classement auteurs'!B:B,C130) -> 1
A131: 13 | B131: 138 | C131: 131683006901 | D131: Trois hommes et un goret | E131: 19 | F131: 16 | G131: 16 | H131: 0 | I131: 0 | J131: =SUM(E131:I131) -> 51 | K131: 0 | L131: 126 | M131: 0 | O131: 0 | Q131: =COUNTIF('Classement auteurs'!B:B,C131) -> 1
A132: 13 | B132: 139 | C132: 132060000401 | D132: L'estacade | E132: 15 | F132: 15 | G132: 13 | H132: 0 | I132: 0 | J132: 43 | K132: 0 | L132: 125 | M132: 0 | O132: 0 | Q132: =COUNTIF('Classement auteurs'!B:B,C132) -> 1
A133: 13 | B133: 140 | C133: 132060001401 | D133: Scène de vie | E133: 13 | F133: 8 | G133: 14 | H133: 0 | I133: 0 | J133: 35 | K133: 0 | L133: 86 | M133: 0 | O133: 0 | Q133: =COUNTIF('Classement auteurs'!B:B,C133) -> 1
A134: 13 | B134: 141 | C134: 131499003901 | D134: Plage d'hiver | E134: 15 | F134: 11 | G134: 14 | H134: 0 | I134: 0 | J134: 40 | K134: 0 | L134: 59 | M134: 0 | O134: 0 | Q134: =COUNTIF('Classement auteurs'!B:B,C134) -> 1
A135: 13 | B135: 142 | C135: 131845001401 | D135: Sous le cône | E135: 13 | F135: 17 | G135: 18 | H135: 0 | I135: 0 | J135: 48 | K135: 0 | L135: 123 | M135: 0 | O135: 0 | Q135: =COUNTIF('Classement auteurs'!B:B,C135) -> 1
A136: 13 | B136: 143 | C136: 131956004601 | D136: Le Mont chauve, Géant de Provence | E136: 18 | F136: 17 | G136: 15 | H136: 0 | I136: 0 | J136: 50 | K136: 0 | L136: 10 | M136: 0 | O136: 0 | Q136: =COUNTIF('Classement auteurs'!B:B,C136) -> 1
A137: 13 | B137: 144 | C137: 131499010601 | D137: Sur les marches | E137: 13 | F137: 12 | G137: 12 | H137: 0 | I137: 0 | J137: 37 | K137: 0 | L137: 106 | M137: 0 | O137: 0 | Q137: =COUNTIF('Classement auteurs'!B:B,C137) -> 1
A138: 13 | B138: 145 | C138: 131956003401 | D138: Influence | E138: 13 | F138: 10 | G138: 11 | H138: 0 | I138: 0 | J138: 34 | K138: 0 | L138: 75 | M138: 0 | O138: 0 | Q138: =COUNTIF('Classement auteurs'!B:B,C138) -> 1
A139: 13 | B139: 146 | C139: 131499010501 | D139: Spirituals | E139: 14 | F139: 16 | G139: 17 | H139: 0 | I139: 0 | J139: 47 | K139: 0 | L139: 38 | M139: 0 | O139: 0
A140: 13 | B140: 147 | C140: 132060001201 | D140: Vis-à-Vis | E140: 12 | F140: 14 | G140: 13 | H140: 0 | I140: 0 | J140: 39 | K140: 0 | L140: 119 | M140: 0 | O140: 0
A141: 13 | B141: 148 | C141: 130925007601 | D141: Femme hmong | E141: 15 | F141: 14 | G141: 14 | H141: 0 | I141: 0 | J141: 43 | K141: 0 | L141: 30 | M141: 0 | O141: 0
A142: 13 | B142: 149 | C142: 130925007701 | D142: Le Vélo | E142: 18 | F142: 16 | G142: 14 | H142: 0 | I142: 0 | J142: 48 | K142: 0 | L142: 57 | M142: 0 | O142: 0
A143: 13 | B143: 150 | C143: 131956002901 | D143: Victoire de la beauté | E143: 15 | F143: 10 | G143: 15 | H143: 0 | I143: 0 | J143: 40 | K143: 0 | L143: 157 | M143: 0 | O143: 0
A144: 13 | B144: 151 | C144: 131499006901 | D144: Là haut | E144: 16 | F144: 16 | G144: 11 | H144: 0 | I144: 0 | J144: 43 | K144: 0 | L144: 142 | M144: 0 | O144: 0
A145: 13 | B145: 152 | C145: 131353007401 | D145: Marché d'Arequipa Pérou | E145: 12 | F145: 15 | G145: 13 | H145: 0 | I145: 0 | J145: 40 | K145: 0 | L145: 56 | M145: 0 | O145: 0
A146: 13 | B146: 153 | C146: 130527017001 | D146: L'envol... | E146: 15 | F146: 7 | G146: 9 | H146: 0 | I146: 0 | J146: 31 | K146: 0 | L146: 94 | M146: 0 | O146: 0
A147: 13 | B147: 154 | C147: 131353007301 | D147: Marché d'Ampato Equateur | E147: 14 | F147: 12 | G147: 12 | H147: 0 | I147: 0 | J147: 38 | K147: 0 | L147: 151 | M147: 0 | O147: 0
A148: 13 | B148: 155 | C148: 130527009401 | D148: Matinale... | E148: 16 | F148: 14 | G148: 16 | H148: 0 | I148: 0 | J148: 46 | K148: 0 | L148: 73 | M148: 0 | O148: 0
A149: 13 | B149: 156 | C149: 131956005701 | D149: L'attente | E149: 11 | F149: 13 | G149: 10 | H149: 0 | I149: 0 | J149: 34 | K149: 0 | L149: 21 | M149: 0 | O149: 0
A150: 13 | B150: 157 | C150: 131956000601 | D150: Tour CMA-CGM | E150: 12 | F150: 16 | G150: 13 | H150: 0 | I150: 0 | J150: 41 | K150: 0 | L150: 41 | M150: 0 | O150: 0
A151: 13 | B151: 158 | C151: 131845002101 | D151: Vertige | E151: 13 | F151: 13 | G151: 16 | H151: 0 | I151: 0 | J151: 42 | K151: 0 | L151: 13 | M151: 0 | O151: 0
A152: 13 | B152: 159 | C152: 131879000601 | D152: Albi | E152: 13 | F152: 10 | G152: 11 | H152: 0 | I152: 0 | J152: 34 | K152: 0 | L152: 68 | M152: 0 | O152: 0
A153: 13 | B153: 160 | C153: 131956006201 | D153: Le maître de la horde | E153: 14 | F153: 14 | G153: 11 | H153: 0 | I153: 0 | J153: 39 | K153: 0 | L153: 29 | M153: 0 | O153: 0
A154: 13 | B154: 161 | C154: 131683006501 | D154: Au travers | E154: 17 | F154: 7 | G154: 10 | H154: 0 | I154: 0 | J154: 34 | K154: 0 | L154: 60 | M154: 0 | O154: 0
A155: 13 | B155: 162 | C155: 132086002501 | D155: Petit Gitan | E155: 12 | F155: 13 | G155: 13 | H155: 0 | I155: 0 | J155: 38 | K155: 0 | L155: 154 | M155: 0 | O155: 0
A156: 13 | B156: 163 | C156: 131956005401 | D156: La dame en noir | E156: 12 | F156: 10 | G156: 12 | H156: 0 | I156: 0 | J156: 34 | K156: 0 | L156: 58 | M156: 0 | O156: 0
A157: 13 | B157: 164 | C157: 130987002301 | D157: Clic | E157: 15 | F157: 14 | G157: 11 | H157: 0 | I157: 0 | J157: 40 | K157: 0 | L157: 6 | M157: 0 | O157: 0
A158: 13 | B158: 165 | C158: 131499003601 | D158: Préfouns | E158: 14 | F158: 10 | G158: 11 | H158: 0 | I158: 0 | J158: 35 | K158: 0 | L158: 133 | M158: 0 | O158: 0
A159: 13 | B159: 166 | C159: 131956002601 | D159: Soupir | E159: 13 | F159: 17 | G159: 14 | H159: 0 | I159: 0 | J159: 44 | K159: 0 | L159: 98 | M159: 0 | O159: 0
A160: 13 | B160: 167 | C160: 131619004601 | D160: Axe majeur | E160: 14 | F160: 11 | G160: 14 | H160: 0 | I160: 0 | J160: 39 | K160: 0 | L160: 52 | M160: 0 | O160: 0
A161: 13 | B161: 168 | C161: 131353000101 | D161: Avec maman | E161: 15 | F161: 18 | G161: 13 | H161: 0 | I161: 0 | J161: 46 | K161: 0 | L161: 61 | M161: 0 | O161: 0
A162: 13 | B162: 169 | C162: 131353000701 | D162: Solitaire | E162: 12 | F162: 13 | G162: 14 | H162: 0 | I162: 0 | J162: 39 | K162: 0 | L162: 53 | M162: 0 | O162: 0
A163: 13 | B163: 170 | C163: 131353000201 | D163: Pigeons | E163: 9 | F163: 8 | G163: 8 | H163: 0 | I163: 0 | J163: 25 | K163: 0 | L163: 130 | M163: 0 | O163: 0

Sheet Défi-4
A1: colis | B1: photologic | C1: fichier | D1: titre | E1: note1 | F1: note2 | G1: note3 | H1: note4 | I1: note5 | J1: total | K1: place | L1: passage | M1: statut | N1: medaille | O1: retenue | Q1: 0=absent 1=présent | S1: fichier | T1: total
A2: 13 | B2: 1 | C2: 130878015201 | D2: Je m'amuse | E2: 6 | F2: 6 | G2: 6 | H2: 0 | I2: 0 | J2: =SUM(E2:I2) -> 18 | K2: 0 | L2: 37 | M2: 0 | O2: 0 | Q2: =COUNTIF('Classement auteurs'!B:B,C2) -> 1 | S2: 130527009401 | T2: 50 | U2: =(MID(S2,3,4)*1) -> 527 | V2: 141 | W2: =IF($V2=VLOOKUP($U2,'Classement clubs'!$B$2:$K$52,6,FALSE),"OK","KO") -> OK
A3: 13 | B3: 2 | C3: 130000020401 | D3: La Goutte | E3: 10 | F3: 13 | G3: 12 | H3: 0 | I3: 0 | J3: =SUM(E3:I3) -> 35 | K3: 0 | L3: 103 | M3: 6 | O3: 0 | Q3: =COUNTIF('Classement auteurs'!B:B,C3) -> 1 | S3: 130878013001 | T3: 40 | U3: 878 | V3: 111 | W3: =IF($V3=VLOOKUP($U3,'Classement clubs'!$B$2:$K$52,6,FALSE),"OK","KO") -> OK
A4: 13 | B4: 3 | C4: 131499008701 | D4: Symbiose | E4: 12 | F4: 11 | G4: 10 | H4: 0 | I4: 0 | J4: 33 | K4: 0 | L4: 18 | M4: 0 | O4: 0 | Q4: =COUNTIF('Classement auteurs'!B:B,C4) -> 1 | S4: 130925007701 | T4: 44 | U4: 925 | V4: 124 | W4: =IF($V4=VLOOKUP($U4,'Classement clubs'!$B$2:$K$52,6,FALSE),"OK","KO") -> OK
A5: 13 | B5: 4 | C5: 131879000501 | D5: Calin | E5: 14 | F5: 13 | G5: 14 | H5: 0 | I5: 0 | J5: 41 | K5: 0 | L5: 89 | M5: 0 | O5: 0 | Q5: =COUNTIF('Classement auteurs'!B:B,C5) -> 1 | S5: 130987024101 | T5: 46 | U5: 987 | V5: 135 | W5: =IF($V5=VLOOKUP($U5,'Classement clubs'!$B$2:$K$52,6,FALSE),"OK","KO") -> OK
A6: 13 | B6: 5 | C6: 131110001001 | D6: Quietude | E6: 15 | F6: 14 | G6: 18 | H6: 0 | I6: 0 | J6: 47 | K6: 0 | L6: 71 | M6: 0 | O6: 0 | Q6: =COUNTIF('Classement auteurs'!B:B,C6) -> 1 | S6: 130993013301 | T6: 47 | U6: 993 | V6: 132 | W6: =IF($V6=VLOOKUP($U6,'Classement clubs'!$B$2:$K$52,6,FALSE),"OK","KO") -> OK
A7: 13 | B7: 6 | C7: 130878013301 | D7: Desert | E7: 11 | F7: 11 | G7: 14 | H7: 0 | I7: 0 | J7: 36 | K7: 0 | L7: 142 | M7: 0 | O7: 0 | Q7: =COUNTIF('Classement auteurs'!B:B,C7) -> 1 | S7: 131110000901 | T7: 43 | U7: 1110 | V7: 126 | W7: =IF($V7=VLOOKUP($U7,'Classement clubs'!$B$2:$K$52,6,FALSE),"OK","KO") -> OK
A8: 13 | B8: 7 | C8: 132193000301 | D8: Survol de la mer de glace | E8: 14 | F8: 15 | G8: 16 | H8: 0 | I8: 0 | J8: 45 | K8: 0 | L8: 140 | M8: 0 | O8: 0 | Q8: =COUNTIF('Classement auteurs'!B:B,C8) -> 1 | S8: 131353000701 | T8: 57 | U8: 1353 | V8: 151 | W8: =IF($V8=VLOOKUP($U8,'Classement clubs'!$B$2:$K$52,6,FALSE),"OK","KO") -> OK
A9: 13 | B9: 8 | C9: 130987028201 | D9: La sieste du rhino blanc | E9: 11 | F9: 11 | G9: 9 | H9: 0 | I9: 0 | J9: 31 | K9: 0 | L9: 26 | M9: 0 | O9: 0 | Q9: =COUNTIF('Classement auteurs'!B:B,C9) -> 1 | S9: 131376014701 | T9: 41 | U9: 1376 | V9: 119 | W9: =IF($V9=VLOOKUP($U9,'Classement clubs'!$B$2:$K$52,6,FALSE),"OK","KO") -> OK
A10: 13 | B10: 9 | C10: 130987024101 | D10: Chevèchette perlée | E10: 16 | F10: 16 | G10: 14 | H10: 0 | I10: 0 | J10: 46 | K10: 0 | L10: 28 | M10: 0 | O10: 0 | Q10: =COUNTIF('Classement auteurs'!B:B,C10) -> 1 | S10: 131494000201 | T10: 35 | U10: 1494 | V10: 89 | W10: =IF($V10=VLOOKUP($U10,'Classement clubs'!$B$2:$K$52,6,FALSE),"OK","KO") -> OK
A11: 13 | B11: 10 | C11: 130987030301 | D11: Coquelicot du Lot | E11: 10 | F11: 10 | G11: 6 | H11: 0 | I11: 0 | J11: 26 | K11: 0 | L11: 141 | M11: 0 | O11: 0 | Q11: =COUNTIF('Classement auteurs'!B:B,C11) -> 1 | S11: 131499009801 | T11: 54 | U11: 1499 | V11: 151 | W11: =IF($V11=VLOOKUP($U11,'Classement clubs'!$B$2:$K$52,6,FALSE),"OK","KO") -> OK
A12: 13 | B12: 11 | C12: 131683008001 | D12: Sentinelle du désert | E12: 13 | F12: 13 | G12: 13 | H12: 0 | I12: 0 | J12: 39 | K12: 0 | L12: 58 | M12: 0 | O12: 0 | Q12: =COUNTIF('Classement auteurs'!B:B,C12) -> 1 | S12: 131683002601 | T12: 56 | U12: 1683 | V12: 160 | W12: =IF($V12=VLOOKUP($U12,'Classement clubs'!$B$2:$K$52,6,FALSE),"OK","KO") -> OK
A13: 13 | B13: 12 | C13: 130987013801 | D13: Lever de soleil après la pluie | E13: 14 | F13: 15 | G13: 13 | H13: 0 | I13: 0 | J13: 42 | K13: 0 | L13: 73 | M13: 0 | O13: 0 | Q13: =COUNTIF('Classement auteurs'!B:B,C13) -> 1 | S13: 131823004201 | T13: 29 | U13: 1823 | V13: 105 | W13: =IF($V13=VLOOKUP($U13,'Classement clubs'!$B$2:$K$52,6,FALSE),"OK","KO") -> OK
A14: 13 | B14: 14 | C14: 130993015101 | D14: En suspension | E14: 14 | F14: 16 | G14: 13 | H14: 0 | I14: 0 | J14: 43 | K14: 0 | L14: 9 | M14: 0 | O14: 0 | Q14: =COUNTIF('Classement auteurs'!B:B,C14) -> 1 | S14: 131845001401 | T14: 39 | U14: 1845 | V14: 104 | W14: =IF($V14=VLOOKUP($U14,'Classement clubs'!$B$2:$K$52,6,FALSE),"OK","KO") -> OK
A15: 13 | B15: 16 | C15: 132147001701 | D15: L'herbe et le vent... | E15: 12 | F15: 8 | G15: 7 | H15: 0 | I15: 0 | J15: 27 | K15: 0 | L15: 101 | M15: 0 | O15: 0 | Q15: =COUNTIF('Classement auteurs'!B:B,C15) -> 1 | S15: 131879000501 | T15: 41 | U15: 1879 | V15: 122 | W15: =IF($V15=VLOOKUP($U15,'Classement clubs'!$B$2:$K$52,6,FALSE),"OK","KO") -> OK
A16: 13 | B16: 17 | C16: 131376017601 | D16: Ombre chinoise | E16: 13 | F16: 10 | G16: 12 | H16: 0 | I16: 0 | J16: 35 | K16: 0 | L16: 107 | M16: 0 | O16: 0 | Q16: =COUNTIF('Classement auteurs'!B:B,C16) -> 1 | S16: 131956000201 | T16: 41 | U16: 1956 | V16: 118 | W16: =IF($V16=VLOOKUP($U16,'Classement clubs'!$B$2:$K$52,6,FALSE),"OK","KO") -> OK
A17: 13 | B17: 18 | C17: 131494000201 | D17: Envol | E17: 10 | F17: 11 | G17: 14 | H17: 0 | I17: 0 | J17: 35 | K17: 0 | L17: 6 | M17: 0 | O17: 0 | Q17: =COUNTIF('Classement auteurs'!B:B,C17) -> 1 | S17: 132060001201 | T17: 40 | U17: 2060 | V17: 115 | W17: =IF($V17=VLOOKUP($U17,'Classement clubs'!$B$2:$K$52,6,FALSE),"OK","KO") -> OK
A18: 13 | B18: 19 | C18: 131683006301 | D18: Mésange et chardons | E18: 15 | F18: 16 | G18: 16 | H18: 0 | I18: 0 | J18: 47 | K18: 0 | L18: 125 | M18: 0 | O18: 0 | Q18: =COUNTIF('Classement auteurs'!B:B,C18) -> 1 | S18: 132084003601 | T18: 55 | U18: 2084 | V18: 138 | W18: =IF($V18=VLOOKUP($U18,'Classement clubs'!$B$2:$K$52,6,FALSE),"OK","KO") -> OK
A19: 13 | B19: 20 | C19: 130993013301 | D19: Le repas du Rollier | E19: 14 | F19: 17 | G19: 16 | H19: 0 | I19: 0 | J19: 47 | K19: 0 | L19: 34 | M19: 0 | O19: 0 | Q19: =COUNTIF('Classement auteurs'!B:B,C19) -> 1 | S19: 132086001401 | T19: 46 | U19: 2086 | V19: 120 | W19: =IF($V19=VLOOKUP($U19,'Classement clubs'!$B$2:$K$52,6,FALSE),"OK","KO") -> OK
A20: 13 | B20: 21 | C20: 130987015701 | D20: Thomise | E20: 14 | F20: 14 | G20: 13 | H20: 0 | I20: 0 | J20: 41 | K20: 0 | L20: 3 | M20: 0 | O20: 0 | Q20: =COUNTIF('Classement auteurs'!B:B,C20) -> 1 | S20: 132193000301 | T20: 45 | U20: 2193 | V20: 103 | W20: =IF($V20=VLOOKUP($U20,'Classement clubs'!$B$2:$K$52,6,FALSE),"OK","KO") -> OK
A21: 13 | B21: 22 | C21: 130527009201 | D21: On partage ? | E21: 12 | F21: 13 | G21: 15 | H21: 0 | I21: 0 | J21: 40 | K21: 0 | L21: 123 | M21: 0 | O21: 0 | Q21: =COUNTIF('Classement auteurs'!B:B,C21) -> 1
A22: 13 | B22: 23 | C22: 130987016601 | D22: Lac guichard | E22: 13 | F22: 12 | G22: 13 | H22: 0 | I22: 0 | J22: 38 | K22: 0 | L22: 106 | M22: 0 | O22: 0 | Q22: =COUNTIF('Classement auteurs'!B:B,C22) -> 1
A23: 13 | B23: 24 | C23: 131683005101 | D23: HERON | E23: 15 | F23: 15 | G23: 14 | H23: 0 | I23: 0 | J23: 44 | K23: 0 | L23: 42 | M23: 0 | O23: 0 | Q23: =COUNTIF('Classement auteurs'!B:B,C23) -> 1
A24: 13 | B24: 25 | C24: 130987024201 | D24: Jeux interdits | E24: 14 | F24: 17 | G24: 14 | H24: 0 | I24: 0 | J24: 45 | K24: 0 | L24: 65 | M24: 0 | O24: 0 | Q24: =COUNTIF('Classement auteurs'!B:B,C24) -> 1
A25: 13 | B25: 26 | C25: 131956004501 | D25: Campanules | E25: 12 | F25: 12 | G25: 13 | H25: 0 | I25: 0 | J25: 37 | K25: 0 | L25: 52 | M25: 0 | O25: 0 | Q25: =COUNTIF('Classement auteurs'!B:B,C25) -> 1
A26: 13 | B26: 27 | C26: 130527012401 | D26: Milan | E26: 15 | F26: 17 | G26: 15 | H26: 0 | I26: 0 | J26: 47 | K26: 0 | L26: 128 | M26: 0 | O26: 0 | Q26: =COUNTIF('Classement auteurs'!B:B,C26) -> 1
A27: 13 | B27: 28 | C27: 132193001201 | D27: Mes tourterelles | E27: 13 | F27: 9 | G27: 15 | H27: 0 | I27: 0 | J27: 37 | K27: 0 | L27: 82 | M27: 0 | O27: 0 | Q27: =COUNTIF('Classement auteurs'!B:B,C27) -> 1
A28: 13 | B28: 30 | C28: 131376017701 | D28: Solaire | E28: 6 | F28: 6 | G28: 6 | H28: 0 | I28: 0 | J28: 18 | K28: 0 | L28: 94 | M28: 0 | O28: 0 | Q28: =COUNTIF('Classement auteurs'!B:B,C28) -> 1
A29: 13 | B29: 31 | C29: 132084003501 | D29: Leopard dans le delta de l'okavango | E29: 14 | F29: 14 | G29: 12 | H29: 0 | I29: 0 | J29: 40 | K29: 0 | L29: 51 | M29: 0 | O29: 0 | Q29: =COUNTIF('Classement auteurs'!B:B,C29) -> 1
A30: 13 | B30: 32 | C30: 131845000201 | D30: Au vol | E30: 6 | F30: 6 | G30: 6 | H30: 0 | I30: 0 | J30: 18 | K30: 0 | L30: 53 | M30: 0 | O30: 0 | Q30: =COUNTIF('Classement auteurs'!B:B,C30) -> 1
A31: 13 | B31: 33 | C31: 131845000101 | D31: Surveillance de la marée | E31: 6 | F31: 6 | G31: 6 | H31: 0 | I31: 0 | J31: 18 | K31: 0 | L31: 116 | M31: 0 | O31: 0 | Q31: =COUNTIF('Classement auteurs'!B:B,C31) -> 1
A32: 13 | B32: 34 | C32: 132084002301 | D32: Mamooth lake | E32: 16 | F32: 13 | G32: 14 | H32: 0 | I32: 0 | J32: 43 | K32: 0 | L32: 25 | M32: 0 | O32: 0 | Q32: =COUNTIF('Classement auteurs'!B:B,C32) -> 1
A33: 13 | B33: 35 | C33: 131353000201 | D33: Butinage | E33: 12 | F33: 13 | G33: 11 | H33: 0 | I33: 0 | J33: 36 | K33: 0 | L33: 1 | M33: 0 | O33: 0 | Q33: =COUNTIF('Classement auteurs'!B:B,C33) -> 1
A34: 13 | B34: 36 | C34: 132084003601 | D34: Mini la grenouille | E34: 17 | F34: 18 | G34: 20 | H34: 0 | I34: 0 | J34: 55 | K34: 0 | L34: 137 | M34: 0 | O34: 0 | Q34: =COUNTIF('Classement auteurs'!B:B,C34) -> 1
A35: 13 | B35: 37 | C35: 131683007901 | D35: Kiai | E35: 16 | F35: 20 | G35: 15 | H35: 0 | I35: 0 | J35: 51 | K35: 0 | L35: 7 | M35: 0 | O35: 0 | Q35: =COUNTIF('Classement auteurs'!B:B,C35) -> 1
A36: 13 | B36: 38 | C36: 131110000901 | D36: Rosée | E36: 16 | F36: 12 | G36: 15 | H36: 0 | I36: 0 | J36: 43 | K36: 0 | L36: 22 | M36: 0 | O36: 0 | Q36: =COUNTIF('Classement auteurs'!B:B,C36) -> 1
A37: 13 | B37: 39 | C37: 131110001101 | D37: Fleur sauvage | E37: 13 | F37: 14 | G37: 9 | H37: 0 | I37: 0 | J37: 36 | K37: 0 | L37: 113 | M37: 0 | O37: 0 | Q37: =COUNTIF('Classement auteurs'!B:B,C37) -> 1
A38: 13 | B38: 40 | C38: 130000019901 | D38: Phacélie | E38: 6 | F38: 10 | G38: 8 | H38: 0 | I38: 0 | J38: 24 | K38: 0 | L38: 72 | M38: 6 | O38: 0 | Q38: =COUNTIF('Classement auteurs'!B:B,C38) -> 1
A39: 13 | B39: 41 | C39: 130462001101 | D39: Apres la pluie | E39: 18 | F39: 12 | G39: 15 | H39: 0 | I39: 0 | J39: 45 | K39: 0 | L39: 105 | M39: 0 | O39: 0 | Q39: =COUNTIF('Classement auteurs'!B:B,C39) -> 1
A40: 13 | B40: 42 | C40: 131494002101 | D40: Atterrissage | E40: 9 | F40: 9 | G40: 7 | H40: 0 | I40: 0 | J40: 25 | K40: 0 | L40: 90 | M40: 0 | O40: 0 | Q40: =COUNTIF('Classement auteurs'!B:B,C40) -> 1
A41: 13 | B41: 43 | C41: 131353004301 | D41: Jeune Cigale | E41: 16 | F41: 16 | G41: 15 | H41: 0 | I41: 0 | J41: 47 | K41: 0 | L41: 46 | M41: 0 | O41: 0 | Q41: =COUNTIF('Classement auteurs'!B:B,C41) -> 1
A42: 13 | B42: 44 | C42: 130878013401 | D42: Sur le nid | E42: 12 | F42: 11 | G42: 12 | H42: 0 | I42: 0 | J42: 35 | K42: 0 | L42: 86 | M42: 0 | O42: 0 | Q42: =COUNTIF('Classement auteurs'!B:B,C42) -> 1
A43: 13 | B43: 45 | C43: 130878007201 | D43: Au sommet | E43: 12 | F43: 8 | G43: 12 | H43: 0 | I43: 0 | J43: 32 | K43: 0 | L43: 16 | M43: 0 | O43: 0 | Q43: =COUNTIF('Classement auteurs'!B:B,C43) -> 1
A44: 13 | B44: 46 | C44: 131992000401 | D44: Nouvelle nature | E44: 8 | F44: 6 | G44: 6 | H44: 0 | I44: 0 | J44: 20 | K44: 0 | L44: 84 | M44: 0 | O44: 0 | Q44: =COUNTIF('Classement auteurs'!B:B,C44) -> 1
A45: 13 | B45: 47 | C45: 131494003201 | D45: Alors, çà mord ? | E45: 11 | F45: 8 | G45: 10 | H45: 0 | I45: 0 | J45: 29 | K45: 0 | L45: 131 | M45: 0 | O45: 0 | Q45: =COUNTIF('Classement auteurs'!B:B,C45) -> 1
A46: 13 | B46: 48 | C46: 130987028401 | D46: Estany de la Comassa | E46: 8 | F46: 11 | G46: 8 | H46: 0 | I46: 0 | J46: 27 | K46: 0 | L46: 96 | M46: 0 | O46: 0 | Q46: =COUNTIF('Classement auteurs'!B:B,C46) -> 1
A47: 13 | B47: 49 | C47: 132086002301 | D47: Sombre-couchant | E47: 12 | F47: 12 | G47: 11 | H47: 0 | I47: 0 | J47: 35 | K47: 0 | L47: 41 | M47: 0 | O47: 0 | Q47: =COUNTIF('Classement auteurs'!B:B,C47) -> 1
A48: 13 | B48: 50 | C48: 130878014301 | D48: Carotte | E48: 6 | F48: 6 | G48: 6 | H48: 0 | I48: 0 | J48: 18 | K48: 0 | L48: 47 | M48: 0 | O48: 0 | Q48: =COUNTIF('Classement auteurs'!B:B,C48) -> 1
A49: 13 | B49: 51 | C49: 130993012301 | D49: Vautour fauve | E49: 13 | F49: 15 | G49: 12 | H49: 0 | I49: 0 | J49: 40 | K49: 0 | L49: 111 | M49: 0 | O49: 0 | Q49: =COUNTIF('Classement auteurs'!B:B,C49) -> 1
A50: 13 | B50: 52 | C50: 130925010201 | D50: Balanin en balade | E50: 9 | F50: 12 | G50: 12 | H50: 0 | I50: 0 | J50: 33 | K50: 0 | L50: 11 | M50: 0 | O50: 0 | Q50: =COUNTIF('Classement auteurs'!B:B,C50) -> 1
A51: 13 | B51: 53 | C51: 131376011801 | D51: Alcyon | E51: 6 | F51: 6 | G51: 6 | H51: 0 | I51: 0 | J51: 18 | K51: 0 | L51: 130 | M51: 0 | O51: 0 | Q51: =COUNTIF('Classement auteurs'!B:B,C51) -> 1
A52: 13 | B52: 54 | C52: 131353006101 | D52: Bon appétit | E52: 14 | F52: 12 | G52: 12 | H52: 0 | I52: 0 | J52: 38 | K52: 0 | L52: 81 | M52: 0 | O52: 0 | Q52: =COUNTIF('Classement auteurs'!B:B,C52) -> 1
A53: 13 | B53: 55 | C53: 130527015501 | D53: Fleur | E53: 11 | F53: 11 | G53: 9 | H53: 0 | I53: 0 | J53: 31 | K53: 0 | L53: 49 | M53: 0 | O53: 0 | Q53: =COUNTIF('Classement auteurs'!B:B,C53) -> 1
A54: 13 | B54: 56 | C54: 131956002601 | D54: Campanule | E54: 10 | F54: 10 | G54: 14 | H54: 0 | I54: 0 | J54: 34 | K54: 0 | L54: 62 | M54: 0 | O54: 0 | Q54: =COUNTIF('Classement auteurs'!B:B,C54) -> 1
A55: 13 | B55: 57 | C55: 131845004001 | D55: Vue du castellet | E55: 13 | F55: 9 | G55: 17 | H55: 0 | I55: 0 | J55: 39 | K55: 0 | L55: 121 | M55: 0 | O55: 0 | Q55: =COUNTIF('Classement auteurs'!B:B,C55) -> 1
A56: 13 | B56: 58 | C56: 131879000801 | D56: Le reflet | E56: 13 | F56: 12 | G56: 15 | H56: 0 | I56: 0 | J56: 40 | K56: 0 | L56: 99 | M56: 0 | O56: 0 | Q56: =COUNTIF('Classement auteurs'!B:B,C56) -> 1
A57: 13 | B57: 59 | C57: 131376018301 | D57: Butineuse | E57: 13 | F57: 12 | G57: 16 | H57: 0 | I57: 0 | J57: 41 | K57: 0 | L57: 126 | M57: 0 | O57: 0 | Q57: =COUNTIF('Classement auteurs'!B:B,C57) -> 1
A58: 13 | B58: 60 | C58: 131499009801 | D58: La becquée | E58: 18 | F58: 18 | G58: 18 | H58: 0 | I58: 0 | J58: 54 | K58: 0 | L58: 13 | M58: 0 | O58: 0 | Q58: =COUNTIF('Classement auteurs'!B:B,C58) -> 1
A59: 13 | B59: 61 | C59: 131499008201 | D59: Portrait buffle oiseau | E59: 13 | F59: 12 | G59: 16 | H59: 0 | I59: 0 | J59: 41 | K59: 0 | L59: 5 | M59: 0 | O59: 0 | Q59: =COUNTIF('Classement auteurs'!B:B,C59) -> 1
A60: 13 | B60: 62 | C60: 131824001901 | D60: Love | E60: 19 | F60: 14 | G60: 15 | H60: 0 | I60: 0 | J60: 48 | K60: 0 | L60: 54 | M60: 0 | O60: 0 | Q60: =COUNTIF('Classement auteurs'!B:B,C60) -> 1
A61: 13 | B61: 63 | C61: 132084000301 | D61: Face à face | E61: 7 | F61: 7 | G61: 10 | H61: 0 | I61: 0 | J61: 24 | K61: 0 | L61: 85 | M61: 0 | O61: 0 | Q61: =COUNTIF('Classement auteurs'!B:B,C61) -> 1
A62: 13 | B62: 64 | C62: 132089000301 | D62: Giens par grand vent | E62: 9 | F62: 11 | G62: 10 | H62: 0 | I62: 0 | J62: 30 | K62: 0 | L62: 127 | M62: 0 | O62: 0 | Q62: =COUNTIF('Classement auteurs'!B:B,C62) -> 1
A63: 13 | B63: 65 | C63: 130878013001 | D63: Perle de pluie | E63: 16 | F63: 9 | G63: 15 | H63: 0 | I63: 0 | J63: 40 | K63: 0 | L63: 43 | M63: 0 | O63: 0 | Q63: =COUNTIF('Classement auteurs'!B:B,C63) -> 1
A64: 13 | B64: 66 | C64: 130987007401 | D64: La Claree | E64: 14 | F64: 11 | G64: 13 | H64: 0 | I64: 0 | J64: 38 | K64: 0 | L64: 134 | M64: 0 | O64: 0 | Q64: =COUNTIF('Classement auteurs'!B:B,C64) -> 1
A65: 13 | B65: 67 | C65: 130925008701 | D65: Puma | E65: 10 | F65: 14 | G65: 13 | H65: 0 | I65: 0 | J65: 37 | K65: 0 | L65: 8 | M65: 0 | O65: 0 | Q65: =COUNTIF('Classement auteurs'!B:B,C65) -> 1
A66: 13 | B66: 68 | C66: 131956002901 | D66: Sable d'or | E66: 10 | F66: 9 | G66: 9 | H66: 0 | I66: 0 | J66: 28 | K66: 0 | L66: 74 | M66: 0 | O66: 0 | Q66: =COUNTIF('Classement auteurs'!B:B,C66) -> 1
A67: 13 | B67: 69 | C67: 131499011001 | D67: L'ours blanc et noir | E67: 14 | F67: 14 | G67: 14 | H67: 0 | I67: 0 | J67: =SUM(E67:I67) -> 42 | K67: 0 | L67: 133 | M67: 0 | O67: 0 | Q67: =COUNTIF('Classement auteurs'!B:B,C67) -> 1
A68: 13 | B68: 70 | C68: 132193000501 | D68: Cotton tree | E68: 6 | F68: 7 | G68: 8 | H68: 0 | I68: 0 | J68: 21 | K68: 0 | L68: 27 | M68: 0 | O68: 0 | Q68: =COUNTIF('Classement auteurs'!B:B,C68) -> 1
A69: 13 | B69: 71 | C69: 131376015801 | D69: Butinage | E69: 14 | F69: 13 | G69: 10 | H69: 0 | I69: 0 | J69: 37 | K69: 0 | L69: 15 | M69: 0 | O69: 0 | Q69: =COUNTIF('Classement auteurs'!B:B,C69) -> 1
A70: 13 | B70: 72 | C70: 131683003301 | D70: Reflets sur la laguna Leija 4340m | E70: 17 | F70: 17 | G70: 19 | H70: 0 | I70: 0 | J70: 53 | K70: 0 | L70: 10 | M70: 0 | O70: 0 | Q70: =COUNTIF('Classement auteurs'!B:B,C70) -> 1
A71: 13 | B71: 73 | C71: 132203000701 | D71: Tout dans la séduction | E71: 16 | F71: 14 | G71: 15 | H71: 0 | I71: 0 | J71: 45 | K71: 0 | L71: 57 | M71: 0 | O71: 0 | Q71: =COUNTIF('Classement auteurs'!B:B,C71) -> 1
A72: 13 | B72: 74 | C72: 131879002001 | D72: Aras | E72: 16 | F72: 11 | G72: 14 | H72: 0 | I72: 0 | J72: 41 | K72: 0 | L72: 55 | M72: 0 | O72: 0 | Q72: =COUNTIF('Classement auteurs'!B:B,C72) -> 1
A73: 13 | B73: 75 | C73: 130925007601 | D73: Eléphants du désert | E73: 12 | F73: 14 | G73: 13 | H73: 0 | I73: 0 | J73: 39 | K73: 0 | L73: 60 | M73: 0 | O73: 0 | Q73: =COUNTIF('Classement auteurs'!B:B,C73) -> 1
A74: 13 | B74: 76 | C74: 130925007701 | D74: L'arbre vert | E74: 15 | F74: 14 | G74: 15 | H74: 0 | I74: 0 | J74: 44 | K74: 0 | L74: 39 | M74: 0 | O74: 0 | Q74: =COUNTIF('Classement auteurs'!B:B,C74) -> 1
A75: 13 | B75: 77 | C75: 132086001401 | D75: Butinage | E75: 14 | F75: 17 | G75: 15 | H75: 0 | I75: 0 | J75: 46 | K75: 0 | L75: 77 | M75: 0 | O75: 0 | Q75: =COUNTIF('Classement auteurs'!B:B,C75) -> 1
A76: 13 | B76: 78 | C76: 130878014101 | D76: Chardon | E76: 6 | F76: 6 | G76: 6 | H76: 0 | I76: 0 | J76: 18 | K76: 0 | L76: 88 | M76: 0 | O76: 0 | Q76: =COUNTIF('Classement auteurs'!B:B,C76) -> 1
A77: 13 | B77: 79 | C77: 130527013301 | D77: Pelican | E77: 15 | F77: 15 | G77: 14 | H77: 0 | I77: 0 | J77: 44 | K77: 0 | L77: 80 | M77: 0 | O77: 0 | Q77: =COUNTIF('Classement auteurs'!B:B,C77) -> 1
A78: 13 | B78: 80 | C78: 131499010401 | D78: La vie à deux | E78: 14 | F78: 12 | G78: 15 | H78: 0 | I78: 0 | J78: 41 | K78: 0 | L78: 136 | M78: 0 | O78: 0 | Q78: =COUNTIF('Classement auteurs'!B:B,C78) -> 1
A79: 13 | B79: 81 | C79: 131227008301 | D79: Enlacer | E79: 13 | F79: 13 | G79: 11 | H79: 0 | I79: 0 | J79: 37 | K79: 0 | L79: 17 | M79: 0 | O79: 0 | Q79: =COUNTIF('Classement auteurs'!B:B,C79) -> 1
A80: 13 | B80: 82 | C80: 130987019601 | D80: Martin-chasseur du Sénégal | E80: 15 | F80: 15 | G80: 14 | H80: 0 | I80: 0 | J80: 44 | K80: 0 | L80: 120 | M80: 0 | O80: 0 | Q80: =COUNTIF('Classement auteurs'!B:B,C80) -> 1
A81: 13 | B81: 83 | C81: 131862002201 | D81: Scarabé rhino | E81: 12 | F81: 8 | G81: 7 | H81: 0 | I81: 0 | J81: 27 | K81: 0 | L81: 124 | M81: 0 | O81: 0 | Q81: =COUNTIF('Classement auteurs'!B:B,C81) -> 1
A82: 13 | B82: 84 | C82: 130987019701 | D82: Red bishop | E82: 12 | F82: 13 | G82: 14 | H82: 0 | I82: 0 | J82: 39 | K82: 0 | L82: 122 | M82: 0 | O82: 0 | Q82: =COUNTIF('Classement auteurs'!B:B,C82) -> 1
A83: 13 | B83: 87 | C83: 131879001901 | D83: Flamant | E83: 13 | F83: 9 | G83: 12 | H83: 0 | I83: 0 | J83: 34 | K83: 0 | L83: 64 | M83: 0 | O83: 0 | Q83: =COUNTIF('Classement auteurs'!B:B,C83) -> 1
A84: 13 | B84: 88 | C84: 131956004601 | D84: Neige fraiche au lever du soleil | E84: 14 | F84: 13 | G84: 11 | H84: 0 | I84: 0 | J84: 38 | K84: 0 | L84: 139 | M84: 0 | O84: 0 | Q84: =COUNTIF('Classement auteurs'!B:B,C84) -> 1
A85: 13 | B85: 89 | C85: 132084004001 | D85: Désert Blanc | E85: 14 | F85: 13 | G85: 13 | H85: 0 | I85: 0 | J85: 40 | K85: 0 | L85: 129 | M85: 0 | O85: 0 | Q85: =COUNTIF('Classement auteurs'!B:B,C85) -> 1
A86: 13 | B86: 90 | C86: 130925009901 | D86: Monstrueuse fracture | E86: 13 | F86: 8 | G86: 11 | H86: 0 | I86: 0 | J86: 32 | K86: 0 | L86: 56 | M86: 0 | O86: 0 | Q86: =COUNTIF('Classement auteurs'!B:B,C86) -> 1
A87: 13 | B87: 91 | C87: 130925009801 | D87: Iguane | E87: 12 | F87: 12 | G87: 10 | H87: 0 | I87: 0 | J87: 34 | K87: 0 | L87: 118 | M87: 0 | O87: 0 | Q87: =COUNTIF('Classement auteurs'!B:B,C87) -> 1
A88: 13 | B88: 92 | C88: 131956006501 | D88: Butinage | E88: 15 | F88: 12 | G88: 12 | H88: 0 | I88: 0 | J88: 39 | K88: 0 | L88: 114 | M88: 0 | O88: 0 | Q88: =COUNTIF('Classement auteurs'!B:B,C88) -> 1
A89: 13 | B89: 93 | C89: 131823004901 | D89: Sa trompe énormément | E89: 15 | F89: 12 | G89: 12 | H89: 0 | I89: 0 | J89: 39 | K89: 0 | L89: 61 | M89: 0 | O89: 0 | Q89: =COUNTIF('Classement auteurs'!B:B,C89) -> 1
A90: 13 | B90: 94 | C90: 131376014701 | D90: La mue | E90: 14 | F90: 16 | G90: 11 | H90: 0 | I90: 0 | J90: 41 | K90: 0 | L90: 24 | M90: 0 | O90: 0 | Q90: =COUNTIF('Classement auteurs'!B:B,C90) -> 1
A91: 13 | B91: 95 | C91: 131683007601 | D91: Hautain | E91: 14 | F91: 15 | G91: 13 | H91: 0 | I91: 0 | J91: 42 | K91: 0 | L91: 33 | M91: 0 | O91: 0 | Q91: =COUNTIF('Classement auteurs'!B:B,C91) -> 1
A92: 13 | B92: 96 | C92: 131956000201 | D92: Au pied du Viso | E92: 15 | F92: 12 | G92: 14 | H92: 0 | I92: 0 | J92: 41 | K92: 0 | L92: 59 | M92: 0 | O92: 0 | Q92: =COUNTIF('Classement auteurs'!B:B,C92) -> 1
A93: 13 | B93: 97 | C93: 130527009401 | D93: La rivière noire | E93: 16 | F93: 18 | G93: 16 | H93: 0 | I93: 0 | J93: 50 | K93: 0 | L93: 87 | M93: 0 | O93: 0 | Q93: =COUNTIF('Classement auteurs'!B:B,C93) -> 1
A94: 13 | B94: 98 | C94: 132060000701 | D94: Qu'est-ce qu'elle a ma gueule? | E94: 12 | F94: 7 | G94: 6 | H94: 0 | I94: 0 | J94: 25 | K94: 0 | L94: 63 | M94: 0 | O94: 0 | Q94: =COUNTIF('Classement auteurs'!B:B,C94) -> 1
A95: 13 | B95: 99 | C95: 131879001101 | D95: Envol | E95: 13 | F95: 7 | G95: 9 | H95: 0 | I95: 0 | J95: 29 | K95: 0 | L95: 70 | M95: 0 | O95: 0 | Q95: =COUNTIF('Classement auteurs'!B:B,C95) -> 1
A96: 13 | B96: 100 | C96: 132060001701 | D96: Lueurs nocturnes | E96: 12 | F96: 12 | G96: 13 | H96: 0 | I96: 0 | J96: 37 | K96: 0 | L96: 93 | M96: 0 | O96: 0 | Q96: =COUNTIF('Classement auteurs'!B:B,C96) -> 1
A97: 13 | B97: 101 | C97: 132060001501 | D97: Quiétude | E97: 11 | F97: 8 | G97: 8 | H97: 0 | I97: 0 | J97: 27 | K97: 0 | L97: 4 | M97: 0 | O97: 0 | Q97: =COUNTIF('Classement auteurs'!B:B,C97) -> 1
A98: 13 | B98: 102 | C98: 130993016601 | D98: Libellule sur Nenuphar | E98: 15 | F98: 14 | G98: 13 | H98: 0 | I98: 0 | J98: 42 | K98: 0 | L98: 29 | M98: 0 | O98: 0 | Q98: =COUNTIF('Classement auteurs'!B:B,C98) -> 1
A99: 13 | B99: 103 | C99: 131499003901 | D99: Les marques du temps | E99: 13 | F99: 19 | G99: 13 | H99: 0 | I99: 0 | J99: 45 | K99: 0 | L99: 119 | M99: 0 | O99: 0 | Q99: =COUNTIF('Classement auteurs'!B:B,C99) -> 1
A100: 13 | B100: 104 | C100: 132086002601 | D100: Renard | E100: 14 | F100: 13 | G100: 12 | H100: 0 | I100: 0 | J100: 39 | K100: 0 | L100: 45 | M100: 0 | O100: 0 | Q100: =COUNTIF('Classement auteurs'!B:B,C100) -> 1
A101: 13 | B101: 105 | C101: 131499010001 | D101: C'est mon petit | E101: 14 | F101: 15 | G101: 13 | H101: 0 | I101: 0 | J101: 42 | K101: 0 | L101: 75 | M101: 0 | O101: 0 | Q101: =COUNTIF('Classement auteurs'!B:B,C101) -> 1
A102: 13 | B102: 106 | C102: 132060000801 | D102: L'abeille et le nénuphar | E102: 13 | F102: 10 | G102: 10 | H102: 0 | I102: 0 | J102: 33 | K102: 0 | L102: 78 | M102: 0 | O102: 0 | Q102: =COUNTIF('Classement auteurs'!B:B,C102) -> 1
A103: 13 | B103: 107 | C103: 131499005201 | D103: Mesange | E103: 13 | F103: 12 | G103: 12 | H103: 0 | I103: 0 | J103: 37 | K103: 0 | L103: 12 | M103: 0 | O103: 0 | Q103: =COUNTIF('Classement auteurs'!B:B,C103) -> 1
A104: 13 | B104: 108 | C104: 131499010801 | D104: Poissons papillon | E104: 15 | F104: 10 | G104: 16 | H104: 0 | I104: 0 | J104: 41 | K104: 0 | L104: 66 | M104: 0 | O104: 0 | Q104: =COUNTIF('Classement auteurs'!B:B,C104) -> 1
A105: 13 | B105: 109 | C105: 132217000101 | D105: Blanc Bleu | E105: 11 | F105: 14 | G105: 12 | H105: 0 | I105: 0 | J105: 37 | K105: 0 | L105: 97 | M105: 0 | O105: 0 | Q105: =COUNTIF('Classement auteurs'!B:B,C105) -> 1
A106: 13 | B106: 110 | C106: 131956005901 | D106: En vol | E106: 12 | F106: 11 | G106: 10 | H106: 0 | I106: 0 | J106: 33 | K106: 0 | L106: 19 | M106: 0 | O106: 0 | Q106: =COUNTIF('Classement auteurs'!B:B,C106) -> 1
A107: 13 | B107: 111 | C107: 131956002401 | D107: Danseur à cornes | E107: 12 | F107: 11 | G107: 12 | H107: 0 | I107: 0 | J107: 35 | K107: 0 | L107: 76 | M107: 0 | O107: 0 | Q107: =COUNTIF('Classement auteurs'!B:B,C107) -> 1
A108: 13 | B108: 112 | C108: 131227008601 | D108: Lac de monteux | E108: 13 | F108: 17 | G108: 14 | H108: 0 | I108: 0 | J108: 44 | K108: 0 | L108: 32 | M108: 0 | O108: 0 | Q108: =COUNTIF('Classement auteurs'!B:B,C108) -> 1
A109: 13 | B109: 113 | C109: 132147000101 | D109: Cincle plongeur | E109: 14 | F109: 13 | G109: 11 | H109: 0 | I109: 0 | J109: 38 | K109: 0 | L109: 38 | M109: 0 | O109: 0 | Q109: =COUNTIF('Classement auteurs'!B:B,C109) -> 1
A110: 13 | B110: 114 | C110: 132023002201 | D110: La sortie du bain | E110: 16 | F110: 16 | G110: 17 | H110: 0 | I110: 0 | J110: 49 | K110: 0 | L110: 109 | M110: 0 | O110: 0 | Q110: =COUNTIF('Classement auteurs'!B:B,C110) -> 1
A111: 13 | B111: 115 | C111: 131845004101 | D111: Cigognes en Camargue | E111: 6 | F111: 9 | G111: 11 | H111: 0 | I111: 0 | J111: 26 | K111: 0 | L111: 135 | M111: 0 | O111: 0 | Q111: =COUNTIF('Classement auteurs'!B:B,C111) -> 1
A112: 13 | B112: 116 | C112: 131499006901 | D112: Câlin aquatique | E112: 14 | F112: 10 | G112: 15 | H112: 0 | I112: 0 | J112: 39 | K112: 0 | L112: 36 | M112: 0 | O112: 0 | Q112: =COUNTIF('Classement auteurs'!B:B,C112) -> 1
A113: 13 | B113: 117 | C113: 131956001401 | D113: Etang du Vaccarès | E113: 6 | F113: 6 | G113: 6 | H113: 0 | I113: 0 | J113: 18 | K113: 0 | L113: 31 | M113: 0 | O113: 0 | Q113: =COUNTIF('Classement auteurs'!B:B,C113) -> 1
A114: 13 | B114: 118 | C114: 132060001201 | D114: Transparence | E114: 13 | F114: 12 | G114: 15 | H114: 0 | I114: 0 | J114: 40 | K114: 0 | L114: 30 | M114: 0 | O114: 0 | Q114: =COUNTIF('Classement auteurs'!B:B,C114) -> 1
A115: 13 | B115: 119 | C115: 132203001001 | D115: Coucher dans l'herbe | E115: 6 | F115: 6 | G115: 6 | H115: 0 | I115: 0 | J115: 18 | K115: 0 | L115: 100 | M115: 0 | O115: 0 | Q115: =COUNTIF('Classement auteurs'!B:B,C115) -> 1
A116: 13 | B116: 120 | C116: 130987026701 | D116: Miroir et Flamant rose | E116: 12 | F116: 12 | G116: 13 | H116: 0 | I116: 0 | J116: 37 | K116: 0 | L116: 110 | M116: 0 | O116: 0 | Q116: =COUNTIF('Classement auteurs'!B:B,C116) -> 1
A117: 13 | B117: 121 | C117: 131619004501 | D117: Lac Lavoir | E117: 16 | F117: 15 | G117: 15 | H117: 0 | I117: 0 | J117: 46 | K117: 0 | L117: 79 | M117: 0 | O117: 0 | Q117: =COUNTIF('Classement auteurs'!B:B,C117) -> 1
A118: 13 | B118: 122 | C118: 132060000401 | D118: En pêche | E118: 13 | F118: 12 | G118: 11 | H118: 0 | I118: 0 | J118: 36 | K118: 0 | L118: 115 | M118: 0 | O118: 0 | Q118: =COUNTIF('Classement auteurs'!B:B,C118) -> 1
A119: 13 | B119: 123 | C119: 132060000901 | D119: Martin pêcheur à l'affût | E119: 11 | F119: 15 | G119: 12 | H119: 0 | I119: 0 | J119: 38 | K119: 0 | L119: 91 | M119: 0 | O119: 0 | Q119: =COUNTIF('Classement auteurs'!B:B,C119) -> 1
A120: 13 | B120: 124 | C120: 130527002501 | D120: Sphins | E120: 10 | F120: 11 | G120: 9 | H120: 0 | I120: 0 | J120: 30 | K120: 0 | L120: 40 | M120: 0 | O120: 0 | Q120: =COUNTIF('Classement auteurs'!B:B,C120) -> 1
A121: 13 | B121: 125 | C121: 130987023901 | D121: Avant l'orage | E121: 13 | F121: 13 | G121: 9 | H121: 0 | I121: 0 | J121: 35 | K121: 0 | L121: 132 | M121: 0 | O121: 0 | Q121: =COUNTIF('Classement auteurs'!B:B,C121) -> 1
A122: 13 | B122: 126 | C122: 130987001601 | D122: Iceland | E122: 13 | F122: 12 | G122: 7 | H122: 0 | I122: 0 | J122: 32 | K122: 0 | L122: 48 | M122: 0 | O122: 0 | Q122: =COUNTIF('Classement auteurs'!B:B,C122) -> 1
A123: 13 | B123: 127 | C123: 131499006801 | D123: Le Butineur | E123: 17 | F123: 18 | G123: 17 | H123: 0 | I123: 0 | J123: 52 | K123: 0 | L123: 68 | M123: 0 | O123: 0 | Q123: =COUNTIF('Classement auteurs'!B:B,C123) -> 1
A124: 13 | B124: 128 | C124: 130993010201 | D124: Vulpes vulpes | E124: 15 | F124: 12 | G124: 14 | H124: 0 | I124: 0 | J124: 41 | K124: 0 | L124: 98 | M124: 0 | O124: 0 | Q124: =COUNTIF('Classement auteurs'!B:B,C124) -> 1
A125: 13 | B125: 129 | C125: 130921006401 | D125: En attendant le poisson | E125: 13 | F125: 11 | G125: 10 | H125: 0 | I125: 0 | J125: 34 | K125: 0 | L125: 117 | M125: 0 | O125: 0 | Q125: =COUNTIF('Classement auteurs'!B:B,C125) -> 1
A126: 13 | B126: 130 | C126: 131353006201 | D126: Bientôt du miel | E126: 14 | F126: 12 | G126: 9 | H126: 0 | I126: 0 | J126: 35 | K126: 0 | L126: 50 | M126: 0 | O126: 0 | Q126: =COUNTIF('Classement auteurs'!B:B,C126) -> 1
A127: 13 | B127: 131 | C127: 132060001801 | D127: Aurore... presque boréale ! | E127: 8 | F127: 8 | G127: 6 | H127: 0 | I127: 0 | J127: 22 | K127: 0 | L127: 108 | M127: 0 | O127: 0 | Q127: =COUNTIF('Classement auteurs'!B:B,C127) -> 1
A128: 13 | B128: 132 | C128: 131879000601 | D128: Solfatare en Islande | E128: 10 | F128: 13 | G128: 8 | H128: 0 | I128: 0 | J128: 31 | K128: 0 | L128: 95 | M128: 0 | O128: 0 | Q128: =COUNTIF('Classement auteurs'!B:B,C128) -> 1
A129: 13 | B129: 133 | C129: 130987002301 | D129: Sapajous Brun | E129: 11 | F129: 14 | G129: 14 | H129: 0 | I129: 0 | J129: 39 | K129: 0 | L129: 102 | M129: 0 | O129: 0 | Q129: =COUNTIF('Classement auteurs'!B:B,C129) -> 1
A130: 13 | B130: 134 | C130: 131683002601 | D130: Chouette de Tengmalm | E130: 20 | F130: 18 | G130: 18 | H130: 0 | I130: 0 | J130: 56 | K130: 0 | L130: 14 | M130: 0 | O130: 0 | Q130: =COUNTIF('Classement auteurs'!B:B,C130) -> 1
A131: 13 | B131: 135 | C131: 131499010501 | D131: Saut de bonite | E131: 15 | F131: 13 | G131: 13 | H131: 0 | I131: 0 | J131: =SUM(E131:I131) -> 41 | K131: 0 | L131: 2 | M131: 0 | O131: 0 | Q131: =COUNTIF('Classement auteurs'!B:B,C131) -> 1
A132: 13 | B132: 136 | C132: 131499010601 | D132: Goutte de bec | E132: 8 | F132: 13 | G132: 11 | H132: 0 | I132: 0 | J132: 32 | K132: 0 | L132: 23 | M132: 0 | O132: 0 | Q132: =COUNTIF('Classement auteurs'!B:B,C132) -> 1
A133: 13 | B133: 137 | C133: 130925010501 | D133: Le temps des amours | E133: 15 | F133: 13 | G133: 13 | H133: 0 | I133: 0 | J133: 41 | K133: 0 | L133: 67 | M133: 0 | O133: 0 | Q133: =COUNTIF('Classement auteurs'!B:B,C133) -> 1
A134: 13 | B134: 138 | C134: 131956005701 | D134: Rencontre par surprise | E134: 11 | F134: 10 | G134: 7 | H134: 0 | I134: 0 | J134: 28 | K134: 0 | L134: 69 | M134: 0 | O134: 0 | Q134: =COUNTIF('Classement auteurs'!B:B,C134) -> 1
A135: 13 | B135: 139 | C135: 131845001401 | D135: Affût | E135: 14 | F135: 11 | G135: 14 | H135: 0 | I135: 0 | J135: 39 | K135: 0 | L135: 35 | M135: 0 | O135: 0 | Q135: =COUNTIF('Classement auteurs'!B:B,C135) -> 1
A136: 13 | B136: 140 | C136: 131683006501 | D136: Jonquille | E136: 12 | F136: 10 | G136: 8 | H136: 0 | I136: 0 | J136: 30 | K136: 0 | L136: 138 | M136: 0 | O136: 0 | Q136: =COUNTIF('Classement auteurs'!B:B,C136) -> 1
A137: 13 | B137: 141 | C137: 131499010101 | D137: En retard | E137: 16 | F137: 7 | G137: 8 | H137: 0 | I137: 0 | J137: 31 | K137: 0 | L137: 104 | M137: 0 | O137: 0 | Q137: =COUNTIF('Classement auteurs'!B:B,C137) -> 1
A138: 13 | B138: 142 | C138: 130527017001 | D138: A chacun sa chevelure ... | E138: 12 | F138: 11 | G138: 6 | H138: 0 | I138: 0 | J138: 29 | K138: 0 | L138: 112 | M138: 0 | O138: 0 | Q138: =COUNTIF('Classement auteurs'!B:B,C138) -> 1
A139: 13 | B139: 143 | C139: 130987025001 | D139: Caillou sur la plage | E139: 13 | F139: 10 | G139: 7 | H139: 0 | I139: 0 | J139: 30 | K139: 0 | L139: 44 | M139: 0 | O139: 0
A140: 13 | B140: 144 | C140: 131823006401 | D140: Fusion | E140: 13 | F140: 12 | G140: 12 | H140: 0 | I140: 0 | J140: 37 | K140: 0 | L140: 83 | M140: 0 | O140: 0
A141: 13 | B141: 145 | C141: 131823004201 | D141: Ourlé de blanc | E141: 13 | F141: 9 | G141: 7 | H141: 0 | I141: 0 | J141: 29 | K141: 0 | L141: 21 | M141: 0 | O141: 0
A142: 13 | B142: 146 | C142: 131353000101 | D142: Criquet | E142: 13 | F142: 19 | G142: 15 | H142: 0 | I142: 0 | J142: 47 | K142: 0 | L142: 20 | M142: 0 | O142: 0
A143: 13 | B143: 147 | C143: 131353000701 | D143: Mante religieuse | E143: 20 | F143: 20 | G143: 17 | H143: 0 | I143: 0 | J143: 57 | K143: 0 | L143: 92 | M143: 0 | O143: 0

Sheet Défi-5
A1: colis | B1: photologic | C1: fichier | D1: titre | E1: note1 | F1: note2 | G1: note3 | H1: note4 | I1: note5 | J1: total | K1: place | L1: passage | M1: statut | N1: medaille | O1: retenue | Q1: 0=absent 1=présent | S1: fichier | T1: total
A2: 13 | B2: 1 | C2: 131494003001 | D2: Reflet nocturne | E2: 10 | F2: 7 | G2: 7 | H2: 0 | I2: 0 | J2: =SUM(E2:I2) -> 24 | K2: 0 | L2: 120 | M2: 0 | O2: 0 | Q2: =COUNTIF('Classement auteurs'!B:B,C2) -> 1 | S2: 130527009401 | T2: 51 | U2: =(MID(S2,3,4)*1) -> 527 | V2: 134 | W2: =IF($V2=VLOOKUP($U2,'Classement clubs'!$B$2:$K$52,7,FALSE),"OK","KO") -> OK
A3: 13 | B3: 2 | C3: 131823008301 | D3: Promenade | E3: 14 | F3: 15 | G3: 13 | H3: 0 | I3: 0 | J3: =SUM(E3:I3) -> 42 | K3: 0 | L3: 143 | M3: 0 | O3: 0 | Q3: =COUNTIF('Classement auteurs'!B:B,C3) -> 1 | S3: 130878014101 | T3: 56 | U3: 878 | V3: 147 | W3: =IF($V3=VLOOKUP($U3,'Classement clubs'!$B$2:$K$52,7,FALSE),"OK","KO") -> OK
A4: 13 | B4: 3 | C4: 132147000101 | D4: Reflet Vénitien | E4: 11 | F4: 15 | G4: 10 | H4: 0 | I4: 0 | J4: 36 | K4: 0 | L4: 33 | M4: 0 | O4: 0 | Q4: =COUNTIF('Classement auteurs'!B:B,C4) -> 1 | S4: 130925008401 | T4: 51 | U4: 925 | V4: 132 | W4: =IF($V4=VLOOKUP($U4,'Classement clubs'!$B$2:$K$52,7,FALSE),"OK","KO") -> OK
A5: 13 | B5: 4 | C5: 130987024101 | D5: La caravane | E5: 11 | F5: 19 | G5: 14 | H5: 0 | I5: 0 | J5: 44 | K5: 0 | L5: 149 | M5: 0 | O5: 0 | Q5: =COUNTIF('Classement auteurs'!B:B,C5) -> 1 | S5: 130987015701 | T5: 46 | U5: 987 | V5: 132 | W5: =IF($V5=VLOOKUP($U5,'Classement clubs'!$B$2:$K$52,7,FALSE),"OK","KO") -> OK
A6: 13 | B6: 6 | C6: 130527002501 | D6: Tacle | E6: 7 | F6: 11 | G6: 14 | H6: 0 | I6: 0 | J6: 32 | K6: 0 | L6: 164 | M6: 0 | O6: 0 | Q6: =COUNTIF('Classement auteurs'!B:B,C6) -> 1 | S6: 130993012301 | T6: 41 | U6: 993 | V6: 110 | W6: =IF($V6=VLOOKUP($U6,'Classement clubs'!$B$2:$K$52,7,FALSE),"OK","KO") -> OK
A7: 13 | B7: 7 | C7: 132023000101 | D7: Cabanes de pêcheurs | E7: 11 | F7: 10 | G7: 15 | H7: 0 | I7: 0 | J7: 36 | K7: 0 | L7: 4 | M7: 0 | O7: 0 | Q7: =COUNTIF('Classement auteurs'!B:B,C7) -> 1 | S7: 131110000901 | T7: 41 | U7: 1110 | V7: 121 | W7: =IF($V7=VLOOKUP($U7,'Classement clubs'!$B$2:$K$52,7,FALSE),"OK","KO") -> OK
A8: 13 | B8: 8 | C8: 132084004001 | D8: La négociation | E8: 11 | F8: 18 | G8: 13 | H8: 0 | I8: 0 | J8: 42 | K8: 0 | L8: 96 | M8: 0 | O8: 0 | Q8: =COUNTIF('Classement auteurs'!B:B,C8) -> 1 | S8: 131353000101 | T8: 57 | U8: 1353 | V8: 139 | W8: =IF($V8=VLOOKUP($U8,'Classement clubs'!$B$2:$K$52,7,FALSE),"OK","KO") -> OK
A9: 13 | B9: 9 | C9: 131683008101 | D9: Lola | E9: 14 | F9: 14 | G9: 15 | H9: 0 | I9: 0 | J9: 43 | K9: 0 | L9: 69 | M9: 0 | O9: 0 | Q9: =COUNTIF('Classement auteurs'!B:B,C9) -> 1 | S9: 131376011801 | T9: 46 | U9: 1376 | V9: 134 | W9: =IF($V9=VLOOKUP($U9,'Classement clubs'!$B$2:$K$52,7,FALSE),"OK","KO") -> OK
A10: 13 | B10: 10 | C10: 130987019701 | D10: Face à face | E10: 14 | F10: 10 | G10: 13 | H10: 0 | I10: 0 | J10: 37 | K10: 0 | L10: 86 | M10: 0 | O10: 0 | Q10: =COUNTIF('Classement auteurs'!B:B,C10) -> 1 | S10: 131494000201 | T10: 37 | U10: 1494 | V10: 103 | W10: =IF($V10=VLOOKUP($U10,'Classement clubs'!$B$2:$K$52,7,FALSE),"OK","KO") -> OK
A11: 13 | B11: 11 | C11: 130987019601 | D11: Les pénitents | E11: 10 | F11: 7 | G11: 17 | H11: 0 | I11: 0 | J11: 34 | K11: 0 | L11: 88 | M11: 0 | O11: 0 | Q11: =COUNTIF('Classement auteurs'!B:B,C11) -> 1 | S11: 131499011001 | T11: 51 | U11: 1499 | V11: 151 | W11: =IF($V11=VLOOKUP($U11,'Classement clubs'!$B$2:$K$52,7,FALSE),"OK","KO") -> OK
A12: 13 | B12: 13 | C12: 130878013601 | D12: En attente | E12: 8 | F12: 12 | G12: 14 | H12: 0 | I12: 0 | J12: 34 | K12: 0 | L12: 18 | M12: 0 | O12: 0 | Q12: =COUNTIF('Classement auteurs'!B:B,C12) -> 1 | S12: 131619005001 | T12: 45 | U12: 1619 | V12: 131 | W12: =IF($V12=VLOOKUP($U12,'Classement clubs'!$B$2:$K$52,7,FALSE),"OK","KO") -> OK
A13: 13 | B13: 14 | C13: 130993012301 | D13: Flamenco | E13: 13 | F13: 13 | G13: 15 | H13: 0 | I13: 0 | J13: 41 | K13: 0 | L13: 106 | M13: 0 | O13: 0 | Q13: =COUNTIF('Classement auteurs'!B:B,C13) -> 1 | S13: 131683007901 | T13: 58 | U13: 1683 | V13: 159 | W13: =IF($V13=VLOOKUP($U13,'Classement clubs'!$B$2:$K$52,7,FALSE),"OK","KO") -> OK
A14: 13 | B14: 15 | C14: 132086002301 | D14: Tourbillon d'or | E14: 12 | F14: 8 | G14: 12 | H14: 0 | I14: 0 | J14: 32 | K14: 0 | L14: 25 | M14: 0 | O14: 0 | Q14: =COUNTIF('Classement auteurs'!B:B,C14) -> 1 | S14: 131823008301 | T14: 42 | U14: 1823 | V14: 120 | W14: =IF($V14=VLOOKUP($U14,'Classement clubs'!$B$2:$K$52,7,FALSE),"OK","KO") -> OK
A15: 13 | B15: 16 | C15: 130987028401 | D15: Au bout... de la Presqu'île | E15: 11 | F15: 14 | G15: 11 | H15: 0 | I15: 0 | J15: 36 | K15: 0 | L15: 65 | M15: 0 | O15: 0 | Q15: =COUNTIF('Classement auteurs'!B:B,C15) -> 1 | S15: 131845000101 | T15: 41 | U15: 1845 | V15: 128 | W15: =IF($V15=VLOOKUP($U15,'Classement clubs'!$B$2:$K$52,7,FALSE),"OK","KO") -> OK
A16: 13 | B16: 17 | C16: 130987013801 | D16: Gymnaste en compétition | E16: 11 | F16: 18 | G16: 13 | H16: 0 | I16: 0 | J16: 42 | K16: 0 | L16: 153 | M16: 0 | O16: 0 | Q16: =COUNTIF('Classement auteurs'!B:B,C16) -> 1 | S16: 131879001301 | T16: 42 | U16: 1879 | V16: 119 | W16: =IF($V16=VLOOKUP($U16,'Classement clubs'!$B$2:$K$52,7,FALSE),"OK","KO") -> OK
A17: 13 | B17: 18 | C17: 131376012601 | D17: Jour de neige | E17: 14 | F17: 14 | G17: 6 | H17: 0 | I17: 0 | J17: 34 | K17: 0 | L17: 22 | M17: 0 | O17: 0 | Q17: =COUNTIF('Classement auteurs'!B:B,C17) -> 1 | S17: 131956002401 | T17: 43 | U17: 1956 | V17: 124 | W17: =IF($V17=VLOOKUP($U17,'Classement clubs'!$B$2:$K$52,7,FALSE),"OK","KO") -> OK
A18: 13 | B18: 19 | C18: 131956002901 | D18: Regard | E18: 7 | F18: 10 | G18: 11 | H18: 0 | I18: 0 | J18: 28 | K18: 0 | L18: 61 | M18: 0 | O18: 0 | Q18: =COUNTIF('Classement auteurs'!B:B,C18) -> 1 | S18: 132023000101 | T18: 36 | U18: 2023 | V18: 117 | W18: =IF($V18=VLOOKUP($U18,'Classement clubs'!$B$2:$K$52,7,FALSE),"OK","KO") -> OK
A19: 13 | B19: 20 | C19: 132084001701 | D19: Eglise | E19: 14 | F19: 15 | G19: 12 | H19: 0 | I19: 0 | J19: 41 | K19: 0 | L19: 78 | M19: 0 | O19: 0 | Q19: =COUNTIF('Classement auteurs'!B:B,C19) -> 1 | S19: 132060001801 | T19: 47 | U19: 2060 | V19: 126 | W19: =IF($V19=VLOOKUP($U19,'Classement clubs'!$B$2:$K$52,7,FALSE),"OK","KO") -> OK
A20: 13 | B20: 21 | C20: 131376011801 | D20: Moines du Djokang | E20: 13 | F20: 18 | G20: 15 | H20: 0 | I20: 0 | J20: 46 | K20: 0 | L20: 111 | M20: 0 | O20: 0 | Q20: =COUNTIF('Classement auteurs'!B:B,C20) -> 1 | S20: 132084004001 | T20: 42 | U20: 2084 | V20: 121 | W20: =IF($V20=VLOOKUP($U20,'Classement clubs'!$B$2:$K$52,7,FALSE),"OK","KO") -> OK
A21: 13 | B21: 22 | C21: 130993013801 | D21: Promeneur du soir | E21: 13 | F21: 14 | G21: 11 | H21: 0 | I21: 0 | J21: 38 | K21: 0 | L21: 110 | M21: 0 | O21: 0 | Q21: =COUNTIF('Classement auteurs'!B:B,C21) -> 1 | S21: 132086001401 | T21: 34 | U21: 2086 | V21: 106 | W21: =IF($V21=VLOOKUP($U21,'Classement clubs'!$B$2:$K$52,7,FALSE),"OK","KO") -> OK
A22: 13 | B22: 23 | C22: 132060000101 | D22: FETE AU CHATEAU | E22: 9 | F22: 16 | G22: 9 | H22: 0 | I22: 0 | J22: 34 | K22: 0 | L22: 115 | M22: 0 | O22: 0 | Q22: =COUNTIF('Classement auteurs'!B:B,C22) -> 1 | S22: 132193000501 | T22: 41 | U22: 2193 | V22: 118 | W22: =IF($V22=VLOOKUP($U22,'Classement clubs'!$B$2:$K$52,7,FALSE),"OK","KO") -> OK
A23: 13 | B23: 24 | C23: 131823004901 | D23: Dans les bras de Morphée | E23: 11 | F23: 15 | G23: 15 | H23: 0 | I23: 0 | J23: 41 | K23: 0 | L23: 35 | M23: 0 | O23: 0 | Q23: =COUNTIF('Classement auteurs'!B:B,C23) -> 1 | S23: 132203000601 | T23: 28 | U23: 2203 | V23: 103 | W23: =IF($V23=VLOOKUP($U23,'Classement clubs'!$B$2:$K$52,7,FALSE),"OK","KO") -> OK
A24: 13 | B24: 25 | C24: 131824001901 | D24: Un matin sur ma planète | E24: 16 | F24: 15 | G24: 13 | H24: 0 | I24: 0 | J24: 44 | K24: 0 | L24: 107 | M24: 0 | O24: 0 | Q24: =COUNTIF('Classement auteurs'!B:B,C24) -> 1
A25: 13 | B25: 26 | C25: 130878015801 | D25: Laveur d'Affiche | E25: 18 | F25: 13 | G25: 18 | H25: 0 | I25: 0 | J25: 49 | K25: 0 | L25: 32 | M25: 0 | O25: 0 | Q25: =COUNTIF('Classement auteurs'!B:B,C25) -> 1
A26: 13 | B26: 28 | C26: 131499006801 | D26: Fauteuil Rouge | E26: 8 | F26: 15 | G26: 19 | H26: 0 | I26: 0 | J26: 42 | K26: 0 | L26: 67 | M26: 0 | O26: 0 | Q26: =COUNTIF('Classement auteurs'!B:B,C26) -> 1
A27: 13 | B27: 29 | C27: 131879000101 | D27: Cerisiers en fleurs | E27: 8 | F27: 12 | G27: 8 | H27: 0 | I27: 0 | J27: 28 | K27: 0 | L27: 77 | M27: 0 | O27: 0 | Q27: =COUNTIF('Classement auteurs'!B:B,C27) -> 1
A28: 13 | B28: 30 | C28: 132084000201 | D28: Tristesse | E28: 13 | F28: 15 | G28: 10 | H28: 0 | I28: 0 | J28: 38 | K28: 0 | L28: 104 | M28: 0 | O28: 0 | Q28: =COUNTIF('Classement auteurs'!B:B,C28) -> 1
A29: 13 | B29: 31 | C29: 131879001101 | D29: Couleurs d'automne | E29: 13 | F29: 13 | G29: 12 | H29: 0 | I29: 0 | J29: 38 | K29: 0 | L29: 128 | M29: 0 | O29: 0 | Q29: =COUNTIF('Classement auteurs'!B:B,C29) -> 1
A30: 13 | B30: 32 | C30: 130878013401 | D30: Lady | E30: 8 | F30: 11 | G30: 11 | H30: 0 | I30: 0 | J30: 30 | K30: 0 | L30: 47 | M30: 0 | O30: 0 | Q30: =COUNTIF('Classement auteurs'!B:B,C30) -> 1
A31: 13 | B31: 33 | C31: 131683006901 | D31: Un p'tit coin de parapluie | E31: 17 | F31: 13 | G31: 11 | H31: 0 | I31: 0 | J31: 41 | K31: 0 | L31: 75 | M31: 0 | O31: 0 | Q31: =COUNTIF('Classement auteurs'!B:B,C31) -> 1
A32: 13 | B32: 34 | C32: 131683007001 | D32: Ordre décroissant | E32: 9 | F32: 14 | G32: 10 | H32: 0 | I32: 0 | J32: 33 | K32: 0 | L32: 157 | M32: 0 | O32: 0 | Q32: =COUNTIF('Classement auteurs'!B:B,C32) -> 1
A33: 13 | B33: 35 | C33: 130993015401 | D33: La cabanne du peuchère | E33: 9 | F33: 11 | G33: 11 | H33: 0 | I33: 0 | J33: 31 | K33: 0 | L33: 63 | M33: 0 | O33: 0 | Q33: =COUNTIF('Classement auteurs'!B:B,C33) -> 1
A34: 13 | B34: 36 | C34: 130987007401 | D34: Orage imminent | E34: 10 | F34: 15 | G34: 12 | H34: 0 | I34: 0 | J34: 37 | K34: 0 | L34: 41 | M34: 0 | O34: 0 | Q34: =COUNTIF('Classement auteurs'!B:B,C34) -> 1
A35: 13 | B35: 37 | C35: 132217000601 | D35: Ancienne taverne crétoise | E35: 8 | F35: 10 | G35: 11 | H35: 0 | I35: 0 | J35: 29 | K35: 0 | L35: 7 | M35: 0 | O35: 0 | Q35: =COUNTIF('Classement auteurs'!B:B,C35) -> 1
A36: 13 | B36: 38 | C36: 132193000301 | D36: Solfar | E36: 13 | F36: 13 | G36: 12 | H36: 0 | I36: 0 | J36: 38 | K36: 0 | L36: 159 | M36: 0 | O36: 0 | Q36: =COUNTIF('Classement auteurs'!B:B,C36) -> 1
A37: 13 | B37: 39 | C37: 131879002001 | D37: Procession | E37: 12 | F37: 13 | G37: 13 | H37: 0 | I37: 0 | J37: 38 | K37: 0 | L37: 20 | M37: 0 | O37: 0 | Q37: =COUNTIF('Classement auteurs'!B:B,C37) -> 1
A38: 13 | B38: 40 | C38: 131879001301 | D38: Regard | E38: 18 | F38: 14 | G38: 10 | H38: 0 | I38: 0 | J38: 42 | K38: 0 | L38: 38 | M38: 0 | O38: 0 | Q38: =COUNTIF('Classement auteurs'!B:B,C38) -> 1
A39: 13 | B39: 41 | C39: 132203000601 | D39: Soir | E39: 11 | F39: 7 | G39: 10 | H39: 0 | I39: 0 | J39: 28 | K39: 0 | L39: 72 | M39: 0 | O39: 0 | Q39: =COUNTIF('Classement auteurs'!B:B,C39) -> 1
A40: 13 | B40: 42 | C40: 130878014301 | D40: Bulle colorée | E40: 10 | F40: 9 | G40: 10 | H40: 0 | I40: 0 | J40: 29 | K40: 0 | L40: 100 | M40: 0 | O40: 0 | Q40: =COUNTIF('Classement auteurs'!B:B,C40) -> 1
A41: 13 | B41: 43 | C41: 131879000501 | D41: Contemplation | E41: 13 | F41: 10 | G41: 16 | H41: 0 | I41: 0 | J41: 39 | K41: 0 | L41: 68 | M41: 0 | O41: 0 | Q41: =COUNTIF('Classement auteurs'!B:B,C41) -> 1
A42: 13 | B42: 44 | C42: 131683007901 | D42: M à Venise | E42: 19 | F42: 20 | G42: 19 | H42: 0 | I42: 0 | J42: 58 | K42: 0 | L42: 5 | M42: 0 | O42: 0 | Q42: =COUNTIF('Classement auteurs'!B:B,C42) -> 1
A43: 13 | B43: 46 | C43: 131499008701 | D43: Harmonie | E43: 9 | F43: 14 | G43: 11 | H43: 0 | I43: 0 | J43: 34 | K43: 0 | L43: 112 | M43: 0 | O43: 0 | Q43: =COUNTIF('Classement auteurs'!B:B,C43) -> 1
A44: 13 | B44: 47 | C44: 130987015701 | D44: Beauté voilée | E44: 12 | F44: 16 | G44: 18 | H44: 0 | I44: 0 | J44: 46 | K44: 0 | L44: 21 | M44: 0 | O44: 0 | Q44: =COUNTIF('Classement auteurs'!B:B,C44) -> 1
A45: 13 | B45: 48 | C45: 130000020401 | D45: LUMA - Architecture de Demain | E45: 12 | F45: 19 | G45: 12 | H45: 0 | I45: 0 | J45: 43 | K45: 0 | L45: 155 | M45: 6 | O45: 0 | Q45: =COUNTIF('Classement auteurs'!B:B,C45) -> 1
A46: 13 | B46: 49 | C46: 130878007201 | D46: Photosphore | E46: 12 | F46: 13 | G46: 10 | H46: 0 | I46: 0 | J46: 35 | K46: 0 | L46: 73 | M46: 0 | O46: 0 | Q46: =COUNTIF('Classement auteurs'!B:B,C46) -> 1
A47: 13 | B47: 51 | C47: 131376018301 | D47: Marché de nuit | E47: 9 | F47: 18 | G47: 17 | H47: 0 | I47: 0 | J47: 44 | K47: 0 | L47: 14 | M47: 0 | O47: 0 | Q47: =COUNTIF('Classement auteurs'!B:B,C47) -> 1
A48: 13 | B48: 52 | C48: 132193001901 | D48: Flamboyant ciel | E48: 14 | F48: 12 | G48: 13 | H48: 0 | I48: 0 | J48: 39 | K48: 0 | L48: 133 | M48: 0 | O48: 0 | Q48: =COUNTIF('Classement auteurs'!B:B,C48) -> 1
A49: 13 | B49: 53 | C49: 131956003401 | D49: Bise | E49: 9 | F49: 12 | G49: 12 | H49: 0 | I49: 0 | J49: 33 | K49: 0 | L49: 139 | M49: 0 | O49: 0 | Q49: =COUNTIF('Classement auteurs'!B:B,C49) -> 1
A50: 13 | B50: 54 | C50: 131353000201 | D50: Petit garçon au chapeau | E50: 10 | F50: 15 | G50: 12 | H50: 0 | I50: 0 | J50: 37 | K50: 0 | L50: 151 | M50: 0 | O50: 0 | Q50: =COUNTIF('Classement auteurs'!B:B,C50) -> 1
A51: 13 | B51: 55 | C51: 131227008301 | D51: Bord du Rhône | E51: 14 | F51: 9 | G51: 11 | H51: 0 | I51: 0 | J51: 34 | K51: 0 | L51: 98 | M51: 0 | O51: 0 | Q51: =COUNTIF('Classement auteurs'!B:B,C51) -> 1
A52: 13 | B52: 56 | C52: 131992000401 | D52: J'aime l'école | E52: 12 | F52: 18 | G52: 15 | H52: 0 | I52: 0 | J52: 45 | K52: 0 | L52: 44 | M52: 0 | O52: 0 | Q52: =COUNTIF('Classement auteurs'!B:B,C52) -> 1
A53: 13 | B53: 57 | C53: 131899000801 | D53: Furtive | E53: 19 | F53: 9 | G53: 13 | H53: 0 | I53: 0 | J53: 41 | K53: 0 | L53: 11 | M53: 0 | O53: 0 | Q53: =COUNTIF('Classement auteurs'!B:B,C53) -> 1
A54: 13 | B54: 58 | C54: 131992000301 | D54: Contournement. | E54: 12 | F54: 9 | G54: 10 | H54: 0 | I54: 0 | J54: 31 | K54: 0 | L54: 40 | M54: 0 | O54: 0 | Q54: =COUNTIF('Classement auteurs'!B:B,C54) -> 1
A55: 13 | B55: 59 | C55: 132023002201 | D55: La porte de l'ecole | E55: 12 | F55: 18 | G55: 13 | H55: 0 | I55: 0 | J55: 43 | K55: 0 | L55: 31 | M55: 0 | O55: 0 | Q55: =COUNTIF('Classement auteurs'!B:B,C55) -> 1
A56: 13 | B56: 60 | C56: 131683007601 | D56: Sous terre | E56: 9 | F56: 11 | G56: 12 | H56: 0 | I56: 0 | J56: 32 | K56: 0 | L56: 156 | M56: 0 | O56: 0 | Q56: =COUNTIF('Classement auteurs'!B:B,C56) -> 1
A57: 13 | B57: 61 | C57: 131823007601 | D57: Gardian | E57: 11 | F57: 8 | G57: 11 | H57: 0 | I57: 0 | J57: 30 | K57: 0 | L57: 137 | M57: 0 | O57: 0 | Q57: =COUNTIF('Classement auteurs'!B:B,C57) -> 1
A58: 13 | B58: 62 | C58: 132060001801 | D58: Sérénité | E58: 14 | F58: 16 | G58: 17 | H58: 0 | I58: 0 | J58: 47 | K58: 0 | L58: 144 | M58: 0 | O58: 0 | Q58: =COUNTIF('Classement auteurs'!B:B,C58) -> 1
A59: 13 | B59: 64 | C59: 131499011001 | D59: Le C | E59: 18 | F59: 16 | G59: 17 | H59: 0 | I59: 0 | J59: 51 | K59: 0 | L59: 54 | M59: 0 | O59: 0 | Q59: =COUNTIF('Classement auteurs'!B:B,C59) -> 1
A60: 13 | B60: 65 | C60: 130987024201 | D60: Danse des esprits | E60: 9 | F60: 14 | G60: 16 | H60: 0 | I60: 0 | J60: 39 | K60: 0 | L60: 101 | M60: 0 | O60: 0 | Q60: =COUNTIF('Classement auteurs'!B:B,C60) -> 1
A61: 13 | B61: 66 | C61: 131110001101 | D61: Chanteur de blues | E61: 17 | F61: 17 | G61: 11 | H61: 0 | I61: 0 | J61: 45 | K61: 0 | L61: 79 | M61: 0 | O61: 0 | Q61: =COUNTIF('Classement auteurs'!B:B,C61) -> 1
A62: 13 | B62: 67 | C62: 132193000401 | D62: Promenade dans les ocres | E62: 9 | F62: 15 | G62: 9 | H62: 0 | I62: 0 | J62: 33 | K62: 0 | L62: 82 | M62: 0 | O62: 0 | Q62: =COUNTIF('Classement auteurs'!B:B,C62) -> 1
A63: 13 | B63: 68 | C63: 132060001701 | D63: Pause café | E63: 11 | F63: 12 | G63: 14 | H63: 0 | I63: 0 | J63: 37 | K63: 0 | L63: 87 | M63: 0 | O63: 0 | Q63: =COUNTIF('Classement auteurs'!B:B,C63) -> 1
A64: 13 | B64: 69 | C64: 130878014101 | D64: Echoué | E64: 17 | F64: 20 | G64: 19 | H64: 0 | I64: 0 | J64: 56 | K64: 0 | L64: 26 | M64: 0 | O64: 0 | Q64: =COUNTIF('Classement auteurs'!B:B,C64) -> 1
A65: 13 | B65: 71 | C65: 131499009801 | D65: Mon beau miroir | E65: 13 | F65: 16 | G65: 13 | H65: 0 | I65: 0 | J65: 42 | K65: 0 | L65: 39 | M65: 0 | O65: 0 | Q65: =COUNTIF('Classement auteurs'!B:B,C65) -> 1
A66: 13 | B66: 72 | C66: 131499010401 | D66: Filets du petit matin | E66: 12 | F66: 15 | G66: 14 | H66: 0 | I66: 0 | J66: 41 | K66: 0 | L66: 76 | M66: 0 | O66: 0 | Q66: =COUNTIF('Classement auteurs'!B:B,C66) -> 1
A67: 13 | B67: 73 | C67: 132084003501 | D67: Le chemin des couleurs | E67: 11 | F67: 14 | G67: 13 | H67: 0 | I67: 0 | J67: =SUM(E67:I67) -> 38 | K67: 0 | L67: 113 | M67: 0 | O67: 0 | Q67: =COUNTIF('Classement auteurs'!B:B,C67) -> 1
A68: 13 | B68: 74 | C68: 131956001401 | D68: Virage Gondole | E68: 9 | F68: 14 | G68: 12 | H68: 0 | I68: 0 | J68: 35 | K68: 0 | L68: 9 | M68: 0 | O68: 0 | Q68: =COUNTIF('Classement auteurs'!B:B,C68) -> 1
A69: 13 | B69: 75 | C69: 131879000801 | D69: La fille au masque | E69: 11 | F69: 12 | G69: 13 | H69: 0 | I69: 0 | J69: 36 | K69: 0 | L69: 74 | M69: 0 | O69: 0 | Q69: =COUNTIF('Classement auteurs'!B:B,C69) -> 1
A70: 13 | B70: 76 | C70: 132023001701 | D70: Mongolfière | E70: 11 | F70: 14 | G70: 13 | H70: 0 | I70: 0 | J70: 38 | K70: 0 | L70: 141 | M70: 0 | O70: 0 | Q70: =COUNTIF('Classement auteurs'!B:B,C70) -> 1
A71: 13 | B71: 77 | C71: 131619004601 | D71: Pêche en Brenne | E71: 13 | F71: 17 | G71: 13 | H71: 0 | I71: 0 | J71: 43 | K71: 0 | L71: 146 | M71: 0 | O71: 0 | Q71: =COUNTIF('Classement auteurs'!B:B,C71) -> 1
A72: 13 | B72: 78 | C72: 132193000501 | D72: La Nuit du carrefour | E72: 13 | F72: 15 | G72: 13 | H72: 0 | I72: 0 | J72: 41 | K72: 0 | L72: 90 | M72: 0 | O72: 0 | Q72: =COUNTIF('Classement auteurs'!B:B,C72) -> 1
A73: 13 | B73: 79 | C73: 130000019901 | D73: Paris | E73: 9 | F73: 13 | G73: 15 | H73: 0 | I73: 0 | J73: 37 | K73: 0 | L73: 81 | M73: 6 | O73: 0 | Q73: =COUNTIF('Classement auteurs'!B:B,C73) -> 1
A74: 13 | B74: 80 | C74: 131499010101 | D74: Aurore | E74: 10 | F74: 12 | G74: 12 | H74: 0 | I74: 0 | J74: 34 | K74: 0 | L74: 136 | M74: 0 | O74: 0 | Q74: =COUNTIF('Classement auteurs'!B:B,C74) -> 1
A75: 13 | B75: 81 | C75: 132084003601 | D75: Voie en couleur | E75: 9 | F75: 14 | G75: 12 | H75: 0 | I75: 0 | J75: 35 | K75: 0 | L75: 119 | M75: 0 | O75: 0 | Q75: =COUNTIF('Classement auteurs'!B:B,C75) -> 1
A76: 13 | B76: 82 | C76: 131499010301 | D76: Face au large | E76: 19 | F76: 16 | G76: 15 | H76: 0 | I76: 0 | J76: 50 | K76: 0 | L76: 114 | M76: 0 | O76: 0 | Q76: =COUNTIF('Classement auteurs'!B:B,C76) -> 1
A77: 13 | B77: 83 | C77: 132193001201 | D77: Meton au lever de soleil | E77: 10 | F77: 13 | G77: 14 | H77: 0 | I77: 0 | J77: 37 | K77: 0 | L77: 129 | M77: 0 | O77: 0 | Q77: =COUNTIF('Classement auteurs'!B:B,C77) -> 1
A78: 13 | B78: 84 | C78: 131499010001 | D78: Olivia Ruiz aux Nuits du Sud | E78: 11 | F78: 15 | G78: 16 | H78: 0 | I78: 0 | J78: 42 | K78: 0 | L78: 48 | M78: 0 | O78: 0 | Q78: =COUNTIF('Classement auteurs'!B:B,C78) -> 1
A79: 13 | B79: 86 | C79: 130527015501 | D79: Couleurs | E79: 9 | F79: 12 | G79: 11 | H79: 0 | I79: 0 | J79: 32 | K79: 0 | L79: 162 | M79: 0 | O79: 0 | Q79: =COUNTIF('Classement auteurs'!B:B,C79) -> 1
A80: 13 | B80: 87 | C80: 130993014001 | D80: Le passage | E80: 11 | F80: 8 | G80: 12 | H80: 0 | I80: 0 | J80: 31 | K80: 0 | L80: 66 | M80: 0 | O80: 0 | Q80: =COUNTIF('Classement auteurs'!B:B,C80) -> 1
A81: 13 | B81: 88 | C81: 131353006101 | D81: Regard bleu | E81: 10 | F81: 14 | G81: 12 | H81: 0 | I81: 0 | J81: 36 | K81: 0 | L81: 15 | M81: 0 | O81: 0 | Q81: =COUNTIF('Classement auteurs'!B:B,C81) -> 1
A82: 13 | B82: 89 | C82: 131499008201 | D82: L'arrêt de bus | E82: 13 | F82: 17 | G82: 19 | H82: 0 | I82: 0 | J82: 49 | K82: 0 | L82: 140 | M82: 0 | O82: 0 | Q82: =COUNTIF('Classement auteurs'!B:B,C82) -> 1
A83: 13 | B83: 90 | C83: 131683006301 | D83: Blanc | E83: 16 | F83: 17 | G83: 12 | H83: 0 | I83: 0 | J83: 45 | K83: 0 | L83: 138 | M83: 0 | O83: 0 | Q83: =COUNTIF('Classement auteurs'!B:B,C83) -> 1
A84: 13 | B84: 91 | C84: 131353003001 | D84: Femme Nature | E84: 9 | F84: 16 | G84: 10 | H84: 0 | I84: 0 | J84: 35 | K84: 0 | L84: 28 | M84: 0 | O84: 0 | Q84: =COUNTIF('Classement auteurs'!B:B,C84) -> 1
A85: 13 | B85: 92 | C85: 131353007101 | D85: Bravo! | E85: 9 | F85: 15 | G85: 13 | H85: 0 | I85: 0 | J85: 37 | K85: 0 | L85: 2 | M85: 0 | O85: 0 | Q85: =COUNTIF('Classement auteurs'!B:B,C85) -> 1
A86: 13 | B86: 93 | C86: 131110000901 | D86: Le cycliste | E86: 16 | F86: 14 | G86: 11 | H86: 0 | I86: 0 | J86: 41 | K86: 0 | L86: 58 | M86: 0 | O86: 0 | Q86: =COUNTIF('Classement auteurs'!B:B,C86) -> 1
A87: 13 | B87: 94 | C87: 131499005201 | D87: Femme au chapeau | E87: 9 | F87: 17 | G87: 13 | H87: 0 | I87: 0 | J87: 39 | K87: 0 | L87: 94 | M87: 0 | O87: 0 | Q87: =COUNTIF('Classement auteurs'!B:B,C87) -> 1
A88: 13 | B88: 95 | C88: 131499003901 | D88: Campagne beaujolaise | E88: 19 | F88: 12 | G88: 8 | H88: 0 | I88: 0 | J88: 39 | K88: 0 | L88: 109 | M88: 0 | O88: 0 | Q88: =COUNTIF('Classement auteurs'!B:B,C88) -> 1
A89: 13 | B89: 96 | C89: 131879000901 | D89: Corvette | E89: 9 | F89: 8 | G89: 12 | H89: 0 | I89: 0 | J89: 29 | K89: 0 | L89: 126 | M89: 0 | O89: 0 | Q89: =COUNTIF('Classement auteurs'!B:B,C89) -> 1
A90: 13 | B90: 97 | C90: 131494000201 | D90: Voile 7 | E90: 16 | F90: 9 | G90: 12 | H90: 0 | I90: 0 | J90: 37 | K90: 0 | L90: 80 | M90: 0 | O90: 0 | Q90: =COUNTIF('Classement auteurs'!B:B,C90) -> 1
A91: 13 | B91: 98 | C91: 131683006601 | D91: Balade nocturne | E91: 14 | F91: 18 | G91: 17 | H91: 0 | I91: 0 | J91: 49 | K91: 0 | L91: 49 | M91: 0 | O91: 0 | Q91: =COUNTIF('Classement auteurs'!B:B,C91) -> 1
A92: 13 | B92: 99 | C92: 131353004301 | D92: Eventail | E92: 10 | F92: 7 | G92: 7 | H92: 0 | I92: 0 | J92: 24 | K92: 0 | L92: 59 | M92: 0 | O92: 0 | Q92: =COUNTIF('Classement auteurs'!B:B,C92) -> 1
A93: 13 | B93: 100 | C93: 131494002301 | D93: Dans le sable. | E93: 10 | F93: 16 | G93: 16 | H93: 0 | I93: 0 | J93: 42 | K93: 0 | L93: 13 | M93: 0 | O93: 0 | Q93: =COUNTIF('Classement auteurs'!B:B,C93) -> 1
A94: 13 | B94: 101 | C94: 132203000701 | D94: Le p'tit café! place Garibaldi..... | E94: 11 | F94: 15 | G94: 14 | H94: 0 | I94: 0 | J94: 40 | K94: 0 | L94: 45 | M94: 0 | O94: 0 | Q94: =COUNTIF('Classement auteurs'!B:B,C94) -> 1
A95: 13 | B95: 103 | C95: 130925009901 | D95: Exposition Universelle Milan | E95: 9 | F95: 15 | G95: 13 | H95: 0 | I95: 0 | J95: 37 | K95: 0 | L95: 56 | M95: 0 | O95: 0 | Q95: =COUNTIF('Classement auteurs'!B:B,C95) -> 1
A96: 13 | B96: 105 | C96: 131845003401 | D96: Et danse la peinture | E96: 11 | F96: 16 | G96: 13 | H96: 0 | I96: 0 | J96: 40 | K96: 0 | L96: 37 | M96: 0 | O96: 0 | Q96: =COUNTIF('Classement auteurs'!B:B,C96) -> 1
A97: 13 | B97: 106 | C97: 131376014701 | D97: Le père et l'enfant | E97: 14 | F97: 17 | G97: 13 | H97: 0 | I97: 0 | J97: 44 | K97: 0 | L97: 158 | M97: 0 | O97: 0 | Q97: =COUNTIF('Classement auteurs'!B:B,C97) -> 1
A98: 13 | B98: 107 | C98: 131956004601 | D98: Graphismes camarguais | E98: 10 | F98: 9 | G98: 8 | H98: 0 | I98: 0 | J98: 27 | K98: 0 | L98: 10 | M98: 0 | O98: 0 | Q98: =COUNTIF('Classement auteurs'!B:B,C98) -> 1
A99: 13 | B99: 108 | C99: 131956006101 | D99: Dans les nuages | E99: 14 | F99: 14 | G99: 14 | H99: 0 | I99: 0 | J99: 42 | K99: 0 | L99: 62 | M99: 0 | O99: 0 | Q99: =COUNTIF('Classement auteurs'!B:B,C99) -> 1
A100: 13 | B100: 109 | C100: 130462009601 | D100: Sticky Boys | E100: 13 | F100: 10 | G100: 12 | H100: 0 | I100: 0 | J100: 35 | K100: 0 | L100: 116 | M100: 0 | O100: 0 | Q100: =COUNTIF('Classement auteurs'!B:B,C100) -> 1
A101: 13 | B101: 110 | C101: 131899003801 | D101: Bord de mer | E101: 11 | F101: 13 | G101: 13 | H101: 0 | I101: 0 | J101: 37 | K101: 0 | L101: 53 | M101: 0 | O101: 0 | Q101: =COUNTIF('Classement auteurs'!B:B,C101) -> 1
A102: 13 | B102: 111 | C102: 131956006501 | D102: éclosion | E102: 11 | F102: 14 | G102: 11 | H102: 0 | I102: 0 | J102: 36 | K102: 0 | L102: 42 | M102: 0 | O102: 0 | Q102: =COUNTIF('Classement auteurs'!B:B,C102) -> 1
A103: 13 | B103: 112 | C103: 131683008001 | D103: Dans la chaleur des moteurs | E103: 16 | F103: 17 | G103: 19 | H103: 0 | I103: 0 | J103: 52 | K103: 0 | L103: 57 | M103: 0 | O103: 0 | Q103: =COUNTIF('Classement auteurs'!B:B,C103) -> 1
A104: 13 | B104: 113 | C104: 131845001101 | D104: L'insolite | E104: 11 | F104: 13 | G104: 8 | H104: 0 | I104: 0 | J104: 32 | K104: 0 | L104: 130 | M104: 0 | O104: 0 | Q104: =COUNTIF('Classement auteurs'!B:B,C104) -> 1
A105: 13 | B105: 114 | C105: 131619005001 | D105: Antilope Canyon | E105: 16 | F105: 17 | G105: 12 | H105: 0 | I105: 0 | J105: 45 | K105: 0 | L105: 89 | M105: 0 | O105: 0 | Q105: =COUNTIF('Classement auteurs'!B:B,C105) -> 1
A106: 13 | B106: 115 | C106: 132060000701 | D106: Beaubourg | E106: 11 | F106: 11 | G106: 14 | H106: 0 | I106: 0 | J106: 36 | K106: 0 | L106: 148 | M106: 0 | O106: 0 | Q106: =COUNTIF('Classement auteurs'!B:B,C106) -> 1
A107: 13 | B107: 116 | C107: 131683005101 | D107: Sérénité | E107: 19 | F107: 17 | G107: 13 | H107: 0 | I107: 0 | J107: 49 | K107: 0 | L107: 105 | M107: 0 | O107: 0 | Q107: =COUNTIF('Classement auteurs'!B:B,C107) -> 1
A108: 13 | B108: 117 | C108: 132060001201 | D108: Au delà du mur | E108: 9 | F108: 16 | G108: 14 | H108: 0 | I108: 0 | J108: 39 | K108: 0 | L108: 160 | M108: 0 | O108: 0 | Q108: =COUNTIF('Classement auteurs'!B:B,C108) -> 1
A109: 13 | B109: 118 | C109: 132086002601 | D109: Urban city | E109: 9 | F109: 15 | G109: 16 | H109: 0 | I109: 0 | J109: 40 | K109: 0 | L109: 142 | M109: 0 | O109: 0 | Q109: =COUNTIF('Classement auteurs'!B:B,C109) -> 1
A110: 13 | B110: 119 | C110: 131862002201 | D110: Randonnée | E110: 10 | F110: 15 | G110: 18 | H110: 0 | I110: 0 | J110: 43 | K110: 0 | L110: 83 | M110: 0 | O110: 0 | Q110: =COUNTIF('Classement auteurs'!B:B,C110) -> 1
A111: 13 | B111: 120 | C111: 130925009801 | D111: Prédicateur | E111: 10 | F111: 17 | G111: 13 | H111: 0 | I111: 0 | J111: 40 | K111: 0 | L111: 27 | M111: 0 | O111: 0 | Q111: =COUNTIF('Classement auteurs'!B:B,C111) -> 1
A112: 13 | B112: 121 | C112: 131956002401 | D112: Reflet du lac | E112: 17 | F112: 12 | G112: 14 | H112: 0 | I112: 0 | J112: 43 | K112: 0 | L112: 8 | M112: 0 | O112: 0 | Q112: =COUNTIF('Classement auteurs'!B:B,C112) -> 1
A113: 13 | B113: 122 | C113: 131845001401 | D113: St Cast en feu | E113: 12 | F113: 16 | G113: 15 | H113: 0 | I113: 0 | J113: 43 | K113: 0 | L113: 131 | M113: 0 | O113: 0 | Q113: =COUNTIF('Classement auteurs'!B:B,C113) -> 1
A114: 13 | B114: 123 | C114: 131956005901 | D114: Vers la tour | E114: 10 | F114: 15 | G114: 12 | H114: 0 | I114: 0 | J114: 37 | K114: 0 | L114: 55 | M114: 0 | O114: 0 | Q114: =COUNTIF('Classement auteurs'!B:B,C114) -> 1
A115: 13 | B115: 124 | C115: 131227008601 | D115: Le phare de Cassis | E115: 17 | F115: 14 | G115: 11 | H115: 0 | I115: 0 | J115: 42 | K115: 0 | L115: 23 | M115: 0 | O115: 0 | Q115: =COUNTIF('Classement auteurs'!B:B,C115) -> 1
A116: 13 | B116: 125 | C116: 131353006201 | D116: Plein champ | E116: 9 | F116: 16 | G116: 12 | H116: 0 | I116: 0 | J116: 37 | K116: 0 | L116: 132 | M116: 0 | O116: 0 | Q116: =COUNTIF('Classement auteurs'!B:B,C116) -> 1
A117: 13 | B117: 126 | C117: 131956004501 | D117: Le pont routier | E117: 13 | F117: 16 | G117: 10 | H117: 0 | I117: 0 | J117: 39 | K117: 0 | L117: 64 | M117: 0 | O117: 0 | Q117: =COUNTIF('Classement auteurs'!B:B,C117) -> 1
A118: 13 | B118: 127 | C118: 131353007401 | D118: 74_MG_Malecon Cuba.jpg | E118: 9 | F118: 16 | G118: 16 | H118: 0 | I118: 0 | J118: 41 | K118: 0 | L118: 36 | M118: 0 | O118: 0 | Q118: =COUNTIF('Classement auteurs'!B:B,C118) -> 1
A119: 13 | B119: 128 | C119: 130878013001 | D119: Voyage | E119: 9 | F119: 8 | G119: 9 | H119: 0 | I119: 0 | J119: 26 | K119: 0 | L119: 12 | M119: 0 | O119: 0 | Q119: =COUNTIF('Classement auteurs'!B:B,C119) -> 1
A120: 13 | B120: 129 | C120: 132086001401 | D120: Géometrie | E120: 10 | F120: 14 | G120: 10 | H120: 0 | I120: 0 | J120: 34 | K120: 0 | L120: 147 | M120: 0 | O120: 0 | Q120: =COUNTIF('Classement auteurs'!B:B,C120) -> 1
A121: 13 | B121: 130 | C121: 131353007301 | D121: 73_PG_Musicien Des Rues La Havane.jpg | E121: 10 | F121: 16 | G121: 12 | H121: 0 | I121: 0 | J121: 38 | K121: 0 | L121: 127 | M121: 0 | O121: 0 | Q121: =COUNTIF('Classement auteurs'!B:B,C121) -> 1
A122: 13 | B122: 131 | C122: 130987025001 | D122: Buren en couleur | E122: 12 | F122: 16 | G122: 12 | H122: 0 | I122: 0 | J122: 40 | K122: 0 | L122: 95 | M122: 0 | O122: 0 | Q122: =COUNTIF('Classement auteurs'!B:B,C122) -> 1
A123: 13 | B123: 132 | C123: 131956002601 | D123: Erosion | E123: 9 | F123: 13 | G123: 8 | H123: 0 | I123: 0 | J123: 30 | K123: 0 | L123: 34 | M123: 0 | O123: 0 | Q123: =COUNTIF('Classement auteurs'!B:B,C123) -> 1
A124: 13 | B124: 133 | C124: 130987023901 | D124: "Dream" | E124: 10 | F124: 9 | G124: 11 | H124: 0 | I124: 0 | J124: 30 | K124: 0 | L124: 6 | M124: 0 | O124: 0 | Q124: =COUNTIF('Classement auteurs'!B:B,C124) -> 1
A125: 13 | B125: 134 | C125: 130462001101 | D125: Etang du Lavalduc | E125: 14 | F125: 16 | G125: 13 | H125: 0 | I125: 0 | J125: 43 | K125: 0 | L125: 135 | M125: 0 | O125: 0 | Q125: =COUNTIF('Classement auteurs'!B:B,C125) -> 1
A126: 13 | B126: 135 | C126: 132089000101 | D126: Il va neiger dans le Var | E126: 10 | F126: 14 | G126: 12 | H126: 0 | I126: 0 | J126: 36 | K126: 0 | L126: 16 | M126: 0 | O126: 0 | Q126: =COUNTIF('Classement auteurs'!B:B,C126) -> 1
A127: 13 | B127: 136 | C127: 131845004001 | D127: Chantiers de la Seyne | E127: 16 | F127: 13 | G127: 12 | H127: 0 | I127: 0 | J127: 41 | K127: 0 | L127: 46 | M127: 0 | O127: 0 | Q127: =COUNTIF('Classement auteurs'!B:B,C127) -> 1
A128: 13 | B128: 137 | C128: 131619005301 | D128: Princess Street | E128: 16 | F128: 13 | G128: 14 | H128: 0 | I128: 0 | J128: 43 | K128: 0 | L128: 145 | M128: 0 | O128: 0 | Q128: =COUNTIF('Classement auteurs'!B:B,C128) -> 1
A129: 13 | B129: 138 | C129: 131956000201 | D129: Camaieu Camarguais | E129: 18 | F129: 10 | G129: 11 | H129: 0 | I129: 0 | J129: 39 | K129: 0 | L129: 108 | M129: 0 | O129: 0 | Q129: =COUNTIF('Classement auteurs'!B:B,C129) -> 1
A130: 13 | B130: 139 | C130: 130925008401 | D130: Spleen | E130: 14 | F130: 19 | G130: 18 | H130: 0 | I130: 0 | J130: 51 | K130: 0 | L130: 161 | M130: 0 | O130: 0 | Q130: =COUNTIF('Classement auteurs'!B:B,C130) -> 1
A131: 13 | B131: 140 | C131: 130925007701 | D131: Dans la brume | E131: 10 | F131: 13 | G131: 14 | H131: 0 | I131: 0 | J131: =SUM(E131:I131) -> 37 | K131: 0 | L131: 123 | M131: 0 | O131: 0 | Q131: =COUNTIF('Classement auteurs'!B:B,C131) -> 1
A132: 13 | B132: 141 | C132: 130987016601 | D132: Carla | E132: 10 | F132: 11 | G132: 9 | H132: 0 | I132: 0 | J132: 30 | K132: 0 | L132: 99 | M132: 0 | O132: 0 | Q132: =COUNTIF('Classement auteurs'!B:B,C132) -> 1
A133: 13 | B133: 142 | C133: 131845004101 | D133: Londres | E133: 9 | F133: 12 | G133: 15 | H133: 0 | I133: 0 | J133: 36 | K133: 0 | L133: 3 | M133: 0 | O133: 0 | Q133: =COUNTIF('Classement auteurs'!B:B,C133) -> 1
A134: 13 | B134: 143 | C134: 131499010601 | D134: Ocres | E134: 13 | F134: 12 | G134: 14 | H134: 0 | I134: 0 | J134: 39 | K134: 0 | L134: 125 | M134: 0 | O134: 0 | Q134: =COUNTIF('Classement auteurs'!B:B,C134) -> 1
A135: 13 | B135: 144 | C135: 131499010501 | D135: Selfie dans les lavandes | E135: 10 | F135: 13 | G135: 13 | H135: 0 | I135: 0 | J135: 36 | K135: 0 | L135: 50 | M135: 0 | O135: 0 | Q135: =COUNTIF('Classement auteurs'!B:B,C135) -> 1
A136: 13 | B136: 146 | C136: 131823004201 | D136: La fanfare | E136: 10 | F136: 13 | G136: 11 | H136: 0 | I136: 0 | J136: 34 | K136: 0 | L136: 93 | M136: 0 | O136: 0 | Q136: =COUNTIF('Classement auteurs'!B:B,C136) -> 1
A137: 13 | B137: 147 | C137: 131956005301 | D137: Bo-Kaap Maison au palmier | E137: 9 | F137: 14 | G137: 9 | H137: 0 | I137: 0 | J137: 32 | K137: 0 | L137: 84 | M137: 0 | O137: 0 | Q137: =COUNTIF('Classement auteurs'!B:B,C137) -> 1
A138: 13 | B138: 148 | C138: 131823006401 | D138: Le petit port | E138: 10 | F138: 13 | G138: 14 | H138: 0 | I138: 0 | J138: 37 | K138: 0 | L138: 121 | M138: 0 | O138: 0 | Q138: =COUNTIF('Classement auteurs'!B:B,C138) -> 1
A139: 13 | B139: 149 | C139: 131845000801 | D139: Sama Danse des Derviches Tourneurs | E139: 7 | F139: 15 | G139: 12 | H139: 0 | I139: 0 | J139: 34 | K139: 0 | L139: 24 | M139: 0 | O139: 0
A140: 13 | B140: 150 | C140: 131956000601 | D140: En cuisine! | E140: 12 | F140: 7 | G140: 8 | H140: 0 | I140: 0 | J140: 27 | K140: 0 | L140: 118 | M140: 0 | O140: 0
A141: 13 | B141: 151 | C141: 131845000101 | D141: Façade provençale | E141: 14 | F141: 15 | G141: 12 | H141: 0 | I141: 0 | J141: 41 | K141: 0 | L141: 51 | M141: 0 | O141: 0
A142: 13 | B142: 152 | C142: 131845000201 | D142: Dans le Panier | E142: 13 | F142: 13 | G142: 14 | H142: 0 | I142: 0 | J142: 40 | K142: 0 | L142: 60 | M142: 0 | O142: 0
A143: 13 | B143: 153 | C143: 131376000101 | D143: Précautions! | E143: 8 | F143: 15 | G143: 14 | H143: 0 | I143: 0 | J143: 37 | K143: 0 | L143: 43 | M143: 0 | O143: 0
A144: 13 | B144: 154 | C144: 131956005701 | D144: Matin calme à Pokhara | E144: 10 | F144: 15 | G144: 13 | H144: 0 | I144: 0 | J144: 38 | K144: 0 | L144: 19 | M144: 0 | O144: 0
A145: 13 | B145: 155 | C145: 131619004501 | D145: Sant' Angelo | E145: 12 | F145: 14 | G145: 11 | H145: 0 | I145: 0 | J145: 37 | K145: 0 | L145: 124 | M145: 0 | O145: 0
A146: 13 | B146: 156 | C146: 130987001601 | D146: Gerbera | E146: 14 | F146: 13 | G146: 10 | H146: 0 | I146: 0 | J146: 37 | K146: 0 | L146: 92 | M146: 0 | O146: 0
A147: 13 | B147: 157 | C147: 130925007601 | D147: Birmane | E147: 9 | F147: 20 | G147: 12 | H147: 0 | I147: 0 | J147: 41 | K147: 0 | L147: 85 | M147: 0 | O147: 0
A148: 13 | B148: 158 | C148: 131845002101 | D148: Mariage de l'eau et du feu | E148: 14 | F148: 18 | G148: 12 | H148: 0 | I148: 0 | J148: 44 | K148: 0 | L148: 52 | M148: 0 | O148: 0
A149: 13 | B149: 159 | C149: 132060000901 | D149: Un air de Noël | E149: 9 | F149: 10 | G149: 11 | H149: 0 | I149: 0 | J149: 30 | K149: 0 | L149: 163 | M149: 0 | O149: 0
A150: 13 | B150: 160 | C150: 130527009401 | D150: Terre de Sienne | E150: 18 | F150: 19 | G150: 14 | H150: 0 | I150: 0 | J150: 51 | K150: 0 | L150: 30 | M150: 0 | O150: 0
A151: 13 | B151: 161 | C151: 130527017001 | D151: L'art solitaire... | E151: 14 | F151: 17 | G151: 20 | H151: 0 | I151: 0 | J151: 51 | K151: 0 | L151: 29 | M151: 0 | O151: 0
A152: 13 | B152: 162 | C152: 130987002301 | D152: Moulin Sicilien | E152: 10 | F152: 11 | G152: 13 | H152: 0 | I152: 0 | J152: 34 | K152: 0 | L152: 122 | M152: 0 | O152: 0
A153: 13 | B153: 163 | C153: 132060000401 | D153: Solitaire | E153: 11 | F153: 16 | G153: 13 | H153: 0 | I153: 0 | J153: 40 | K153: 0 | L153: 102 | M153: 0 | O153: 0
A154: 13 | B154: 164 | C154: 131499003601 | D154: Les fruits du marché | E154: 16 | F154: 19 | G154: 15 | H154: 0 | I154: 0 | J154: 50 | K154: 0 | L154: 91 | M154: 0 | O154: 0
A155: 13 | B155: 165 | C155: 131499006901 | D155: Design | E155: 18 | F155: 14 | G155: 14 | H155: 0 | I155: 0 | J155: 46 | K155: 0 | L155: 1 | M155: 0 | O155: 0
A156: 13 | B156: 166 | C156: 131499010701 | D156: Vapeur d'arc en ciel | E156: 14 | F156: 7 | G156: 12 | H156: 0 | I156: 0 | J156: 33 | K156: 0 | L156: 103 | M156: 0 | O156: 0
A157: 13 | B157: 167 | C157: 131619004201 | D157: Les Goudes | E157: 12 | F157: 7 | G157: 15 | H157: 0 | I157: 0 | J157: 34 | K157: 0 | L157: 70 | M157: 0 | O157: 0
A158: 13 | B158: 168 | C158: 131619004801 | D158: La Lune | E158: 12 | F158: 8 | G158: 14 | H158: 0 | I158: 0 | J158: 34 | K158: 0 | L158: 117 | M158: 0 | O158: 0
A159: 13 | B159: 169 | C159: 130878015201 | D159: Du blanc à la couleur | E159: 14 | F159: 15 | G159: 13 | H159: 0 | I159: 0 | J159: 42 | K159: 0 | L159: 71 | M159: 0 | O159: 0
A160: 13 | B160: 170 | C160: 131499008601 | D160: Peint ta rue | E160: 12 | F160: 17 | G160: 12 | H160: 0 | I160: 0 | J160: 41 | K160: 0 | L160: 154 | M160: 0 | O160: 0
A161: 13 | B161: 171 | C161: 130987026701 | D161: Cabanons de Cabasson | E161: 10 | F161: 12 | G161: 18 | H161: 0 | I161: 0 | J161: 40 | K161: 0 | L161: 17 | M161: 0 | O161: 0
A162: 13 | B162: 172 | C162: 131110001001 | D162: Selfie | E162: 9 | F162: 14 | G162: 12 | H162: 0 | I162: 0 | J162: 35 | K162: 0 | L162: 152 | M162: 0 | O162: 0
A163: 13 | B163: 173 | C163: 132203001001 | D163: L'ocre en provence | E163: 13 | F163: 13 | G163: 9 | H163: 0 | I163: 0 | J163: 35 | K163: 0 | L163: 134 | M163: 0 | O163: 0
A164: 13 | B164: 174 | C164: 131353000701 | D164: Pierrot à la rose | E164: 11 | F164: 17 | G164: 13 | H164: 0 | I164: 0 | J164: 41 | K164: 0 | L164: 150 | M164: 0 | O164: 0
A165: 13 | B165: 175 | C165: 131353000101 | D165: Riomaggiore | E165: 18 | F165: 19 | G165: 20 | H165: 0 | I165: 0 | J165: 57 | K165: 0 | L165: 97 | M165: 0 | O165: 0

Sheet Défi-6
A1: colis | B1: photologic | C1: fichier | D1: titre | E1: note1 | F1: note2 | G1: note3 | H1: note4 | I1: note5 | J1: total | K1: place | L1: passage | M1: statut | N1: medaille | O1: retenue | Q1: 0=absent 1=présent | S1: fichier | T1: total
A2: 13 | B2: 76 | C2: 130000019901 | D2: Recueillement | E2: 13 | F2: 13 | G2: 15 | H2: 0 | I2: 0 | J2: 41 | K2: 0 | L2: 115 | M2: 6 | O2: 0 | Q2: =COUNTIF('Classement auteurs'!B:B,C2) -> 1 | S2: 130878015801 | T2: 49 | U2: =(MID(S2,3,4)*1) -> 878 | V2: 134 | W2: =IF($V2=VLOOKUP($U2,'Classement clubs'!$B$2:$K$52,8,FALSE),"OK","KO") -> OK
A3: 13 | B3: 50 | C3: 130000020401 | D3: Khiva - La Roue | E3: 13 | F3: 11 | G3: 13 | H3: 0 | I3: 0 | J3: 37 | K3: 0 | L3: 123 | M3: 6 | O3: 0 | Q3: =COUNTIF('Classement auteurs'!B:B,C3) -> 1 | S3: 130925007601 | T3: 44 | U3: 925 | V3: 130 | W3: =IF($V3=VLOOKUP($U3,'Classement clubs'!$B$2:$K$52,8,FALSE),"OK","KO") -> OK
A4: 13 | B4: 11 | C4: 130000021001 | D4: Un voyage à LONDRES | E4: 7 | F4: 6 | G4: 8 | H4: 0 | I4: 0 | J4: 21 | K4: 0 | L4: 137 | M4: 6 | O4: 0 | Q4: =COUNTIF('Classement auteurs'!B:B,C4) -> 1 | S4: 130987019701 | T4: 51 | U4: 987 | V4: 147 | W4: =IF($V4=VLOOKUP($U4,'Classement clubs'!$B$2:$K$52,8,FALSE),"OK","KO") -> OK
A5: 13 | B5: 41 | C5: 130462001101 | D5: Apres la pluie | E5: 18 | F5: 12 | G5: 15 | H5: 0 | I5: 0 | J5: 45 | K5: 0 | L5: 105 | M5: 0 | O5: 0 | Q5: =COUNTIF('Classement auteurs'!B:B,C5) -> 1 | S5: 130993013301 | T5: 47 | U5: 993 | V5: 131 | W5: =IF($V5=VLOOKUP($U5,'Classement clubs'!$B$2:$K$52,8,FALSE),"OK","KO") -> OK
A6: 13 | B6: 22 | C6: 130527009201 | D6: On partage ? | E6: 12 | F6: 13 | G6: 15 | H6: 0 | I6: 0 | J6: 40 | K6: 0 | L6: 123 | M6: 0 | O6: 0 | Q6: =COUNTIF('Classement auteurs'!B:B,C6) -> 1 | S6: 131110000901 | T6: 43 | U6: 1110 | V6: 126 | W6: =IF($V6=VLOOKUP($U6,'Classement clubs'!$B$2:$K$52,8,FALSE),"OK","KO") -> OK
A7: 13 | B7: 27 | C7: 130527012401 | D7: Milan | E7: 15 | F7: 17 | G7: 15 | H7: 0 | I7: 0 | J7: 47 | K7: 0 | L7: 128 | M7: 0 | O7: 0 | Q7: =COUNTIF('Classement auteurs'!B:B,C7) -> 1 | S7: 131353002601 | T7: 48 | U7: 1353 | V7: 135 | W7: =IF($V7=VLOOKUP($U7,'Classement clubs'!$B$2:$K$52,8,FALSE),"OK","KO") -> OK
A8: 13 | B8: 33 | C8: 130878007201 | D8: Abri multicolore | E8: 13 | F8: 8 | G8: 15 | H8: 0 | I8: 0 | J8: 36 | K8: 0 | L8: 57 | M8: 0 | O8: 0 | Q8: =COUNTIF('Classement auteurs'!B:B,C8) -> 1 | S8: 131376018301 | T8: 57 | U8: 1376 | V8: 146 | W8: =IF($V8=VLOOKUP($U8,'Classement clubs'!$B$2:$K$52,8,FALSE),"OK","KO") -> OK
A9: 13 | B9: 15 | C9: 130878013001 | D9: Perle de rose | E9: 11 | F9: 15 | G9: 15 | H9: 0 | I9: 0 | J9: 41 | K9: 0 | L9: 83 | M9: 0 | O9: 0 | Q9: =COUNTIF('Classement auteurs'!B:B,C9) -> 1 | S9: 131494003201 | T9: 39 | U9: 1494 | V9: 99 | W9: =IF($V9=VLOOKUP($U9,'Classement clubs'!$B$2:$K$52,8,FALSE),"OK","KO") -> OK
A10: 13 | B10: 6 | C10: 130878013301 | D10: Desert | E10: 11 | F10: 11 | G10: 14 | H10: 0 | I10: 0 | J10: 36 | K10: 0 | L10: 142 | M10: 0 | O10: 0 | Q10: =COUNTIF('Classement auteurs'!B:B,C10) -> 1 | S10: 131499008701 | T10: 44 | U10: 1499 | V10: 126 | W10: =IF($V10=VLOOKUP($U10,'Classement clubs'!$B$2:$K$52,8,FALSE),"OK","KO") -> OK
A11: 13 | B11: 32 | C11: 130878013401 | D11: Lady | E11: 8 | F11: 11 | G11: 11 | H11: 0 | I11: 0 | J11: 30 | K11: 0 | L11: 47 | M11: 0 | O11: 0 | Q11: =COUNTIF('Classement auteurs'!B:B,C11) -> 1 | S11: 131683006301 | T11: 57 | U11: 1683 | V11: 149 | W11: =IF($V11=VLOOKUP($U11,'Classement clubs'!$B$2:$K$52,8,FALSE),"OK","KO") -> OK
A12: 13 | B12: 69 | C12: 130878013601 | D12: L'enfant et le torri | E12: 12 | F12: 9 | G12: 13 | H12: 0 | I12: 0 | J12: 34 | K12: 0 | L12: 72 | M12: 0 | O12: 0 | Q12: =COUNTIF('Classement auteurs'!B:B,C12) -> 1 | S12: 131823004901 | T12: 43 | U12: 1823 | V12: 132 | W12: =IF($V12=VLOOKUP($U12,'Classement clubs'!$B$2:$K$52,8,FALSE),"OK","KO") -> OK
A13: 13 | B13: 42 | C13: 130878014101 | D13: Voilier echoué | E13: 15 | F13: 13 | G13: 16 | H13: 0 | I13: 0 | J13: 44 | K13: 0 | L13: 35 | M13: 0 | O13: 0 | Q13: =COUNTIF('Classement auteurs'!B:B,C13) -> 1 | S13: 131845000101 | T13: 42 | U13: 1845 | V13: 114 | W13: =IF($V13=VLOOKUP($U13,'Classement clubs'!$B$2:$K$52,8,FALSE),"OK","KO") -> OK
A14: 13 | B14: 38 | C14: 130878014301 | D14: La souffreuse | E14: 12 | F14: 12 | G14: 14 | H14: 0 | I14: 0 | J14: 38 | K14: 0 | L14: 131 | M14: 0 | O14: 0 | Q14: =COUNTIF('Classement auteurs'!B:B,C14) -> 1 | S14: 131862002201 | T14: 44 | U14: 1862 | V14: 117 | W14: =IF($V14=VLOOKUP($U14,'Classement clubs'!$B$2:$K$52,8,FALSE),"OK","KO") -> OK
A15: 13 | B15: 1 | C15: 130878015201 | D15: Je m'amuse | E15: 6 | F15: 6 | G15: 6 | H15: 0 | I15: 0 | J15: 18 | K15: 0 | L15: 37 | M15: 0 | O15: 0 | Q15: =COUNTIF('Classement auteurs'!B:B,C15) -> 1 | S15: 131879000801 | T15: 58 | U15: 1879 | V15: 147 | W15: =IF($V15=VLOOKUP($U15,'Classement clubs'!$B$2:$K$52,8,FALSE),"OK","KO") -> OK
A16: 13 | B16: 26 | C16: 130878015801 | D16: Laveur d'Affiche | E16: 18 | F16: 13 | G16: 18 | H16: 0 | I16: 0 | J16: 49 | K16: 0 | L16: 32 | M16: 0 | O16: 0 | Q16: =COUNTIF('Classement auteurs'!B:B,C16) -> 1 | S16: 131956004601 | T16: 47 | U16: 1956 | V16: 129 | W16: =IF($V16=VLOOKUP($U16,'Classement clubs'!$B$2:$K$52,8,FALSE),"OK","KO") -> OK
A17: 13 | B17: 71 | C17: 130925007601 | D17: Famille Himba | E17: 14 | F17: 13 | G17: 17 | H17: 0 | I17: 0 | J17: 44 | K17: 0 | L17: 45 | M17: 0 | O17: 0 | Q17: =COUNTIF('Classement auteurs'!B:B,C17) -> 1 | S17: 132060000101 | T17: 34 | U17: 2060 | V17: 117 | W17: =IF($V17=VLOOKUP($U17,'Classement clubs'!$B$2:$K$52,8,FALSE),"OK","KO") -> OK
A18: 13 | B18: 72 | C18: 130925007701 | D18: Regards d'enfants | E18: 14 | F18: 17 | G18: 19 | H18: 0 | I18: 0 | J18: 50 | K18: 0 | L18: 119 | M18: 0 | O18: 0 | Q18: =COUNTIF('Classement auteurs'!B:B,C18) -> 1 | S18: 132084003601 | T18: 55 | U18: 2084 | V18: 154 | W18: =IF($V18=VLOOKUP($U18,'Classement clubs'!$B$2:$K$52,8,FALSE),"OK","KO") -> OK
A19: 13 | B19: 68 | C19: 130925008601 | D19: Amerique | E19: 13 | F19: 7 | G19: 16 | H19: 0 | I19: 0 | J19: 36 | K19: 0 | L19: 85 | M19: 0 | O19: 0 | Q19: =COUNTIF('Classement auteurs'!B:B,C19) -> 1 | S19: 132193000301 | T19: 48 | U19: 2193 | V19: 129 | W19: =IF($V19=VLOOKUP($U19,'Classement clubs'!$B$2:$K$52,8,FALSE),"OK","KO") -> OK
A20: 13 | B20: 49 | C20: 130925009801 | D20: Shanghai | E20: 12 | F20: 10 | G20: 14 | H20: 0 | I20: 0 | J20: 36 | K20: 0 | L20: 11 | M20: 0 | O20: 0 | Q20: =COUNTIF('Classement auteurs'!B:B,C20) -> 1
A21: 13 | B21: 40 | C21: 130925010201 | D21: Arles | E21: 10 | F21: 11 | G21: 10 | H21: 0 | I21: 0 | J21: 31 | K21: 0 | L21: 15 | M21: 0 | O21: 0 | Q21: =COUNTIF('Classement auteurs'!B:B,C21) -> 1
A22: 13 | B22: 36 | C22: 130987007401 | D22: Orage imminent | E22: 10 | F22: 15 | G22: 12 | H22: 0 | I22: 0 | J22: 37 | K22: 0 | L22: 41 | M22: 0 | O22: 0 | Q22: =COUNTIF('Classement auteurs'!B:B,C22) -> 1
A23: 13 | B23: 4 | C23: 130987012601 | D23: Répétition. | E23: 14 | F23: 15 | G23: 13 | H23: 0 | I23: 0 | J23: 42 | K23: 0 | L23: 149 | M23: 0 | O23: 0 | Q23: =COUNTIF('Classement auteurs'!B:B,C23) -> 1
A24: 13 | B24: 12 | C24: 130987013801 | D24: Lever de soleil après la pluie | E24: 14 | F24: 15 | G24: 13 | H24: 0 | I24: 0 | J24: 42 | K24: 0 | L24: 73 | M24: 0 | O24: 0 | Q24: =COUNTIF('Classement auteurs'!B:B,C24) -> 1
A25: 13 | B25: 37 | C25: 130987014001 | D25: Le coeur dans les nuages | E25: 14 | F25: 15 | G25: 19 | H25: 0 | I25: 0 | J25: 48 | K25: 0 | L25: 61 | M25: 0 | O25: 0 | Q25: =COUNTIF('Classement auteurs'!B:B,C25) -> 1
A26: 13 | B26: 4 | C26: 130987015701 | D26: Rêve de Mérous | E26: 14 | F26: 17 | G26: 17 | H26: 0 | I26: 0 | J26: 48 | K26: 0 | L26: 109 | M26: 0 | O26: 0 | Q26: =COUNTIF('Classement auteurs'!B:B,C26) -> 1
A27: 13 | B27: 23 | C27: 130987016601 | D27: Lac guichard | E27: 13 | F27: 12 | G27: 13 | H27: 0 | I27: 0 | J27: 38 | K27: 0 | L27: 106 | M27: 0 | O27: 0 | Q27: =COUNTIF('Classement auteurs'!B:B,C27) -> 1
A28: 13 | B28: 31 | C28: 130987019601 | D28: Fraîcheur | E28: 12 | F28: 14 | G28: 13 | H28: 0 | I28: 0 | J28: 39 | K28: 0 | L28: 1 | M28: 0 | O28: 0 | Q28: =COUNTIF('Classement auteurs'!B:B,C28) -> 1
A29: 13 | B29: 32 | C29: 130987019701 | D29: Sommet | E29: 15 | F29: 16 | G29: 20 | H29: 0 | I29: 0 | J29: 51 | K29: 0 | L29: 54 | M29: 0 | O29: 0 | Q29: =COUNTIF('Classement auteurs'!B:B,C29) -> 1
A30: 13 | B30: 24 | C30: 130987024001 | D30: Dorures d'autonne | E30: 16 | F30: 15 | G30: 15 | H30: 0 | I30: 0 | J30: 46 | K30: 0 | L30: 42 | M30: 0 | O30: 0 | Q30: =COUNTIF('Classement auteurs'!B:B,C30) -> 1
A31: 13 | B31: 1 | C31: 130987024201 | D31: Cracheur de Feu | E31: 17 | F31: 18 | G31: 13 | H31: 0 | I31: 0 | J31: 48 | K31: 0 | L31: 50 | M31: 0 | O31: 0 | Q31: =COUNTIF('Classement auteurs'!B:B,C31) -> 1
A32: 13 | B32: 7 | C32: 130987028201 | D32: Water selfie | E32: 13 | F32: 14 | G32: 15 | H32: 0 | I32: 0 | J32: 42 | K32: 0 | L32: 117 | M32: 0 | O32: 0 | Q32: =COUNTIF('Classement auteurs'!B:B,C32) -> 1
A33: 13 | B33: 16 | C33: 130987028401 | D33: Au bout... de la Presqu'île | E33: 11 | F33: 14 | G33: 11 | H33: 0 | I33: 0 | J33: 36 | K33: 0 | L33: 65 | M33: 0 | O33: 0 | Q33: =COUNTIF('Classement auteurs'!B:B,C33) -> 1
A34: 13 | B34: 42 | C34: 130987028801 | D34: Feu Art | E34: 11 | F34: 10 | G34: 15 | H34: 0 | I34: 0 | J34: 36 | K34: 0 | L34: 113 | M34: 0 | O34: 0 | Q34: =COUNTIF('Classement auteurs'!B:B,C34) -> 1
A35: 13 | B35: 12 | C35: 130987029901 | D35: Rodin.jpg | E35: 9 | F35: 11 | G35: 11 | H35: 0 | I35: 0 | J35: 31 | K35: 0 | L35: 113 | M35: 0 | O35: 0 | Q35: =COUNTIF('Classement auteurs'!B:B,C35) -> 1
A36: 13 | B36: 10 | C36: 130987030301 | D36: Coquelicot du Lot | E36: 10 | F36: 10 | G36: 6 | H36: 0 | I36: 0 | J36: 26 | K36: 0 | L36: 141 | M36: 0 | O36: 0 | Q36: =COUNTIF('Classement auteurs'!B:B,C36) -> 1
A37: 13 | B37: 14 | C37: 130993012301 | D37: Flamenco | E37: 13 | F37: 13 | G37: 15 | H37: 0 | I37: 0 | J37: 41 | K37: 0 | L37: 106 | M37: 0 | O37: 0 | Q37: =COUNTIF('Classement auteurs'!B:B,C37) -> 1
A38: 13 | B38: 20 | C38: 130993013301 | D38: Le repas du Rollier | E38: 14 | F38: 17 | G38: 16 | H38: 0 | I38: 0 | J38: 47 | K38: 0 | L38: 34 | M38: 0 | O38: 0 | Q38: =COUNTIF('Classement auteurs'!B:B,C38) -> 1
A39: 13 | B39: 22 | C39: 130993013801 | D39: Promeneur du soir | E39: 13 | F39: 14 | G39: 11 | H39: 0 | I39: 0 | J39: 38 | K39: 0 | L39: 110 | M39: 0 | O39: 0 | Q39: =COUNTIF('Classement auteurs'!B:B,C39) -> 1
A40: 13 | B40: 14 | C40: 130993015101 | D40: En suspension | E40: 14 | F40: 16 | G40: 13 | H40: 0 | I40: 0 | J40: 43 | K40: 0 | L40: 9 | M40: 0 | O40: 0 | Q40: =COUNTIF('Classement auteurs'!B:B,C40) -> 1
A41: 13 | B41: 35 | C41: 130993015401 | D41: La cabanne du peuchère | E41: 9 | F41: 11 | G41: 11 | H41: 0 | I41: 0 | J41: 31 | K41: 0 | L41: 63 | M41: 0 | O41: 0 | Q41: =COUNTIF('Classement auteurs'!B:B,C41) -> 1
A42: 13 | B42: 56 | C42: 130993016501 | D42: Reflet_Asie | E42: 13 | F42: 12 | G42: 10 | H42: 0 | I42: 0 | J42: 35 | K42: 0 | L42: 31 | M42: 0 | O42: 0 | Q42: =COUNTIF('Classement auteurs'!B:B,C42) -> 1
A43: 13 | B43: 38 | C43: 131110000901 | D43: Rosée | E43: 16 | F43: 12 | G43: 15 | H43: 0 | I43: 0 | J43: 43 | K43: 0 | L43: 22 | M43: 0 | O43: 0 | Q43: =COUNTIF('Classement auteurs'!B:B,C43) -> 1
A44: 13 | B44: 5 | C44: 131110001001 | D44: Quietude | E44: 15 | F44: 14 | G44: 18 | H44: 0 | I44: 0 | J44: 47 | K44: 0 | L44: 71 | M44: 0 | O44: 0 | Q44: =COUNTIF('Classement auteurs'!B:B,C44) -> 1
A45: 13 | B45: 39 | C45: 131110001101 | D45: Fleur sauvage | E45: 13 | F45: 14 | G45: 9 | H45: 0 | I45: 0 | J45: 36 | K45: 0 | L45: 113 | M45: 0 | O45: 0 | Q45: =COUNTIF('Classement auteurs'!B:B,C45) -> 1
A46: 13 | B46: 41 | C46: 131227008601 | D46: Après la pluie | E46: 20 | F46: 17 | G46: 16 | H46: 0 | I46: 0 | J46: 53 | K46: 0 | L46: 2 | M46: 0 | O46: 0 | Q46: =COUNTIF('Classement auteurs'!B:B,C46) -> 1
A47: 13 | B47: 35 | C47: 131353000201 | D47: Butinage | E47: 12 | F47: 13 | G47: 11 | H47: 0 | I47: 0 | J47: 36 | K47: 0 | L47: 1 | M47: 0 | O47: 0 | Q47: =COUNTIF('Classement auteurs'!B:B,C47) -> 1
A48: 13 | B48: 33 | C48: 131353002601 | D48: Chambley 1 | E48: 15 | F48: 16 | G48: 17 | H48: 0 | I48: 0 | J48: 48 | K48: 0 | L48: 116 | M48: 0 | O48: 0 | Q48: =COUNTIF('Classement auteurs'!B:B,C48) -> 1
A49: 13 | B49: 62 | C49: 131353003001 | D49: Regard de l'inconnue | E49: 12 | F49: 6 | G49: 12 | H49: 0 | I49: 0 | J49: 30 | K49: 0 | L49: 48 | M49: 0 | O49: 0 | Q49: =COUNTIF('Classement auteurs'!B:B,C49) -> 1
A50: 13 | B50: 43 | C50: 131353004301 | D50: Jeune Cigale | E50: 16 | F50: 16 | G50: 15 | H50: 0 | I50: 0 | J50: 47 | K50: 0 | L50: 46 | M50: 0 | O50: 0 | Q50: =COUNTIF('Classement auteurs'!B:B,C50) -> 1
A51: 13 | B51: 33 | C51: 131353006101 | D51: Mains d'Argile | E51: 15 | F51: 11 | G51: 10 | H51: 0 | I51: 0 | J51: 36 | K51: 0 | L51: 63 | M51: 0 | O51: 0 | Q51: =COUNTIF('Classement auteurs'!B:B,C51) -> 1
A52: 13 | B52: 60 | C52: 131353007301 | D52: LAGUNA COLORADA BOLIVIE | E52: 14 | F52: 11 | G52: 15 | H52: 0 | I52: 0 | J52: 40 | K52: 0 | L52: 37 | M52: 0 | O52: 0 | Q52: =COUNTIF('Classement auteurs'!B:B,C52) -> 1
A53: 13 | B53: 21 | C53: 131376011801 | D53: Moines du Djokang | E53: 13 | F53: 18 | G53: 15 | H53: 0 | I53: 0 | J53: 46 | K53: 0 | L53: 111 | M53: 0 | O53: 0 | Q53: =COUNTIF('Classement auteurs'!B:B,C53) -> 1
A54: 13 | B54: 18 | C54: 131376012601 | D54: Jour de neige | E54: 14 | F54: 14 | G54: 6 | H54: 0 | I54: 0 | J54: 34 | K54: 0 | L54: 22 | M54: 0 | O54: 0 | Q54: =COUNTIF('Classement auteurs'!B:B,C54) -> 1
A55: 13 | B55: 44 | C55: 131376014701 | D55: Enfant sous la pluie | E55: 14 | F55: 13 | G55: 16 | H55: 0 | I55: 0 | J55: 43 | K55: 0 | L55: 75 | M55: 0 | O55: 0 | Q55: =COUNTIF('Classement auteurs'!B:B,C55) -> 1
A56: 13 | B56: 17 | C56: 131376017601 | D56: Ombre chinoise | E56: 13 | F56: 10 | G56: 12 | H56: 0 | I56: 0 | J56: 35 | K56: 0 | L56: 107 | M56: 0 | O56: 0 | Q56: =COUNTIF('Classement auteurs'!B:B,C56) -> 1
A57: 13 | B57: 30 | C57: 131376017701 | D57: Solaire | E57: 6 | F57: 6 | G57: 6 | H57: 0 | I57: 0 | J57: 18 | K57: 0 | L57: 94 | M57: 0 | O57: 0 | Q57: =COUNTIF('Classement auteurs'!B:B,C57) -> 1
A58: 13 | B58: 5 | C58: 131376018301 | D58: La poursuite | E58: 19 | F58: 18 | G58: 20 | H58: 0 | I58: 0 | J58: 57 | K58: 0 | L58: 132 | M58: 0 | O58: 0 | Q58: =COUNTIF('Classement auteurs'!B:B,C58) -> 1
A59: 13 | B59: 18 | C59: 131494000201 | D59: Envol | E59: 10 | F59: 11 | G59: 14 | H59: 0 | I59: 0 | J59: 35 | K59: 0 | L59: 6 | M59: 0 | O59: 0 | Q59: =COUNTIF('Classement auteurs'!B:B,C59) -> 1
A60: 13 | B60: 42 | C60: 131494002101 | D60: Atterrissage | E60: 9 | F60: 9 | G60: 7 | H60: 0 | I60: 0 | J60: 25 | K60: 0 | L60: 90 | M60: 0 | O60: 0 | Q60: =COUNTIF('Classement auteurs'!B:B,C60) -> 1
A61: 13 | B61: 1 | C61: 131494003001 | D61: Reflet nocturne | E61: 10 | F61: 7 | G61: 7 | H61: 0 | I61: 0 | J61: 24 | K61: 0 | L61: 120 | M61: 0 | O61: 0 | Q61: =COUNTIF('Classement auteurs'!B:B,C61) -> 1
A62: 13 | B62: 10 | C62: 131494003201 | D62: Jeans | E62: 15 | F62: 13 | G62: 11 | H62: 0 | I62: 0 | J62: 39 | K62: 0 | L62: 64 | M62: 0 | O62: 0 | Q62: =COUNTIF('Classement auteurs'!B:B,C62) -> 1
A63: 13 | B63: 45 | C63: 131499005201 | D63: Pizzaiolo | E63: 11 | F63: 7 | G63: 13 | H63: 0 | I63: 0 | J63: 31 | K63: 0 | L63: 46 | M63: 0 | O63: 0 | Q63: =COUNTIF('Classement auteurs'!B:B,C63) -> 1
A64: 13 | B64: 28 | C64: 131499006801 | D64: Fauteuil Rouge | E64: 8 | F64: 15 | G64: 19 | H64: 0 | I64: 0 | J64: 42 | K64: 0 | L64: 67 | M64: 0 | O64: 0 | Q64: =COUNTIF('Classement auteurs'!B:B,C64) -> 1
A65: 13 | B65: 38 | C65: 131499008601 | D65: Il potassait... | E65: 14 | F65: 11 | G65: 15 | H65: 0 | I65: 0 | J65: 40 | K65: 0 | L65: 159 | M65: 0 | O65: 0 | Q65: =COUNTIF('Classement auteurs'!B:B,C65) -> 1
A66: 13 | B66: 14 | C66: 131499008701 | D66: Geisha | E66: 15 | F66: 14 | G66: 15 | H66: 0 | I66: 0 | J66: 44 | K66: 0 | L66: 43 | M66: 0 | O66: 0 | Q66: =COUNTIF('Classement auteurs'!B:B,C66) -> 1
A67: 13 | B67: 30 | C67: 131499009301 | D67: Les parasols | E67: 11 | F67: 11 | G67: 13 | H67: 0 | I67: 0 | J67: 35 | K67: 0 | L67: 96 | M67: 0 | O67: 0 | Q67: =COUNTIF('Classement auteurs'!B:B,C67) -> 1
A68: 13 | B68: 34 | C68: 131499009801 | D68: Bella musica | E68: 13 | F68: 10 | G68: 12 | H68: 0 | I68: 0 | J68: 35 | K68: 0 | L68: 82 | M68: 0 | O68: 0 | Q68: =COUNTIF('Classement auteurs'!B:B,C68) -> 1
A69: 13 | B69: 64 | C69: 131619005001 | D69: Regard sur le haut atlas | E69: 11 | F69: 15 | G69: 13 | H69: 0 | I69: 0 | J69: 39 | K69: 0 | L69: 77 | M69: 0 | O69: 0 | Q69: =COUNTIF('Classement auteurs'!B:B,C69) -> 1
A70: 13 | B70: 28 | C70: 131683000701 | D70: MARIE | E70: 18 | F70: 13 | G70: 17 | H70: 0 | I70: 0 | J70: 48 | K70: 0 | L70: 40 | M70: 0 | O70: 0 | Q70: =COUNTIF('Classement auteurs'!B:B,C70) -> 1
A71: 13 | B71: 24 | C71: 131683005101 | D71: HERON | E71: 15 | F71: 15 | G71: 14 | H71: 0 | I71: 0 | J71: 44 | K71: 0 | L71: 42 | M71: 0 | O71: 0 | Q71: =COUNTIF('Classement auteurs'!B:B,C71) -> 1
A72: 13 | B72: 35 | C72: 131683006301 | D72: Avant l'orage | E72: 18 | F72: 19 | G72: 20 | H72: 0 | I72: 0 | J72: 57 | K72: 0 | L72: 93 | M72: 0 | O72: 0 | Q72: =COUNTIF('Classement auteurs'!B:B,C72) -> 1
A73: 13 | B73: 34 | C73: 131683007001 | D73: Ordre décroissant | E73: 9 | F73: 14 | G73: 10 | H73: 0 | I73: 0 | J73: 33 | K73: 0 | L73: 157 | M73: 0 | O73: 0 | Q73: =COUNTIF('Classement auteurs'!B:B,C73) -> 1
A74: 13 | B74: 9 | C74: 131683008101 | D74: Lola | E74: 14 | F74: 14 | G74: 15 | H74: 0 | I74: 0 | J74: 43 | K74: 0 | L74: 69 | M74: 0 | O74: 0 | Q74: =COUNTIF('Classement auteurs'!B:B,C74) -> 1
A75: 13 | B75: 14 | C75: 131823004901 | D75: Ça chauffe | E75: 14 | F75: 16 | G75: 13 | H75: 0 | I75: 0 | J75: 43 | K75: 0 | L75: 48 | M75: 0 | O75: 0 | Q75: =COUNTIF('Classement auteurs'!B:B,C75) -> 1
A76: 13 | B76: 8 | C76: 131823008301 | D76: Portrait de rue | E76: 16 | F76: 18 | G76: 14 | H76: 0 | I76: 0 | J76: 48 | K76: 0 | L76: 12 | M76: 0 | O76: 0 | Q76: =COUNTIF('Classement auteurs'!B:B,C76) -> 1
A77: 13 | B77: 67 | C77: 131823008701 | D77: école en Sulawesi | E77: 12 | F77: 13 | G77: 16 | H77: 0 | I77: 0 | J77: 41 | K77: 0 | L77: 97 | M77: 0 | O77: 0 | Q77: =COUNTIF('Classement auteurs'!B:B,C77) -> 1
A78: 13 | B78: 45 | C78: 131824001901 | D78: Juste une éclaircie | E78: 20 | F78: 14 | G78: 18 | H78: 0 | I78: 0 | J78: 52 | K78: 0 | L78: 126 | M78: 0 | O78: 0 | Q78: =COUNTIF('Classement auteurs'!B:B,C78) -> 1
A79: 13 | B79: 30 | C79: 131824003101 | D79: Ice attack | E79: 12 | F79: 13 | G79: 17 | H79: 0 | I79: 0 | J79: 42 | K79: 0 | L79: 89 | M79: 0 | O79: 0 | Q79: =COUNTIF('Classement auteurs'!B:B,C79) -> 1
A80: 13 | B80: 6 | C80: 131845000101 | D80: Skate Park | E80: 12 | F80: 12 | G80: 18 | H80: 0 | I80: 0 | J80: 42 | K80: 0 | L80: 132 | M80: 0 | O80: 0 | Q80: =COUNTIF('Classement auteurs'!B:B,C80) -> 1
A81: 13 | B81: 32 | C81: 131845000201 | D81: Au vol | E81: 6 | F81: 6 | G81: 6 | H81: 0 | I81: 0 | J81: 18 | K81: 0 | L81: 53 | M81: 0 | O81: 0 | Q81: =COUNTIF('Classement auteurs'!B:B,C81) -> 1
A82: 13 | B82: 10 | C82: 131845000301 | D82: Variation d'ocres | E82: 9 | F82: 13 | G82: 14 | H82: 0 | I82: 0 | J82: 36 | K82: 0 | L82: 53 | M82: 0 | O82: 0 | Q82: =COUNTIF('Classement auteurs'!B:B,C82) -> 1
A83: 13 | B83: 5 | C83: 131845000801 | D83: Le soleil se lève | E83: 13 | F83: 12 | G83: 11 | H83: 0 | I83: 0 | J83: 36 | K83: 0 | L83: 136 | M83: 0 | O83: 0 | Q83: =COUNTIF('Classement auteurs'!B:B,C83) -> 1
A84: 13 | B84: 1 | C84: 131845003401 | D84: Avant la régate | E84: 9 | F84: 7 | G84: 12 | H84: 0 | I84: 0 | J84: 28 | K84: 0 | L84: 31 | M84: 0 | O84: 0 | Q84: =COUNTIF('Classement auteurs'!B:B,C84) -> 1
A85: 13 | B85: 70 | C85: 131845004001 | D85: VIETAMIENNE | E85: 11 | F85: 9 | G85: 13 | H85: 0 | I85: 0 | J85: 33 | K85: 0 | L85: 66 | M85: 0 | O85: 0 | Q85: =COUNTIF('Classement auteurs'!B:B,C85) -> 1
A86: 13 | B86: 74 | C86: 131862000801 | D86: Le Chat du Rabin | E86: 11 | F86: 6 | G86: 7 | H86: 0 | I86: 0 | J86: 24 | K86: 0 | L86: 78 | M86: 0 | O86: 0 | Q86: =COUNTIF('Classement auteurs'!B:B,C86) -> 1
A87: 13 | B87: 57 | C87: 131862001001 | D87: Petite Vietnamienne | E87: 12 | F87: 12 | G87: 15 | H87: 0 | I87: 0 | J87: 39 | K87: 0 | L87: 139 | M87: 0 | O87: 0 | Q87: =COUNTIF('Classement auteurs'!B:B,C87) -> 1
A88: 13 | B88: 25 | C88: 131862002201 | D88: Les fiancés | E88: 18 | F88: 12 | G88: 14 | H88: 0 | I88: 0 | J88: 44 | K88: 0 | L88: 144 | M88: 0 | O88: 0 | Q88: =COUNTIF('Classement auteurs'!B:B,C88) -> 1
A89: 13 | B89: 83 | C89: 131862005801 | D89: Suivez mon regard | E89: 11 | F89: 11 | G89: 12 | H89: 0 | I89: 0 | J89: 34 | K89: 0 | L89: 52 | M89: 0 | O89: 0 | Q89: =COUNTIF('Classement auteurs'!B:B,C89) -> 1
A90: 13 | B90: 22 | C90: 131879000101 | D90: Tangueros | E90: 12 | F90: 16 | G90: 13 | H90: 0 | I90: 0 | J90: 41 | K90: 0 | L90: 67 | M90: 0 | O90: 0 | Q90: =COUNTIF('Classement auteurs'!B:B,C90) -> 1
A91: 13 | B91: 4 | C91: 131879000501 | D91: Calin | E91: 14 | F91: 13 | G91: 14 | H91: 0 | I91: 0 | J91: 41 | K91: 0 | L91: 89 | M91: 0 | O91: 0 | Q91: =COUNTIF('Classement auteurs'!B:B,C91) -> 1
A92: 13 | B92: 21 | C92: 131879000601 | D92: Hong Kong la nuit | E92: 15 | F92: 17 | G92: 15 | H92: 0 | I92: 0 | J92: 47 | K92: 0 | L92: 4 | M92: 0 | O92: 0 | Q92: =COUNTIF('Classement auteurs'!B:B,C92) -> 1
A93: 13 | B93: 29 | C93: 131879000801 | D93: Harmonie | E93: 19 | F93: 19 | G93: 20 | H93: 0 | I93: 0 | J93: 58 | K93: 0 | L93: 99 | M93: 0 | O93: 0 | Q93: =COUNTIF('Classement auteurs'!B:B,C93) -> 1
A94: 13 | B94: 31 | C94: 131879001101 | D94: Couleurs d'automne | E94: 13 | F94: 13 | G94: 12 | H94: 0 | I94: 0 | J94: 38 | K94: 0 | L94: 128 | M94: 0 | O94: 0 | Q94: =COUNTIF('Classement auteurs'!B:B,C94) -> 1
A95: 13 | B95: 40 | C95: 131879001301 | D95: Regard | E95: 18 | F95: 14 | G95: 10 | H95: 0 | I95: 0 | J95: 42 | K95: 0 | L95: 38 | M95: 0 | O95: 0 | Q95: =COUNTIF('Classement auteurs'!B:B,C95) -> 1
A96: 13 | B96: 39 | C96: 131879002001 | D96: Procession | E96: 12 | F96: 13 | G96: 13 | H96: 0 | I96: 0 | J96: 38 | K96: 0 | L96: 20 | M96: 0 | O96: 0 | Q96: =COUNTIF('Classement auteurs'!B:B,C96) -> 1
A97: 13 | B97: 80 | C97: 131956001401 | D97: Regard Colombien | E97: 11 | F97: 10 | G97: 11 | H97: 0 | I97: 0 | J97: 32 | K97: 0 | L97: 134 | M97: 0 | O97: 0 | Q97: =COUNTIF('Classement auteurs'!B:B,C97) -> 1
A98: 13 | B98: 66 | C98: 131956002601 | D98: Berlin | E98: 14 | F98: 14 | G98: 16 | H98: 0 | I98: 0 | J98: 44 | K98: 0 | L98: 68 | M98: 0 | O98: 0 | Q98: =COUNTIF('Classement auteurs'!B:B,C98) -> 1
A99: 13 | B99: 19 | C99: 131956002901 | D99: Regard | E99: 7 | F99: 10 | G99: 11 | H99: 0 | I99: 0 | J99: 28 | K99: 0 | L99: 61 | M99: 0 | O99: 0 | Q99: =COUNTIF('Classement auteurs'!B:B,C99) -> 1
A100: 13 | B100: 52 | C100: 131956003401 | D100: Regard de la foret | E100: 11 | F100: 6 | G100: 7 | H100: 0 | I100: 0 | J100: 24 | K100: 0 | L100: 56 | M100: 0 | O100: 0 | Q100: =COUNTIF('Classement auteurs'!B:B,C100) -> 1
A101: 13 | B101: 84 | C101: 131956004501 | D101: Aquarius | E101: 12 | F101: 14 | G101: 12 | H101: 0 | I101: 0 | J101: 38 | K101: 0 | L101: 54 | M101: 0 | O101: 0 | Q101: =COUNTIF('Classement auteurs'!B:B,C101) -> 1
A102: 13 | B102: 78 | C102: 131956004601 | D102: Regards sur notre galaxie | E102: 13 | F102: 19 | G102: 15 | H102: 0 | I102: 0 | J102: 47 | K102: 0 | L102: 20 | M102: 0 | O102: 0 | Q102: =COUNTIF('Classement auteurs'!B:B,C102) -> 1
A103: 13 | B103: 46 | C103: 131956005101 | D103: Litter Litter | E103: 9 | F103: 8 | G103: 17 | H103: 0 | I103: 0 | J103: 34 | K103: 0 | L103: 15 | M103: 0 | O103: 0 | Q103: =COUNTIF('Classement auteurs'!B:B,C103) -> 1
A104: 13 | B104: 19 | C104: 131992000301 | D104: Le tatoueur de Madurai. | E104: 12 | F104: 12 | G104: 16 | H104: 0 | I104: 0 | J104: 40 | K104: 0 | L104: 25 | M104: 0 | O104: 0 | Q104: =COUNTIF('Classement auteurs'!B:B,C104) -> 1
A105: 13 | B105: 39 | C105: 131992000401 | D105: Fantôme de Noel | E105: 12 | F105: 9 | G105: 11 | H105: 0 | I105: 0 | J105: 32 | K105: 0 | L105: 138 | M105: 0 | O105: 0 | Q105: =COUNTIF('Classement auteurs'!B:B,C105) -> 1
A106: 13 | B106: 35 | C106: 132023000101 | D106: L'homme au damier | E106: 16 | F106: 8 | G106: 14 | H106: 0 | I106: 0 | J106: 38 | K106: 0 | L106: 92 | M106: 0 | O106: 0 | Q106: =COUNTIF('Classement auteurs'!B:B,C106) -> 1
A107: 13 | B107: 23 | C107: 132060000101 | D107: FETE AU CHATEAU | E107: 9 | F107: 16 | G107: 9 | H107: 0 | I107: 0 | J107: 34 | K107: 0 | L107: 115 | M107: 0 | O107: 0 | Q107: =COUNTIF('Classement auteurs'!B:B,C107) -> 1
A108: 13 | B108: 40 | C108: 132060000701 | D108: Paris La Défense | E108: 13 | F108: 11 | G108: 14 | H108: 0 | I108: 0 | J108: 38 | K108: 0 | L108: 73 | M108: 0 | O108: 0 | Q108: =COUNTIF('Classement auteurs'!B:B,C108) -> 1
A109: 13 | B109: 73 | C109: 132060001701 | D109: Enfant gitan de la mer | E109: 14 | F109: 14 | G109: 17 | H109: 0 | I109: 0 | J109: 45 | K109: 0 | L109: 42 | M109: 0 | O109: 0 | Q109: =COUNTIF('Classement auteurs'!B:B,C109) -> 1
A110: 13 | B110: 30 | C110: 132084000201 | D110: Tristesse | E110: 13 | F110: 15 | G110: 10 | H110: 0 | I110: 0 | J110: 38 | K110: 0 | L110: 104 | M110: 0 | O110: 0 | Q110: =COUNTIF('Classement auteurs'!B:B,C110) -> 1
A111: 13 | B111: 75 | C111: 132084000301 | D111: Croisère à Kotor | E111: 14 | F111: 11 | G111: 14 | H111: 0 | I111: 0 | J111: 39 | K111: 0 | L111: 120 | M111: 0 | O111: 0 | Q111: =COUNTIF('Classement auteurs'!B:B,C111) -> 1
A112: 13 | B112: 50 | C112: 132084001701 | D112: Champs d'ail | E112: 11 | F112: 18 | G112: 16 | H112: 0 | I112: 0 | J112: 45 | K112: 0 | L112: 129 | M112: 0 | O112: 0 | Q112: =COUNTIF('Classement auteurs'!B:B,C112) -> 1
A113: 13 | B113: 23 | C113: 132084002301 | D113: Les petits hommes | E113: 19 | F113: 18 | G113: 17 | H113: 0 | I113: 0 | J113: 54 | K113: 0 | L113: 8 | M113: 0 | O113: 0 | Q113: =COUNTIF('Classement auteurs'!B:B,C113) -> 1
A114: 13 | B114: 58 | C114: 132084003501 | D114: Coiffes Himbas | E114: 14 | F114: 12 | G114: 17 | H114: 0 | I114: 0 | J114: 43 | K114: 0 | L114: 34 | M114: 0 | O114: 0 | Q114: =COUNTIF('Classement auteurs'!B:B,C114) -> 1
A115: 13 | B115: 36 | C115: 132084003601 | D115: Mini la grenouille | E115: 17 | F115: 18 | G115: 20 | H115: 0 | I115: 0 | J115: 55 | K115: 0 | L115: 137 | M115: 0 | O115: 0 | Q115: =COUNTIF('Classement auteurs'!B:B,C115) -> 1
A116: 13 | B116: 8 | C116: 132084004001 | D116: La négociation | E116: 11 | F116: 18 | G116: 13 | H116: 0 | I116: 0 | J116: 42 | K116: 0 | L116: 96 | M116: 0 | O116: 0 | Q116: =COUNTIF('Classement auteurs'!B:B,C116) -> 1
A117: 13 | B117: 39 | C117: 132086002301 | D117: Parade en rose | E117: 11 | F117: 13 | G117: 12 | H117: 0 | I117: 0 | J117: 36 | K117: 0 | L117: 29 | M117: 0 | O117: 0 | Q117: =COUNTIF('Classement auteurs'!B:B,C117) -> 1
A118: 13 | B118: 53 | C118: 132086002501 | D118: Le Chianti moderne | E118: 14 | F118: 7 | G118: 11 | H118: 0 | I118: 0 | J118: 32 | K118: 0 | L118: 29 | M118: 0 | O118: 0 | Q118: =COUNTIF('Classement auteurs'!B:B,C118) -> 1
A119: 13 | B119: 82 | C119: 132089000201 | D119: Au Radjastan | E119: 10 | F119: 11 | G119: 10 | H119: 0 | I119: 0 | J119: 31 | K119: 0 | L119: 6 | M119: 0 | O119: 0 | Q119: =COUNTIF('Classement auteurs'!B:B,C119) -> 1
A120: 13 | B120: 9 | C120: 132103000101 | D120: Prendre de le temps | E120: 19 | F120: 19 | G120: 17 | H120: 0 | I120: 0 | J120: 55 | K120: 0 | L120: 152 | M120: 0 | O120: 0 | Q120: =COUNTIF('Classement auteurs'!B:B,C120) -> 1
A121: 13 | B121: 3 | C121: 132147000101 | D121: Reflet Vénitien | E121: 11 | F121: 15 | G121: 10 | H121: 0 | I121: 0 | J121: 36 | K121: 0 | L121: 33 | M121: 0 | O121: 0 | Q121: =COUNTIF('Classement auteurs'!B:B,C121) -> 1
A122: 13 | B122: 16 | C122: 132147001701 | D122: L'herbe et le vent... | E122: 12 | F122: 8 | G122: 7 | H122: 0 | I122: 0 | J122: 27 | K122: 0 | L122: 101 | M122: 0 | O122: 0 | Q122: =COUNTIF('Classement auteurs'!B:B,C122) -> 1
A123: 13 | B123: 34 | C123: 132193000301 | D123: Ambiance New York | E123: 12 | F123: 18 | G123: 18 | H123: 0 | I123: 0 | J123: 48 | K123: 0 | L123: 69 | M123: 0 | O123: 0 | Q123: =COUNTIF('Classement auteurs'!B:B,C123) -> 1
A124: 13 | B124: 77 | C124: 132193000401 | D124: Un pont entre 2 mondes | E124: 12 | F124: 12 | G124: 13 | H124: 0 | I124: 0 | J124: 37 | K124: 0 | L124: 93 | M124: 7 | O124: 0 | Q124: =COUNTIF('Classement auteurs'!B:B,C124) -> 1
A125: 13 | B125: 51 | C125: 132193000501 | D125: Guerrier irlandais | E125: 11 | F125: 7 | G125: 7 | H125: 0 | I125: 0 | J125: 25 | K125: 0 | L125: 41 | M125: 7 | O125: 0 | Q125: =COUNTIF('Classement auteurs'!B:B,C125) -> 1
A126: 13 | B126: 6 | C126: 132193000601 | D126: Proue inversée | E126: 17 | F126: 14 | G126: 13 | H126: 0 | I126: 0 | J126: 44 | K126: 0 | L126: 26 | M126: 0 | O126: 0 | Q126: =COUNTIF('Classement auteurs'!B:B,C126) -> 1
A127: 13 | B127: 28 | C127: 132193001201 | D127: Mes tourterelles | E127: 13 | F127: 9 | G127: 15 | H127: 0 | I127: 0 | J127: 37 | K127: 0 | L127: 82 | M127: 0 | O127: 0 | Q127: =COUNTIF('Classement auteurs'!B:B,C127) -> 1
A128: 13 | B128: 41 | C128: 132203000601 | D128: Soir | E128: 11 | F128: 7 | G128: 10 | H128: 0 | I128: 0 | J128: 28 | K128: 0 | L128: 72 | M128: 0 | O128: 0 | Q128: =COUNTIF('Classement auteurs'!B:B,C128) -> 1
A129: 13 | B129: 37 | C129: 132217000601 | D129: Ancienne taverne crétoise | E129: 8 | F129: 10 | G129: 11 | H129: 0 | I129: 0 | J129: 29 | K129: 0 | L129: 7 | M129: 0 | O129: 0 | Q129: =COUNTIF('Classement auteurs'!B:B,C129) -> 1

Sheet Défi-7
A1: colis | B1: photologic | C1: fichier | D1: titre | E1: note1 | F1: note2 | G1: note3 | H1: note4 | I1: note5 | J1: total | K1: place | L1: passage | M1: statut | N1: medaille | O1: retenue | Q1: 0=absent 1=présent | S1: fichier | T1: total
A2: 13 | B2: 122 | C2: 131683008201 | D2: Alysée | E2: 19 | F2: 19 | G2: 19 | H2: 0 | I2: 0 | J2: 57 | K2: 0 | L2: 20 | Q2: =COUNTIF('Classement auteurs'!B:B,C2) -> 1 | S2: 130527009401 | T2: 49 | U2: =(MID(S2,3,4)*1) -> 527 | V2: 119 | W2: =IF($V2=VLOOKUP($U2,'Classement clubs'!$B$2:$K$52,9,FALSE),"OK","KO") -> OK
A3: 13 | B3: 85 | C3: 131353000101 | D3: La chapelle | E3: 17 | F3: 20 | G3: 19 | H3: 0 | I3: 0 | J3: 56 | K3: 0 | L3: 67 | Q3: =COUNTIF('Classement auteurs'!B:B,C3) -> 1 | S3: 130878007201 | T3: 44 | U3: 878 | V3: 122 | W3: =IF($V3=VLOOKUP($U3,'Classement clubs'!$B$2:$K$52,9,FALSE),"OK","KO") -> OK
A4: 13 | B4: 7 | C4: 132193000301 | D4: Invitation au voyage | E4: 19 | F4: 18 | G4: 18 | H4: 0 | I4: 0 | J4: 55 | K4: 0 | L4: 94 | Q4: =COUNTIF('Classement auteurs'!B:B,C4) -> 1 | S4: 131353000101 | T4: 56 | U4: 1353 | V4: 135 | W4: =IF($V4=VLOOKUP($U4,'Classement clubs'!$B$2:$K$52,9,FALSE),"OK","KO") -> OK
A5: 13 | B5: 11 | C5: 131985003401 | D5: Jeune fille himbas | E5: 20 | F5: 16 | G5: 18 | H5: 0 | I5: 0 | J5: 54 | K5: 0 | L5: 118 | Q5: =COUNTIF('Classement auteurs'!B:B,C5) -> 1 | S5: 131376017701 | T5: 47 | U5: 1376 | V5: 122 | W5: =IF($V5=VLOOKUP($U5,'Classement clubs'!$B$2:$K$52,9,FALSE),"OK","KO") -> OK
A6: 13 | B6: 6 | C6: 130987015701 | D6: Orage | E6: 19 | F6: 16 | G6: 17 | H6: 0 | I6: 0 | J6: 52 | K6: 0 | L6: 23 | Q6: =COUNTIF('Classement auteurs'!B:B,C6) -> 1 | S6: 131499009301 | T6: 39 | U6: 1499 | V6: 111 | W6: =IF($V6=VLOOKUP($U6,'Classement clubs'!$B$2:$K$52,9,FALSE),"OK","KO") -> OK
A7: 13 | B7: 107 | C7: 131956004601 | D7: L'homme de pierre | E7: 17 | F7: 17 | G7: 18 | H7: 0 | I7: 0 | J7: 52 | K7: 0 | L7: 76 | Q7: =COUNTIF('Classement auteurs'!B:B,C7) -> 1 | S7: 131619002601 | T7: 34 | U7: 1619 | V7: 124 | W7: =IF($V7=VLOOKUP($U7,'Classement clubs'!$B$2:$K$52,9,FALSE),"OK","KO") -> OK
A8: 13 | B8: 26 | C8: 130987013801 | D8: Championnat de France de | E8: 18 | F8: 17 | G8: 16 | H8: 0 | I8: 0 | J8: 51 | K8: 0 | L8: 122 | Q8: =COUNTIF('Classement auteurs'!B:B,C8) -> 1 | S8: 131683008201 | T8: 57 | U8: 1683 | V8: 147 | W8: =IF($V8=VLOOKUP($U8,'Classement clubs'!$B$2:$K$52,9,FALSE),"OK","KO") -> OK
A9: 13 | B9: 53 | C9: 131845000101 | D9: Ponton | E9: 17 | F9: 17 | G9: 16 | H9: 0 | I9: 0 | J9: 50 | K9: 0 | L9: 39 | Q9: =COUNTIF('Classement auteurs'!B:B,C9) -> 1 | S9: 131823004901 | T9: 43 | U9: 1823 | V9: 123 | W9: =IF($V9=VLOOKUP($U9,'Classement clubs'!$B$2:$K$52,9,FALSE),"OK","KO") -> OK
A10: 13 | B10: 100 | C10: 130527009401 | D10: La route | E10: 14 | F10: 16 | G10: 19 | H10: 0 | I10: 0 | J10: 49 | K10: 0 | L10: 28 | Q10: =COUNTIF('Classement auteurs'!B:B,C10) -> 1 | S10: 131845000101 | T10: 50 | U10: 1845 | V10: 132 | W10: =IF($V10=VLOOKUP($U10,'Classement clubs'!$B$2:$K$52,9,FALSE),"OK","KO") -> OK
A11: 13 | B11: 115 | C11: 131683008101 | D11: La cascade du roy | E11: 16 | F11: 15 | G11: 17 | H11: 0 | I11: 0 | J11: 48 | K11: 0 | L11: 88 | Q11: =COUNTIF('Classement auteurs'!B:B,C11) -> 1 | S11: 131862001601 | T11: 43 | U11: 1862 | V11: 116 | W11: =IF($V11=VLOOKUP($U11,'Classement clubs'!$B$2:$K$52,9,FALSE),"OK","KO") -> OK
A12: 13 | B12: 3 | C12: 132103000401 | D12: Sort-tu es toujours atten | E12: 18 | F12: 15 | G12: 14 | H12: 0 | I12: 0 | J12: 47 | K12: 0 | L12: 40 | Q12: =COUNTIF('Classement auteurs'!B:B,C12) -> 1 | S12: 131879000801 | T12: 44 | U12: 1879 | V12: 119 | W12: =IF($V12=VLOOKUP($U12,'Classement clubs'!$B$2:$K$52,9,FALSE),"OK","KO") -> OK
A13: 13 | B13: 5 | C13: 132003002201 | D13: Ubiquité. | E13: 20 | F13: 10 | G13: 17 | H13: 0 | I13: 0 | J13: 47 | K13: 0 | L13: 47 | Q13: =COUNTIF('Classement auteurs'!B:B,C13) -> 1 | S13: 131956004601 | T13: 52 | U13: 1956 | V13: 139 | W13: =IF($V13=VLOOKUP($U13,'Classement clubs'!$B$2:$K$52,9,FALSE),"OK","KO") -> OK
A14: 13 | B14: 15 | C14: 131376017701 | D14: Sprint final | E14: 15 | F14: 19 | G14: 13 | H14: 0 | I14: 0 | J14: 47 | K14: 0 | L14: 103 | Q14: =COUNTIF('Classement auteurs'!B:B,C14) -> 1 | S14: 131992000301 | T14: 33 | U14: 1992 | V14: 97 | W14: =IF($V14=VLOOKUP($U14,'Classement clubs'!$B$2:$K$52,9,FALSE),"OK","KO") -> OK
A15: 13 | B15: 125 | C15: 131619004501 | D15: L'echelle | E15: 13 | F15: 14 | G15: 20 | H15: 0 | I15: 0 | J15: 47 | K15: 0 | L15: 58 | Q15: =COUNTIF('Classement auteurs'!B:B,C15) -> 1 | S15: 132060002101 | T15: 41 | U15: 2060 | V15: 115 | W15: =IF($V15=VLOOKUP($U15,'Classement clubs'!$B$2:$K$52,9,FALSE),"OK","KO") -> OK
A16: 13 | B16: 37 | C16: 131824001901 | D16: Mini'Home | E16: 14 | F16: 14 | G16: 17 | H16: 0 | I16: 0 | J16: 45 | K16: 0 | L16: 83 | Q16: =COUNTIF('Classement auteurs'!B:B,C16) -> 1 | S16: 132084001701 | T16: 31 | U16: 2084 | V16: 111 | W16: =IF($V16=VLOOKUP($U16,'Classement clubs'!$B$2:$K$52,9,FALSE),"OK","KO") -> OK
A17: 13 | B17: 46 | C17: 131845000901 | D17: Concert acrobatique | E17: 18 | F17: 14 | G17: 13 | H17: 0 | I17: 0 | J17: 45 | K17: 0 | L17: 1 | Q17: =COUNTIF('Classement auteurs'!B:B,C17) -> 1 | S17: 132193000301 | T17: 55 | U17: 2193 | V17: 129 | W17: =IF($V17=VLOOKUP($U17,'Classement clubs'!$B$2:$K$52,9,FALSE),"OK","KO") -> OK
A18: 13 | B18: 56 | C18: 130878007201 | D18: Ibrahima | E18: 17 | F18: 13 | G18: 14 | H18: 0 | I18: 0 | J18: 44 | K18: 0 | L18: 73 | Q18: =COUNTIF('Classement auteurs'!B:B,C18) -> 1
A19: 13 | B19: 63 | C19: 132084004801 | D19: Père & Fils | E19: 14 | F19: 11 | G19: 19 | H19: 0 | I19: 0 | J19: 44 | K19: 0 | L19: 82 | Q19: =COUNTIF('Classement auteurs'!B:B,C19) -> 1
A20: 13 | B20: 82 | C20: 131879000801 | D20: Madone | E20: 14 | F20: 14 | G20: 16 | H20: 0 | I20: 0 | J20: 44 | K20: 0 | L20: 41 | Q20: =COUNTIF('Classement auteurs'!B:B,C20) -> 1
A21: 13 | B21: 112 | C21: 131956006201 | D21: Promenade en terrasse | E21: 12 | F21: 16 | G21: 16 | H21: 0 | I21: 0 | J21: 44 | K21: 0 | L21: 75 | Q21: =COUNTIF('Classement auteurs'!B:B,C21) -> 1
A22: 13 | B22: 27 | C22: 130987024201 | D22: Back in black | E22: 16 | F22: 12 | G22: 15 | H22: 0 | I22: 0 | J22: 43 | K22: 0 | L22: 119 | Q22: =COUNTIF('Classement auteurs'!B:B,C22) -> 1
A23: 13 | B23: 44 | C23: 131823007601 | D23: Spirale | E23: 15 | F23: 13 | G23: 15 | H23: 0 | I23: 0 | J23: 43 | K23: 0 | L23: 114 | Q23: =COUNTIF('Classement auteurs'!B:B,C23) -> 1
A24: 13 | B24: 51 | C24: 131823004901 | D24: Evanescence | E24: 12 | F24: 16 | G24: 15 | H24: 0 | I24: 0 | J24: 43 | K24: 0 | L24: 93 | Q24: =COUNTIF('Classement auteurs'!B:B,C24) -> 1
A25: 13 | B25: 58 | C25: 131985003601 | D25: Vino | E25: 14 | F25: 12 | G25: 17 | H25: 0 | I25: 0 | J25: 43 | K25: 0 | L25: 55 | Q25: =COUNTIF('Classement auteurs'!B:B,C25) -> 1
A26: 13 | B26: 64 | C26: 131619004601 | D26: Marche à l'ombre | E26: 12 | F26: 15 | G26: 16 | H26: 0 | I26: 0 | J26: 43 | K26: 0 | L26: 81 | Q26: =COUNTIF('Classement auteurs'!B:B,C26) -> 1
A27: 13 | B27: 119 | C27: 131956002601 | D27: Trace | E27: 11 | F27: 15 | G27: 17 | H27: 0 | I27: 0 | J27: 43 | K27: 0 | L27: 99 | Q27: =COUNTIF('Classement auteurs'!B:B,C27) -> 1
A28: 13 | B28: 127 | C28: 131862001601 | D28: Vers l'orage | E28: 17 | F28: 9 | G28: 17 | H28: 0 | I28: 0 | J28: 43 | K28: 0 | L28: 102 | Q28: =COUNTIF('Classement auteurs'!B:B,C28) -> 1
A29: 13 | B29: 10 | C29: 131956004501 | D29: La souche | E29: 10 | F29: 14 | G29: 18 | H29: 0 | I29: 0 | J29: 42 | K29: 0 | L29: 62 | Q29: =COUNTIF('Classement auteurs'!B:B,C29) -> 1
A30: 13 | B30: 12 | C30: 131376018301 | D30: La penseuse ! | E30: 12 | F30: 14 | G30: 16 | H30: 0 | I30: 0 | J30: 42 | K30: 0 | L30: 42 | Q30: =COUNTIF('Classement auteurs'!B:B,C30) -> 1
A31: 13 | B31: 97 | C31: 131683007901 | D31: Tête d'oeuf | E31: 13 | F31: 11 | G31: 18 | H31: 0 | I31: 0 | J31: 42 | K31: 0 | L31: 117 | Q31: =COUNTIF('Classement auteurs'!B:B,C31) -> 1
A32: 13 | B32: 114 | C32: 131956002401 | D32: Grand Mère | E32: 13 | F32: 15 | G32: 14 | H32: 0 | I32: 0 | J32: 42 | K32: 0 | L32: 24 | Q32: =COUNTIF('Classement auteurs'!B:B,C32) -> 1
A33: 13 | B33: 9 | C33: 130000015001 | D33: Vu | E33: 15 | F33: 14 | G33: 12 | H33: 0 | I33: 0 | J33: 41 | K33: 0 | L33: 53 | Q33: =COUNTIF('Classement auteurs'!B:B,C33) -> 1
A34: 13 | B34: 40 | C34: 130000020401 | D34: Alcôve | E34: 13 | F34: 13 | G34: 15 | H34: 0 | I34: 0 | J34: 41 | K34: 0 | L34: 51 | Q34: =COUNTIF('Classement auteurs'!B:B,C34) -> 1
A35: 13 | B35: 86 | C35: 131353000701 | D35: Sous la pluie | E35: 14 | F35: 12 | G35: 15 | H35: 0 | I35: 0 | J35: 41 | K35: 0 | L35: 3 | Q35: =COUNTIF('Classement auteurs'!B:B,C35) -> 1
A36: 13 | B36: 89 | C36: 132060002101 | D36: Pont araignée sur le Rhon | E36: 14 | F36: 12 | G36: 15 | H36: 0 | I36: 0 | J36: 41 | K36: 0 | L36: 107 | Q36: =COUNTIF('Classement auteurs'!B:B,C36) -> 1
A37: 13 | B37: 105 | C37: 131683006601 | D37: Comme un génie | E37: 14 | F37: 13 | G37: 14 | H37: 0 | I37: 0 | J37: 41 | K37: 0 | L37: 78 | Q37: =COUNTIF('Classement auteurs'!B:B,C37) -> 1
A38: 13 | B38: 111 | C38: 131956000401 | D38: Westminster | E38: 14 | F38: 12 | G38: 15 | H38: 0 | I38: 0 | J38: 41 | K38: 0 | L38: 86 | Q38: =COUNTIF('Classement auteurs'!B:B,C38) -> 1
